Workbook

Sheet Instructions
B1: ='Event Details'!D5 -> Heart of England League
B3: Instructions
B5: General
B6: This Spreadsheet come cleared down and ready to go. If you require a copy with test data loaded contact Martin Smith (msmith46@talktalk.net).
B7: If you enter test data to familiarise yourself with the layout, there are three macros to clear down the data ready for the new meeting. The first two macros are found in the 'Event Details' spreadsheet. Macro Button1 ('Clear Competitors Names for Teamsheet Male') will clear down the names from the male teamsheet. Macro 2 will clear down the female teamsheet.
B8: The third macro is also found in the 'Results Entry' spreadsheets. Clicking on the button 'Clear Results Table'- will clear down the previous meetings results. It is recommended that you make a Back-Up copy prior to deleting the data.
B9: New for 2013 - Guests are allowed in the 800m and 1500m at the discretion of the Track Referee. They must wear the number sequence allocated for the U11 (not club Letter). Also, a 'Howler' has been introduced as a new event in the U11's.
B11: Event Details
B12: The first spreadsheet shows details of the Athletic Meeting. Changing the Division number changes the club details for that division. The details are taken from the 'Club Details' spreadsheet. The field highlighted in 'Green' can be amended as required.
B13: To amend or delete the Club Names for clubs promoted or relegated see 'Club Details' spreadsheet.
B14: To clear the Competitors Names , click on the two macro buttons 'Clear Competitors Names from Teamsheet Male' and 'Clear Competitors Names from Female Teamsheet'.
B16: Timetable
B17: This spreadsheet shows the 'League Programme'. Each event has been given a unique 'Event Number.' which arranges the events in time order. These fields can be amended for any changes at the beginning of the season. Also ensure that 'Non Scoring Events (NS) are shown as separate events in the Programme and identified with 'NS' in column G.
B18: The Timetable can be printed off at anytime.
B20: Team Declaration Sheet
B21: This spreadsheet is a blank Declaration Sheet for both Male and Female competitors. If any amendments are made to the 'Timetable' , please ensure that this spreadsheet is updated by changing the appropriate 'Event Number' (if required). Ideally, the Team Declaration Sheets should be Emailed to the Results Team 2 Days before the event.
B23: Team Sheets Male & Teamsheet Female
B24: There are two Team Sheets, one for Male and one for Female. Scroll across to see the eight Clubs
B25: Scroll along to the right to find the appropriate Club and enter the name of the 'A' and 'B'. competitor for each event. Also enter the names of competitors in the relay teams. There is a section at the bottom for Guests.
B26: U11 Non Scoring and Guests - Each athlete should wear a unique number (not letter). Remember to enter the number against the competitors name.
B27: If clubs have Emailed their Declaration Sheets in advance of the meeting, then the names can be 'Cut and Pasted' into the spreadsheet. ( Note. Take care to copy to the correct rows.)
B29: Results Entry
B30: Enter all Events (including U11 Scoring & U11 Relay NS)
B31: Enter the Event number In the 'green' box (cell B4) to bring up details of the event. In the 'blue area' you will see all the competitors names which have been taken from the Teamsheets.
B32: To enter the Result for the first competitor, enter the Club letter into the first green box,(i.e. 'C' for Bromsgrove ). For the 'B' race, enter 'CC' which will identify the 'B' runner. A Table of the Club letters is shown at the left of the spreadsheet.
B33: Note: if the B Competitor does the best throw/ jump/ time, you can enter the double letter (i.e.'CC') in Event A and single letter ('C') in the Event B. This will select the right name from the teamsheet.
B34: Next move right, and enter the time or distance ( i.e. '2.71' metres or '2.12.13' mins.) If a competitor did not finish, enter 'DNF' in the time box.
B35: Move down and enter the second competitor results. Move to next column right and enter the time/ distance.
B36: Once all the results for Event A have been completed, repeat the same for Event B. Entering the single or double letter as appropriate (i.e. "C" or "CC").
B37: Once all the results have been entered, click on the button "Save Data". If you wish to Amend this data at a later stage, enter the Event No. and click on the "Edit Data" button and the results are restored.
B38: To manually adjust the points for equal scores i.e joint 2nd.- see Results by Age Group.
B40: Results in Event Order
B41: If on the day you are connected to a printer, this report is useful for printing off and putting on the noticeboard.
B42: There are 7 pages in the spread sheet ‘Results in Event Order’. There are 10 results per page.
B43: After entering the first 10 results, print page one off and the page can be stuck on the notice board.
B44: The clubs can then see the results and the points position
B46: Results by Age Group
B47: This spreadsheet is automatically updated from the previous sheet. This sheet can be printed off at anytime to get the latest points position.
B48: In the points section on the right, a manual adjustment can be made if points need to be shared. In the green highlighted area above the points, enter for example, '-0.5' to take off half a point from one team and add '0.5' to the another team.
B50: Match Position
B51: This spreadsheet gives a summary of the 'Match Position' at any point in time. This is useful for the announcer who can read the information from the screen or print it off at any time.
B53: Results Summary
B54: This spreadsheet automatically calculates the Points and Position for each Age Group, and includes points added for providing Officials.
B56: Results by Club
B57: Enter a Club Letter in the Green Box (Cell B3). Enter each Club Letter in turn and it will produce the results for each Club. Can be printed off anytime.
B59: Adjustment for Officials
B60: 2 points per Official can be added up to a maximum of 10 for each Age Group i.e. U13 Females,U15 Females, U17 Females, U13 Male,U15 Male and U17 Men.
B62: Club Details by Division
B63: To amend or delete the Club Names in each Division for clubs promoted or relegated, enter the details here.
B65: Competitor Change Form
B66: This spreadsheet is a blank 'Change Form' and issued to Team Manager on the day of the event. Ideally, the Team Declaration Sheets should be Emailed to the Results Team 2 Days before the event. If any amendments are made to the 'Team Sheet' on the day, the Team Manager should use this sheet to notify the Results Team of any changes.
B68: Track Lane Draw
B69: This Spreadsheet is for the assistance of the Starter. It produces a printed list of randomly selected clubs over the 8 lanes of the track. The random sequence can be changed by entering 1 to 8 in the yellow highlighted area.
B71: Field Jumps and Field Throws and Timekeepers Slip
B72: These three spread sheets are optional but can be used for printing 'Field Event Cards'. Enter the 'Event Number' from the list on the left into Cell J4 the top of the 'card' and the events details are updated. If you also wish to print the Competitors names, enter "Y" into Cell S3. This only works if the names have already been entered into the Team Declaration Sheets. Also the clubs order is different for each event as they are randomly drawn from ' Lane Draw' spread sheet. The Timekeepers recording slip can also be printed off as required.

Sheet Event Details
D3: Event Details
J4: Notes
B5: Event Title | D5: Heart of England League | I5: 1 | J5: Changing the Division number (cell 'D9')
J6: updates the Club Details accordingly.
B7: Year | D7: 2015 | I7: 2 | J7: Clubs promoted or relegated are
J8: amended in the spreadsheet 'Club Details'.
B9: Division | D9: 2 | I9: 3 | J9: At Cell 'A17', enter the meeting
J10: number i.e. 1,2 or 3.
A11: Match | B11: Date | D11: Venue | F11: Host | I11: 4 | J11: At Cell 'C32', enter the number of
A12: 1 | B12: =VLOOKUP($A12,EventDates,C$43,FALSE) -> 10th May 2015 | D12: =VLOOKUP($A12,EventDates,E$43,FALSE) -> Stourport | F12: =VLOOKUP($A12,EventDates,F$43,FALSE) -> Kidd & Stourport | J12: Teams in the Division i.e. 8.
A13: 2 | B13: =VLOOKUP($A13,EventDates,C$43,FALSE) -> 7th June 2015 | D13: =VLOOKUP($A13,EventDates,E$43,FALSE) -> Corby | F13: =VLOOKUP($A13,EventDates,F$43,FALSE) -> Corby | I13: 5 | J13: Fields highlighted in 'Green' can be
A14: 3 | B14: =VLOOKUP($A14,EventDates,C$43,FALSE) -> 5th July 2015 | D14: =VLOOKUP($A14,EventDates,E$43,FALSE) -> Redditch | F14: =VLOOKUP($A14,EventDates,F$43,FALSE) -> Brom & Redditch | J14: amended as required.
I15: 6
B16: Next meeting
A17: 1 | B17: =IF($A17=3,B14,IF($A17=2,B13,B12)) -> 10th May 2015 | D17: =IF($A17=3,D14,IF($A17=2,D13,D12)) -> Stourport | F17: =IF($A17=3,F14,IF($A17=2,F13,F12)) -> Kidd & Stourport
B20: Teams | C20: Letter | D20: Club Name | E20: U11 No's | G20: Short
G21: Name
B22: 1 | C22: =VLOOKUP($B22,ClubDetail,C$42,FALSE) -> C | D22: Brom & Redditch | E22: 650 | F22: 699 | G22: B&R | J22: Macros
B23: 2 | C23: O | D23: Corby | E23: 400 | F23: 449 | G23: Corby
B24: 3 | C24: I | D24: Kettering | E24: 50 | F24: 99 | G24: Kett
B25: 4 | C25: U | D25: Kidder & Stourport | E25: 250 | F25: 299 | G25: K&S | I25: 1
B26: 5 | C26: B | D26: Dudley & S'bridge | E26: 200 | F26: 249 | G26: DASH
B27: 6 | C27: F | D27: Tamworth | E27: 1 | F27: 49 | G27: Tam
B28: 7 | C28: G | D28: Royal Sutton | E28: 300 | F28: 349 | G28: Royal
B29: 8 | C29: X | D29: Wreake Runners | E29: 500 | F29: 549 | G29: Wreake
B30: 9 | C30: 0 | D30: 0 | E30: 0 | F30: 0 | G30: 0 | I30: 2
B32: Points | C32: =COUNTIF(C22:C30,"?") -> 8 | D32: (Total Number of Teams)
B42: =IF($D9=1,1,IF($D9=2,8,IF($D9=3,15,IF($D$9=4,22," ")))) -> 8 | C42: =IF($D9=1,2,IF($D9=2,9,IF($D9=3,16,IF($D$9=4,23," ")))) -> 9 | D42: =IF($D9=1,3,IF($D9=2,10,IF($D9=3,17,IF($D$9=4,24," ")))) -> 10 | E42: =IF($D9=1,4,IF($D9=2,11,IF($D9=3,18,IF($D$9=4,25," ")))) -> 11 | F42: =IF($D9=1,5,IF($D9=2,12,IF($D9=3,19,IF($D$9=4,26," ")))) -> 12 | G42: =IF($D9=1,6,IF($D9=2,13,IF($D9=3,20,IF($D$9=4,27," ")))) -> 13
C43: =IF($D9=1,2,IF($D9=2,9,IF($D9=3,16,IF($D$9=4,23," ")))) -> 9 | E43: =IF($D9=1,4,IF($D9=2,11,IF($D9=3,18,IF($D$9=4,25," ")))) -> 11 | F43: =IF($D9=1,5,IF($D9=2,12,IF($D9=3,19,IF($D$9=4,26," ")))) -> 12

Sheet Timetable
F1: ='Event Details'!D5&" Programme" -> Heart of England League Programme | T1: ='Event Details'!D5&" Programme by Age Group" -> Heart of England League Programme by Age Group
G2: ="Revised for "&'Event Details'!D7 -> Revised for 2015 | T2: ="Revised for "&'Event Details'!D7 -> Revised for 2015
C4: Event | G4: Non | I4: Event | Q4: Event | U4: Event
C5: No | D5: Time | E5: Event | F5: Age | G5: Scoring | I5: No | J5: Time | K5: Event | L5: Age | M5: Comment | Q5: No | R5: Time | S5: Event | U5: No | V5: Time | W5: Event
C7: Track Events | I7: Field Events
C9: 1 | D9: 11.45 | E9: 1500m | F9: U13 Female | I9: 2 | J9: 11.45 | K9: Howler | L9: U11 Male | S9: U11 Female | W9: U11 Male
C10: 4 | D10: 11.55 | E10: 1500m | F10: U15 Female | I10: 3 | J10: 11.45 | K10: Howler | L10: U11 Female | Q10: 3 | R10: =IF($Q10>0,VLOOKUP($Q10,EventsOrder,2,FALSE)," ") -> 11.45 | S10: =IF($Q10>0,VLOOKUP($Q10,EventsOrder,6,FALSE)," ") -> Howler | U10: 2 | V10: =IF($U10>0,VLOOKUP($U10,EventsOrder,2,FALSE)," ") -> 11.45 | W10: =IF($U10>0,VLOOKUP($U10,EventsOrder,6,FALSE)," ") -> Howler
C11: 7 | D11: 12.05 | E11: 1500m | F11: U17 F/Women | I11: 5 | J11: 12 | K11: High Jump | L11: U13 Male | Q11: 14 | R11: 12.3 | S11: Long Jump Pit1 | U11: 33 | V11: 2 | W11: 600m
C12: 11 | D12: 12.15 | E12: 70m hurdles | F12: U13 Female | I12: 6 | J12: 12 | K12: Long Jump | L12: U15 Male | M12: Pit 2 | Q12: 29 | R12: 1.5 | S12: 600m | U12: 34 | V12: 2.05 | W12: 600m NS
C13: 12 | D13: 12.2 | E13: 800m | F13: U13 Male | I13: 8 | J13: 12.15 | K13: Shot | L13: U17 Men | Q13: 30 | R13: 1.55 | S13: 600m NS | U13: 44 | V13: 2.1 | W13: Long Jump Pit 2
C14: 13 | D14: 12.3 | E14: 75m hurdles | F14: U15 Female | I14: 9 | J14: 12.15 | K14: Discus | L14: U15 Female | M14: Match 1 & 3 | Q14: 58 | R14: 3.1 | S14: 75m | U14: 61 | V14: 3.2 | W14: 75m
C15: 15 | D15: 12.35 | E15: 75m hurdles | F15: U13 Male | I15: 10 | J15: 12.15 | K15: Javelin | L15: U17 F/Women | M15: Match 2 | Q15: 59 | R15: 3.15 | S15: 75m NS | U15: 62 | V15: 3.25 | W15: 75m NS
C16: 16 | D16: 12.4 | E16: 800m | F16: U15 Male | I16: 14 | J16: 12.3 | K16: Long Jump | L16: U11 Female | M16: Pit1 | Q16: 81 | R16: 4.5 | S16: 4 x 100m Mixed NS | U16: 81 | V16: 4.5 | W16: 4 x 100m Mixed NS
C17: 18 | D17: 12.5 | E17: 800m | F17: U17 Men | I17: 17 | J17: 12.55 | K17: High Jump | L17: U15 Female
C18: 19 | D18: 1 | E18: 80m hurdles (U17) | F18: U17 Female | I18: 21 | J18: 1 | K18: Long Jump | L18: U15 Female | M18: Pit 2 | S18: U13 Female | W18: U13 Male
C19: 20 | D19: 1.05 | E19: 80m hurdles | F19: U15 Male | I19: 22 | J19: 1 | K19: Shot | L19: U15 Male | Q19: 1 | R19: =IF($Q19>0,VLOOKUP($Q19,EventsOrder,2,FALSE)," ") -> 11.45 | S19: =IF($Q19>0,VLOOKUP($Q19,EventsOrder,6,FALSE)," ") -> 1500m | U19: 5 | V19: =IF($U19>0,VLOOKUP($U19,EventsOrder,2,FALSE)," ") -> 12 | W19: =IF($U19>0,VLOOKUP($U19,EventsOrder,6,FALSE)," ") -> High Jump
C20: 25 | D20: 1.15 | E20: 800m | F20: U13 Female | I20: 23 | J20: 1 | K20: Discus | L20: U17 Men | M20: Match 1 & 3 | Q20: 11 | R20: 12.15 | S20: 70m hurdles | U20: 12 | V20: 12.2 | W20: 800m
C21: 26 | D21: 1.25 | E21: 800m | F21: U15 Female | I21: 24 | J21: 1 | K21: Javelin | L21: U13 Male | M21: Match 2 | Q21: 25 | R21: 1.15 | S21: 800m | U21: 15 | V21: 12.35 | W21: 75m hurdles
C22: 27 | D22: 1.35 | E22: 100m hurdles | F22: U17 Men | I22: 31 | J22: 1.4 | K22: High Jump | L22: U13 Female | Q22: 31 | R22: 1.4 | S22: High Jump | U22: 24 | V22: 1 | W22: Javelin Match 2
C23: 28 | D23: 1.4 | E23: 800m | F23: U17 F/Women | I23: 32 | J23: 1.3 | K23: Long Jump | L23: U17 Men | M23: Pit1 | Q23: 35 | R23: 2.1 | S23: 100m | U23: 41 | V23: 2.25 | W23: 100m
C24: 29 | D24: 1.5 | E24: 600m | F24: U11 Female | I24: 37 | J24: 1.5 | K24: Shot | L24: U17 F/Women | Q24: 38 | R24: 1.5 | S24: Discus Match 1 & 3 | U24: 52 | V24: 2.4 | W24: Shot
C25: 30 | D25: 1.55 | E25: 600m | F25: U11 Female | G25: NS | I25: 38 | J25: 1.5 | K25: Discus | L25: U13 Female | M25: Match 1 & 3 | Q25: 56 | R25: 2.5 | S25: Long Jump Pit 1 | U25: 64 | V25: 3.2 | W25: Long Jump Pit 2
C26: 33 | D26: 2 | E26: 600m | F26: U11 Male | I26: 39 | J26: 1.5 | K26: Javelin | L26: U15 Male | M26: Match 2 | Q26: 63 | R26: 3.35 | S26: 200m | U26: 70 | V26: 3.5 | W26: 200m
C27: 34 | D27: 2.05 | E27: 600m | F27: U11 Male | G27: NS | I27: 44 | J27: 2.1 | K27: Long Jump | L27: U11 Male | M27: Pit 2 | Q27: 65 | R27: 3.3 | S27: Shot | U27: 73 | V27: 4.2 | W27: 1500m
C28: 35 | D28: 2.1 | E28: 100m | F28: U13 Female | I28: 45 | J28: 2.25 | K28: High Jump | L28: U15 Male | Q28: 79 | R28: 4.2 | S28: Javelin Match 2 | U28: 78 | V28: 4.2 | W28: Discus Match 1 & 3
C29: 36 | D29: 2.15 | E29: 100m | F29: U15 Female | I29: 52 | J29: 2.4 | K29: Shot | L29: U13 Male | Q29: 82 | R29: 4.55 | S29: 4 x 100m | U29: 85 | V29: 5.1 | W29: 4 x 100m
C30: 40 | D30: 2.2 | E30: 100m | F30: U17 F/Women | I30: 53 | J30: 2.4 | K30: Discus | L30: U17 F/Women | M30: Match 1 & 3
C31: 41 | D31: 2.25 | E31: 100m | F31: U13 Male | I31: 54 | J31: 2.4 | K31: Javelin | L31: U15 Female | M31: Match 2 | S31: U15 Female | W31: U15 Male
C32: 42 | D32: 2.3 | E32: 100m | F32: U15 Male | I32: 56 | J32: 2.5 | K32: Long Jump | L32: U13 Female | M32: Pit 1 | Q32: 4 | R32: =IF($Q32>0,VLOOKUP($Q32,EventsOrder,2,FALSE)," ") -> 11.55 | S32: =IF($Q32>0,VLOOKUP($Q32,EventsOrder,6,FALSE)," ") -> 1500m | U32: 6 | V32: =IF($U32>0,VLOOKUP($U32,EventsOrder,2,FALSE)," ") -> 12 | W32: =IF($U32>0,VLOOKUP($U32,EventsOrder,6,FALSE)," ") -> Long Jump Pit 2
C33: 43 | D33: 2.35 | E33: 100m | F33: U17 Men | I33: 60 | J33: 3.1 | K33: High Jump | L33: U17 F/Women | Q33: 9 | R33: 12.15 | S33: Discus Match 1 & 3 | U33: 16 | V33: 12.4 | W33: 800m
C34: 50 | D34: 2.4 | E34: 300m | F34: U15 Female | I34: 64 | J34: 3.2 | K34: Long Jump | L34: U13 Male | M34: Pit 2 | Q34: 13 | R34: 12.3 | S34: 75m hurdles | U34: 20 | V34: 1.05 | W34: 80m hurdles
C35: 51 | D35: 2.45 | E35: 300m | F35: U17 F/Women | I35: 65 | J35: 3.3 | K35: Shot | L35: U13 Female | Q35: 17 | R35: 12.55 | S35: High Jump | U35: 22 | V35: 1 | W35: Shot
C36: 55 | D36: 2.55 | E36: 300m | F36: U15 Male | I36: 66 | J36: 3.3 | K36: Discus | L36: U15 Male | M36: Match 1 & 3 | Q36: 21 | R36: 1 | S36: Long Jump Pit 2 | U36: 39 | V36: 1.5 | W36: Javelin Match 2
C37: 57 | D37: 3 | E37: 400m | F37: U17 Men | I37: 67 | J37: 3.3 | K37: Javelin | L37: U17 Men | M37: Match 2 | Q37: 26 | R37: 1.25 | S37: 800m | U37: 42 | V37: 2.3 | W37: 100m
C38: 58 | D38: 3.1 | E38: 75m | F38: U11 Female | I38: 74 | J38: 4.1 | K38: High Jump | L38: U17 Men | Q38: 36 | R38: 2.15 | S38: 100m | U38: 45 | V38: 2.25 | W38: High Jump
C39: 59 | D39: 3.15 | E39: 75m | F39: U11 Female | G39: NS | I39: 75 | J39: 4 | K39: Long Jump | L39: U17 F/Women | M39: Pit1 | Q39: 50 | R39: 2.4 | S39: 300m | U39: 55 | V39: 2.55 | W39: 300m
C40: 61 | D40: 3.2 | E40: 75m | F40: U11 Male | I40: 77 | J40: 4.2 | K40: Shot | L40: U15 Female | Q40: 54 | R40: 2.4 | S40: Javelin Match 2 | U40: 66 | V40: 3.3 | W40: Discus Match 1 & 3
C41: 62 | D41: 3.25 | E41: 75m | F41: U11 Male | G41: NS | I41: 78 | J41: 4.2 | K41: Discus | L41: U13 Male | M41: Match 1 & 3 | Q41: 68 | R41: 3.4 | S41: 200m | U41: 71 | V41: 3.55 | W41: 200m
C42: 63 | D42: 3.35 | E42: 200m | F42: U13 Female | I42: 79 | J42: 4.2 | K42: Javelin | L42: U13 Female | M42: Match 2 | Q42: 77 | R42: 4.2 | S42: Shot | U42: 76 | V42: 4.3 | W42: 1500m
C43: 68 | D43: 3.4 | E43: 200m | F43: U15 Female | Q43: 83 | R43: 5 | S43: 4 x 100m | U43: 86 | V43: 5.15 | W43: 4 x 100m
C44: 69 | D44: 3.45 | E44: 200m | F44: U17 F/Women | J44: Guests - Non Scoring
C45: 70 | D45: 3.5 | E45: 200m | F45: U13 Male | I45: 88 | J45: 11.45 | K45: 1500m | L45: U13 Female | S45: U17 F/Women | W45: U17 Men
C46: 71 | D46: 3.55 | E46: 200m | F46: U15 Male | I46: 89 | J46: 11.55 | K46: 1500m | L46: U15 Female | Q46: 7 | R46: =IF($Q46>0,VLOOKUP($Q46,EventsOrder,2,FALSE)," ") -> 12.05 | S46: =IF($Q46>0,VLOOKUP($Q46,EventsOrder,6,FALSE)," ") -> 1500m | U46: 8 | V46: =IF($U46>0,VLOOKUP($U46,EventsOrder,2,FALSE)," ") -> 12.15 | W46: =IF($U46>0,VLOOKUP($U46,EventsOrder,6,FALSE)," ") -> Shot
C47: 72 | D47: 4 | E47: 200m | F47: U17 Men | I47: 90 | J47: 12.05 | K47: 1500m | L47: U17 F/Women | Q47: 10 | R47: 12.15 | S47: Javelin Match 2 | U47: 18 | V47: 12.5 | W47: 800m
C48: 73 | D48: 4.2 | E48: 1500m | F48: U13 Male | I48: 91 | J48: 12.2 | K48: 800m | L48: U13 Male | Q48: 19 | R48: 1 | S48: 80m hurdles (U17) | U48: 23 | V48: 1 | W48: Discus Match 1 & 3
C49: 76 | D49: 4.3 | E49: 1500m | F49: U15 Male | I49: 92 | J49: 12.4 | K49: 800m | L49: U15 Male | Q49: 28 | R49: 1.4 | S49: 800m | U49: 27 | V49: 1.35 | W49: 100m hurdles
C50: 80 | D50: 4.4 | E50: 1500m | F50: U17 Men | I50: 93 | J50: 12.5 | K50: 800m | L50: U17 Men | Q50: 37 | R50: 1.5 | S50: Shot | U50: 32 | V50: 1.3 | W50: Long Jump Pit1
C51: 81 | D51: 4.5 | E51: 4 x 100m Mixed | F51: U11 Fem/Male | G51: NS | I51: 94 | J51: 1.15 | K51: 800m | L51: U13 Female | Q51: 40 | R51: 2.2 | S51: 100m | U51: 43 | V51: 2.35 | W51: 100m
C52: 82 | D52: 4.55 | E52: 4 x 100m | F52: U13 Female | I52: 95 | J52: 1.25 | K52: 800m | L52: U15 Female | Q52: 51 | R52: 2.45 | S52: 300m | U52: 57 | V52: 3 | W52: 400m
C53: 83 | D53: 5 | E53: 4 x 100m | F53: U15 Female | I53: 96 | J53: 1.4 | K53: 800m | L53: U17 F/Women | Q53: 53 | R53: 2.4 | S53: Discus Match 1 & 3 | U53: 67 | V53: 3.3 | W53: Javelin Match 2
C54: 84 | D54: 5.05 | E54: 4 x 100m | F54: U17 F/Women | I54: 97 | J54: 4.2 | K54: 1500m | L54: U13 Male | Q54: 60 | R54: 3.1 | S54: High Jump | U54: 72 | V54: 4 | W54: 200m
C55: 85 | D55: 5.1 | E55: 4 x 100m | F55: U13 Male | I55: 98 | J55: 4.3 | K55: 1500m | L55: U15 Male | Q55: 69 | R55: 3.45 | S55: 200m | U55: 74 | V55: 4.1 | W55: High Jump
C56: 86 | D56: 5.15 | E56: 4 x 100m | F56: U15 Male | I56: 99 | J56: 4.4 | K56: 1500m | L56: U17 Men | Q56: 75 | R56: 4 | S56: Long Jump Pit1 | U56: 80 | V56: 4.4 | W56: 1500m
C57: 87 | D57: 5.2 | E57: 4 x 100m | F57: U17 Men | Q57: 84 | R57: 5.05 | S57: 4 x 100m | U57: 87 | V57: 5.2 | W57: 4 x 100m
K59: No of Trials | S59: Guests - Non Scoring
I60: Jumps | K60: 3 | L60: Long Jump - 2 Pits required | S60: Female | W60: Male
I61: Discus | K61: 3 | Q61: 88 | R61: =IF($Q61>0,VLOOKUP($Q61,EventsOrder,2,FALSE)," ") -> 11.45 | S61: =IF($Q61>0,VLOOKUP($Q61,EventsOrder,6,FALSE)," ") -> 1500m U13 Female | U61: 91 | V61: =IF($U61>0,VLOOKUP($U61,EventsOrder,2,FALSE)," ") -> 12.2 | W61: =IF($U61>0,VLOOKUP($U61,EventsOrder,6,FALSE)," ") -> 800m U13 Male
I62: Javelin | K62: 4 | Q62: 89 | R62: 11.55 | S62: 1500m U15 Female | U62: 92 | V62: 12.4 | W62: 800m U15 Male
I63: Shot | K63: 4 | Q63: 90 | R63: 12.05 | S63: 1500m U17 F/Women | U63: 93 | V63: 12.5 | W63: 800m U17 Men
Q64: 94 | R64: 1.15 | S64: 800m U13 Female | U64: 97 | V64: 4.2 | W64: 1500m U13 Male
J65: High Jump | Q65: 95 | R65: =IF($Q65>0,VLOOKUP($Q65,EventsOrder,2,FALSE)," ") -> 1.25 | S65: =IF($Q65>0,VLOOKUP($Q65,EventsOrder,6,FALSE)," ") -> 800m U15 Female | U65: 98 | V65: =IF($U65>0,VLOOKUP($U65,EventsOrder,2,FALSE)," ") -> 4.3 | W65: =IF($U65>0,VLOOKUP($U65,EventsOrder,6,FALSE)," ") -> 1500m U15 Male
J66: Opening Heights | Q66: 96 | R66: =IF($Q66>0,VLOOKUP($Q66,EventsOrder,2,FALSE)," ") -> 1.4 | S66: =IF($Q66>0,VLOOKUP($Q66,EventsOrder,6,FALSE)," ") -> 800m U17 F/Women | U66: 99 | V66: =IF($U66>0,VLOOKUP($U66,EventsOrder,2,FALSE)," ") -> 4.4 | W66: =IF($U66>0,VLOOKUP($U66,EventsOrder,6,FALSE)," ") -> 1500m U17 Men
J67: Male | K67: Female | R67: =IF($Q67>0,VLOOKUP($Q67,EventsOrder,2,FALSE)," ") ->  | S67: =IF($Q67>0,VLOOKUP($Q67,EventsOrder,6,FALSE)," ") ->  | V67: =IF($U67>0,VLOOKUP($U67,EventsOrder,2,FALSE)," ") ->  | W67: =IF($Q67>0,VLOOKUP($Q67,EventsOrder,6,FALSE)," ") -> 
I68: U13 | J68: 1.10m | K68: 1.00m
I69: U15 | J69: 1.20m | K69: 1.10m
I70: U17 | J70: 1.30m | K70: 1.20m
C74: Event No's - In Order of Time
C76: Event
C77: No | D77: Time | E77: Event | F77: Age | G77: Comment | I77: Event
G78: =E78&" "&IF(J78>0,J78,"") -> 
C79: 0 | G79: =E79&" "&IF(J79>0,J79,"") -> 
C80: 1 | D80: =VLOOKUP($C80,IF(ISNA(VLOOKUP($C80,Track,1,FALSE)),Field,Track),2,FALSE) -> 11.45 | E80: =VLOOKUP($C80,IF(ISNA(VLOOKUP($C80,Track,1,FALSE)),Field,Track),3,FALSE) -> 1500m | F80: =VLOOKUP($C80,IF(ISNA(VLOOKUP($C80,Track,1,FALSE)),Field,Track),4,FALSE) -> U13 Female | G80: =VLOOKUP($C80,IF(ISNA(VLOOKUP($C80,Track,1,FALSE)),Field,Track),5,FALSE) ->  | H80: =VLOOKUP($C80,IF(ISNA(VLOOKUP($C80,Track,1,FALSE)),Field,Track),3,FALSE)&" "&G80 -> 1500m
C81: 2 | D81: 11.45 | E81: Howler | F81: U11 Male | H81: Howler
C82: 3 | D82: 11.45 | E82: Howler | F82: U11 Female | H82: Howler
C83: 4 | D83: 11.55 | E83: 1500m | F83: U15 Female | H83: 1500m
C84: 5 | D84: 12 | E84: High Jump | F84: U13 Male | H84: High Jump
C85: 6 | D85: 12 | E85: Long Jump | F85: U15 Male | G85: Pit 2 | H85: Long Jump Pit 2
C86: 7 | D86: 12.05 | E86: 1500m | F86: U17 F/Women | H86: 1500m
C87: 8 | D87: 12.15 | E87: Shot | F87: U17 Men | H87: Shot
C88: 9 | D88: 12.15 | E88: Discus | F88: U15 Female | G88: Match 1 & 3 | H88: Discus Match 1 & 3
C89: 10 | D89: 12.15 | E89: Javelin | F89: U17 F/Women | G89: Match 2 | H89: Javelin Match 2
C90: 11 | D90: 12.15 | E90: 70m hurdles | F90: U13 Female | H90: 70m hurdles
C91: 12 | D91: 12.2 | E91: 800m | F91: U13 Male | H91: 800m
C92: 13 | D92: 12.3 | E92: 75m hurdles | F92: U15 Female | H92: 75m hurdles
C93: 14 | D93: 12.3 | E93: Long Jump | F93: U11 Female | G93: Pit1 | H93: Long Jump Pit1
C94: 15 | D94: 12.35 | E94: 75m hurdles | F94: U13 Male | H94: 75m hurdles
C95: 16 | D95: 12.4 | E95: 800m | F95: U15 Male | H95: 800m
C96: 17 | D96: 12.55 | E96: High Jump | F96: U15 Female | H96: High Jump
C97: 18 | D97: 12.5 | E97: 800m | F97: U17 Men | H97: 800m
C98: 19 | D98: 1 | E98: 80m hurdles (U17) | F98: U17 Female | H98: 80m hurdles (U17)
C99: 20 | D99: 1.05 | E99: 80m hurdles | F99: U15 Male | H99: 80m hurdles
C100: 21 | D100: 1 | E100: Long Jump | F100: U15 Female | G100: Pit 2 | H100: Long Jump Pit 2
C101: 22 | D101: 1 | E101: Shot | F101: U15 Male | H101: Shot
C102: 23 | D102: 1 | E102: Discus | F102: U17 Men | G102: Match 1 & 3 | H102: Discus Match 1 & 3
C103: 24 | D103: 1 | E103: Javelin | F103: U13 Male | G103: Match 2 | H103: Javelin Match 2
C104: 25 | D104: 1.15 | E104: 800m | F104: U13 Female | H104: 800m
C105: 26 | D105: 1.25 | E105: 800m | F105: U15 Female | H105: 800m
C106: 27 | D106: 1.35 | E106: 100m hurdles | F106: U17 Men | H106: 100m hurdles
C107: 28 | D107: 1.4 | E107: 800m | F107: U17 F/Women | H107: 800m
C108: 29 | D108: 1.5 | E108: 600m | F108: U11 Female | H108: 600m
C109: 30 | D109: 1.55 | E109: 600m | F109: U11 Female | G109: NS | H109: 600m NS
C110: 31 | D110: 1.4 | E110: High Jump | F110: U13 Female | H110: High Jump
C111: 32 | D111: 1.3 | E111: Long Jump | F111: U17 Men | G111: Pit1 | H111: Long Jump Pit1
C112: 33 | D112: =VLOOKUP($C112,IF(ISNA(VLOOKUP($C112,Track,1,FALSE)),Field,Track),2,FALSE) -> 2 | E112: =VLOOKUP($C112,IF(ISNA(VLOOKUP($C112,Track,1,FALSE)),Field,Track),3,FALSE) -> 600m | F112: =VLOOKUP($C112,IF(ISNA(VLOOKUP($C112,Track,1,FALSE)),Field,Track),4,FALSE) -> U11 Male | G112: =VLOOKUP($C112,IF(ISNA(VLOOKUP($C112,Track,1,FALSE)),Field,Track),5,FALSE) ->  | H112: =VLOOKUP($C112,IF(ISNA(VLOOKUP($C112,Track,1,FALSE)),Field,Track),3,FALSE)&" "&G112 -> 600m
C113: 34 | D113: 2.05 | E113: 600m | F113: U11 Male | G113: NS | H113: 600m NS
C114: 35 | D114: 2.1 | E114: 100m | F114: U13 Female | H114: 100m
C115: 36 | D115: 2.15 | E115: 100m | F115: U15 Female | H115: 100m
C116: 37 | D116: 1.5 | E116: Shot | F116: U17 F/Women | H116: Shot
C117: 38 | D117: 1.5 | E117: Discus | F117: U13 Female | G117: Match 1 & 3 | H117: Discus Match 1 & 3
C118: 39 | D118: 1.5 | E118: Javelin | F118: U15 Male | G118: Match 2 | H118: Javelin Match 2
C119: 40 | D119: 2.2 | E119: 100m | F119: U17 F/Women | H119: 100m
C120: 41 | D120: 2.25 | E120: 100m | F120: U13 Male | H120: 100m
C121: 42 | D121: 2.3 | E121: 100m | F121: U15 Male | H121: 100m
C122: 43 | D122: 2.35 | E122: 100m | F122: U17 Men | H122: 100m
C123: 44 | D123: 2.1 | E123: Long Jump | F123: U11 Male | G123: Pit 2 | H123: Long Jump Pit 2
C124: 45 | D124: 2.25 | E124: High Jump | F124: U15 Male | H124: High Jump
C125: 46
C126: 47
C127: 48
C128: 49
C129: 50 | D129: 2.4 | E129: 300m | F129: U15 Female | H129: 300m
C130: 51 | D130: 2.45 | E130: 300m | F130: U17 F/Women | H130: 300m
C131: 52 | D131: 2.4 | E131: Shot | F131: U13 Male | H131: Shot
C132: 53 | D132: 2.4 | E132: Discus | F132: U17 F/Women | G132: Match 1 & 3 | H132: Discus Match 1 & 3
C133: 54 | D133: 2.4 | E133: Javelin | F133: U15 Female | G133: Match 2 | H133: Javelin Match 2
C134: 55 | D134: 2.55 | E134: 300m | F134: U15 Male | H134: 300m
C135: 56 | D135: 2.5 | E135: Long Jump | F135: U13 Female | G135: Pit 1 | H135: Long Jump Pit 1
C136: 57 | D136: 3 | E136: 400m | F136: U17 Men | H136: 400m
C137: 58 | D137: 3.1 | E137: 75m | F137: U11 Female | H137: 75m
C138: 59 | D138: 3.15 | E138: 75m | F138: U11 Female | G138: NS | H138: 75m NS
C139: 60 | D139: 3.1 | E139: High Jump | F139: U17 F/Women | H139: High Jump
C140: 61 | D140: 3.2 | E140: 75m | F140: U11 Male | H140: 75m
C141: 62 | D141: 3.25 | E141: 75m | F141: U11 Male | G141: NS | H141: 75m NS
C142: 63 | D142: 3.35 | E142: 200m | F142: U13 Female | H142: 200m
C143: 64 | D143: 3.2 | E143: Long Jump | F143: U13 Male | G143: Pit 2 | H143: Long Jump Pit 2
C144: 65 | D144: =VLOOKUP($C144,IF(ISNA(VLOOKUP($C144,Track,1,FALSE)),Field,Track),2,FALSE) -> 3.3 | E144: =VLOOKUP($C144,IF(ISNA(VLOOKUP($C144,Track,1,FALSE)),Field,Track),3,FALSE) -> Shot | F144: =VLOOKUP($C144,IF(ISNA(VLOOKUP($C144,Track,1,FALSE)),Field,Track),4,FALSE) -> U13 Female | G144: =VLOOKUP($C144,IF(ISNA(VLOOKUP($C144,Track,1,FALSE)),Field,Track),5,FALSE) ->  | H144: =VLOOKUP($C144,IF(ISNA(VLOOKUP($C144,Track,1,FALSE)),Field,Track),3,FALSE)&" "&G144 -> Shot
C145: 66 | D145: 3.3 | E145: Discus | F145: U15 Male | G145: Match 1 & 3 | H145: Discus Match 1 & 3
C146: 67 | D146: 3.3 | E146: Javelin | F146: U17 Men | G146: Match 2 | H146: Javelin Match 2
C147: 68 | D147: 3.4 | E147: 200m | F147: U15 Female | H147: 200m
C148: 69 | D148: 3.45 | E148: 200m | F148: U17 F/Women | H148: 200m
C149: 70 | D149: 3.5 | E149: 200m | F149: U13 Male | H149: 200m
C150: 71 | D150: 3.55 | E150: 200m | F150: U15 Male | H150: 200m
C151: 72 | D151: 4 | E151: 200m | F151: U17 Men | H151: 200m
C152: 73 | D152: 4.2 | E152: 1500m | F152: U13 Male | H152: 1500m
C153: 74 | D153: 4.1 | E153: High Jump | F153: U17 Men | H153: High Jump
C154: 75 | D154: 4 | E154: Long Jump | F154: U17 F/Women | G154: Pit1 | H154: Long Jump Pit1
C155: 76 | D155: 4.3 | E155: 1500m | F155: U15 Male | H155: 1500m
C156: 77 | D156: 4.2 | E156: Shot | F156: U15 Female | H156: Shot
C157: 78 | D157: 4.2 | E157: Discus | F157: U13 Male | G157: Match 1 & 3 | H157: Discus Match 1 & 3
C158: 79 | D158: 4.2 | E158: Javelin | F158: U13 Female | G158: Match 2 | H158: Javelin Match 2
C159: 80 | D159: 4.4 | E159: 1500m | F159: U17 Men | H159: 1500m
C160: 81 | D160: 4.5 | E160: 4 x 100m Mixed | F160: U11 Fem/Male | G160: NS | H160: 4 x 100m Mixed NS
C161: 82 | D161: 4.55 | E161: 4 x 100m | F161: U13 Female | H161: 4 x 100m
C162: 83 | D162: 5 | E162: 4 x 100m | F162: U15 Female | H162: 4 x 100m
C163: 84 | D163: 5.05 | E163: 4 x 100m | F163: U17 F/Women | H163: 4 x 100m
C164: 85 | D164: 5.1 | E164: 4 x 100m | F164: U13 Male | H164: 4 x 100m
C165: 86 | D165: 5.15 | E165: 4 x 100m | F165: U15 Male | H165: 4 x 100m
C166: =C165+1 -> 87 | D166: 5.2 | E166: 4 x 100m | F166: U17 Men | H166: 4 x 100m
C167: =C166+1 -> 88 | D167: 11.45 | E167: 1500m | F167: U13 Female | G167: 0 | H167: =VLOOKUP($C167,IF(ISNA(VLOOKUP($C167,Track,1,FALSE)),Field,Track),3,FALSE)&" "&F167 -> 1500m U13 Female
C168: =C167+1 -> 89 | D168: 11.55 | E168: 1500m | F168: U15 Female | G168: 0 | H168: 1500m U15 Female
C169: =C168+1 -> 90 | D169: 12.05 | E169: 1500m | F169: U17 F/Women | H169: 1500m U17 F/Women
C170: 91 | D170: 12.2 | E170: 800m | F170: U13 Male | H170: =VLOOKUP($C170,IF(ISNA(VLOOKUP($C170,Track,1,FALSE)),Field,Track),3,FALSE)&" "&F170 -> 800m U13 Male
C171: 92 | D171: 12.4 | E171: 800m | F171: U15 Male | H171: 800m U15 Male
C172: 93 | D172: 12.5 | E172: 800m | F172: U17 Men | H172: 800m U17 Men
C173: 94 | D173: 1.15 | E173: 800m | F173: U13 Female | H173: 800m U13 Female
C174: 95 | D174: 1.25 | E174: 800m | F174: U15 Female | H174: 800m U15 Female
C175: 96 | D175: 1.4 | E175: 800m | F175: U17 F/Women | H175: 800m U17 F/Women
C176: 97 | D176: 4.2 | E176: 1500m | F176: U13 Male | H176: 1500m U13 Male
C177: 98 | D177: 4.3 | E177: 1500m | F177: U15 Male | H177: 1500m U15 Male
C178: 99 | D178: 4.4 | E178: 1500m | F178: U17 Men | H178: 1500m U17 Men

Sheet Results Entry
B2: Event | D2: Age | AD2: ='Event Details'!C32 -> 8 | AE2: =AD2-1 -> 7 | AF2: 6 | AG2: 5 | AH2: 4 | AI2: 3 | AJ2: 2 | AK2: 1 | AT2: =BC29&BC29 -> CC | AU2: OO | AV2: II | AW2: UU | AX2: BB | AY2: FF | AZ2: GG | BA2: XX
B3: No | C3: Time | D3: Group | E3: Event | H3: NS | I3: M/F
B4: 87 | C4: =VLOOKUP($B$4,EventsOrder,2,FALSE) -> 5.2 | D4: =VLOOKUP($B$4,EventsOrder,4,FALSE) -> U17 Men | E4: =VLOOKUP($B$4,EventsOrder,3,FALSE) -> 4 x 100m | H4: =VLOOKUP($B$4,EventsOrder,5,FALSE) ->  | I4: =IF(MID(D4,5,1)="F","F","M") -> M | Q4: Results Entry | T4: ="Enter single or double letter for Club Letter i.e. as "&A10&" or "&A10&A10 -> Enter single or double letter for Club Letter i.e. as C or CC
T5: Enter Club Letter for both SCORING and NON SCORING results.
D6: Names from Club Teamsheet | T6: Enter Time as "2.10.5" for mins or "12.55" for mtrs
R7: Event A | Y7: Event B
A8: Club | B8: Club | E8: U11 | F8: Event A | J8: U11 | K8: Event B | P8: Club | Q8: Time/ | R8: U11 | S8: Name | W8: Club | X8: Time/ | Y8: U11 | Z8: Name
A9: Letter | E9: No. | F9: Name | J9: No. | K9: Name | P9: Letter | Q9: Dist | R9: No. | W9: Letter | X9: Dist | Y9: No.
A10: ='Event Details'!$C22 -> C | B10: ='Event Details'!$D22 -> Brom & Redditch | E10: =VLOOKUP($B$4,IF($I$4="F",TeamSheetFemale,TeamSheetMale),AD10-1,FALSE) -> 0 | F10: =VLOOKUP($B$4,IF($I$4="F",TeamSheetFemale,TeamSheetMale),AD10,FALSE) -> Brom & Redditch | J10: =VLOOKUP($B$4,IF($I$4="F",TeamSheetFemale,TeamSheetMale),AD10+1,FALSE) -> 0 | K10: =VLOOKUP($B$4,IF($I$4="F",TeamSheetFemale,TeamSheetMale),AD10+2,FALSE) -> 0 | O10: 1st | R10: =IF(LEN($P10)=1,VLOOKUP(LEFT($P10,1),Result2,5,FALSE),IF(LEN($P10)=2,VLOOKUP(LEFT($P10,1),Result2,10,FALSE),"")) ->  | S10: =IF(LEN($P10)=1,VLOOKUP(LEFT($P10,1),Result2,6,FALSE),IF(LEN($P10)=2,VLOOKUP(LEFT($P10,1),Result2,11,FALSE),"")) ->  | V10: 1st | Y10: =IF(LEN($W10)=1,VLOOKUP(LEFT($W10,1),Result2,5,FALSE),IF(LEN($W10)=2,VLOOKUP(LEFT($W10,1),Result2,10,FALSE),"")) ->  | Z10: =IF(LEN(W10)=1,VLOOKUP(LEFT(W10,1),Result2,6,FALSE),IF(LEN(W10)=2,VLOOKUP(LEFT(W10,1),Result2,11,FALSE),"")) ->  | AC10: =AD10-1 -> 6 | AD10: 7 | AE10: =AD10+1 -> 8 | AF10: =AE10+1 -> 9
A11: ='Event Details'!$C23 -> O | B11: ='Event Details'!$D23 -> Corby | E11: 0 | F11: Corby | J11: 0 | K11: 0 | O11: 2nd | R11: =IF(LEN($P11)=1,VLOOKUP(LEFT($P11,1),Result2,5,FALSE),IF(LEN($P11)=2,VLOOKUP(LEFT($P11,1),Result2,10,FALSE),"")) ->  | S11: =IF(LEN(P11)=1,VLOOKUP(LEFT(P11,1),Result2,6,FALSE),IF(LEN(P11)=2,VLOOKUP(LEFT(P11,1),Result2,11,FALSE),"")) ->  | V11: 2nd | AC11: =AD11-1 -> 11 | AD11: 12 | AE11: =AD11+1 -> 13 | AF11: 14
A12: ='Event Details'!$C24 -> I | B12: ='Event Details'!$D24 -> Kettering | E12: 0 | F12: Kettering | J12: 0 | K12: 0 | O12: 3rd | V12: 3rd | AC12: 16 | AD12: 17 | AE12: 18 | AF12: 19
A13: ='Event Details'!$C25 -> U | B13: ='Event Details'!$D25 -> Kidder & Stourport | E13: 0 | F13: Kidder & Stourport | J13: 0 | K13: 0 | O13: 4th | V13: 4th | AC13: 21 | AD13: 22 | AE13: 23 | AF13: 24
A14: ='Event Details'!$C26 -> B | B14: ='Event Details'!$D26 -> Dudley & S'bridge | E14: 0 | F14: 0 | J14: 0 | K14: 0 | O14: 5th | V14: 5th | Y14: =IF(LEN($W14)=1,VLOOKUP(LEFT($W14,1),Result2,5,FALSE),IF(LEN($W14)=2,VLOOKUP(LEFT($W14,1),Result2,10,FALSE),"")) ->  | Z14: =IF(LEN(W14)=1,VLOOKUP(LEFT(W14,1),Result2,6,FALSE),IF(LEN(W14)=2,VLOOKUP(LEFT(W14,1),Result2,11,FALSE),"")) ->  | AC14: 26 | AD14: 27 | AE14: 28 | AF14: 29
A15: ='Event Details'!$C27 -> F | B15: ='Event Details'!$D27 -> Tamworth | E15: 0 | F15: Tamworth | J15: 0 | K15: 0 | O15: 6th | V15: 6th | Y15: =IF(LEN($W15)=1,VLOOKUP(LEFT($W15,1),Result2,5,FALSE),IF(LEN($W15)=2,VLOOKUP(LEFT($W15,1),Result2,10,FALSE),"")) ->  | Z15: =IF(LEN(W15)=1,VLOOKUP(LEFT(W15,1),Result2,6,FALSE),IF(LEN(W15)=2,VLOOKUP(LEFT(W15,1),Result2,11,FALSE),"")) ->  | AC15: 31 | AD15: 32 | AE15: 33 | AF15: 34
A16: ='Event Details'!$C28 -> G | B16: ='Event Details'!$D28 -> Royal Sutton | E16: 0 | F16: Royal Sutton | J16: 0 | K16: 0 | O16: 7th | V16: 7th | Y16: =IF(LEN($W16)=1,VLOOKUP(LEFT($W16,1),Result2,5,FALSE),IF(LEN($W16)=2,VLOOKUP(LEFT($W16,1),Result2,10,FALSE),"")) ->  | Z16: =IF(LEN(W16)=1,VLOOKUP(LEFT(W16,1),Result2,6,FALSE),IF(LEN(W16)=2,VLOOKUP(LEFT(W16,1),Result2,11,FALSE),"")) ->  | AC16: 36 | AD16: 37 | AE16: 38 | AF16: 39
A17: ='Event Details'!$C29 -> X | B17: ='Event Details'!$D29 -> Wreake Runners | E17: 0 | F17: Wreake Runners | J17: 0 | K17: 0 | O17: 8th | V17: 8th | Y17: =IF(LEN($W17)=1,VLOOKUP(LEFT($W17,1),Result2,5,FALSE),IF(LEN($W17)=2,VLOOKUP(LEFT($W17,1),Result2,10,FALSE),"")) ->  | Z17: =IF(LEN(W17)=1,VLOOKUP(LEFT(W17,1),Result2,6,FALSE),IF(LEN(W17)=2,VLOOKUP(LEFT(W17,1),Result2,11,FALSE),"")) ->  | AC17: 41 | AD17: 42 | AE17: 43 | AF17: 44
AM25: Points | AU25: Time / Distance | BC25: Position | BK25: Placing | CE25: Col No. in Team Names
K26: ='Event Details'!D5 -> Heart of England League | O26: Results | AM26: ='Event Details'!$D22 -> Brom & Redditch | AN26: ='Event Details'!$D23 -> Corby | AO26: ='Event Details'!$D24 -> Kettering | AP26: ='Event Details'!$D25 -> Kidder & Stourport | AQ26: ='Event Details'!$D26 -> Dudley & S'bridge | AR26: ='Event Details'!$D27 -> Tamworth | AS26: ='Event Details'!$D28 -> Royal Sutton | AT26: ='Event Details'!$D29 -> Wreake Runners | AU26: ='Event Details'!$D22 -> Brom & Redditch | AV26: ='Event Details'!$D23 -> Corby | AW26: ='Event Details'!$D24 -> Kettering | AX26: ='Event Details'!$D25 -> Kidder & Stourport | AY26: ='Event Details'!$D26 -> Dudley & S'bridge | AZ26: ='Event Details'!$D27 -> Tamworth | BA26: ='Event Details'!$D28 -> Royal Sutton | BB26: ='Event Details'!$D29 -> Wreake Runners | BC26: ='Event Details'!$D22 -> Brom & Redditch | BD26: ='Event Details'!$D23 -> Corby | BE26: ='Event Details'!$D24 -> Kettering | BF26: ='Event Details'!$D25 -> Kidder & Stourport | BG26: ='Event Details'!$D26 -> Dudley & S'bridge | BH26: ='Event Details'!$D27 -> Tamworth | BI26: ='Event Details'!$D28 -> Royal Sutton | BJ26: ='Event Details'!$D29 -> Wreake Runners | CC26: =BC29 -> C | CD26: O | CE26: I | CF26: U | CG26: B | CH26: F | CI26: G | CJ26: X
D27: Division | E27: ='Event Details'!D9 -> 2 | I27: Venue | K27: ='Event Details'!F17 -> Kidd & Stourport | Q27: Date | R27: ='Event Details'!B17 -> 10th May 2015 | BK27: 1St | BL27: 2nd | BM27: 3rd | BN27: 4th | BO27: 5th | BP27: 6th | BQ27: 7th | BR27: 8th | CC27: 7 | CD27: 12 | CE27: 17 | CF27: 22 | CG27: 27 | CH27: 32 | CI27: 37 | CJ27: 42
B28: Event | G28: Club Letter | O28: Time / Distance | W28: U11 No's | AE28: Competitor's Name
B29: No | C29: Time | D29: Event | G29: 1st | H29: 2nd | I29: 3rd | J29: 4th | K29: 5th | L29: 6th | M29: 7th | N29: 8th | O29: 1st | P29: 2nd | Q29: 3rd | R29: 4th | S29: 5th | T29: 6th | U29: 7th | V29: 8th | W29: 1st | X29: 2nd | Y29: 3rd | Z29: 4th | AA29: 5th | AB29: 6th | AC29: 7th | AD29: 8th | AE29: 1st | AF29: 2nd | AG29: 3rd | AH29: 4th | AI29: 5th | AJ29: 6th | AK29: 7th | AL29: 8th | AM29: ='Event Details'!$C22 -> C | AN29: ='Event Details'!$C23 -> O | AO29: ='Event Details'!$C24 -> I | AP29: ='Event Details'!$C25 -> U | AQ29: ='Event Details'!$C26 -> B | AR29: ='Event Details'!$C27 -> F | AS29: ='Event Details'!$C28 -> G | AT29: ='Event Details'!$C29 -> X | AU29: ='Event Details'!$C22 -> C | AV29: ='Event Details'!$C23 -> O | AW29: ='Event Details'!$C24 -> I | AX29: ='Event Details'!$C25 -> U | AY29: ='Event Details'!$C26 -> B | AZ29: ='Event Details'!$C27 -> F | BA29: ='Event Details'!$C28 -> G | BB29: ='Event Details'!$C29 -> X | BC29: ='Event Details'!$C22 -> C | BD29: ='Event Details'!$C23 -> O | BE29: ='Event Details'!$C24 -> I | BF29: ='Event Details'!$C25 -> U | BG29: ='Event Details'!$C26 -> B | BH29: ='Event Details'!$C27 -> F | BI29: ='Event Details'!$C28 -> G | BJ29: ='Event Details'!$C29 -> X | BK29: ='Event Details'!C32 -> 8 | BL29: =BK29-1 -> 7 | BM29: 6 | BN29: 5 | BO29: 4 | BP29: 3 | BQ29: 2 | BR29: 1 | BS29: 1 | BT29: =BS29+1 -> 2 | BU29: 3 | BV29: 4 | BW29: 5 | BX29: 6 | BY29: 7 | BZ29: 8 | CC29: 1 | CD29: =CC29+1 -> 2 | CE29: 3 | CF29: 4 | CG29: 5 | CH29: 6 | CI29: 7 | CJ29: 8
A30: =B30&"A" -> 1A | B30: 1 | C30: =VLOOKUP(B30,EventsOrder,2,FALSE) -> 11.45 | D30: =VLOOKUP(B30,EventsOrder,4,FALSE) -> U13 Female | E30: A | F30: =IF(MID(D30,5,1)="F","F","M") -> F | G30: G | H30: X | I30: F | J30: C | K30: I | L30: U | M30: B | O30: 5.21.4 | P30: 5.23.3 | Q30: 5.30.3 | R30: 5.35.4 | S30: 5.48.2 | T30: 5.51.7 | U30: 5.57.3 | W30: G | X30: X | Y30: F | Z30: C | AA30: I | AB30: U | AC30: B | AE30: =IF(LEN(G30)=0,"",VLOOKUP($B30,IF($F30="F",TeamSheetFemale,TeamSheetMale),CC30,FALSE)) -> Elsa Buchanan | AF30: Katie Parker | AG30: ABI HAMER | AH30: Natalie Hatfield | AI30: Mia Bockway | AJ30: Libby Hawkswell | AK30: Cloe Everton | AM30: =IF(OR($F30="NS",AU30="DNF"),0,IF(BC30>0,$BK$29+1-BC30,0)) -> 5 | AN30: =IF(OR($F30="NS",AV30="DNF"),0,IF(BD30>0,$BK$29+1-BD30,0)) -> 0 | AO30: =IF(OR($F30="NS",AW30="DNF"),0,IF(BE30>0,$BK$29+1-BE30,0)) -> 4 | AP30: =IF(OR($F30="NS",AX30="DNF"),0,IF(BF30>0,$BK$29+1-BF30,0)) -> 3 | AQ30: =IF(OR($F30="NS",AY30="DNF"),0,IF(BG30>0,$BK$29+1-BG30,0)) -> 2 | AR30: =IF(OR($F30="NS",AZ30="DNF"),0,IF(BH30>0,$BK$29+1-BH30,0)) -> 6 | AS30: =IF(OR($F30="NS",BA30="DNF"),0,IF(BI30>0,$BK$29+1-BI30,0)) -> 8 | AT30: =IF(OR($F30="NS",BB30="DNF"),0,IF(BJ30>0,$BK$29+1-BJ30,0)) -> 7 | AU30: =OFFSET($N30,0,BC30) -> 5.35.4 | AV30: 0 | AW30: 5.48.2 | AX30: 5.51.7 | AY30: 5.57.3 | AZ30: 5.30.3 | BA30: 5.21.4 | BB30: 5.23.3 | BC30: =IF(ISNA(MATCH(BC$29,$BS30:$BZ30,0)),0,MATCH(BC$29,$BS30:$BZ30,0)) -> 4 | BD30: 0 | BE30: 5 | BF30: 6 | BG30: 7 | BH30: 3 | BI30: 1 | BJ30: 2 | BK30: =IF(LEN(G30)>0,VLOOKUP(LEFT(G30,1),Clubs,5,FALSE),0) -> Royal | BL30: =IF(LEN(H30)>0,VLOOKUP(LEFT(H30,1),Clubs,5,FALSE),0) -> Wreake | BM30: Tam | BN30: B&R | BO30: Kett | BP30: K&S | BQ30: DASH | BR30: 0 | BS30: =LEFT(G30,1) -> G | BT30: X | BU30: F | BV30: C | BW30: I | BX30: U | BY30: B | CC30: =IF(LEN(G30)=0,"",HLOOKUP(BS30,$CC$26:$CJ$28,2,FALSE)+IF(LEN(G30)=2,2,0)) -> 37 | CD30: =IF(LEN(H30)=0,"",HLOOKUP(BT30,$CC$26:$CJ$28,2,FALSE)+IF(LEN(H30)=2,2,0)) -> 42 | CE30: 32 | CF30: 7 | CG30: 17 | CH30: 22 | CI30: 27
A31: =B30&"B" -> 1B | D31: =VLOOKUP(B30,EventsOrder,3,FALSE) -> 1500m | E31: B | G31: XX | H31: CC | I31: GG | J31: FF | O31: 5.26.9 | P31: 5.45.6 | Q31: 5.54.6 | R31: 5.59.6 | W31: XX | X31: CC | Y31: GG | Z31: FF | AE31: =IF(LEN(G31)=0,"",VLOOKUP($B30,IF($F30="F",TeamSheetFemale,TeamSheetMale),CC31,FALSE)) -> Flora Miskin-Young | AF31: Sophie Groom | AG31: Milly Fidkin | AH31: CHARLOTTE PERRY | AM31: =IF(OR($F31="NS",AU31="DNF"),0,IF(BC31>0,$BK$29+1-BC31,0)) -> 7 | AN31: 0 | AO31: 0 | AP31: 0 | AQ31: 0 | AR31: 5 | AS31: 6 | AT31: 8 | AU31: 5.45.6 | AV31: 0 | AW31: 0 | AX31: 0 | AY31: 0 | AZ31: 5.59.6 | BA31: 5.54.6 | BB31: 5.26.9 | BC31: 2 | BD31: 0 | BE31: 0 | BF31: 0 | BG31: 0 | BH31: 4 | BI31: 3 | BJ31: 1 | BK31: Wreake | BL31: B&R | BM31: Royal | BN31: Tam | BO31: 0 | BP31: 0 | BQ31: 0 | BR31: 0 | BS31: X | BT31: C | BU31: G | BV31: F | CC31: =IF(LEN(G31)=0,"",HLOOKUP(BS31,$CC$26:$CJ$28,2,FALSE)+IF(LEN(G31)=2,2,0)) -> 44 | CD31: 9 | CE31: 39 | CF31: 34
A32: =B32&"A" -> 2A | B32: 2 | C32: =VLOOKUP(B32,EventsOrder,2,FALSE) -> 11.45 | D32: =VLOOKUP(B32,EventsOrder,4,FALSE) -> U11 Male | E32: A | F32: =IF(MID(D32,5,1)="F","F","M") -> M | G32: FF | H32: I | I32: G | J32: BB | K32: O | O32: 33.96 | P32: 30.76 | Q32: 26.76 | R32: 22.37 | S32: 16.17 | W32: FF | X32: I | Y32: G | Z32: BB | AA32: O | AE32: =IF(LEN(G32)=0,"",VLOOKUP($B32,IF($F32="F",TeamSheetFemale,TeamSheetMale),CC32,FALSE)) -> KAI BUCKLEY | AF32: Alfie Frayne | AG32: Jacob Stoney | AH32: John Sparry | AI32: JAKE WILSON | AM32: 0 | AN32: 4 | AO32: 7 | AP32: 0 | AQ32: 5 | AR32: 8 | AS32: 6 | AT32: 0 | AU32: 0 | AV32: 16.17 | AW32: 30.76 | AX32: 0 | AY32: 22.37 | AZ32: 33.96 | BA32: 26.76 | BB32: 0 | BC32: 0 | BD32: 5 | BE32: 2 | BF32: 0 | BG32: 4 | BH32: 1 | BI32: 3 | BJ32: 0 | BK32: Tam | BL32: Kett | BM32: Royal | BN32: DASH | BO32: Corby | BP32: 0 | BQ32: 0 | BR32: 0 | BS32: F | BT32: I | BU32: G | BV32: B | BW32: O | CC32: 34 | CD32: =IF(LEN(H32)=0,"",HLOOKUP(BT32,$CC$26:$CJ$28,2,FALSE)+IF(LEN(H32)=2,2,0)) -> 17 | CE32: 37 | CF32: 29 | CG32: 12
A33: =B32&"B" -> 2B | D33: =VLOOKUP(B32,EventsOrder,3,FALSE) -> Howler | E33: B | G33: II | H33: B | I33: F | J33: GG | O33: 26.64 | P33: 19.5 | Q33: 16.35 | R33: 11.61 | W33: II | X33: B | Y33: F | Z33: GG | AE33: =IF(LEN(G33)=0,"",VLOOKUP($B32,IF($F32="F",TeamSheetFemale,TeamSheetMale),CC33,FALSE)) -> Jamie Lake | AF33: Alex Johnson | AG33: ASHLEY JOHNSON | AH33: Jack Turner-Knapp | AM33: 0 | AN33: 0 | AO33: 8 | AP33: 0 | AQ33: 7 | AR33: 6 | AS33: 5 | AT33: 0 | AU33: 0 | AV33: 0 | AW33: 26.64 | AX33: 0 | AY33: 19.5 | AZ33: 16.35 | BA33: 11.61 | BB33: 0 | BC33: 0 | BD33: 0 | BE33: 1 | BF33: 0 | BG33: 2 | BH33: 3 | BI33: 4 | BJ33: 0 | BK33: Kett | BL33: DASH | BM33: Tam | BN33: Royal | BO33: 0 | BP33: 0 | BQ33: 0 | BR33: 0 | BS33: I | BT33: B | BU33: F | BV33: G | CC33: 19 | CD33: 27 | CE33: 32 | CF33: 39
A34: =B34&"A" -> 3A | B34: 3 | C34: =VLOOKUP(B34,EventsOrder,2,FALSE) -> 11.45 | D34: =VLOOKUP(B34,EventsOrder,4,FALSE) -> U11 Female | E34: A | F34: =IF(MID(D34,5,1)="F","F","M") -> F | G34: X | H34: O | I34: F | J34: G | K34: C | L34: I | M34: BB | O34: 24.55 | P34: 18.46 | Q34: 16.23 | R34: 14.8 | S34: 13.83 | T34: 12.58 | U34: 10.12 | W34: X | X34: O | Y34: F | Z34: G | AA34: C | AB34: I | AC34: BB | AE34: =IF(LEN(G34)=0,"",VLOOKUP($B34,IF($F34="F",TeamSheetFemale,TeamSheetMale),CC34,FALSE)) -> Mackenzie Smith | AF34: MADELINE MAYES | AG34: ELLIE GAUNTLET | AH34: Charlotte Prince | AI34: Maggie Parkinson | AJ34: Eve Ralph | AK34: vyvyenne crook | AM34: 4 | AN34: 7 | AO34: 3 | AP34: 0 | AQ34: 2 | AR34: 6 | AS34: 5 | AT34: 8 | AU34: 13.83 | AV34: 18.46 | AW34: 12.58 | AX34: 0 | AY34: 10.12 | AZ34: 16.23 | BA34: 14.8 | BB34: 24.55 | BC34: =IF(ISNA(MATCH(BC$29,$BS34:$BZ34,0)),0,MATCH(BC$29,$BS34:$BZ34,0)) -> 5 | BD34: 2 | BE34: 6 | BF34: 0 | BG34: 7 | BH34: 3 | BI34: 4 | BJ34: 1 | BK34: =IF(LEN(G34)>0,VLOOKUP(LEFT(G34,1),Clubs,5,FALSE),0) -> Wreake | BL34: Corby | BM34: Tam | BN34: Royal | BO34: B&R | BP34: Kett | BQ34: DASH | BR34: 0 | BS34: =LEFT(G34,1) -> X | BT34: =LEFT(H34,1) -> O | BU34: F | BV34: G | BW34: C | BX34: I | BY34: B | CC34: 42 | CD34: 12 | CE34: 32 | CF34: 37 | CG34: 7 | CH34: 17 | CI34: 29
A35: =B34&"B" -> 3B | D35: =VLOOKUP(B34,EventsOrder,3,FALSE) -> Howler | E35: B | G35: XX | H35: FF | I35: OO | J35: CC | K35: GG | O35: 20.32 | P35: 12.39 | Q35: 9.58 | R35: 9.37 | S35: 8.53 | W35: XX | X35: FF | Y35: OO | Z35: CC | AA35: GG | AE35: =IF(LEN(G35)=0,"",VLOOKUP($B34,IF($F34="F",TeamSheetFemale,TeamSheetMale),CC35,FALSE)) -> Destiny Nicholson | AF35: TEGAN VICKERY | AG35: CASEY SEYMOUR | AH35: Jessica Causer | AI35: Isabella Marklew | AM35: 5 | AN35: 6 | AO35: 0 | AP35: 0 | AQ35: 0 | AR35: 7 | AS35: 4 | AT35: 8 | AU35: =OFFSET($N35,0,BC35) -> 9.37 | AV35: =OFFSET($N35,0,BD35) -> 9.58 | AW35: =OFFSET($N35,0,BE35) -> 0 | AX35: =OFFSET($N35,0,BF35) -> 0 | AY35: =OFFSET($N35,0,BG35) -> 0 | AZ35: =OFFSET($N35,0,BH35) -> 12.39 | BA35: =OFFSET($N35,0,BI35) -> 8.53 | BB35: =OFFSET($N35,0,BJ35) -> 20.32 | BC35: 4 | BD35: 3 | BE35: 0 | BF35: 0 | BG35: 0 | BH35: 2 | BI35: 5 | BJ35: 1 | BK35: Wreake | BL35: Tam | BM35: Corby | BN35: B&R | BO35: Royal | BP35: 0 | BQ35: 0 | BR35: 0 | BS35: X | BT35: =LEFT(H35,1) -> F | BU35: O | BV35: C | BW35: G | CC35: 44 | CD35: 34 | CE35: 14 | CF35: 9 | CG35: 39
A36: =B36&"A" -> 4A | B36: 4 | C36: =VLOOKUP(B36,EventsOrder,2,FALSE) -> 11.55 | D36: =VLOOKUP(B36,EventsOrder,4,FALSE) -> U15 Female | E36: A | F36: =IF(MID(D36,5,1)="F","F","M") -> F | G36: X | H36: C | I36: F | J36: I | K36: G | L36: O | O36: 4.58.0 | P36: 5.05.5 | Q36: 5.07.1 | R36: 5.24.3 | S36: 5.35.7 | T36: 6.01.8 | W36: X | X36: C | Y36: F | Z36: I | AA36: G | AB36: O | AE36: =IF(LEN(G36)=0,"",VLOOKUP($B36,IF($F36="F",TeamSheetFemale,TeamSheetMale),CC36,FALSE)) -> Fern Harrison | AF36: Ellen Bowen | AG36: EVE CLAWLEY | AH36: Danielle McGann-Gaskill | AI36: Caitlin White | AJ36: LAURA DEW | AM36: 7 | AN36: 3 | AO36: 5 | AP36: 0 | AQ36: 0 | AR36: 6 | AS36: 4 | AT36: 8 | AU36: 5.05.5 | AV36: 6.01.8 | AW36: 5.24.3 | AX36: 0 | AY36: 0 | AZ36: 5.07.1 | BA36: 5.35.7 | BB36: 4.58.0 | BC36: 2 | BD36: 6 | BE36: 4 | BF36: 0 | BG36: 0 | BH36: 3 | BI36: 5 | BJ36: 1 | BK36: Wreake | BL36: B&R | BM36: Tam | BN36: Kett | BO36: Royal | BP36: Corby | BQ36: 0 | BR36: 0 | BS36: X | BT36: C | BU36: F | BV36: I | BW36: G | BX36: O | CC36: 42 | CD36: =IF(LEN(H36)=0,"",HLOOKUP(BT36,$CC$26:$CJ$28,2,FALSE)+IF(LEN(H36)=2,2,0)) -> 7 | CE36: =IF(LEN(I36)=0,"",HLOOKUP(BU36,$CC$26:$CJ$28,2,FALSE)+IF(LEN(I36)=2,2,0)) -> 32 | CF36: =IF(LEN(J36)=0,"",HLOOKUP(BV36,$CC$26:$CJ$28,2,FALSE)+IF(LEN(J36)=2,2,0)) -> 17 | CG36: =IF(LEN(K36)=0,"",HLOOKUP(BW36,$CC$26:$CJ$28,2,FALSE)+IF(LEN(K36)=2,2,0)) -> 37 | CH36: =IF(LEN(L36)=0,"",HLOOKUP(BX36,$CC$26:$CJ$28,2,FALSE)+IF(LEN(L36)=2,2,0)) -> 12 | CI36: =IF(LEN(M36)=0,"",HLOOKUP(BY36,$CC$26:$CJ$28,2,FALSE)+IF(LEN(M36)=2,2,0)) ->  | CJ36: =IF(LEN(N36)=0,"",HLOOKUP(BZ36,$CC$26:$CJ$28,2,FALSE)+IF(LEN(N36)=2,2,0)) -> 
A37: =B36&"B" -> 4B | D37: =VLOOKUP(B36,EventsOrder,3,FALSE) -> 1500m | E37: B | G37: XX | H37: CC | I37: II | J37: GG | O37: 5.12.9 | P37: 5.21.9 | Q37: 5.32.8 | R37: DNF | W37: XX | X37: CC | Y37: II | Z37: GG | AE37: =IF(LEN(G37)=0,"",VLOOKUP($B36,IF($F36="F",TeamSheetFemale,TeamSheetMale),CC37,FALSE)) -> Hollie Gamble | AF37: Amy Mijovic-Cauldwell | AG37: Jenifer Robinson | AH37: Rachel White | AM37: 7 | AN37: 0 | AO37: 6 | AP37: 0 | AQ37: 0 | AR37: 0 | AS37: 0 | AT37: 8 | AU37: 5.21.9 | AV37: 0 | AW37: 5.32.8 | AX37: 0 | AY37: 0 | AZ37: 0 | BA37: DNF | BB37: 5.12.9 | BC37: 2 | BD37: 0 | BE37: 3 | BF37: 0 | BG37: 0 | BH37: 0 | BI37: 4 | BJ37: 1 | BK37: Wreake | BL37: B&R | BM37: Kett | BN37: Royal | BO37: 0 | BP37: 0 | BQ37: 0 | BR37: 0 | BS37: X | BT37: C | BU37: I | BV37: G | CC37: 44 | CD37: 9 | CE37: 19 | CF37: 39
A38: =B38&"A" -> 5A | B38: 5 | C38: =VLOOKUP(B38,EventsOrder,2,FALSE) -> 12 | D38: =VLOOKUP(B38,EventsOrder,4,FALSE) -> U13 Male | E38: A | F38: =IF(MID(D38,5,1)="F","F","M") -> M | G38: I | H38: B | O38: 1.25 | P38: 1.13 | W38: I | X38: B | AE38: =IF(LEN(G38)=0,"",VLOOKUP($B38,IF($F38="F",TeamSheetFemale,TeamSheetMale),CC38,FALSE)) -> Brandon Raulia | AF38: tavindra kumar | AM38: 0 | AN38: 0 | AO38: 8 | AP38: 0 | AQ38: 7 | AR38: 0 | AS38: 0 | AT38: 0 | AU38: 0 | AV38: 0 | AW38: 1.25 | AX38: 0 | AY38: 1.13 | AZ38: 0 | BA38: 0 | BB38: 0 | BC38: 0 | BD38: 0 | BE38: 1 | BF38: 0 | BG38: 2 | BH38: 0 | BI38: 0 | BJ38: 0 | BK38: Kett | BL38: DASH | BM38: 0 | BN38: 0 | BO38: 0 | BP38: 0 | BQ38: 0 | BR38: 0 | BS38: I | BT38: B | CC38: 17 | CD38: 27
A39: =B38&"B" -> 5B | D39: =VLOOKUP(B38,EventsOrder,3,FALSE) -> High Jump | E39: B | AE39: =IF(LEN(G39)=0,"",VLOOKUP($B38,IF($F38="F",TeamSheetFemale,TeamSheetMale),CC39,FALSE)) ->  | AM39: 0 | AN39: 0 | AO39: 0 | AP39: 0 | AQ39: 0 | AR39: 0 | AS39: 0 | AT39: 0 | AU39: 0 | AV39: 0 | AW39: 0 | AX39: 0 | AY39: 0 | AZ39: 0 | BA39: 0 | BB39: 0 | BC39: 0 | BD39: 0 | BE39: 0 | BF39: 0 | BG39: 0 | BH39: 0 | BI39: 0 | BJ39: 0 | BK39: 0 | BL39: 0 | BM39: 0 | BN39: 0 | BO39: 0 | BP39: 0 | BQ39: 0 | BR39: 0
A40: =B40&"A" -> 6A | B40: 6 | C40: =VLOOKUP(B40,EventsOrder,2,FALSE) -> 12 | D40: =VLOOKUP(B40,EventsOrder,4,FALSE) -> U15 Male | E40: A | F40: =IF(MID(D40,5,1)="F","F","M") -> M | G40: FF | H40: GG | I40: B | J40: C | K40: I | L40: X | M40: O | N40: U | O40: 4.55 | P40: 4.52 | Q40: 4.5 | R40: 4.19 | S40: 4.18 | T40: 4.17 | U40: 4.07 | V40: 3.97 | W40: FF | X40: GG | Y40: B | Z40: C | AA40: I | AB40: X | AC40: O | AD40: U | AE40: =IF(LEN(G40)=0,"",VLOOKUP($B40,IF($F40="F",TeamSheetFemale,TeamSheetMale),CC40,FALSE)) -> OLIVER BARNARD | AF40: Ben Horton | AG40: brandon grainger | AH40: Will Thorley | AI40: Joshua Gray | AJ40: Felix Miskin Young | AK40: FINLAY WILSON | AL40: Christopher Telling | AM40: 5 | AN40: 2 | AO40: 4 | AP40: 1 | AQ40: 6 | AR40: 8 | AS40: 7 | AT40: 3 | AU40: 4.19 | AV40: 4.07 | AW40: 4.18 | AX40: 3.97 | AY40: 4.5 | AZ40: 4.55 | BA40: 4.52 | BB40: 4.17 | BC40: 4 | BD40: 7 | BE40: 5 | BF40: 8 | BG40: 3 | BH40: 1 | BI40: 2 | BJ40: 6 | BK40: =IF(LEN(G40)>0,VLOOKUP(LEFT(G40,1),Clubs,5,FALSE),0) -> Tam | BL40: =IF(LEN(H40)>0,VLOOKUP(LEFT(H40,1),Clubs,5,FALSE),0) -> Royal | BM40: =IF(LEN(I40)>0,VLOOKUP(LEFT(I40,1),Clubs,5,FALSE),0) -> DASH | BN40: =IF(LEN(J40)>0,VLOOKUP(LEFT(J40,1),Clubs,5,FALSE),0) -> B&R | BO40: =IF(LEN(K40)>0,VLOOKUP(LEFT(K40,1),Clubs,5,FALSE),0) -> Kett | BP40: =IF(LEN(L40)>0,VLOOKUP(LEFT(L40,1),Clubs,5,FALSE),0) -> Wreake | BQ40: =IF(LEN(M40)>0,VLOOKUP(LEFT(M40,1),Clubs,5,FALSE),0) -> Corby | BR40: =IF(LEN(N40)>0,VLOOKUP(LEFT(N40,1),Clubs,5,FALSE),0) -> K&S | BS40: =LEFT(G40,1) -> F | BT40: G | BU40: B | BV40: C | BW40: I | BX40: X | BY40: O | BZ40: U | CC40: 34 | CD40: 39 | CE40: 27 | CF40: 7 | CG40: 17 | CH40: 42 | CI40: 12 | CJ40: 22
A41: =B40&"B" -> 6B | D41: =VLOOKUP(B40,EventsOrder,3,FALSE) -> Long Jump | E41: B | G41: G | H41: F | I41: II | J41: CC | K41: OO | O41: 4.45 | P41: 4.17 | Q41: 3.98 | R41: 3.89 | S41: 3.29 | W41: G | X41: F | Y41: 0 | Z41: CC | AA41: OO | AE41: =IF(LEN(G41)=0,"",VLOOKUP($B40,IF($F40="F",TeamSheetFemale,TeamSheetMale),CC41,FALSE)) -> Luke O'Brien | AF41: LEWIS JOHNSON | AG41: Dylan Mukhtar | AH41: George Clements | AI41: JAKE LAWSON | AM41: 5 | AN41: 4 | AO41: 6 | AP41: 0 | AQ41: 0 | AR41: 7 | AS41: 8 | AT41: 0 | AU41: 3.89 | AV41: 3.29 | AW41: 3.98 | AX41: 0 | AY41: =OFFSET($N41,0,BG41) -> 0 | AZ41: =OFFSET($N41,0,BH41) -> 4.17 | BA41: =OFFSET($N41,0,BI41) -> 4.45 | BB41: =OFFSET($N41,0,BJ41) -> 0 | BC41: 4 | BD41: 5 | BE41: 3 | BF41: 0 | BG41: 0 | BH41: 2 | BI41: 1 | BJ41: 0 | BK41: Royal | BL41: Tam | BM41: Kett | BN41: B&R | BO41: Corby | BP41: 0 | BQ41: 0 | BR41: 0 | BS41: G | BT41: =LEFT(H41,1) -> F | BU41: =LEFT(I41,1) -> I | BV41: =LEFT(J41,1) -> C | BW41: =LEFT(K41,1) -> O | BX41: =LEFT(L41,1) ->  | BY41: =LEFT(M41,1) ->  | BZ41: =LEFT(N41,1) ->  | CC41: 37 | CD41: 32 | CE41: 19 | CF41: 9 | CG41: 14
A42: =B42&"A" -> 7A | B42: 7 | C42: =VLOOKUP(B42,EventsOrder,2,FALSE) -> 12.05 | D42: =VLOOKUP(B42,EventsOrder,4,FALSE) -> U17 F/Women | E42: A | F42: =IF(MID(D42,5,1)="F","F","M") -> F | G42: O | H42: G | I42: X | J42: I | O42: 5.19.9 | P42: 5.29.6 | Q42: 5.39.1 | R42: 5.45.7 | AE42: =IF(LEN(G42)=0,"",VLOOKUP($B42,IF($F42="F",TeamSheetFemale,TeamSheetMale),CC42,FALSE)) -> ELLIE-MAY HATHAWAY U17 | AF42: 0 | AG42: Rosie Weselby U17 | AH42: Chloe Hearne | AM42: 0 | AN42: 8 | AO42: 5 | AP42: 0 | AQ42: 0 | AR42: 0 | AS42: 7 | AT42: 6 | AU42: 0 | AV42: 5.19.9 | AW42: 5.45.7 | AX42: 0 | AY42: 0 | AZ42: 0 | BA42: 5.29.6 | BB42: 5.39.1 | BC42: 0 | BD42: 1 | BE42: 4 | BF42: 0 | BG42: 0 | BH42: 0 | BI42: 2 | BJ42: 3 | BK42: Corby | BL42: Royal | BM42: Wreake | BN42: Kett | BO42: 0 | BP42: 0 | BQ42: 0 | BR42: 0 | BS42: O | BT42: G | BU42: X | BV42: I | CC42: 12 | CD42: 37 | CE42: 42 | CF42: 17
A43: =B42&"B" -> 7B | D43: =VLOOKUP(B42,EventsOrder,3,FALSE) -> 1500m | E43: B | G43: II | H43: UU | O43: 5.39.8 | P43: 6.29.6 | AE43: =IF(LEN(G43)=0,"",VLOOKUP($B42,IF($F42="F",TeamSheetFemale,TeamSheetMale),CC43,FALSE)) -> Rebecca Hughes | AF43: Selena Topham SEN | AM43: 0 | AN43: 0 | AO43: 8 | AP43: 7 | AQ43: 0 | AR43: 0 | AS43: 0 | AT43: 0 | AU43: 0 | AV43: 0 | AW43: 5.39.8 | AX43: 6.29.6 | AY43: 0 | AZ43: 0 | BA43: 0 | BB43: 0 | BC43: 0 | BD43: 0 | BE43: 1 | BF43: 2 | BG43: 0 | BH43: 0 | BI43: 0 | BJ43: 0 | BK43: Kett | BL43: K&S | BM43: 0 | BN43: 0 | BO43: 0 | BP43: 0 | BQ43: 0 | BR43: 0 | BS43: I | BT43: U | CC43: 19 | CD43: 24
A44: =B44&"A" -> 8A | B44: 8 | C44: =VLOOKUP(B44,EventsOrder,2,FALSE) -> 12.15 | D44: =VLOOKUP(B44,EventsOrder,4,FALSE) -> U17 Men | E44: A | F44: =IF(MID(D44,5,1)="F","F","M") -> M | G44: GG | H44: C | I44: B | J44: I | K44: O | L44: U | O44: 8.88 | P44: 8.66 | Q44: 8.65 | R44: 8.29 | S44: 7.12 | T44: 5.28 | W44: GG | X44: C | Y44: B | Z44: I | AA44: O | AB44: U | AE44: =IF(LEN(G44)=0,"",VLOOKUP($B44,IF($F44="F",TeamSheetFemale,TeamSheetMale),CC44,FALSE)) -> Cameron Kirkbride | AF44: Louca Ellinis | AG44: james kelly | AH44: Richard Burke | AI44: ROBERT STRANG | AJ44: Ed Ingram | AM44: 7 | AN44: 4 | AO44: 5 | AP44: 3 | AQ44: 6 | AR44: 0 | AS44: 8 | AT44: 0 | AU44: 8.66 | AV44: 7.12 | AW44: 8.29 | AX44: 5.28 | AY44: 8.65 | AZ44: 0 | BA44: 8.88 | BB44: 0 | BC44: 2 | BD44: 5 | BE44: 4 | BF44: 6 | BG44: 3 | BH44: 0 | BI44: 1 | BJ44: 0 | BK44: Royal | BL44: B&R | BM44: DASH | BN44: Kett | BO44: Corby | BP44: K&S | BQ44: 0 | BR44: 0 | BS44: G | BT44: C | BU44: B | BV44: I | BW44: O | BX44: U | CC44: 39 | CD44: =IF(LEN(H44)=0,"",HLOOKUP(BT44,$CC$26:$CJ$28,2,FALSE)+IF(LEN(H44)=2,2,0)) -> 7 | CE44: =IF(LEN(I44)=0,"",HLOOKUP(BU44,$CC$26:$CJ$28,2,FALSE)+IF(LEN(I44)=2,2,0)) -> 27 | CF44: =IF(LEN(J44)=0,"",HLOOKUP(BV44,$CC$26:$CJ$28,2,FALSE)+IF(LEN(J44)=2,2,0)) -> 17 | CG44: =IF(LEN(K44)=0,"",HLOOKUP(BW44,$CC$26:$CJ$28,2,FALSE)+IF(LEN(K44)=2,2,0)) -> 12 | CH44: =IF(LEN(L44)=0,"",HLOOKUP(BX44,$CC$26:$CJ$28,2,FALSE)+IF(LEN(L44)=2,2,0)) -> 22 | CI44: =IF(LEN(M44)=0,"",HLOOKUP(BY44,$CC$26:$CJ$28,2,FALSE)+IF(LEN(M44)=2,2,0)) ->  | CJ44: =IF(LEN(N44)=0,"",HLOOKUP(BZ44,$CC$26:$CJ$28,2,FALSE)+IF(LEN(N44)=2,2,0)) -> 
A45: =B44&"B" -> 8B | D45: =VLOOKUP(B44,EventsOrder,3,FALSE) -> Shot | E45: B | G45: CC | O45: 7.89 | W45: CC | AE45: =IF(LEN(G45)=0,"",VLOOKUP($B44,IF($F44="F",TeamSheetFemale,TeamSheetMale),CC45,FALSE)) -> Isaac Hill | AM45: 8 | AN45: 0 | AO45: 0 | AP45: 0 | AQ45: 0 | AR45: 0 | AS45: 0 | AT45: 0 | AU45: 7.89 | AV45: 0 | AW45: 0 | AX45: 0 | AY45: 0 | AZ45: 0 | BA45: 0 | BB45: 0 | BC45: 1 | BD45: 0 | BE45: 0 | BF45: 0 | BG45: 0 | BH45: 0 | BI45: 0 | BJ45: 0 | BK45: B&R | BL45: 0 | BM45: 0 | BN45: 0 | BO45: 0 | BP45: 0 | BQ45: 0 | BR45: 0 | BS45: C | CC45: 9
A46: =B46&"A" -> 9A | B46: 9 | C46: =VLOOKUP(B46,EventsOrder,2,FALSE) -> 12.15 | D46: =VLOOKUP(B46,EventsOrder,4,FALSE) -> U15 Female | E46: A | F46: =IF(MID(D46,5,1)="F","F","M") -> F | G46: F | H46: U | I46: CC | J46: GG | K46: O | L46: I | O46: 19.66 | P46: 18.08 | Q46: 16.94 | R46: 13.2 | S46: 12.63 | T46: 12.12 | W46: F | X46: U | Y46: CC | Z46: GG | AA46: O | AB46: I | AE46: =IF(LEN(G46)=0,"",VLOOKUP($B46,IF($F46="F",TeamSheetFemale,TeamSheetMale),CC46,FALSE)) -> LUCY WHEELER | AF46: Jessica Surridge | AG46: Orla Lewis | AH46: Maddy Underwood | AI46: LAUREN McMULLEN | AJ46: Niamh Monaghan | AM46: 6 | AN46: 4 | AO46: 3 | AP46: 7 | AQ46: 0 | AR46: 8 | AS46: 5 | AT46: 0 | AU46: 16.94 | AV46: 12.63 | AW46: 12.12 | AX46: 18.08 | AY46: 0 | AZ46: 19.66 | BA46: 13.2 | BB46: 0 | BC46: 3 | BD46: 5 | BE46: 6 | BF46: 2 | BG46: 0 | BH46: 1 | BI46: 4 | BJ46: 0 | BK46: Tam | BL46: K&S | BM46: B&R | BN46: Royal | BO46: Corby | BP46: Kett | BQ46: 0 | BR46: 0 | BS46: F | BT46: U | BU46: C | BV46: G | BW46: O | BX46: I | CC46: 32 | CD46: 22 | CE46: 9 | CF46: 39 | CG46: 12 | CH46: 17
A47: =B46&"B" -> 9B | D47: =VLOOKUP(B46,EventsOrder,3,FALSE) -> Discus | E47: B | G47: G | H47: C | I47: FF | J47: II | K47: UU | L47: X | O47: 3.13 | P47: 12.6 | Q47: 11.32 | R47: 9.8 | S47: 9.39 | T47: 9.13 | W47: G | X47: C | Y47: FF | Z47: II | AA47: UU | AB47: X | AE47: =IF(LEN(G47)=0,"",VLOOKUP($B46,IF($F46="F",TeamSheetFemale,TeamSheetMale),CC47,FALSE)) -> Elley Criddle | AF47: Robyn Yeomans | AG47: RACHEL WEST | AH47: Jenifer Robinson | AI47: Yasmin Berrow | AJ47: Megan Luxford | AM47: 7 | AN47: 0 | AO47: 5 | AP47: 4 | AQ47: 0 | AR47: 6 | AS47: 8 | AT47: 3 | AU47: 12.6 | AV47: 0 | AW47: 9.8 | AX47: 9.39 | AY47: 0 | AZ47: 11.32 | BA47: 3.13 | BB47: 9.13 | BC47: 2 | BD47: 0 | BE47: 4 | BF47: 5 | BG47: 0 | BH47: 3 | BI47: 1 | BJ47: 6 | BK47: Royal | BL47: B&R | BM47: Tam | BN47: Kett | BO47: K&S | BP47: Wreake | BQ47: 0 | BR47: 0 | BS47: G | BT47: C | BU47: F | BV47: I | BW47: U | BX47: X | CC47: 37 | CD47: 7 | CE47: 34 | CF47: 19 | CG47: 24 | CH47: 42
A48: =B48&"A" -> 10A | B48: 10 | C48: =VLOOKUP(B48,EventsOrder,2,FALSE) -> 12.15 | D48: =VLOOKUP(B48,EventsOrder,4,FALSE) -> U17 F/Women | E48: A | F48: =IF(MID(D48,5,1)="F","F","M") -> F | AE48: =IF(LEN(G48)=0,"",VLOOKUP($B48,IF($F48="F",TeamSheetFemale,TeamSheetMale),CC48,FALSE)) ->  | AM48: 0 | AN48: 0 | AO48: 0 | AP48: 0 | AQ48: 0 | AR48: 0 | AS48: 0 | AT48: 0 | AU48: 0 | AV48: 0 | AW48: 0 | AX48: 0 | AY48: 0 | AZ48: 0 | BA48: 0 | BB48: 0 | BC48: 0 | BD48: 0 | BE48: 0 | BF48: 0 | BG48: 0 | BH48: 0 | BI48: 0 | BJ48: 0 | BK48: 0 | BL48: 0 | BM48: 0 | BN48: 0 | BO48: 0 | BP48: 0 | BQ48: 0 | BR48: 0
A49: =B48&"B" -> 10B | D49: =VLOOKUP(B48,EventsOrder,3,FALSE) -> Javelin | E49: B | AE49: =IF(LEN(G49)=0,"",VLOOKUP($B48,IF($F48="F",TeamSheetFemale,TeamSheetMale),CC49,FALSE)) ->  | AM49: 0 | AN49: 0 | AO49: 0 | AP49: 0 | AQ49: 0 | AR49: 0 | AS49: 0 | AT49: 0 | AU49: 0 | AV49: 0 | AW49: 0 | AX49: 0 | AY49: 0 | AZ49: 0 | BA49: 0 | BB49: 0 | BC49: 0 | BD49: 0 | BE49: 0 | BF49: 0 | BG49: 0 | BH49: 0 | BI49: 0 | BJ49: 0 | BK49: 0 | BL49: 0 | BM49: 0 | BN49: 0 | BO49: 0 | BP49: 0 | BQ49: 0 | BR49: 0
A50: =B50&"A" -> 11A | B50: 11 | C50: =VLOOKUP(B50,EventsOrder,2,FALSE) -> 12.15 | D50: =VLOOKUP(B50,EventsOrder,4,FALSE) -> U13 Female | E50: A | F50: =IF(MID(D50,5,1)="F","F","M") -> F | G50: F | H50: X | I50: B | J50: I | K50: U | O50: 13.4 | P50: 13.8 | Q50: 14.3 | R50: 16.2 | S50: 18 | W50: F | X50: X | Y50: B | Z50: I | AA50: 0 | AE50: =IF(LEN(G50)=0,"",VLOOKUP($B50,IF($F50="F",TeamSheetFemale,TeamSheetMale),CC50,FALSE)) -> NIAMH KILGALLEN | AF50: Flora Miskin Young | AG50: niamh darby | AH50: Matilda Braithwaite | AI50: Libby Hawkswell | AM50: 0 | AN50: 0 | AO50: 5 | AP50: 4 | AQ50: 6 | AR50: 8 | AS50: 0 | AT50: 7 | AU50: 0 | AV50: 0 | AW50: 16.2 | AX50: 18 | AY50: 14.3 | AZ50: 13.4 | BA50: 0 | BB50: 13.8 | BC50: =IF(ISNA(MATCH(BC$29,$BS50:$BZ50,0)),0,MATCH(BC$29,$BS50:$BZ50,0)) -> 0 | BD50: 0 | BE50: 4 | BF50: 5 | BG50: 3 | BH50: 1 | BI50: 0 | BJ50: 2 | BK50: Tam | BL50: Wreake | BM50: DASH | BN50: Kett | BO50: K&S | BP50: 0 | BQ50: 0 | BR50: 0 | BS50: F | BT50: X | BU50: B | BV50: I | BW50: U | CC50: 32 | CD50: 42 | CE50: 27 | CF50: 17 | CG50: 22
A51: =B50&"B" -> 11B | D51: =VLOOKUP(B50,EventsOrder,3,FALSE) -> 70m hurdles | E51: B | G51: XX | O51: 16.3 | W51: XX | AE51: =IF(LEN(G51)=0,"",VLOOKUP($B50,IF($F50="F",TeamSheetFemale,TeamSheetMale),CC51,FALSE)) -> Ravenn Cook | AM51: 0 | AN51: 0 | AO51: 0 | AP51: 0 | AQ51: 0 | AR51: 0 | AS51: 0 | AT51: 8 | AU51: 0 | AV51: 0 | AW51: 0 | AX51: 0 | AY51: 0 | AZ51: 0 | BA51: 0 | BB51: 16.3 | BC51: 0 | BD51: 0 | BE51: 0 | BF51: 0 | BG51: 0 | BH51: 0 | BI51: 0 | BJ51: 1 | BK51: Wreake | BL51: 0 | BM51: 0 | BN51: 0 | BO51: 0 | BP51: 0 | BQ51: 0 | BR51: 0 | BS51: X | CC51: 44
A52: =B52&"A" -> 12A | B52: 12 | C52: =VLOOKUP(B52,EventsOrder,2,FALSE) -> 12.2 | D52: =VLOOKUP(B52,EventsOrder,4,FALSE) -> U13 Male | E52: A | F52: =IF(MID(D52,5,1)="F","F","M") -> M | G52: O | H52: I | I52: X | J52: G | K52: C | L52: U | O52: 2.19.6 | P52: 2.32.7 | Q52: 2.39.6 | R52: 2.40.2 | S52: 2.46.8 | T52: 3.29.4 | W52: O | X52: I | Y52: X | Z52: G | AA52: c | AB52: U | AE52: =IF(LEN(G52)=0,"",VLOOKUP($B52,IF($F52="F",TeamSheetFemale,TeamSheetMale),CC52,FALSE)) -> ARCHIE PARKINSON | AF52: Dylan Bowley | AG52: Euan Gibbs | AH52: Finley Barlow | AI52: Harrison Mayne | AJ52: Finlay Hudson | AM52: 4 | AN52: 8 | AO52: 7 | AP52: 3 | AQ52: 0 | AR52: 0 | AS52: 5 | AT52: 6 | AU52: 2.46.8 | AV52: 2.19.6 | AW52: 2.32.7 | AX52: 3.29.4 | AY52: 0 | AZ52: 0 | BA52: 2.40.2 | BB52: 2.39.6 | BC52: 5 | BD52: 1 | BE52: 2 | BF52: 6 | BG52: 0 | BH52: 0 | BI52: 4 | BJ52: 3 | BK52: =IF(LEN(G52)>0,VLOOKUP(LEFT(G52,1),Clubs,5,FALSE),0) -> Corby | BL52: =IF(LEN(H52)>0,VLOOKUP(LEFT(H52,1),Clubs,5,FALSE),0) -> Kett | BM52: =IF(LEN(I52)>0,VLOOKUP(LEFT(I52,1),Clubs,5,FALSE),0) -> Wreake | BN52: =IF(LEN(J52)>0,VLOOKUP(LEFT(J52,1),Clubs,5,FALSE),0) -> Royal | BO52: =IF(LEN(K52)>0,VLOOKUP(LEFT(K52,1),Clubs,5,FALSE),0) -> B&R | BP52: =IF(LEN(L52)>0,VLOOKUP(LEFT(L52,1),Clubs,5,FALSE),0) -> K&S | BQ52: =IF(LEN(M52)>0,VLOOKUP(LEFT(M52,1),Clubs,5,FALSE),0) -> 0 | BR52: =IF(LEN(N52)>0,VLOOKUP(LEFT(N52,1),Clubs,5,FALSE),0) -> 0 | BS52: =LEFT(G52,1) -> O | BT52: I | BU52: X | BV52: G | BW52: C | BX52: U | CC52: 12 | CD52: 17 | CE52: 42 | CF52: 37 | CG52: 7 | CH52: 22
A53: =B52&"B" -> 12B | D53: =VLOOKUP(B52,EventsOrder,3,FALSE) -> 800m | E53: B | G53: OO | H53: GG | I53: II | J53: CC | O53: 2.19.7 | P53: 2.41.2 | Q53: 2.46.2 | R53: 3.00.7 | W53: OO | X53: GG | Y53: II | Z53: cc | AE53: =IF(LEN(G53)=0,"",VLOOKUP($B52,IF($F52="F",TeamSheetFemale,TeamSheetMale),CC53,FALSE)) -> LUCA MAYES | AF53: Will Cowley | AG53: Ethan Nelis | AH53: Tom Sanders | AM53: 5 | AN53: 8 | AO53: 6 | AP53: 0 | AQ53: 0 | AR53: 0 | AS53: 7 | AT53: 0 | AU53: 3.00.7 | AV53: 2.19.7 | AW53: 2.46.2 | AX53: 0 | AY53: =OFFSET($N53,0,BG53) -> 0 | AZ53: =OFFSET($N53,0,BH53) -> 0 | BA53: =OFFSET($N53,0,BI53) -> 2.41.2 | BB53: =OFFSET($N53,0,BJ53) -> 0 | BC53: 4 | BD53: 1 | BE53: 3 | BF53: 0 | BG53: 0 | BH53: 0 | BI53: 2 | BJ53: 0 | BK53: Corby | BL53: Royal | BM53: Kett | BN53: B&R | BO53: 0 | BP53: 0 | BQ53: 0 | BR53: 0 | BS53: O | BT53: =LEFT(H53,1) -> G | BU53: =LEFT(I53,1) -> I | BV53: =LEFT(J53,1) -> C | BW53: =LEFT(K53,1) ->  | BX53: =LEFT(L53,1) ->  | BY53: =LEFT(M53,1) ->  | BZ53: =LEFT(N53,1) ->  | CC53: 14 | CD53: 39 | CE53: 19 | CF53: 9
A54: =B54&"A" -> 13A | B54: 13 | C54: =VLOOKUP(B54,EventsOrder,2,FALSE) -> 12.3 | D54: =VLOOKUP(B54,EventsOrder,4,FALSE) -> U15 Female | E54: A | F54: =IF(MID(D54,5,1)="F","F","M") -> F | G54: U | H54: X | I54: F | J54: B | K54: C | O54: 13.9 | P54: 14.8 | Q54: 14.8 | R54: 15.4 | S54: 16.7 | W54: U | X54: X | Y54: F | Z54: B | AA54: C | AE54: =IF(LEN(G54)=0,"",VLOOKUP($B54,IF($F54="F",TeamSheetFemale,TeamSheetMale),CC54,FALSE)) -> Monica Aresu | AF54: Josie Orange | AG54: EMILY FINDLATER | AH54: jessica crook | AI54: Robyn Yeomans | AM54: 4 | AN54: 0 | AO54: 0 | AP54: 8 | AQ54: 5 | AR54: 6 | AS54: 0 | AT54: 7 | AU54: 16.7 | AV54: 0 | AW54: 0 | AX54: 13.9 | AY54: 15.4 | AZ54: 14.8 | BA54: 0 | BB54: 14.8 | BC54: 5 | BD54: 0 | BE54: 0 | BF54: 1 | BG54: 4 | BH54: 3 | BI54: 0 | BJ54: 2 | BK54: K&S | BL54: Wreake | BM54: Tam | BN54: DASH | BO54: B&R | BP54: 0 | BQ54: 0 | BR54: 0 | BS54: U | BT54: X | BU54: F | BV54: B | BW54: C | CC54: 22 | CD54: 42 | CE54: 32 | CF54: 27 | CG54: 7
A55: =B54&"B" -> 13B | D55: =VLOOKUP(B54,EventsOrder,3,FALSE) -> 75m hurdles | E55: B | G55: CC | H55: UU | O55: 16.6 | P55: 17.3 | W55: CC | X55: UU | AE55: =IF(LEN(G55)=0,"",VLOOKUP($B54,IF($F54="F",TeamSheetFemale,TeamSheetMale),CC55,FALSE)) -> 0 | AF55: Yasmin Berrow | AM55: 8 | AN55: 0 | AO55: 0 | AP55: 7 | AQ55: 0 | AR55: 0 | AS55: 0 | AT55: 0 | AU55: 16.6 | AV55: 0 | AW55: 0 | AX55: 17.3 | AY55: 0 | AZ55: 0 | BA55: 0 | BB55: 0 | BC55: 1 | BD55: 0 | BE55: 0 | BF55: 2 | BG55: 0 | BH55: 0 | BI55: 0 | BJ55: 0 | BK55: B&R | BL55: K&S | BM55: 0 | BN55: 0 | BO55: 0 | BP55: 0 | BQ55: 0 | BR55: 0 | BS55: C | BT55: U | CC55: 9 | CD55: 24
A56: =B56&"A" -> 14A | B56: 14 | C56: =VLOOKUP(B56,EventsOrder,2,FALSE) -> 12.3 | D56: =VLOOKUP(B56,EventsOrder,4,FALSE) -> U11 Female | E56: A | F56: =IF(MID(D56,5,1)="F","F","M") -> F | G56: U | H56: C | I56: G | J56: O | K56: B | L56: X | M56: I | N56: F | O56: 3.43 | P56: 3.29 | Q56: 3.23 | R56: 3.14 | S56: 3.01 | T56: 2.92 | U56: 2.52 | V56: 2.46 | W56: U | X56: C | Y56: G | Z56: O | AA56: B | AB56: X | AC56: I | AD56: F | AE56: =IF(LEN(G56)=0,"",VLOOKUP($B56,IF($F56="F",TeamSheetFemale,TeamSheetMale),CC56,FALSE)) -> Libby Oliver | AF56: Jessica Causer | AG56: Hope Stirland | AH56: MADELINE MAYES | AI56: libby davies | AJ56: Isobel O | AK56: Kate Nelis | AL56: ELLIE GAUNTLET | AM56: 7 | AN56: 5 | AO56: 2 | AP56: 8 | AQ56: 4 | AR56: 1 | AS56: 6 | AT56: 3 | AU56: 3.29 | AV56: 3.14 | AW56: 2.52 | AX56: 3.43 | AY56: 3.01 | AZ56: 2.46 | BA56: 3.23 | BB56: 2.92 | BC56: 2 | BD56: 4 | BE56: 7 | BF56: 1 | BG56: 5 | BH56: 8 | BI56: 3 | BJ56: 6 | BK56: K&S | BL56: B&R | BM56: Royal | BN56: Corby | BO56: DASH | BP56: Wreake | BQ56: Kett | BR56: Tam | BS56: U | BT56: C | BU56: G | BV56: O | BW56: B | BX56: X | BY56: I | BZ56: F | CC56: 22 | CD56: 7 | CE56: 37 | CF56: 12 | CG56: 27 | CH56: 42 | CI56: 17 | CJ56: 32
A57: =B56&"B" -> 14B | D57: =VLOOKUP(B56,EventsOrder,3,FALSE) -> Long Jump | E57: B | G57: GG | H57: BB | I57: XX | J57: UU | K57: OO | L57: II | M57: CC | O57: 3.04 | P57: 2.63 | Q57: 2.59 | R57: 2.54 | S57: 2.4 | T57: 2.27 | U57: 2.22 | W57: GG | X57: BB | Y57: XX | Z57: UU | AA57: OO | AB57: II | AC57: CC | AE57: =IF(LEN(G57)=0,"",VLOOKUP($B56,IF($F56="F",TeamSheetFemale,TeamSheetMale),CC57,FALSE)) -> Isobel Male | AF57: vyvyenne crook | AG57: Eliza Weselby | AH57: Hannah Telling | AI57: CASEY SEYMOUR | AJ57: Maddie Moxey | AK57: Georgia Duncombe | AM57: 2 | AN57: 4 | AO57: 3 | AP57: 5 | AQ57: 7 | AR57: 0 | AS57: 8 | AT57: 6 | AU57: 2.22 | AV57: 2.4 | AW57: 2.27 | AX57: 2.54 | AY57: 2.63 | AZ57: 0 | BA57: 3.04 | BB57: 2.59 | BC57: 7 | BD57: 5 | BE57: 6 | BF57: 4 | BG57: 2 | BH57: 0 | BI57: 1 | BJ57: 3 | BK57: Royal | BL57: DASH | BM57: Wreake | BN57: K&S | BO57: Corby | BP57: Kett | BQ57: B&R | BR57: 0 | BS57: G | BT57: B | BU57: X | BV57: U | BW57: O | BX57: I | BY57: C | CC57: 39 | CD57: 29 | CE57: 44 | CF57: 24 | CG57: 14 | CH57: 19 | CI57: 9
A58: =B58&"A" -> 15A | B58: 15 | C58: =VLOOKUP(B58,EventsOrder,2,FALSE) -> 12.35 | D58: =VLOOKUP(B58,EventsOrder,4,FALSE) -> U13 Male | E58: A | F58: =IF(MID(D58,5,1)="F","F","M") -> M | G58: C | H58: F | I58: B | O58: 16.9 | P58: 17 | Q58: 18.6 | W58: c | X58: F | Y58: B | AE58: =IF(LEN(G58)=0,"",VLOOKUP($B58,IF($F58="F",TeamSheetFemale,TeamSheetMale),CC58,FALSE)) -> Dominic Cook | AF58: JOEL BICKLEY | AG58: nathan crook | AM58: 8 | AN58: 0 | AO58: 0 | AP58: 0 | AQ58: 6 | AR58: 7 | AS58: 0 | AT58: 0 | AU58: 16.9 | AV58: 0 | AW58: 0 | AX58: 0 | AY58: 18.6 | AZ58: 17 | BA58: 0 | BB58: 0 | BC58: 1 | BD58: 0 | BE58: 0 | BF58: 0 | BG58: 3 | BH58: 2 | BI58: 0 | BJ58: 0 | BK58: B&R | BL58: Tam | BM58: DASH | BN58: 0 | BO58: 0 | BP58: 0 | BQ58: 0 | BR58: 0 | BS58: C | BT58: F | BU58: B | CC58: 7 | CD58: 32 | CE58: 27
A59: =B58&"B" -> 15B | D59: =VLOOKUP(B58,EventsOrder,3,FALSE) -> 75m hurdles | E59: B | G59: CC | O59: 14.3 | W59: 0 | AE59: =IF(LEN(G59)=0,"",VLOOKUP($B58,IF($F58="F",TeamSheetFemale,TeamSheetMale),CC59,FALSE)) -> Matthew Griffin | AM59: 8 | AN59: 0 | AO59: 0 | AP59: 0 | AQ59: 0 | AR59: 0 | AS59: 0 | AT59: 0 | AU59: 14.3 | AV59: 0 | AW59: 0 | AX59: 0 | AY59: 0 | AZ59: 0 | BA59: 0 | BB59: 0 | BC59: 1 | BD59: 0 | BE59: 0 | BF59: 0 | BG59: 0 | BH59: 0 | BI59: 0 | BJ59: 0 | BK59: B&R | BL59: 0 | BM59: 0 | BN59: 0 | BO59: 0 | BP59: 0 | BQ59: 0 | BR59: 0 | BS59: C | CC59: 9
A60: =B60&"A" -> 16A | B60: 16 | C60: =VLOOKUP(B60,EventsOrder,2,FALSE) -> 12.4 | D60: =VLOOKUP(B60,EventsOrder,4,FALSE) -> U15 Male | E60: A | F60: =IF(MID(D60,5,1)="F","F","M") -> M | G60: X | H60: O | I60: I | J60: B | K60: G | O60: 2.17.1 | P60: 2.17.9 | Q60: 2.26.0 | R60: 2.29.8 | S60: 2.46.1 | W60: X | X60: O | Y60: I | Z60: B | AA60: G | AE60: =IF(LEN(G60)=0,"",VLOOKUP($B60,IF($F60="F",TeamSheetFemale,TeamSheetMale),CC60,FALSE)) -> Charlie McGlinchy | AF60: ADAM McCRONE | AG60: Thomas Jawad | AH60: adam bodin | AI60: Luke Stoddart | AM60: 0 | AN60: 7 | AO60: 6 | AP60: 0 | AQ60: 5 | AR60: 0 | AS60: 4 | AT60: 8 | AU60: 0 | AV60: 2.17.9 | AW60: 2.26.0 | AX60: 0 | AY60: 2.29.8 | AZ60: 0 | BA60: 2.46.1 | BB60: 2.17.1 | BC60: 0 | BD60: 2 | BE60: 3 | BF60: 0 | BG60: 4 | BH60: 0 | BI60: 5 | BJ60: 1 | BK60: Wreake | BL60: Corby | BM60: Kett | BN60: DASH | BO60: Royal | BP60: 0 | BQ60: 0 | BR60: 0 | BS60: X | BT60: O | BU60: I | BV60: B | BW60: G | CC60: 42 | CD60: =IF(LEN(H60)=0,"",HLOOKUP(BT60,$CC$26:$CJ$28,2,FALSE)+IF(LEN(H60)=2,2,0)) -> 12 | CE60: =IF(LEN(I60)=0,"",HLOOKUP(BU60,$CC$26:$CJ$28,2,FALSE)+IF(LEN(I60)=2,2,0)) -> 17 | CF60: =IF(LEN(J60)=0,"",HLOOKUP(BV60,$CC$26:$CJ$28,2,FALSE)+IF(LEN(J60)=2,2,0)) -> 27 | CG60: =IF(LEN(K60)=0,"",HLOOKUP(BW60,$CC$26:$CJ$28,2,FALSE)+IF(LEN(K60)=2,2,0)) -> 37 | CH60: =IF(LEN(L60)=0,"",HLOOKUP(BX60,$CC$26:$CJ$28,2,FALSE)+IF(LEN(L60)=2,2,0)) ->  | CI60: =IF(LEN(M60)=0,"",HLOOKUP(BY60,$CC$26:$CJ$28,2,FALSE)+IF(LEN(M60)=2,2,0)) ->  | CJ60: =IF(LEN(N60)=0,"",HLOOKUP(BZ60,$CC$26:$CJ$28,2,FALSE)+IF(LEN(N60)=2,2,0)) -> 
A61: =B60&"B" -> 16B | D61: =VLOOKUP(B60,EventsOrder,3,FALSE) -> 800m | E61: B | G61: GG | H61: BB | O61: 2.32.5 | P61: 2.39.1 | W61: GG | X61: BB | AE61: =IF(LEN(G61)=0,"",VLOOKUP($B60,IF($F60="F",TeamSheetFemale,TeamSheetMale),CC61,FALSE)) -> Ben Horton | AF61: daniel mcgregor | AM61: 0 | AN61: 0 | AO61: 0 | AP61: 0 | AQ61: 7 | AR61: 0 | AS61: 8 | AT61: 0 | AU61: 0 | AV61: 0 | AW61: 0 | AX61: 0 | AY61: 2.39.1 | AZ61: 0 | BA61: 2.32.5 | BB61: 0 | BC61: 0 | BD61: 0 | BE61: 0 | BF61: 0 | BG61: 2 | BH61: 0 | BI61: 1 | BJ61: 0 | BK61: Royal | BL61: DASH | BM61: 0 | BN61: 0 | BO61: 0 | BP61: 0 | BQ61: 0 | BR61: 0 | BS61: G | BT61: B | CC61: 39 | CD61: 29
A62: =B62&"A" -> 17A | B62: 17 | C62: =VLOOKUP(B62,EventsOrder,2,FALSE) -> 12.55 | D62: =VLOOKUP(B62,EventsOrder,4,FALSE) -> U15 Female | E62: A | F62: =IF(MID(D62,5,1)="F","F","M") -> F | G62: U | H62: C | I62: I | J62: B | O62: 1.3 | P62: 1.25 | Q62: 1.25 | R62: 1.2 | AE62: =IF(LEN(G62)=0,"",VLOOKUP($B62,IF($F62="F",TeamSheetFemale,TeamSheetMale),CC62,FALSE)) -> Rosie Meacham | AF62: Eva James | AG62: Niamh Monaghan | AH62: kate bishop | AM62: =IF(OR($F62="NS",AU62="DNF"),0,IF(BC62>0,$BK$29+1-BC62,0)) -> 7 | AN62: =IF(OR($F62="NS",AV62="DNF"),0,IF(BD62>0,$BK$29+1-BD62,0)) -> 0 | AO62: =IF(OR($F62="NS",AW62="DNF"),0,IF(BE62>0,$BK$29+1-BE62,0)) -> 6 | AP62: =IF(OR($F62="NS",AX62="DNF"),0,IF(BF62>0,$BK$29+1-BF62,0)) -> 8 | AQ62: =IF(OR($F62="NS",AY62="DNF"),0,IF(BG62>0,$BK$29+1-BG62,0)) -> 5 | AR62: =IF(OR($F62="NS",AZ62="DNF"),0,IF(BH62>0,$BK$29+1-BH62,0)) -> 0 | AS62: =IF(OR($F62="NS",BA62="DNF"),0,IF(BI62>0,$BK$29+1-BI62,0)) -> 0 | AT62: =IF(OR($F62="NS",BB62="DNF"),0,IF(BJ62>0,$BK$29+1-BJ62,0)) -> 0 | AU62: 1.25 | AV62: 0 | AW62: 1.25 | AX62: 1.3 | AY62: 1.2 | AZ62: 0 | BA62: 0 | BB62: 0 | BC62: 2 | BD62: 0 | BE62: 3 | BF62: 1 | BG62: 4 | BH62: 0 | BI62: 0 | BJ62: 0 | BK62: K&S | BL62: B&R | BM62: Kett | BN62: DASH | BO62: 0 | BP62: 0 | BQ62: 0 | BR62: 0 | BS62: U | BT62: C | BU62: I | BV62: B | CC62: =IF(LEN(G62)=0,"",HLOOKUP(BS62,$CC$26:$CJ$28,2,FALSE)+IF(LEN(G62)=2,2,0)) -> 22 | CD62: 7 | CE62: 17 | CF62: 27
A63: =B62&"B" -> 17B | D63: =VLOOKUP(B62,EventsOrder,3,FALSE) -> High Jump | E63: B | AE63: =IF(LEN(G63)=0,"",VLOOKUP($B62,IF($F62="F",TeamSheetFemale,TeamSheetMale),CC63,FALSE)) ->  | AM63: 0 | AN63: 0 | AO63: 0 | AP63: 0 | AQ63: 0 | AR63: 0 | AS63: 0 | AT63: 0 | AU63: 0 | AV63: 0 | AW63: 0 | AX63: 0 | AY63: 0 | AZ63: 0 | BA63: 0 | BB63: 0 | BC63: 0 | BD63: 0 | BE63: 0 | BF63: 0 | BG63: 0 | BH63: 0 | BI63: 0 | BJ63: 0 | BK63: 0 | BL63: 0 | BM63: 0 | BN63: 0 | BO63: 0 | BP63: 0 | BQ63: 0 | BR63: 0
A64: =B64&"A" -> 18A | B64: 18 | C64: =VLOOKUP(B64,EventsOrder,2,FALSE) -> 12.5 | D64: =VLOOKUP(B64,EventsOrder,4,FALSE) -> U17 Men | E64: C | F64: =IF(MID(D64,5,1)="F","F","M") -> M | G64: I | H64: G | I64: C | J64: O | K64: U | L64: F | M64: X | N64: B | O64: 2.05.2 | P64: 2.08.7 | Q64: 2.11.3 | R64: 2.11.5 | S64: 2.17.2 | T64: 2.18.0 | U64: 2.20.2 | V64: 2.28.3 | W64: I | X64: G | Y64: C | Z64: O | AA64: U | AB64: F | AC64: X | AD64: B | AE64: =IF(LEN(G64)=0,"",VLOOKUP($B64,IF($F64="F",TeamSheetFemale,TeamSheetMale),CC64,FALSE)) -> Jake Trent | AF64: Lee Hetherington | AG64: Ben O'Connor | AH64: JACK BENSTEAD | AI64: Eddie Roberts | AJ64: OWEN KENT | AK64: Luke Berryman | AL64: javana priantoro | AM64: 6 | AN64: 5 | AO64: 8 | AP64: 4 | AQ64: 1 | AR64: 3 | AS64: 7 | AT64: 2 | AU64: 2.11.3 | AV64: 2.11.5 | AW64: 2.05.2 | AX64: 2.17.2 | AY64: 2.28.3 | AZ64: 2.18.0 | BA64: 2.08.7 | BB64: 2.20.2 | BC64: 3 | BD64: 4 | BE64: 1 | BF64: 5 | BG64: 8 | BH64: 6 | BI64: 2 | BJ64: 7 | BK64: Kett | BL64: Royal | BM64: B&R | BN64: Corby | BO64: K&S | BP64: Tam | BQ64: Wreake | BR64: DASH | BS64: I | BT64: G | BU64: C | BV64: O | BW64: U | BX64: F | BY64: X | BZ64: B | CC64: 17 | CD64: 37 | CE64: 7 | CF64: 12 | CG64: 22 | CH64: 32 | CI64: 42 | CJ64: 27
A65: =B64&"B" -> 18B | D65: =VLOOKUP(B64,EventsOrder,3,FALSE) -> 800m | E65: D | G65: II | H65: UU | O65: 2.12.1 | P65: 2.21.6 | W65: II | X65: UU | AE65: =IF(LEN(G65)=0,"",VLOOKUP($B64,IF($F64="F",TeamSheetFemale,TeamSheetMale),CC65,FALSE)) -> Ethan Mehmet | AF65: Harry Higginson | AM65: 0 | AN65: 0 | AO65: 8 | AP65: 7 | AQ65: 0 | AR65: 0 | AS65: 0 | AT65: 0 | AU65: 0 | AV65: 0 | AW65: 2.12.1 | AX65: 2.21.6 | AY65: 0 | AZ65: 0 | BA65: 0 | BB65: 0 | BC65: 0 | BD65: 0 | BE65: 1 | BF65: 2 | BG65: 0 | BH65: 0 | BI65: 0 | BJ65: 0 | BK65: Kett | BL65: K&S | BM65: 0 | BN65: 0 | BO65: 0 | BP65: 0 | BQ65: 0 | BR65: 0 | BS65: I | BT65: U | CC65: 19 | CD65: 24
A66: =B66&"A" -> 19A | B66: 19 | C66: =VLOOKUP(B66,EventsOrder,2,FALSE) -> 1 | D66: =VLOOKUP(B66,EventsOrder,4,FALSE) -> U17 Female | E66: A | F66: =IF(MID(D66,5,1)="F","F","M") -> F | G66: U | H66: F | O66: 16.6 | P66: 16.6 | W66: U | X66: F | AE66: =IF(LEN(G66)=0,"",VLOOKUP($B66,IF($F66="F",TeamSheetFemale,TeamSheetMale),CC66,FALSE)) -> Hannah Johnson U17 | AF66: BETHANY DEVONSHIRE U17 | AM66: 0 | AN66: 0 | AO66: 0 | AP66: 8 | AQ66: 0 | AR66: 7 | AS66: 0 | AT66: 0 | AU66: 0 | AV66: 0 | AW66: 0 | AX66: 16.6 | AY66: 0 | AZ66: 16.6 | BA66: 0 | BB66: 0 | BC66: =IF(ISNA(MATCH(BC$29,$BS66:$BZ66,0)),0,MATCH(BC$29,$BS66:$BZ66,0)) -> 0 | BD66: 0 | BE66: 0 | BF66: 1 | BG66: 0 | BH66: 2 | BI66: 0 | BJ66: 0 | BK66: K&S | BL66: Tam | BM66: 0 | BN66: 0 | BO66: 0 | BP66: 0 | BQ66: 0 | BR66: 0 | BS66: U | BT66: F | CC66: 22 | CD66: =IF(LEN(H66)=0,"",HLOOKUP(BT66,$CC$26:$CJ$28,2,FALSE)+IF(LEN(H66)=2,2,0)) -> 32
A67: =B66&"B" -> 19B | D67: =VLOOKUP(B66,EventsOrder,3,FALSE) -> 80m hurdles (U17) | E67: B | G67: UU | O67: 14.8 | W67: UU | AE67: =IF(LEN(G67)=0,"",VLOOKUP($B66,IF($F66="F",TeamSheetFemale,TeamSheetMale),CC67,FALSE)) -> Olivia Jones U17 | AM67: 0 | AN67: 0 | AO67: 0 | AP67: 8 | AQ67: 0 | AR67: 0 | AS67: 0 | AT67: 0 | AU67: =OFFSET($N67,0,BC67) -> 0 | AV67: =OFFSET($N67,0,BD67) -> 0 | AW67: =OFFSET($N67,0,BE67) -> 0 | AX67: =OFFSET($N67,0,BF67) -> 14.8 | AY67: 0 | AZ67: 0 | BA67: 0 | BB67: 0 | BC67: 0 | BD67: 0 | BE67: 0 | BF67: 1 | BG67: 0 | BH67: 0 | BI67: 0 | BJ67: 0 | BK67: K&S | BL67: 0 | BM67: 0 | BN67: 0 | BO67: 0 | BP67: 0 | BQ67: 0 | BR67: 0 | BS67: U | CC67: 24
A68: =B68&"A" -> 20A | B68: 20 | C68: =VLOOKUP(B68,EventsOrder,2,FALSE) -> 1.05 | D68: =VLOOKUP(B68,EventsOrder,4,FALSE) -> U15 Male | E68: A | F68: =IF(MID(D68,5,1)="F","F","M") -> M | G68: F | H68: C | I68: O | J68: I | K68: G | O68: 12.5 | P68: 12.7 | Q68: 13.7 | R68: 14.3 | S68: 17.5 | W68: F | X68: C | Y68: O | Z68: I | AA68: G | AE68: =IF(LEN(G68)=0,"",VLOOKUP($B68,IF($F68="F",TeamSheetFemale,TeamSheetMale),CC68,FALSE)) -> OWEN SHERRIFF | AF68: Josh Pearson | AG68: JACOB MORRIS | AH68: Joshua Gray | AI68: Luke Stoddart | AM68: 7 | AN68: 6 | AO68: 5 | AP68: 0 | AQ68: 0 | AR68: 8 | AS68: 4 | AT68: 0 | AU68: 12.7 | AV68: 13.7 | AW68: 14.3 | AX68: 0 | AY68: 0 | AZ68: 12.5 | BA68: 17.5 | BB68: 0 | BC68: 2 | BD68: 3 | BE68: 4 | BF68: 0 | BG68: 0 | BH68: 1 | BI68: 5 | BJ68: 0 | BK68: Tam | BL68: B&R | BM68: Corby | BN68: Kett | BO68: Royal | BP68: 0 | BQ68: 0 | BR68: 0 | BS68: F | BT68: C | BU68: O | BV68: I | BW68: G | CC68: =IF(LEN(G68)=0,"",HLOOKUP(BS68,$CC$26:$CJ$28,2,FALSE)+IF(LEN(G68)=2,2,0)) -> 32 | CD68: 7 | CE68: 12 | CF68: 17 | CG68: 37
A69: =B68&"B" -> 20B | D69: =VLOOKUP(B68,EventsOrder,3,FALSE) -> 80m hurdles | E69: B | G69: CC | O69: 16 | W69: CC | AE69: =IF(LEN(G69)=0,"",VLOOKUP($B68,IF($F68="F",TeamSheetFemale,TeamSheetMale),CC69,FALSE)) -> Will Thorley | AM69: 8 | AN69: 0 | AO69: 0 | AP69: 0 | AQ69: 0 | AR69: 0 | AS69: 0 | AT69: 0 | AU69: 16 | AV69: 0 | AW69: 0 | AX69: 0 | AY69: 0 | AZ69: 0 | BA69: 0 | BB69: 0 | BC69: 1 | BD69: 0 | BE69: 0 | BF69: 0 | BG69: 0 | BH69: 0 | BI69: 0 | BJ69: 0 | BK69: B&R | BL69: 0 | BM69: 0 | BN69: 0 | BO69: 0 | BP69: 0 | BQ69: 0 | BR69: 0 | BS69: C | CC69: 9
A70: =B70&"A" -> 21A | B70: 21 | C70: =VLOOKUP(B70,EventsOrder,2,FALSE) -> 1 | D70: =VLOOKUP(B70,EventsOrder,4,FALSE) -> U15 Female | E70: C | F70: =IF(MID(D70,5,1)="F","F","M") -> F | G70: BB | H70: I | I70: F | J70: X | K70: G | L70: OO | O70: 4.58 | P70: 4.34 | Q70: 3.81 | R70: 3.62 | S70: 3.55 | T70: 3.43 | W70: BB | X70: I | Y70: F | Z70: X | AA70: G | AB70: OO | AE70: =IF(LEN(G70)=0,"",VLOOKUP($B70,IF($F70="F",TeamSheetFemale,TeamSheetMale),CC70,FALSE)) -> jessica crook | AF70: Alex Beale | AG70: CHARLOTTE BUSH | AH70: Scarlett Pagett-Wright | AI70: Maddy Underwood | AJ70: GEORGIA MILLS | AM70: 0 | AN70: 3 | AO70: 7 | AP70: 0 | AQ70: 8 | AR70: 6 | AS70: 4 | AT70: 5 | AU70: 0 | AV70: 3.43 | AW70: 4.34 | AX70: 0 | AY70: 4.58 | AZ70: 3.81 | BA70: 3.55 | BB70: 3.62 | BC70: 0 | BD70: 6 | BE70: 2 | BF70: 0 | BG70: 1 | BH70: 3 | BI70: 5 | BJ70: 4 | BK70: DASH | BL70: Kett | BM70: Tam | BN70: Wreake | BO70: Royal | BP70: Corby | BQ70: 0 | BR70: 0 | BS70: B | BT70: I | BU70: F | BV70: X | BW70: G | BX70: O | CC70: 29 | CD70: 17 | CE70: 32 | CF70: 42 | CG70: 37 | CH70: 14
A71: =B70&"B" -> 21B | D71: =VLOOKUP(B70,EventsOrder,3,FALSE) -> Long Jump | E71: D | G71: B | H71: FF | I71: II | J71: GG | K71: O | L71: CC | M71: XX | O71: 4.52 | P71: 3.8 | Q71: 3.65 | R71: 3.24 | S71: 3.15 | T71: 2.99 | U71: 2.9 | W71: B | X71: FF | Y71: II | Z71: GG | AA71: O | AB71: CC | AC71: XX | AE71: =IF(LEN(G71)=0,"",VLOOKUP($B70,IF($F70="F",TeamSheetFemale,TeamSheetMale),CC71,FALSE)) -> emma sherwood | AF71: EVE CLAWLEY | AG71: Danielle McGann-Gaskill | AH71: Beth Darrock | AI71: DONNA HERON | AJ71: Katie Holloway | AK71: Mollie Crowson | AM71: 3 | AN71: 4 | AO71: 6 | AP71: 0 | AQ71: 8 | AR71: 7 | AS71: 5 | AT71: 2 | AU71: 2.99 | AV71: 3.15 | AW71: 3.65 | AX71: 0 | AY71: 4.52 | AZ71: 3.8 | BA71: 3.24 | BB71: 2.9 | BC71: 6 | BD71: 5 | BE71: 3 | BF71: 0 | BG71: 1 | BH71: 2 | BI71: 4 | BJ71: 7 | BK71: DASH | BL71: Tam | BM71: Kett | BN71: Royal | BO71: Corby | BP71: B&R | BQ71: Wreake | BR71: 0 | BS71: B | BT71: F | BU71: I | BV71: G | BW71: O | BX71: C | BY71: X | CC71: 27 | CD71: 34 | CE71: 19 | CF71: 39 | CG71: 12 | CH71: 9 | CI71: 44
A72: =B72&"A" -> 22A | B72: 22 | C72: =VLOOKUP(B72,EventsOrder,2,FALSE) -> 1 | D72: =VLOOKUP(B72,EventsOrder,4,FALSE) -> U15 Male | E72: A | F72: =IF(MID(D72,5,1)="F","F","M") -> M | G72: I | H72: C | I72: U | J72: G | K72: F | L72: O | O72: 10.62 | P72: 9.61 | Q72: 9.56 | R72: 7.89 | S72: 6.17 | T72: 5.83 | W72: I | X72: C | Y72: U | Z72: G | AA72: F | AB72: O | AE72: =IF(LEN(G72)=0,"",VLOOKUP($B72,IF($F72="F",TeamSheetFemale,TeamSheetMale),CC72,FALSE)) -> Tapuwa Chitiga | AF72: Lewis Byng | AG72: Jack Lambert | AH72: George Creed | AI72: LEWIS JOHNSON | AJ72: SAM HAINES | AM72: 7 | AN72: 3 | AO72: 8 | AP72: 6 | AQ72: 0 | AR72: 4 | AS72: 5 | AT72: 0 | AU72: 9.61 | AV72: 5.83 | AW72: 10.62 | AX72: 9.56 | AY72: 0 | AZ72: 6.17 | BA72: 7.89 | BB72: 0 | BC72: 2 | BD72: 6 | BE72: 1 | BF72: 3 | BG72: 0 | BH72: 5 | BI72: 4 | BJ72: 0 | BK72: Kett | BL72: B&R | BM72: K&S | BN72: Royal | BO72: Tam | BP72: Corby | BQ72: 0 | BR72: 0 | BS72: I | BT72: C | BU72: U | BV72: G | BW72: F | BX72: O | CC72: 17 | CD72: 7 | CE72: 22 | CF72: 37 | CG72: 32 | CH72: 12
A73: =B72&"B" -> 22B | D73: =VLOOKUP(B72,EventsOrder,3,FALSE) -> Shot | E73: B | G73: CC | H73: GG | I73: UU | J73: II | K73: FF | L73: OO | O73: 7.84 | P73: 6.72 | Q73: 5.39 | R73: 4.87 | S73: 3.63 | T73: 2.92 | W73: CC | X73: GG | Y73: UU | Z73: II | AA73: FF | AB73: OO | AE73: =IF(LEN(G73)=0,"",VLOOKUP($B72,IF($F72="F",TeamSheetFemale,TeamSheetMale),CC73,FALSE)) -> Todd Green | AF73: James Ward | AG73: Christopher Telling | AH73: Thomas Jawad | AI73: MAX KENT | AJ73: JAKE LAWSON | AM73: 8 | AN73: 3 | AO73: 5 | AP73: 6 | AQ73: 0 | AR73: 4 | AS73: 7 | AT73: 0 | AU73: 7.84 | AV73: 2.92 | AW73: 4.87 | AX73: 5.39 | AY73: 0 | AZ73: 3.63 | BA73: 6.72 | BB73: 0 | BC73: 1 | BD73: 6 | BE73: 4 | BF73: 3 | BG73: 0 | BH73: 5 | BI73: 2 | BJ73: 0 | BK73: B&R | BL73: Royal | BM73: K&S | BN73: Kett | BO73: Tam | BP73: Corby | BQ73: 0 | BR73: 0 | BS73: C | BT73: G | BU73: U | BV73: I | BW73: F | BX73: O | CC73: 9 | CD73: 39 | CE73: 24 | CF73: 19 | CG73: 34 | CH73: 14
A74: =B74&"A" -> 23A | B74: 23 | C74: =VLOOKUP(B74,EventsOrder,2,FALSE) -> 1 | D74: =VLOOKUP(B74,EventsOrder,4,FALSE) -> U17 Men | E74: A | F74: =IF(MID(D74,5,1)="F","F","M") -> M | G74: b | H74: C | I74: F | J74: I | K74: X | O74: 27.04 | P74: 26.06 | Q74: 25.02 | R74: 23.31 | S74: 20.51 | W74: B | X74: C | Y74: F | Z74: I | AA74: X | AE74: =IF(LEN(G74)=0,"",VLOOKUP($B74,IF($F74="F",TeamSheetFemale,TeamSheetMale),CC74,FALSE)) -> james kelly | AF74: Louca Ellinis | AG74: LUKE JAMES | AH74: Richard Burke | AI74: Sam Alvey | AM74: 7 | AN74: 0 | AO74: 5 | AP74: 0 | AQ74: 8 | AR74: 6 | AS74: 0 | AT74: 4 | AU74: 26.06 | AV74: 0 | AW74: 23.31 | AX74: 0 | AY74: 27.04 | AZ74: 25.02 | BA74: 0 | BB74: 20.51 | BC74: 2 | BD74: 0 | BE74: 4 | BF74: 0 | BG74: 1 | BH74: 3 | BI74: 0 | BJ74: 5 | BK74: DASH | BL74: B&R | BM74: Tam | BN74: Kett | BO74: Wreake | BP74: 0 | BQ74: 0 | BR74: 0 | BS74: b | BT74: C | BU74: F | BV74: I | BW74: X | CC74: 27 | CD74: 7 | CE74: 32 | CF74: 17 | CG74: 42
A75: =B74&"B" -> 23B | D75: =VLOOKUP(B74,EventsOrder,3,FALSE) -> Discus | E75: B | G75: CC | O75: 13.75 | W75: CC | AE75: =IF(LEN(G75)=0,"",VLOOKUP($B74,IF($F74="F",TeamSheetFemale,TeamSheetMale),CC75,FALSE)) -> Rory Dodson | AM75: 8 | AN75: 0 | AO75: 0 | AP75: 0 | AQ75: 0 | AR75: 0 | AS75: 0 | AT75: 0 | AU75: 13.75 | AV75: 0 | AW75: 0 | AX75: 0 | AY75: 0 | AZ75: 0 | BA75: 0 | BB75: 0 | BC75: 1 | BD75: 0 | BE75: 0 | BF75: 0 | BG75: 0 | BH75: 0 | BI75: 0 | BJ75: 0 | BK75: B&R | BL75: 0 | BM75: 0 | BN75: 0 | BO75: 0 | BP75: 0 | BQ75: 0 | BR75: 0 | BS75: C | CC75: 9
A76: =B76&"A" -> 24A | B76: 24 | C76: =VLOOKUP(B76,EventsOrder,2,FALSE) -> 1 | D76: =VLOOKUP(B76,EventsOrder,4,FALSE) -> U13 Male | E76: A | F76: =IF(MID(D76,5,1)="F","F","M") -> M | AE76: =IF(LEN(G76)=0,"",VLOOKUP($B76,IF($F76="F",TeamSheetFemale,TeamSheetMale),CC76,FALSE)) ->  | AM76: 0 | AN76: 0 | AO76: 0 | AP76: 0 | AQ76: 0 | AR76: 0 | AS76: 0 | AT76: 0 | AU76: 0 | AV76: 0 | AW76: 0 | AX76: 0 | AY76: 0 | AZ76: 0 | BA76: 0 | BB76: 0 | BC76: 0 | BD76: 0 | BE76: 0 | BF76: 0 | BG76: 0 | BH76: 0 | BI76: 0 | BJ76: 0 | BK76: =IF(LEN(G76)>0,VLOOKUP(LEFT(G76,1),Clubs,5,FALSE),0) -> 0 | BL76: =IF(LEN(H76)>0,VLOOKUP(LEFT(H76,1),Clubs,5,FALSE),0) -> 0 | BM76: =IF(LEN(I76)>0,VLOOKUP(LEFT(I76,1),Clubs,5,FALSE),0) -> 0 | BN76: =IF(LEN(J76)>0,VLOOKUP(LEFT(J76,1),Clubs,5,FALSE),0) -> 0 | BO76: =IF(LEN(K76)>0,VLOOKUP(LEFT(K76,1),Clubs,5,FALSE),0) -> 0 | BP76: =IF(LEN(L76)>0,VLOOKUP(LEFT(L76,1),Clubs,5,FALSE),0) -> 0 | BQ76: =IF(LEN(M76)>0,VLOOKUP(LEFT(M76,1),Clubs,5,FALSE),0) -> 0 | BR76: =IF(LEN(N76)>0,VLOOKUP(LEFT(N76,1),Clubs,5,FALSE),0) -> 0 | BS76: =LEFT(G76,1) -> 
A77: =B76&"B" -> 24B | D77: =VLOOKUP(B76,EventsOrder,3,FALSE) -> Javelin | E77: B | AE77: =IF(LEN(G77)=0,"",VLOOKUP($B76,IF($F76="F",TeamSheetFemale,TeamSheetMale),CC77,FALSE)) ->  | AM77: 0 | AN77: 0 | AO77: 0 | AP77: 0 | AQ77: 0 | AR77: 0 | AS77: 0 | AT77: 0 | AU77: 0 | AV77: 0 | AW77: 0 | AX77: 0 | AY77: =OFFSET($N77,0,BG77) -> 0 | AZ77: =OFFSET($N77,0,BH77) -> 0 | BA77: =OFFSET($N77,0,BI77) -> 0 | BB77: =OFFSET($N77,0,BJ77) -> 0 | BC77: 0 | BD77: 0 | BE77: 0 | BF77: 0 | BG77: 0 | BH77: 0 | BI77: 0 | BJ77: 0 | BK77: 0 | BL77: 0 | BM77: 0 | BN77: 0 | BO77: 0 | BP77: 0 | BQ77: 0 | BR77: 0 | BT77: =LEFT(H77,1) ->  | BU77: =LEFT(I77,1) ->  | BV77: =LEFT(J77,1) ->  | BW77: =LEFT(K77,1) ->  | BX77: =LEFT(L77,1) ->  | BY77: =LEFT(M77,1) ->  | BZ77: =LEFT(N77,1) -> 
A78: =B78&"A" -> 25A | B78: 25 | C78: =VLOOKUP(B78,EventsOrder,2,FALSE) -> 1.15 | D78: =VLOOKUP(B78,EventsOrder,4,FALSE) -> U13 Female | E78: A | F78: =IF(MID(D78,5,1)="F","F","M") -> F | G78: F | H78: X | I78: I | J78: B | K78: O | L78: G | M78: C | O78: 2.38.1 | P78: 2.38.6 | Q78: 2.45.1 | R78: 2.52.3 | S78: 2.59.7 | T78: 3.00.2 | U78: 3.02.6 | W78: F | X78: X | Y78: I | Z78: B | AA78: O | AB78: G | AC78: C | AE78: =IF(LEN(G78)=0,"",VLOOKUP($B78,IF($F78="F",TeamSheetFemale,TeamSheetMale),CC78,FALSE)) -> SIAN LEWIS | AF78: Maya Stokes | AG78: Sky-Lily Kay | AH78: jasmine priantoro | AI78: TRINITY COOMBS | AJ78: Lucia Cantone | AK78: Shanais Johnson | AM78: 2 | AN78: 4 | AO78: 6 | AP78: 0 | AQ78: 5 | AR78: 8 | AS78: 3 | AT78: 7 | AU78: 3.02.6 | AV78: 2.59.7 | AW78: 2.45.1 | AX78: 0 | AY78: 2.52.3 | AZ78: 2.38.1 | BA78: 3.00.2 | BB78: 2.38.6 | BC78: 7 | BD78: 5 | BE78: 3 | BF78: 0 | BG78: 4 | BH78: 1 | BI78: 6 | BJ78: 2 | BK78: Tam | BL78: Wreake | BM78: Kett | BN78: DASH | BO78: Corby | BP78: Royal | BQ78: B&R | BR78: 0 | BS78: F | BT78: X | BU78: I | BV78: B | BW78: O | BX78: G | BY78: C | CC78: 32 | CD78: 42 | CE78: 17 | CF78: 27 | CG78: 12 | CH78: 37 | CI78: 7
A79: =B78&"B" -> 25B | D79: =VLOOKUP(B78,EventsOrder,3,FALSE) -> 800m | E79: B | G79: XX | H79: FF | I79: GG | J79: BB | K79: CC | L79: OO | O79: 2.38.5 | P79: 2.56.2 | Q79: 3.07.6 | R79: 3.08.4 | S79: 3.14.7 | T79: 3.34.7 | W79: XX | X79: FF | Y79: GG | Z79: BB | AA79: CC | AB79: OO | AE79: =IF(LEN(G79)=0,"",VLOOKUP($B78,IF($F78="F",TeamSheetFemale,TeamSheetMale),CC79,FALSE)) -> Indie King | AF79: AMY COOK | AG79: Zoe Trevis | AH79: zara gibbs | AI79: Charlotte Jones | AJ79: JAY-LEIGH McALLISTER | AM79: 4 | AN79: 3 | AO79: 0 | AP79: 0 | AQ79: 5 | AR79: 7 | AS79: 6 | AT79: 8 | AU79: 3.14.7 | AV79: 3.34.7 | AW79: 0 | AX79: 0 | AY79: 3.08.4 | AZ79: 2.56.2 | BA79: 3.07.6 | BB79: 2.38.5 | BC79: 5 | BD79: 6 | BE79: 0 | BF79: 0 | BG79: 4 | BH79: 2 | BI79: 3 | BJ79: 1 | BK79: Wreake | BL79: Tam | BM79: Royal | BN79: DASH | BO79: B&R | BP79: Corby | BQ79: 0 | BR79: 0 | BS79: X | BT79: F | BU79: G | BV79: B | BW79: C | BX79: O | CC79: 44 | CD79: 34 | CE79: 39 | CF79: 29 | CG79: 9 | CH79: 14
A80: =B80&"A" -> 26A | B80: 26 | C80: =VLOOKUP(B80,EventsOrder,2,FALSE) -> 1.25 | D80: =VLOOKUP(B80,EventsOrder,4,FALSE) -> U15 Female | E80: A | F80: =IF(MID(D80,5,1)="F","F","M") -> F | G80: U | H80: O | I80: C | J80: F | K80: B | L80: G | M80: I | O80: 2.28.6 | P80: 2.31.1 | Q80: 2.32.0 | R80: 2.34.2 | S80: 2.35.3 | T80: 2.42.9 | U80: 2.58.2 | W80: U | X80: O | Y80: C | Z80: F | AA80: B | AB80: G | AC80: I | AE80: =IF(LEN(G80)=0,"",VLOOKUP($B80,IF($F80="F",TeamSheetFemale,TeamSheetMale),CC80,FALSE)) -> Georgia Lees | AF80: SELINA SCOTT | AG80: Alice Battey | AH80: CHARLOTTE BUSH | AI80: Cloe Priest | AJ80: Mel Adkins | AK80: Harriett Jolley | AM80: 6 | AN80: 7 | AO80: 2 | AP80: 8 | AQ80: 4 | AR80: 5 | AS80: 3 | AT80: 0 | AU80: 2.32.0 | AV80: 2.31.1 | AW80: 2.58.2 | AX80: 2.28.6 | AY80: 2.35.3 | AZ80: 2.34.2 | BA80: 2.42.9 | BB80: 0 | BC80: 3 | BD80: 2 | BE80: 7 | BF80: 1 | BG80: 5 | BH80: 4 | BI80: 6 | BJ80: 0 | BK80: K&S | BL80: Corby | BM80: B&R | BN80: Tam | BO80: DASH | BP80: Royal | BQ80: Kett | BR80: 0 | BS80: U | BT80: O | BU80: C | BV80: F | BW80: B | BX80: G | BY80: I | CC80: 22 | CD80: 12 | CE80: 7 | CF80: 32 | CG80: 27 | CH80: 37 | CI80: 17
A81: =B80&"B" -> 26B | D81: =VLOOKUP(B80,EventsOrder,3,FALSE) -> 800m | E81: B | G81: XX | H81: OO | I81: FF | J81: CC | K81: BB | O81: 2.55.0 | P81: 2.43.3 | Q81: 2.46.7 | R81: 2.47.2 | S81: 2.58.9 | W81: XX | X81: OO | Y81: FF | Z81: CC | AA81: BB | AE81: =IF(LEN(G81)=0,"",VLOOKUP($B80,IF($F80="F",TeamSheetFemale,TeamSheetMale),CC81,FALSE)) -> Scarlet Paget Wright | AF81: DONNA HERON | AG81: ERIN BUSH | AH81: Ellie Sanders | AI81: abigail allardice | AM81: 5 | AN81: 7 | AO81: 0 | AP81: 0 | AQ81: 4 | AR81: 6 | AS81: 0 | AT81: 8 | AU81: 2.47.2 | AV81: 2.43.3 | AW81: 0 | AX81: 0 | AY81: 2.58.9 | AZ81: 2.46.7 | BA81: 0 | BB81: 2.55.0 | BC81: 4 | BD81: 2 | BE81: 0 | BF81: 0 | BG81: 5 | BH81: 3 | BI81: 0 | BJ81: 1 | BK81: Wreake | BL81: Corby | BM81: Tam | BN81: B&R | BO81: DASH | BP81: 0 | BQ81: 0 | BR81: 0 | BS81: X | BT81: O | BU81: F | BV81: C | BW81: B | CC81: 44 | CD81: 14 | CE81: 34 | CF81: 9 | CG81: 29
A82: =B82&"A" -> 27A | B82: 27 | C82: =VLOOKUP(B82,EventsOrder,2,FALSE) -> 1.35 | D82: =VLOOKUP(B82,EventsOrder,4,FALSE) -> U17 Men | E82: A | F82: =IF(MID(D82,5,1)="F","F","M") -> M | G82: F | H82: UU | O82: 20.3 | P82: 20.4 | W82: F | X82: UU | AE82: =IF(LEN(G82)=0,"",VLOOKUP($B82,IF($F82="F",TeamSheetFemale,TeamSheetMale),CC82,FALSE)) -> DANIEL JAMES | AF82: Christopher Lane | AM82: 0 | AN82: 0 | AO82: 0 | AP82: 7 | AQ82: 0 | AR82: 8 | AS82: 0 | AT82: 0 | AU82: 0 | AV82: 0 | AW82: 0 | AX82: 20.4 | AY82: 0 | AZ82: 20.3 | BA82: 0 | BB82: 0 | BC82: =IF(ISNA(MATCH(BC$29,$BS82:$BZ82,0)),0,MATCH(BC$29,$BS82:$BZ82,0)) -> 0 | BD82: 0 | BE82: 0 | BF82: 2 | BG82: 0 | BH82: 1 | BI82: 0 | BJ82: 0 | BK82: Tam | BL82: K&S | BM82: 0 | BN82: 0 | BO82: 0 | BP82: 0 | BQ82: 0 | BR82: 0 | BS82: F | BT82: U | CC82: 32 | CD82: 24
A83: =B82&"B" -> 27B | D83: =VLOOKUP(B82,EventsOrder,3,FALSE) -> 100m hurdles | E83: B | AE83: =IF(LEN(G83)=0,"",VLOOKUP($B82,IF($F82="F",TeamSheetFemale,TeamSheetMale),CC83,FALSE)) ->  | AM83: 0 | AN83: 0 | AO83: 0 | AP83: 0 | AQ83: 0 | AR83: 0 | AS83: 0 | AT83: 0 | AU83: 0 | AV83: 0 | AW83: 0 | AX83: 0 | AY83: 0 | AZ83: 0 | BA83: 0 | BB83: 0 | BC83: 0 | BD83: 0 | BE83: 0 | BF83: 0 | BG83: 0 | BH83: 0 | BI83: 0 | BJ83: 0 | BK83: 0 | BL83: 0 | BM83: 0 | BN83: 0 | BO83: 0 | BP83: 0 | BQ83: 0 | BR83: 0
A84: =B84&"A" -> 28A | B84: 28 | C84: =VLOOKUP(B84,EventsOrder,2,FALSE) -> 1.4 | D84: =VLOOKUP(B84,EventsOrder,4,FALSE) -> U17 F/Women | E84: A | F84: =IF(MID(D84,5,1)="F","F","M") -> F | G84: I | H84: G | I84: X | J84: C | O84: 2.27.4 | P84: 2.32.9 | Q84: 2.33.4 | R84: 3.00.5 | W84: I | X84: G | Y84: 0 | Z84: 0 | AE84: =IF(LEN(G84)=0,"",VLOOKUP($B84,IF($F84="F",TeamSheetFemale,TeamSheetMale),CC84,FALSE)) -> Hannah Winstone | AF84: Verity O'Shea | AG84: Jess Hazel U17 | AH84: SAMANTHA SMITH | AM84: 5 | AN84: 0 | AO84: 8 | AP84: 0 | AQ84: 0 | AR84: 0 | AS84: 7 | AT84: 6 | AU84: 3.00.5 | AV84: 0 | AW84: 2.27.4 | AX84: 0 | AY84: 0 | AZ84: 0 | BA84: 2.32.9 | BB84: 2.33.4 | BC84: 4 | BD84: 0 | BE84: 1 | BF84: 0 | BG84: 0 | BH84: 0 | BI84: 2 | BJ84: 3 | BK84: Kett | BL84: Royal | BM84: Wreake | BN84: B&R | BO84: 0 | BP84: 0 | BQ84: 0 | BR84: 0 | BS84: I | BT84: G | BU84: X | BV84: C | CC84: 17 | CD84: 37 | CE84: 42 | CF84: 7
A85: =B84&"B" -> 28B | D85: =VLOOKUP(B84,EventsOrder,3,FALSE) -> 800m | E85: B | G85: II | H85: GG | I85: XX | O85: 2.35.0 | P85: 2.52.9 | Q85: 2.54.5 | W85: II | X85: GG | Y85: 0 | AE85: =IF(LEN(G85)=0,"",VLOOKUP($B84,IF($F84="F",TeamSheetFemale,TeamSheetMale),CC85,FALSE)) -> Sophie Moss | AF85: Lucy Wood | AG85: Michaela Knight U17 | AM85: 0 | AN85: 0 | AO85: 8 | AP85: 0 | AQ85: 0 | AR85: 0 | AS85: 7 | AT85: 6 | AU85: 0 | AV85: 0 | AW85: 2.35.0 | AX85: 0 | AY85: 0 | AZ85: 0 | BA85: 2.52.9 | BB85: 2.54.5 | BC85: 0 | BD85: 0 | BE85: 1 | BF85: 0 | BG85: 0 | BH85: 0 | BI85: 2 | BJ85: 3 | BK85: Kett | BL85: Royal | BM85: Wreake | BN85: 0 | BO85: 0 | BP85: 0 | BQ85: 0 | BR85: 0 | BS85: I | BT85: G | BU85: X | CC85: 19 | CD85: 39 | CE85: 44
A86: =B86&"A" -> 29A | B86: 29 | C86: =VLOOKUP(B86,EventsOrder,2,FALSE) -> 1.5 | D86: =VLOOKUP(B86,EventsOrder,4,FALSE) -> U11 Female | E86: A | F86: =IF(MID(D86,5,1)="F","F","M") -> F | G86: O | H86: X | I86: G | J86: F | K86: C | L86: I | M86: U | N86: B | O86: 1.57.7 | P86: 1.59.2 | Q86: 2.03.7 | R86: 2.15.2 | S86: 2.17.3 | T86: 2.25.2 | U86: 2.26.3 | V86: 2.30.3 | W86: O | X86: X | Y86: G | Z86: F | AA86: C | AB86: I | AC86: U | AD86: B | AE86: =IF(LEN(G86)=0,"",VLOOKUP($B86,IF($F86="F",TeamSheetFemale,TeamSheetMale),CC86,FALSE)) -> MADELINE MAYES | AF86: Destiny Nicholson | AG86: Hope Stirland | AH86: TEGAN VICKERY | AI86: Maggie Parkinson | AJ86: Kate Nelis | AK86: Hannah Telling | AL86: libby davies | AM86: 4 | AN86: 8 | AO86: 3 | AP86: 2 | AQ86: 1 | AR86: 5 | AS86: 6 | AT86: 7 | AU86: 2.17.3 | AV86: 1.57.7 | AW86: 2.25.2 | AX86: 2.26.3 | AY86: 2.30.3 | AZ86: 2.15.2 | BA86: 2.03.7 | BB86: 1.59.2 | BC86: 5 | BD86: 1 | BE86: 6 | BF86: 7 | BG86: 8 | BH86: 4 | BI86: 3 | BJ86: 2 | BK86: Corby | BL86: Wreake | BM86: Royal | BN86: Tam | BO86: B&R | BP86: Kett | BQ86: K&S | BR86: DASH | BS86: O | BT86: X | BU86: G | BV86: F | BW86: C | BX86: I | BY86: U | BZ86: B | CC86: 12 | CD86: 42 | CE86: 37 | CF86: 32 | CG86: 7 | CH86: 17 | CI86: 22 | CJ86: 27
A87: =B86&"B" -> 29B | D87: =VLOOKUP(B86,EventsOrder,3,FALSE) -> 600m | E87: B | G87: XX | H87: GG | I87: OO | J87: CC | K87: BB | L87: II | O87: 2.06.2 | P87: 2.10.3 | Q87: 2.24.2 | R87: 2.25.9 | S87: 2.27.3 | T87: 2.37.3 | W87: XX | X87: GG | Y87: OO | Z87: CC | AA87: BB | AB87: II | AE87: =IF(LEN(G87)=0,"",VLOOKUP($B86,IF($F86="F",TeamSheetFemale,TeamSheetMale),CC87,FALSE)) -> Eliza Weselby | AF87: Charlotte Prince | AG87: CASEY SEYMOUR | AH87: Cristina Ricci | AI87: kiki thurley | AJ87: Maddie Moxey | AM87: 5 | AN87: 6 | AO87: 3 | AP87: 0 | AQ87: 4 | AR87: 0 | AS87: 7 | AT87: 8 | AU87: 2.25.9 | AV87: 2.24.2 | AW87: 2.37.3 | AX87: 0 | AY87: 2.27.3 | AZ87: 0 | BA87: 2.10.3 | BB87: 2.06.2 | BC87: 4 | BD87: 3 | BE87: 6 | BF87: 0 | BG87: 5 | BH87: 0 | BI87: 2 | BJ87: 1 | BK87: Wreake | BL87: Royal | BM87: Corby | BN87: B&R | BO87: DASH | BP87: Kett | BQ87: 0 | BR87: 0 | BS87: X | BT87: G | BU87: O | BV87: C | BW87: B | BX87: I | CC87: 44 | CD87: 39 | CE87: 14 | CF87: 9 | CG87: 29 | CH87: 19
A88: =B88&"A" -> 30A | B88: 30 | C88: =VLOOKUP(B88,EventsOrder,2,FALSE) -> 1.55 | D88: =VLOOKUP(B88,EventsOrder,4,FALSE) -> U11 Female | E88: A | F88: =IF(MID(D88,5,1)="F","F","M") -> F | AE88: =IF(LEN(G88)=0,"",VLOOKUP($B88,IF($F88="F",TeamSheetFemale,TeamSheetMale),CC88,FALSE)) ->  | AM88: 0 | AN88: 0 | AO88: 0 | AP88: 0 | AQ88: 0 | AR88: 0 | AS88: 0 | AT88: 0 | AU88: 0 | AV88: 0 | AW88: 0 | AX88: 0 | AY88: 0 | AZ88: 0 | BA88: 0 | BB88: 0 | BC88: 0 | BD88: 0 | BE88: 0 | BF88: 0 | BG88: 0 | BH88: 0 | BI88: 0 | BJ88: 0 | BK88: 0 | BL88: 0 | BM88: 0 | BN88: 0 | BO88: 0 | BP88: 0 | BQ88: 0 | BR88: 0
A89: =B88&"B" -> 30B | D89: =VLOOKUP(B88,EventsOrder,3,FALSE) -> 600m | E89: B | AE89: =IF(LEN(G89)=0,"",VLOOKUP($B88,IF($F88="F",TeamSheetFemale,TeamSheetMale),CC89,FALSE)) ->  | AM89: 0 | AN89: 0 | AO89: 0 | AP89: 0 | AQ89: 0 | AR89: 0 | AS89: 0 | AT89: 0 | AU89: 0 | AV89: 0 | AW89: 0 | AX89: 0 | AY89: 0 | AZ89: 0 | BA89: 0 | BB89: 0 | BC89: 0 | BD89: 0 | BE89: 0 | BF89: 0 | BG89: 0 | BH89: 0 | BI89: 0 | BJ89: 0 | BK89: 0 | BL89: 0 | BM89: 0 | BN89: 0 | BO89: 0 | BP89: 0 | BQ89: 0 | BR89: 0
A90: =B90&"A" -> 31A | B90: 31 | C90: =VLOOKUP(B90,EventsOrder,2,FALSE) -> 1.4 | D90: =VLOOKUP(B90,EventsOrder,4,FALSE) -> U13 Female | E90: A | F90: =IF(MID(D90,5,1)="F","F","M") -> F | G90: G | H90: I | I90: B | J90: F | O90: 1.27 | P90: 1.27 | Q90: 1.15 | R90: 1.05 | W90: G | X90: I | Y90: B | Z90: F | AE90: =IF(LEN(G90)=0,"",VLOOKUP($B90,IF($F90="F",TeamSheetFemale,TeamSheetMale),CC90,FALSE)) -> Elsa Buchanan | AF90: Harriet Drake-Lee | AG90: joszette taylor | AH90: AMY COOK | AM90: 0 | AN90: 0 | AO90: 7 | AP90: 0 | AQ90: 6 | AR90: 5 | AS90: 8 | AT90: 0 | AU90: 0 | AV90: 0 | AW90: 1.27 | AX90: 0 | AY90: 1.15 | AZ90: 1.05 | BA90: 1.27 | BB90: 0 | BC90: 0 | BD90: 0 | BE90: 2 | BF90: 0 | BG90: 3 | BH90: 4 | BI90: 1 | BJ90: 0 | BK90: Royal | BL90: Kett | BM90: DASH | BN90: Tam | BO90: 0 | BP90: 0 | BQ90: 0 | BR90: 0 | BS90: G | BT90: I | BU90: B | BV90: F | CC90: =IF(LEN(G90)=0,"",HLOOKUP(BS90,$CC$26:$CJ$28,2,FALSE)+IF(LEN(G90)=2,2,0)) -> 37 | CD90: 17 | CE90: 27 | CF90: 32
A91: =B90&"B" -> 31B | D91: =VLOOKUP(B90,EventsOrder,3,FALSE) -> High Jump | E91: B | AE91: =IF(LEN(G91)=0,"",VLOOKUP($B90,IF($F90="F",TeamSheetFemale,TeamSheetMale),CC91,FALSE)) ->  | AM91: 0 | AN91: 0 | AO91: 0 | AP91: 0 | AQ91: 0 | AR91: 0 | AS91: 0 | AT91: 0 | AU91: 0 | AV91: 0 | AW91: 0 | AX91: 0 | AY91: 0 | AZ91: 0 | BA91: 0 | BB91: 0 | BC91: 0 | BD91: 0 | BE91: 0 | BF91: 0 | BG91: 0 | BH91: 0 | BI91: 0 | BJ91: 0 | BK91: 0 | BL91: 0 | BM91: 0 | BN91: 0 | BO91: 0 | BP91: 0 | BQ91: 0 | BR91: 0
A92: =B92&"A" -> 32A | B92: 32 | C92: =VLOOKUP(B92,EventsOrder,2,FALSE) -> 1.3 | D92: =VLOOKUP(B92,EventsOrder,4,FALSE) -> U17 Men | E92: A | F92: =IF(MID(D92,5,1)="F","F","M") -> M | G92: B | H92: G | I92: U | J92: C | K92: O | L92: I | O92: 5.75 | P92: 5.34 | Q92: 5.09 | R92: 5 | S92: 4.88 | T92: 4.13 | W92: B | X92: G | Y92: U | Z92: C | AA92: 0 | AB92: I | AE92: =IF(LEN(G92)=0,"",VLOOKUP($B92,IF($F92="F",TeamSheetFemale,TeamSheetMale),CC92,FALSE)) -> ladi abudu | AF92: Cameron Kirkbride | AG92: Greggory Forrester | AH92: Issac Hill | AI92: JACK BENSTEAD | AJ92: Jake Trent | AM92: 5 | AN92: 4 | AO92: 3 | AP92: 6 | AQ92: 8 | AR92: 0 | AS92: 7 | AT92: 0 | AU92: 5 | AV92: 4.88 | AW92: 4.13 | AX92: 5.09 | AY92: 5.75 | AZ92: 0 | BA92: 5.34 | BB92: 0 | BC92: 4 | BD92: 5 | BE92: 6 | BF92: 3 | BG92: 1 | BH92: 0 | BI92: 2 | BJ92: 0 | BK92: DASH | BL92: Royal | BM92: K&S | BN92: B&R | BO92: Corby | BP92: Kett | BQ92: 0 | BR92: 0 | BS92: B | BT92: G | BU92: U | BV92: C | BW92: O | BX92: I | CC92: =IF(LEN(G92)=0,"",HLOOKUP(BS92,$CC$26:$CJ$28,2,FALSE)+IF(LEN(G92)=2,2,0)) -> 27 | CD92: =IF(LEN(H92)=0,"",HLOOKUP(BT92,$CC$26:$CJ$28,2,FALSE)+IF(LEN(H92)=2,2,0)) -> 37 | CE92: =IF(LEN(I92)=0,"",HLOOKUP(BU92,$CC$26:$CJ$28,2,FALSE)+IF(LEN(I92)=2,2,0)) -> 22 | CF92: =IF(LEN(J92)=0,"",HLOOKUP(BV92,$CC$26:$CJ$28,2,FALSE)+IF(LEN(J92)=2,2,0)) -> 7 | CG92: =IF(LEN(K92)=0,"",HLOOKUP(BW92,$CC$26:$CJ$28,2,FALSE)+IF(LEN(K92)=2,2,0)) -> 12 | CH92: =IF(LEN(L92)=0,"",HLOOKUP(BX92,$CC$26:$CJ$28,2,FALSE)+IF(LEN(L92)=2,2,0)) -> 17 | CI92: =IF(LEN(M92)=0,"",HLOOKUP(BY92,$CC$26:$CJ$28,2,FALSE)+IF(LEN(M92)=2,2,0)) ->  | CJ92: =IF(LEN(N92)=0,"",HLOOKUP(BZ92,$CC$26:$CJ$28,2,FALSE)+IF(LEN(N92)=2,2,0)) -> 
A93: =B92&"B" -> 32B | D93: =VLOOKUP(B92,EventsOrder,3,FALSE) -> Long Jump | E93: B | G93: UU | H93: II | I93: CC | J93: XX | K93: BB | O93: 5.02 | P93: 4.81 | Q93: 4.58 | R93: 4.16 | S93: 4.1 | W93: UU | X93: II | Y93: CC | Z93: XX | AA93: BB | AE93: =IF(LEN(G93)=0,"",VLOOKUP($B92,IF($F92="F",TeamSheetFemale,TeamSheetMale),CC93,FALSE)) -> Christopher Lane | AF93: Sam Bott | AG93: Rory Dodson | AH93: George Alvey | AI93: javana priantoro | AM93: 6 | AN93: 0 | AO93: 7 | AP93: 8 | AQ93: 4 | AR93: 0 | AS93: 0 | AT93: 5 | AU93: 4.58 | AV93: 0 | AW93: 4.81 | AX93: 5.02 | AY93: 4.1 | AZ93: 0 | BA93: 0 | BB93: 4.16 | BC93: 3 | BD93: 0 | BE93: 2 | BF93: 1 | BG93: 5 | BH93: 0 | BI93: 0 | BJ93: 4 | BK93: K&S | BL93: Kett | BM93: B&R | BN93: Wreake | BO93: DASH | BP93: 0 | BQ93: 0 | BR93: 0 | BS93: U | BT93: I | BU93: C | BV93: X | BW93: B | CC93: =IF(LEN(G93)=0,"",HLOOKUP(BS93,$CC$26:$CJ$28,2,FALSE)+IF(LEN(G93)=2,2,0)) -> 24 | CD93: 19 | CE93: 9 | CF93: 44 | CG93: 29
A94: =B94&"A" -> 33A | B94: 33 | C94: =VLOOKUP(B94,EventsOrder,2,FALSE) -> 2 | D94: =VLOOKUP(B94,EventsOrder,4,FALSE) -> U11 Male | E94: C | F94: =IF(MID(D94,5,1)="F","F","M") -> M | G94: C | H94: F | I94: G | J94: B | K94: I | L94: U | M94: X | O94: 1.59.9 | P94: 2.00.4 | Q94: 2.02.5 | R94: 2.05.0 | S94: 2.11.5 | T94: 2.13.7 | U94: 2.22.5 | W94: c | X94: F | Y94: G | Z94: B | AA94: I | AB94: U | AC94: X | AE94: =IF(LEN(G94)=0,"",VLOOKUP($B94,IF($F94="F",TeamSheetFemale,TeamSheetMale),CC94,FALSE)) -> Sebastian Purvis | AF94: JAMES STRETTON | AG94: Daniel Pitt | AH94: john sparry | AI94: Jamie Lake | AJ94: Harry Lees | AK94: Rohan Stokes | AM94: =IF(OR($F94="NS",AU94="DNF"),0,IF(BC94>0,$BK$29+1-BC94,0)) -> 8 | AN94: =IF(OR($F94="NS",AV94="DNF"),0,IF(BD94>0,$BK$29+1-BD94,0)) -> 0 | AO94: =IF(OR($F94="NS",AW94="DNF"),0,IF(BE94>0,$BK$29+1-BE94,0)) -> 4 | AP94: =IF(OR($F94="NS",AX94="DNF"),0,IF(BF94>0,$BK$29+1-BF94,0)) -> 3 | AQ94: =IF(OR($F94="NS",AY94="DNF"),0,IF(BG94>0,$BK$29+1-BG94,0)) -> 5 | AR94: =IF(OR($F94="NS",AZ94="DNF"),0,IF(BH94>0,$BK$29+1-BH94,0)) -> 7 | AS94: =IF(OR($F94="NS",BA94="DNF"),0,IF(BI94>0,$BK$29+1-BI94,0)) -> 6 | AT94: =IF(OR($F94="NS",BB94="DNF"),0,IF(BJ94>0,$BK$29+1-BJ94,0)) -> 2 | AU94: 1.59.9 | AV94: 0 | AW94: 2.11.5 | AX94: 2.13.7 | AY94: 2.05.0 | AZ94: 2.00.4 | BA94: 2.02.5 | BB94: 2.22.5 | BC94: 1 | BD94: 0 | BE94: 5 | BF94: 6 | BG94: 4 | BH94: 2 | BI94: 3 | BJ94: 7 | BK94: B&R | BL94: Tam | BM94: Royal | BN94: DASH | BO94: Kett | BP94: K&S | BQ94: Wreake | BR94: 0 | BS94: C | BT94: F | BU94: G | BV94: B | BW94: I | BX94: U | BY94: X | CC94: =IF(LEN(G94)=0,"",HLOOKUP(BS94,$CC$26:$CJ$28,2,FALSE)+IF(LEN(G94)=2,2,0)) -> 7 | CD94: =IF(LEN(H94)=0,"",HLOOKUP(BT94,$CC$26:$CJ$28,2,FALSE)+IF(LEN(H94)=2,2,0)) -> 32 | CE94: 37 | CF94: 27 | CG94: 17 | CH94: 22 | CI94: 42
A95: =B94&"B" -> 33B | D95: =VLOOKUP(B94,EventsOrder,3,FALSE) -> 600m | E95: D | G95: II | H95: FF | I95: GG | J95: BB | K95: CC | O95: 2.04.2 | P95: 2.06.4 | Q95: 2.11.9 | R95: 2.24.9 | S95: DNF | W95: II | X95: FF | Y95: GG | Z95: BB | AA95: cc | AE95: =IF(LEN(G95)=0,"",VLOOKUP($B94,IF($F94="F",TeamSheetFemale,TeamSheetMale),CC95,FALSE)) -> Alfie Frayne | AF95: KAI BUCKLEY | AG95: Jacob Stoney | AH95: jaime crooke | AI95: Luke Darlington | AM95: 0 | AN95: 0 | AO95: 8 | AP95: 0 | AQ95: 5 | AR95: 7 | AS95: 6 | AT95: 0 | AU95: DNF | AV95: 0 | AW95: 2.04.2 | AX95: 0 | AY95: 2.24.9 | AZ95: 2.06.4 | BA95: 2.11.9 | BB95: 0 | BC95: 5 | BD95: 0 | BE95: 1 | BF95: 0 | BG95: 4 | BH95: 2 | BI95: 3 | BJ95: 0 | BK95: Kett | BL95: Tam | BM95: Royal | BN95: DASH | BO95: B&R | BP95: 0 | BQ95: 0 | BR95: 0 | BS95: I | BT95: F | BU95: G | BV95: B | BW95: C | CC95: =IF(LEN(G95)=0,"",HLOOKUP(BS95,$CC$26:$CJ$28,2,FALSE)+IF(LEN(G95)=2,2,0)) -> 19 | CD95: 34 | CE95: 39 | CF95: 29 | CG95: 9
A96: =B96&"A" -> 34A | B96: 34 | C96: =VLOOKUP(B96,EventsOrder,2,FALSE) -> 2.05 | D96: =VLOOKUP(B96,EventsOrder,4,FALSE) -> U11 Male | E96: A | F96: =IF(MID(D96,5,1)="F","F","M") -> M | AE96: =IF(LEN(G96)=0,"",VLOOKUP($B96,IF($F96="F",TeamSheetFemale,TeamSheetMale),CC96,FALSE)) ->  | AM96: 0 | AN96: 0 | AO96: 0 | AP96: 0 | AQ96: 0 | AR96: 0 | AS96: 0 | AT96: 0 | AU96: 0 | AV96: 0 | AW96: 0 | AX96: 0 | AY96: 0 | AZ96: 0 | BA96: 0 | BB96: 0 | BC96: 0 | BD96: 0 | BE96: 0 | BF96: 0 | BG96: 0 | BH96: 0 | BI96: 0 | BJ96: 0 | BK96: 0 | BL96: 0 | BM96: 0 | BN96: 0 | BO96: 0 | BP96: 0 | BQ96: 0 | BR96: 0 | CC96: =IF(LEN(G96)=0,"",HLOOKUP(BS96,$CC$26:$CJ$28,2,FALSE)+IF(LEN(G96)=2,2,0)) -> 
A97: =B96&"B" -> 34B | D97: =VLOOKUP(B96,EventsOrder,3,FALSE) -> 600m | E97: B | AE97: =IF(LEN(G97)=0,"",VLOOKUP($B96,IF($F96="F",TeamSheetFemale,TeamSheetMale),CC97,FALSE)) ->  | AM97: 0 | AN97: 0 | AO97: 0 | AP97: 0 | AQ97: 0 | AR97: 0 | AS97: 0 | AT97: 0 | AU97: 0 | AV97: 0 | AW97: 0 | AX97: 0 | AY97: 0 | AZ97: 0 | BA97: 0 | BB97: 0 | BC97: 0 | BD97: 0 | BE97: 0 | BF97: 0 | BG97: 0 | BH97: 0 | BI97: 0 | BJ97: 0 | BK97: 0 | BL97: 0 | BM97: 0 | BN97: 0 | BO97: 0 | BP97: 0 | BQ97: 0 | BR97: 0
A98: =B98&"A" -> 35A | B98: 35 | C98: =VLOOKUP(B98,EventsOrder,2,FALSE) -> 2.1 | D98: =VLOOKUP(B98,EventsOrder,4,FALSE) -> U13 Female | E98: A | F98: =IF(MID(D98,5,1)="F","F","M") -> F | G98: O | H98: B | I98: I | J98: C | K98: X | L98: F | M98: G | N98: U | O98: 14.5 | P98: 14.8 | Q98: 15 | R98: 15.02 | S98: 15.8 | T98: 16 | U98: 16.2 | V98: 16.5 | W98: O | X98: B | Y98: I | Z98: C | AA98: X | AB98: F | AC98: G | AD98: U | AE98: =IF(LEN(G98)=0,"",VLOOKUP($B98,IF($F98="F",TeamSheetFemale,TeamSheetMale),CC98,FALSE)) -> SOPHIE FRY | AF98: niamh darby | AG98: Ellen Smith | AH98: Henna Khaliq | AI98: Poppy Tott - Buswell | AJ98: NIAMH KILGALLEN | AK98: Evelyne Maidment | AL98: Libby Hawkswell | AM98: 5 | AN98: 8 | AO98: 6 | AP98: 1 | AQ98: 7 | AR98: 3 | AS98: 2 | AT98: 4 | AU98: 15.02 | AV98: 14.5 | AW98: 15 | AX98: 16.5 | AY98: 14.8 | AZ98: 16 | BA98: 16.2 | BB98: 15.8 | BC98: =IF(ISNA(MATCH(BC$29,$BS98:$BZ98,0)),0,MATCH(BC$29,$BS98:$BZ98,0)) -> 4 | BD98: 1 | BE98: 3 | BF98: 8 | BG98: 2 | BH98: 6 | BI98: 7 | BJ98: 5 | BK98: Corby | BL98: DASH | BM98: Kett | BN98: B&R | BO98: Wreake | BP98: Tam | BQ98: Royal | BR98: K&S | BS98: O | BT98: B | BU98: I | BV98: C | BW98: X | BX98: F | BY98: G | BZ98: U | CC98: 12 | CD98: 27 | CE98: 17 | CF98: 7 | CG98: 42 | CH98: 32 | CI98: 37 | CJ98: 22
A99: =B98&"B" -> 35B | D99: =VLOOKUP(B98,EventsOrder,3,FALSE) -> 100m | E99: B | G99: FF | H99: UU | I99: CC | J99: OO | K99: BB | L99: XX | M99: GG | N99: II | O99: 15.1 | P99: 15.1 | Q99: 15.6 | R99: 15.6 | S99: 15.7 | T99: 15.8 | U99: 16.1 | V99: 16.6 | W99: FF | X99: UU | Y99: CC | Z99: OO | AA99: BB | AB99: XX | AC99: GG | AD99: II | AE99: =IF(LEN(G99)=0,"",VLOOKUP($B98,IF($F98="F",TeamSheetFemale,TeamSheetMale),CC99,FALSE)) -> SIAN LEWIS | AF99: IZZY MULLET | AG99: Megan Friend | AH99: MATILDA SOMMERVILLE COTTON | AI99: joszette taylor | AJ99: Indie King | AK99: Zoe Trevis | AL99: Matilda Braithwaite | AM99: 6 | AN99: 5 | AO99: 1 | AP99: 7 | AQ99: 4 | AR99: 8 | AS99: 2 | AT99: 3 | AU99: =OFFSET($N99,0,BC99) -> 15.6 | AV99: =OFFSET($N99,0,BD99) -> 15.6 | AW99: =OFFSET($N99,0,BE99) -> 16.6 | AX99: =OFFSET($N99,0,BF99) -> 15.1 | AY99: 15.7 | AZ99: 15.1 | BA99: 16.1 | BB99: 15.8 | BC99: 3 | BD99: 4 | BE99: 8 | BF99: 2 | BG99: 5 | BH99: 1 | BI99: 7 | BJ99: 6 | BK99: Tam | BL99: K&S | BM99: B&R | BN99: Corby | BO99: DASH | BP99: Wreake | BQ99: Royal | BR99: Kett | BS99: F | BT99: U | BU99: C | BV99: O | BW99: B | BX99: X | BY99: G | BZ99: I | CC99: 34 | CD99: 24 | CE99: 9 | CF99: 14 | CG99: 29 | CH99: 44 | CI99: 39 | CJ99: 19
A100: =B100&"A" -> 36A | B100: 36 | C100: =VLOOKUP(B100,EventsOrder,2,FALSE) -> 2.15 | D100: =VLOOKUP(B100,EventsOrder,4,FALSE) -> U15 Female | E100: C | F100: =IF(MID(D100,5,1)="F","F","M") -> F | G100: f | H100: U | I100: X | J100: I | K100: B | L100: O | M100: C | N100: G | O100: 13.5 | P100: 14 | Q100: 14.2 | R100: 14.3 | S100: 14.6 | T100: 14.9 | U100: 15.3 | V100: 15.7 | W100: F | X100: U | Y100: X | Z100: I | AA100: B | AB100: O | AC100: C | AD100: G | AE100: =IF(LEN(G100)=0,"",VLOOKUP($B100,IF($F100="F",TeamSheetFemale,TeamSheetMale),CC100,FALSE)) -> LUCY WHEELER | AF100: Monica Aresu | AG100: Megan Luxford | AH100: Alex Beale | AI100: lauren millward | AJ100: ALICE MERRIMAN | AK100: Eva James | AL100: Elley Criddle | AM100: 2 | AN100: 3 | AO100: 5 | AP100: 7 | AQ100: 4 | AR100: 8 | AS100: 1 | AT100: 6 | AU100: 15.3 | AV100: 14.9 | AW100: 14.3 | AX100: 14 | AY100: 14.6 | AZ100: 13.5 | BA100: 15.7 | BB100: 14.2 | BC100: 7 | BD100: 6 | BE100: 4 | BF100: 2 | BG100: 5 | BH100: 1 | BI100: 8 | BJ100: 3 | BK100: Tam | BL100: K&S | BM100: Wreake | BN100: Kett | BO100: DASH | BP100: Corby | BQ100: B&R | BR100: Royal | BS100: f | BT100: U | BU100: X | BV100: I | BW100: B | BX100: O | BY100: C | BZ100: G | CC100: 32 | CD100: 22 | CE100: 42 | CF100: 17 | CG100: 27 | CH100: 12 | CI100: 7 | CJ100: 37
A101: =B100&"B" -> 36B | D101: =VLOOKUP(B100,EventsOrder,3,FALSE) -> 100m | E101: D | G101: BB | H101: XX | I101: FF | J101: II | K101: UU | L101: OO | M101: CC | N101: GG | O101: 14.3 | P101: 14.4 | Q101: 14.5 | R101: 14.7 | S101: 15 | T101: 15.4 | U101: 15.6 | V101: 17.2 | W101: BB | X101: XX | Y101: FF | Z101: II | AA101: UU | AB101: OO | AC101: CC | AD101: GG | AE101: =IF(LEN(G101)=0,"",VLOOKUP($B100,IF($F100="F",TeamSheetFemale,TeamSheetMale),CC101,FALSE)) -> kate bishop | AF101: Josie Orange | AG101: RACHEL WEST | AH101: Rhianna Paris-Smith | AI101: Yasmin Berrow | AJ101: GEORGIA MILLS | AK101: Esme Lloyd Pugh | AL101: Beth Darrock | AM101: 2 | AN101: 3 | AO101: 5 | AP101: 4 | AQ101: 8 | AR101: 6 | AS101: 1 | AT101: 7 | AU101: 15.6 | AV101: 15.4 | AW101: 14.7 | AX101: 15 | AY101: 14.3 | AZ101: 14.5 | BA101: 17.2 | BB101: 14.4 | BC101: 7 | BD101: 6 | BE101: 4 | BF101: 5 | BG101: 1 | BH101: 3 | BI101: 8 | BJ101: 2 | BK101: DASH | BL101: Wreake | BM101: Tam | BN101: Kett | BO101: K&S | BP101: Corby | BQ101: B&R | BR101: Royal | BS101: B | BT101: X | BU101: F | BV101: I | BW101: U | BX101: O | BY101: C | BZ101: G | CC101: 29 | CD101: 44 | CE101: 34 | CF101: 19 | CG101: 24 | CH101: 14 | CI101: 9 | CJ101: 39
A102: =B102&"A" -> 37A | B102: 37 | C102: =VLOOKUP(B102,EventsOrder,2,FALSE) -> 1.5 | D102: =VLOOKUP(B102,EventsOrder,4,FALSE) -> U17 F/Women | E102: A | F102: =IF(MID(D102,5,1)="F","F","M") -> F | G102: G | H102: U | I102: B | J102: F | K102: CC | L102: O | M102: X | N102: II | O102: 9.67 | P102: 8.92 | Q102: 7.47 | R102: 6.57 | S102: 6.32 | T102: 5.47 | U102: 4.3 | V102: 4.08 | W102: G | X102: U | Y102: B | Z102: F | AA102: CC | AB102: O | AC102: 0 | AD102: II | AE102: =IF(LEN(G102)=0,"",VLOOKUP($B102,IF($F102="F",TeamSheetFemale,TeamSheetMale),CC102,FALSE)) -> Chrissie Prince | AF102: Lynette McKeown SEN | AG102: danielle kinsell u20 | AH102: ISABELLE NEVILLE U17 | AI102: Yasmine Scoltock (VW40) | AJ102: EMMA MARTIN U17 | AK102: Rosie Weselby U17 | AL102: Sophie Moss | AM102: 4 | AN102: 3 | AO102: 1 | AP102: 7 | AQ102: 6 | AR102: 5 | AS102: 8 | AT102: 2 | AU102: 6.32 | AV102: 5.47 | AW102: 4.08 | AX102: 8.92 | AY102: 7.47 | AZ102: 6.57 | BA102: 9.67 | BB102: 4.3 | BC102: 5 | BD102: 6 | BE102: 8 | BF102: 2 | BG102: 3 | BH102: 4 | BI102: 1 | BJ102: 7 | BK102: Royal | BL102: K&S | BM102: DASH | BN102: Tam | BO102: B&R | BP102: Corby | BQ102: Wreake | BR102: Kett | BS102: G | BT102: U | BU102: B | BV102: F | BW102: C | BX102: O | BY102: X | BZ102: I | CC102: 37 | CD102: 22 | CE102: 27 | CF102: 32 | CG102: 9 | CH102: 12 | CI102: 42 | CJ102: 19
A103: =B102&"B" -> 37B | D103: =VLOOKUP(B102,EventsOrder,3,FALSE) -> Shot | E103: B | G103: GG | H103: BB | I103: UU | J103: I | O103: 6.92 | P103: 6.5 | Q103: 6.24 | R103: 3.7 | W103: GG | X103: BB | Y103: UU | Z103: I | AE103: =IF(LEN(G103)=0,"",VLOOKUP($B102,IF($F102="F",TeamSheetFemale,TeamSheetMale),CC103,FALSE)) -> Hannah Smith | AF103: racheal timothy SEN | AG103: Sarah Stuart-Smith U23 | AH103: Rebecca Hughes | AM103: 0 | AN103: 0 | AO103: 5 | AP103: 6 | AQ103: 7 | AR103: 0 | AS103: 8 | AT103: 0 | AU103: 0 | AV103: 0 | AW103: 3.7 | AX103: 6.24 | AY103: 6.5 | AZ103: 0 | BA103: 6.92 | BB103: 0 | BC103: 0 | BD103: 0 | BE103: 4 | BF103: 3 | BG103: 2 | BH103: 0 | BI103: 1 | BJ103: 0 | BK103: Royal | BL103: DASH | BM103: K&S | BN103: Kett | BO103: 0 | BP103: 0 | BQ103: 0 | BR103: 0 | BS103: G | BT103: B | BU103: U | BV103: I | CC103: 39 | CD103: 29 | CE103: 24 | CF103: 17
A104: =B104&"A" -> 38A | B104: 38 | C104: =VLOOKUP(B104,EventsOrder,2,FALSE) -> 1.5 | D104: =VLOOKUP(B104,EventsOrder,4,FALSE) -> U13 Female | E104: A | F104: =IF(MID(D104,5,1)="F","F","M") -> F | G104: G | H104: F | I104: XX | J104: BB | K104: I | L104: CC | M104: OO | O104: 15.08 | P104: 14.45 | Q104: 13.71 | R104: 12.36 | S104: 10.52 | T104: 9.4 | U104: 7.65 | W104: G | X104: F | Y104: XX | Z104: BB | AA104: I | AB104: CC | AC104: 0 | AE104: =IF(LEN(G104)=0,"",VLOOKUP($B104,IF($F104="F",TeamSheetFemale,TeamSheetMale),CC104,FALSE)) -> Thea Criddle | AF104: HANNAH EVANS | AG104: Grace Alvey | AH104: jessica grainger | AI104: Matilda Braithwaite | AJ104: Evie Smiley | AK104: 0 | AM104: 3 | AN104: 2 | AO104: 4 | AP104: 0 | AQ104: 5 | AR104: 7 | AS104: 8 | AT104: 6 | AU104: 9.4 | AV104: 7.65 | AW104: 10.52 | AX104: 0 | AY104: 12.36 | AZ104: 14.45 | BA104: 15.08 | BB104: 13.71 | BC104: 6 | BD104: 7 | BE104: 5 | BF104: 0 | BG104: 4 | BH104: 2 | BI104: 1 | BJ104: 3 | BK104: Royal | BL104: Tam | BM104: Wreake | BN104: DASH | BO104: Kett | BP104: B&R | BQ104: Corby | BR104: 0 | BS104: G | BT104: F | BU104: X | BV104: B | BW104: I | BX104: C | BY104: O | CC104: 37 | CD104: 32 | CE104: 44 | CF104: 29 | CG104: 17 | CH104: 9 | CI104: 14
A105: =B104&"B" -> 38B | D105: =VLOOKUP(B104,EventsOrder,3,FALSE) -> Discus | E105: B | G105: FF | H105: X | I105: GG | J105: C | K105: B | O105: 13.27 | P105: 13 | Q105: 10.51 | R105: 8.7 | S105: 8.46 | W105: FF | X105: X | Y105: GG | Z105: C | AA105: B | AE105: =IF(LEN(G105)=0,"",VLOOKUP($B104,IF($F104="F",TeamSheetFemale,TeamSheetMale),CC105,FALSE)) -> ABI HAMER | AF105: Maya Stokes | AG105: Fae Reid | AH105: Talitha Scoltock-Daftary | AI105: zara gibbs | AM105: 5 | AN105: 0 | AO105: 0 | AP105: 0 | AQ105: 4 | AR105: 8 | AS105: 6 | AT105: 7 | AU105: 8.7 | AV105: 0 | AW105: 0 | AX105: 0 | AY105: 8.46 | AZ105: 13.27 | BA105: 10.51 | BB105: 13 | BC105: 4 | BD105: 0 | BE105: 0 | BF105: 0 | BG105: 5 | BH105: 1 | BI105: 3 | BJ105: 2 | BK105: Tam | BL105: Wreake | BM105: Royal | BN105: B&R | BO105: DASH | BP105: 0 | BQ105: 0 | BR105: 0 | BS105: F | BT105: X | BU105: G | BV105: C | BW105: B | CC105: 34 | CD105: 42 | CE105: 39 | CF105: 7 | CG105: 27
A106: =B106&"A" -> 39A | B106: 39 | C106: =VLOOKUP(B106,EventsOrder,2,FALSE) -> 1.5 | D106: =VLOOKUP(B106,EventsOrder,4,FALSE) -> U15 Male | E106: A | F106: =IF(MID(D106,5,1)="F","F","M") -> M | AE106: =IF(LEN(G106)=0,"",VLOOKUP($B106,IF($F106="F",TeamSheetFemale,TeamSheetMale),CC106,FALSE)) ->  | AM106: 0 | AN106: 0 | AO106: 0 | AP106: 0 | AQ106: 0 | AR106: 0 | AS106: 0 | AT106: 0 | AU106: 0 | AV106: 0 | AW106: 0 | AX106: 0 | AY106: 0 | AZ106: 0 | BA106: 0 | BB106: 0 | BC106: 0 | BD106: 0 | BE106: 0 | BF106: 0 | BG106: 0 | BH106: 0 | BI106: 0 | BJ106: 0 | BK106: 0 | BL106: 0 | BM106: 0 | BN106: 0 | BO106: 0 | BP106: 0 | BQ106: 0 | BR106: 0
A107: =B106&"B" -> 39B | D107: =VLOOKUP(B106,EventsOrder,3,FALSE) -> Javelin | E107: B | AE107: =IF(LEN(G107)=0,"",VLOOKUP($B106,IF($F106="F",TeamSheetFemale,TeamSheetMale),CC107,FALSE)) ->  | AM107: 0 | AN107: 0 | AO107: 0 | AP107: 0 | AQ107: 0 | AR107: 0 | AS107: 0 | AT107: 0 | AU107: 0 | AV107: 0 | AW107: 0 | AX107: 0 | AY107: 0 | AZ107: 0 | BA107: 0 | BB107: 0 | BC107: 0 | BD107: 0 | BE107: 0 | BF107: 0 | BG107: 0 | BH107: 0 | BI107: 0 | BJ107: 0 | BK107: 0 | BL107: 0 | BM107: 0 | BN107: 0 | BO107: 0 | BP107: 0 | BQ107: 0 | BR107: 0
A108: =B108&"A" -> 40A | B108: 40 | C108: =VLOOKUP(B108,EventsOrder,2,FALSE) -> 2.2 | D108: =VLOOKUP(B108,EventsOrder,4,FALSE) -> U17 F/Women | E108: A | F108: =IF(MID(D108,5,1)="F","F","M") -> F | G108: F | H108: B | I108: I | J108: G | K108: O | L108: C | M108: X | O108: 13.7 | P108: 13.9 | Q108: 14.2 | R108: 14.3 | S108: 14.9 | T108: 15 | U108: 16.7 | W108: F | X108: B | Y108: I | Z108: G | AA108: O | AB108: C | AC108: 0 | AE108: =IF(LEN(G108)=0,"",VLOOKUP($B108,IF($F108="F",TeamSheetFemale,TeamSheetMale),CC108,FALSE)) -> ALICE MELLOR U17 | AF108: racheal timothy sen | AG108: Meghan Mills-Amissah | AH108: Rachel Iliffe | AI108: TEMAYA MAYO U17 | AJ108: Victoria Bartlett U17 | AK108: Holly Carter U17 | AM108: 3 | AN108: 4 | AO108: 6 | AP108: 0 | AQ108: 7 | AR108: 8 | AS108: 5 | AT108: 2 | AU108: 15 | AV108: 14.9 | AW108: 14.2 | AX108: 0 | AY108: 13.9 | AZ108: 13.7 | BA108: 14.3 | BB108: 16.7 | BC108: 6 | BD108: 5 | BE108: 3 | BF108: 0 | BG108: 2 | BH108: 1 | BI108: 4 | BJ108: 7 | BK108: Tam | BL108: DASH | BM108: Kett | BN108: Royal | BO108: Corby | BP108: B&R | BQ108: Wreake | BR108: 0 | BS108: F | BT108: B | BU108: I | BV108: G | BW108: O | BX108: C | BY108: X | CC108: 32 | CD108: 27 | CE108: 17 | CF108: 37 | CG108: 12 | CH108: 7 | CI108: 42
A109: =B108&"B" -> 40B | D109: =VLOOKUP(B108,EventsOrder,3,FALSE) -> 100m | E109: B | G109: GG | H109: II | I109: CC | J109: BB | O109: 14 | P109: 14.8 | Q109: 15.1 | R109: 15.2 | W109: GG | X109: II | Y109: CC | Z109: BB | AE109: =IF(LEN(G109)=0,"",VLOOKUP($B108,IF($F108="F",TeamSheetFemale,TeamSheetMale),CC109,FALSE)) -> Jenny Hopkinson | AF109: Laura Lowery | AG109: Harriet Moseley U17 | AH109: annabel mullinder | AM109: 6 | AN109: 0 | AO109: 7 | AP109: 0 | AQ109: 5 | AR109: 0 | AS109: 8 | AT109: 0 | AU109: 15.1 | AV109: 0 | AW109: 14.8 | AX109: 0 | AY109: 15.2 | AZ109: 0 | BA109: 14 | BB109: 0 | BC109: 3 | BD109: 0 | BE109: 2 | BF109: 0 | BG109: 4 | BH109: 0 | BI109: 1 | BJ109: 0 | BK109: Royal | BL109: Kett | BM109: B&R | BN109: DASH | BO109: 0 | BP109: 0 | BQ109: 0 | BR109: 0 | BS109: G | BT109: I | BU109: C | BV109: B | CC109: 39 | CD109: 19 | CE109: 9 | CF109: 29
A110: =B110&"A" -> 41A | B110: 41 | C110: =VLOOKUP(B110,EventsOrder,2,FALSE) -> 2.25 | D110: =VLOOKUP(B110,EventsOrder,4,FALSE) -> U13 Male | E110: A | F110: =IF(MID(D110,5,1)="F","F","M") -> M | G110: X | H110: C | I110: F | J110: I | K110: O | L110: B | M110: G | N110: U | O110: 13.3 | P110: 14.5 | Q110: 14.7 | R110: 14.8 | S110: 15.2 | T110: 15.3 | U110: 15.4 | V110: 16.4 | W110: X | X110: c | Y110: F | Z110: I | AA110: O | AB110: B | AC110: G | AD110: U | AE110: =IF(LEN(G110)=0,"",VLOOKUP($B110,IF($F110="F",TeamSheetFemale,TeamSheetMale),CC110,FALSE)) -> Jacob Fairhurst | AF110: Matthew Griffin | AG110: JAMES SHERIFF | AH110: Cole Sinnot | AI110: LUCA MAYES | AJ110: joseph campbell | AK110: Evan Pritchard | AL110: Ryan Bennett | AM110: 7 | AN110: 4 | AO110: 5 | AP110: 1 | AQ110: 3 | AR110: 6 | AS110: 2 | AT110: 8 | AU110: 14.5 | AV110: 15.2 | AW110: 14.8 | AX110: 16.4 | AY110: 15.3 | AZ110: 14.7 | BA110: 15.4 | BB110: 13.3 | BC110: 2 | BD110: 5 | BE110: 4 | BF110: 8 | BG110: 6 | BH110: 3 | BI110: 7 | BJ110: 1 | BK110: Wreake | BL110: B&R | BM110: Tam | BN110: Kett | BO110: Corby | BP110: DASH | BQ110: Royal | BR110: K&S | BS110: X | BT110: C | BU110: F | BV110: I | BW110: O | BX110: B | BY110: G | BZ110: U | CC110: 42 | CD110: 7 | CE110: 32 | CF110: 17 | CG110: 12 | CH110: 27 | CI110: 37 | CJ110: 22
A111: =B110&"B" -> 41B | D111: =VLOOKUP(B110,EventsOrder,3,FALSE) -> 100m | E111: B | G111: XX | H111: II | I111: CC | J111: BB | K111: GG | O111: 14.8 | P111: 14.8 | Q111: 16.1 | R111: 16.5 | S111: 17.7 | W111: XX | X111: II | Y111: cc | Z111: BB | AA111: GG | AE111: =IF(LEN(G111)=0,"",VLOOKUP($B110,IF($F110="F",TeamSheetFemale,TeamSheetMale),CC111,FALSE)) -> David Saidu | AF111: Max Mowforth | AG111: Jake Swann | AH111: zak thurley | AI111: Daniel Mills | AM111: 6 | AN111: 0 | AO111: 7 | AP111: 0 | AQ111: 5 | AR111: 0 | AS111: 4 | AT111: 8 | AU111: 16.1 | AV111: 0 | AW111: 14.8 | AX111: 0 | AY111: 16.5 | AZ111: 0 | BA111: 17.7 | BB111: 14.8 | BC111: 3 | BD111: 0 | BE111: 2 | BF111: 0 | BG111: 4 | BH111: 0 | BI111: 5 | BJ111: 1 | BK111: Wreake | BL111: Kett | BM111: B&R | BN111: DASH | BO111: Royal | BP111: 0 | BQ111: 0 | BR111: 0 | BS111: X | BT111: I | BU111: C | BV111: B | BW111: G | CC111: 44 | CD111: 19 | CE111: 9 | CF111: 29 | CG111: 39
A112: =B112&"A" -> 42A | B112: 42 | C112: =VLOOKUP(B112,EventsOrder,2,FALSE) -> 2.3 | D112: =VLOOKUP(B112,EventsOrder,4,FALSE) -> U15 Male | E112: A | F112: =IF(MID(D112,5,1)="F","F","M") -> M | G112: F | H112: B | I112: C | J112: G | K112: X | L112: I | M112: O | O112: 12.9 | P112: 13.6 | Q112: 13.7 | R112: 14.2 | S112: 15 | T112: 15.1 | U112: 15.1 | W112: F | X112: B | Y112: C | Z112: G | AA112: X | AB112: I | AC112: O | AE112: =IF(LEN(G112)=0,"",VLOOKUP($B112,IF($F112="F",TeamSheetFemale,TeamSheetMale),CC112,FALSE)) -> CONNOR HEPPLE | AF112: josh galloway | AG112: Jordan Hinds | AH112: Aiden Bishop | AI112: Josh Rocks | AJ112: Joshua Gray | AK112: SAM HAINES | AM112: 6 | AN112: 2 | AO112: 3 | AP112: 0 | AQ112: 7 | AR112: 8 | AS112: 5 | AT112: 4 | AU112: 13.7 | AV112: 15.1 | AW112: 15.1 | AX112: 0 | AY112: 13.6 | AZ112: 12.9 | BA112: 14.2 | BB112: 15 | BC112: 3 | BD112: 7 | BE112: 6 | BF112: 0 | BG112: 2 | BH112: 1 | BI112: 4 | BJ112: 5 | BK112: Tam | BL112: DASH | BM112: B&R | BN112: Royal | BO112: Wreake | BP112: Kett | BQ112: Corby | BR112: 0 | BS112: F | BT112: B | BU112: C | BV112: G | BW112: X | BX112: I | BY112: O | CC112: 32 | CD112: 27 | CE112: 7 | CF112: 37 | CG112: 42 | CH112: 17 | CI112: 12
A113: =B112&"B" -> 42B | D113: =VLOOKUP(B112,EventsOrder,3,FALSE) -> 100m | E113: B | G113: FF | H113: GG | I113: CC | J113: oo | O113: 12.9 | P113: 13.1 | Q113: 15 | R113: 15.3 | W113: FF | X113: GG | Y113: CC | Z113: OO | AE113: =IF(LEN(G113)=0,"",VLOOKUP($B112,IF($F112="F",TeamSheetFemale,TeamSheetMale),CC113,FALSE)) -> DAN CARTWRIGHT | AF113: Sam Grimshaw | AG113: Will Thorley | AH113: FINLAY WILSON | AM113: 6 | AN113: 5 | AO113: 0 | AP113: 0 | AQ113: 0 | AR113: 8 | AS113: 7 | AT113: 0 | AU113: 15 | AV113: 15.3 | AW113: 0 | AX113: 0 | AY113: 0 | AZ113: 12.9 | BA113: 13.1 | BB113: 0 | BC113: 3 | BD113: 4 | BE113: 0 | BF113: 0 | BG113: 0 | BH113: 1 | BI113: 2 | BJ113: 0 | BK113: Tam | BL113: Royal | BM113: B&R | BN113: Corby | BO113: 0 | BP113: 0 | BQ113: 0 | BR113: 0 | BS113: F | BT113: G | BU113: C | BV113: o | CC113: 34 | CD113: 39 | CE113: 9 | CF113: 14
A114: =B114&"A" -> 43A | B114: 43 | C114: =VLOOKUP(B114,EventsOrder,2,FALSE) -> 2.35 | D114: =VLOOKUP(B114,EventsOrder,4,FALSE) -> U17 Men | E114: A | F114: =IF(MID(D114,5,1)="F","F","M") -> M | G114: b | H114: C | I114: O | J114: U | K114: G | L114: I | M114: F | O114: 12.2 | P114: 12.3 | Q114: 12.5 | R114: 12.6 | S114: 12.8 | T114: 13 | U114: 14.3 | W114: B | X114: C | Y114: O | Z114: U | AA114: G | AB114: I | AC114: F | AE114: =IF(LEN(G114)=0,"",VLOOKUP($B114,IF($F114="F",TeamSheetFemale,TeamSheetMale),CC114,FALSE)) -> ladi abudu | AF114: Andrew Johnson | AG114: HARRY MERRIMAN | AH114: Justin Lee | AI114: Ethan Brough | AJ114: Sam Bott | AK114: DANIEL JAMES | AM114: 7 | AN114: 6 | AO114: 3 | AP114: 5 | AQ114: 8 | AR114: 2 | AS114: 4 | AT114: 0 | AU114: 12.3 | AV114: 12.5 | AW114: 13 | AX114: 12.6 | AY114: 12.2 | AZ114: 14.3 | BA114: 12.8 | BB114: 0 | BC114: =IF(ISNA(MATCH(BC$29,$BS114:$BZ114,0)),0,MATCH(BC$29,$BS114:$BZ114,0)) -> 2 | BD114: 3 | BE114: 6 | BF114: 4 | BG114: 1 | BH114: 7 | BI114: 5 | BJ114: 0 | BK114: DASH | BL114: B&R | BM114: Corby | BN114: K&S | BO114: Royal | BP114: Kett | BQ114: Tam | BR114: 0 | BS114: b | BT114: C | BU114: O | BV114: U | BW114: G | BX114: I | BY114: F | CC114: 27 | CD114: 7 | CE114: 12 | CF114: 22 | CG114: 37 | CH114: 17 | CI114: 32
A115: =B114&"B" -> 43B | D115: =VLOOKUP(B114,EventsOrder,3,FALSE) -> 100m | E115: B | G115: UU | H115: BB | I115: CC | J115: GG | K115: OO | O115: 12.8 | P115: 13.3 | Q115: 13.6 | R115: 13.6 | S115: 14.2 | W115: UU | X115: BB | Y115: CC | Z115: GG | AA115: oo | AE115: =IF(LEN(G115)=0,"",VLOOKUP($B114,IF($F114="F",TeamSheetFemale,TeamSheetMale),CC115,FALSE)) -> Greggory Forrester | AF115: nathaniel green | AG115: Louca Ellinis | AH115: Harry Barnes | AI115: robert strang | AM115: 6 | AN115: 4 | AO115: 0 | AP115: 8 | AQ115: 7 | AR115: 0 | AS115: 5 | AT115: 0 | AU115: 13.6 | AV115: 14.2 | AW115: 0 | AX115: 12.8 | AY115: 13.3 | AZ115: 0 | BA115: 13.6 | BB115: 0 | BC115: 3 | BD115: 5 | BE115: 0 | BF115: 1 | BG115: 2 | BH115: 0 | BI115: 4 | BJ115: 0 | BK115: K&S | BL115: DASH | BM115: B&R | BN115: Royal | BO115: Corby | BP115: 0 | BQ115: 0 | BR115: 0 | BS115: U | BT115: B | BU115: C | BV115: G | BW115: O | CC115: 24 | CD115: 29 | CE115: 9 | CF115: 39 | CG115: 14
A116: =B116&"A" -> 44A | B116: 44 | C116: =VLOOKUP(B116,EventsOrder,2,FALSE) -> 2.1 | D116: =VLOOKUP(B116,EventsOrder,4,FALSE) -> U11 Male | E116: A | F116: =IF(MID(D116,5,1)="F","F","M") -> M | G116: F | H116: U | I116: C | J116: G | K116: I | L116: B | M116: X | O116: 3.76 | P116: 3.28 | Q116: 3.14 | R116: 2.97 | S116: 2.87 | T116: 2.67 | U116: 2.44 | W116: F | X116: U | Y116: C | Z116: G | AA116: I | AB116: B | AC116: X | AE116: =IF(LEN(G116)=0,"",VLOOKUP($B116,IF($F116="F",TeamSheetFemale,TeamSheetMale),CC116,FALSE)) -> JAMES STRETTON | AF116: Harry Lees | AG116: Sebastian Purvis | AH116: Harry Darrock | AI116: Ben Brooker | AJ116: alex johnson | AK116: Rohan Stokes | AM116: 6 | AN116: 0 | AO116: 4 | AP116: 7 | AQ116: 3 | AR116: 8 | AS116: 5 | AT116: 2 | AU116: 3.14 | AV116: 0 | AW116: 2.87 | AX116: 3.28 | AY116: 2.67 | AZ116: 3.76 | BA116: 2.97 | BB116: 2.44 | BC116: 3 | BD116: 0 | BE116: 5 | BF116: 2 | BG116: 6 | BH116: 1 | BI116: 4 | BJ116: 7 | BK116: Tam | BL116: K&S | BM116: B&R | BN116: Royal | BO116: Kett | BP116: DASH | BQ116: Wreake | BR116: 0 | BS116: F | BT116: U | BU116: C | BV116: G | BW116: I | BX116: B | BY116: X | CC116: 32 | CD116: 22 | CE116: 7 | CF116: 37 | CG116: 17 | CH116: 27 | CI116: 42
A117: =B116&"B" -> 44B | D117: =VLOOKUP(B116,EventsOrder,3,FALSE) -> Long Jump | E117: B | G117: GG | H117: FF | I117: II | J117: OO | O117: 3.11 | P117: 2.61 | Q117: 2.5 | R117: 2.5 | W117: GG | X117: FF | Y117: II | Z117: OO | AE117: =IF(LEN(G117)=0,"",VLOOKUP($B116,IF($F116="F",TeamSheetFemale,TeamSheetMale),CC117,FALSE)) -> Daniel Pitt | AF117: CAYDON FAIRBURN | AG117: Alfie Frayne | AH117: JAKE WILSON | AM117: 0 | AN117: 5 | AO117: 6 | AP117: 0 | AQ117: 0 | AR117: 7 | AS117: 8 | AT117: 0 | AU117: 0 | AV117: 2.5 | AW117: 2.5 | AX117: 0 | AY117: 0 | AZ117: 2.61 | BA117: 3.11 | BB117: 0 | BC117: 0 | BD117: 4 | BE117: 3 | BF117: 0 | BG117: 0 | BH117: 2 | BI117: 1 | BJ117: 0 | BK117: Royal | BL117: Tam | BM117: Kett | BN117: Corby | BO117: 0 | BP117: 0 | BQ117: 0 | BR117: 0 | BS117: G | BT117: F | BU117: I | BV117: O | CC117: 39 | CD117: 34 | CE117: 19 | CF117: 14
A118: =B118&"A" -> 45A | B118: 45 | C118: =VLOOKUP(B118,EventsOrder,2,FALSE) -> 2.25 | D118: =VLOOKUP(B118,EventsOrder,4,FALSE) -> U15 Male | E118: A | F118: =IF(MID(D118,5,1)="F","F","M") -> M | G118: B | H118: O | I118: F | J118: G | O118: 1.53 | P118: 1.5 | Q118: 1.4 | R118: 1.25 | W118: B | X118: O | Y118: F | Z118: G | AE118: =IF(LEN(G118)=0,"",VLOOKUP($B118,IF($F118="F",TeamSheetFemale,TeamSheetMale),CC118,FALSE)) -> tom slater | AF118: JACOB MORRIS | AG118: LEWIS JOHNSON | AH118: Luke O'Brien | AM118: 0 | AN118: 7 | AO118: 0 | AP118: 0 | AQ118: 8 | AR118: 6 | AS118: 5 | AT118: 0 | AU118: 0 | AV118: 1.5 | AW118: 0 | AX118: 0 | AY118: 1.53 | AZ118: 1.4 | BA118: 1.25 | BB118: 0 | BC118: 0 | BD118: 2 | BE118: 0 | BF118: 0 | BG118: 1 | BH118: 3 | BI118: 4 | BJ118: 0 | BK118: DASH | BL118: Corby | BM118: Tam | BN118: Royal | BO118: 0 | BP118: 0 | BQ118: 0 | BR118: 0 | BS118: B | BT118: O | BU118: F | BV118: G | CC118: 27 | CD118: 12 | CE118: 32 | CF118: 37
A119: =B118&"B" -> 45B | D119: =VLOOKUP(B118,EventsOrder,3,FALSE) -> High Jump | E119: B | AE119: =IF(LEN(G119)=0,"",VLOOKUP($B118,IF($F118="F",TeamSheetFemale,TeamSheetMale),CC119,FALSE)) ->  | AM119: 0 | AN119: 0 | AO119: 0 | AP119: 0 | AQ119: 0 | AR119: 0 | AS119: 0 | AT119: 0 | AU119: 0 | AV119: 0 | AW119: 0 | AX119: 0 | AY119: 0 | AZ119: 0 | BA119: 0 | BB119: 0 | BC119: 0 | BD119: 0 | BE119: 0 | BF119: 0 | BG119: 0 | BH119: 0 | BI119: 0 | BJ119: 0 | BK119: 0 | BL119: 0 | BM119: 0 | BN119: 0 | BO119: 0 | BP119: 0 | BQ119: 0 | BR119: 0
A120: =B120&"A" -> 46A | B120: 46 | C120: =VLOOKUP(B120,EventsOrder,2,FALSE) ->  | D120: =VLOOKUP(B120,EventsOrder,4,FALSE) ->  | E120: A | F120: =IF(MID(D120,5,1)="F","F","M") ->  | AE120: =IF(LEN(G120)=0,"",VLOOKUP($B120,IF($F120="F",TeamSheetFemale,TeamSheetMale),CC120,FALSE)) ->  | AU120: 0 | AV120: 0 | AW120: 0 | AX120: 0 | AY120: 0 | AZ120: 0 | BA120: 0 | BB120: 0 | BC120: 0 | BD120: 0 | BE120: 0 | BF120: 0 | BG120: 0 | BH120: 0 | BI120: 0 | BJ120: 0 | BK120: 0 | BL120: 0 | BM120: 0 | BN120: 0 | BO120: 0 | BP120: 0 | BQ120: 0 | BR120: 0
A121: =B120&"B" -> 46B | D121: =VLOOKUP(B120,EventsOrder,3,FALSE) ->  | E121: B | AE121: =IF(LEN(G121)=0,"",VLOOKUP($B120,IF($F120="F",TeamSheetFemale,TeamSheetMale),CC121,FALSE)) ->  | AM121: 0 | AN121: 0 | AO121: 0 | AP121: 0 | AQ121: 0 | AR121: 0 | AS121: 0 | AT121: 0 | AU121: 0 | AV121: 0 | AW121: 0 | AX121: 0 | AY121: 0 | AZ121: 0 | BA121: 0 | BB121: 0 | BC121: 0 | BD121: 0 | BE121: 0 | BF121: 0 | BG121: 0 | BH121: 0 | BI121: 0 | BJ121: 0 | BK121: 0 | BL121: 0 | BM121: 0 | BN121: 0 | BO121: 0 | BP121: 0 | BQ121: 0 | BR121: 0
A122: =B122&"A" -> 47A | B122: 47 | C122: =VLOOKUP(B122,EventsOrder,2,FALSE) ->  | D122: =VLOOKUP(B122,EventsOrder,4,FALSE) ->  | E122: A | F122: =IF(MID(D122,5,1)="F","F","M") ->  | AE122: =IF(LEN(G122)=0,"",VLOOKUP($B122,IF($F122="F",TeamSheetFemale,TeamSheetMale),CC122,FALSE)) ->  | AU122: 0 | AV122: 0 | AW122: 0 | AX122: 0 | AY122: 0 | AZ122: 0 | BA122: 0 | BB122: 0 | BC122: 0 | BD122: 0 | BE122: 0 | BF122: 0 | BG122: 0 | BH122: 0 | BI122: 0 | BJ122: 0 | BK122: 0 | BL122: 0 | BM122: 0 | BN122: 0 | BO122: 0 | BP122: 0 | BQ122: 0 | BR122: 0
A123: =B122&"B" -> 47B | D123: =VLOOKUP(B122,EventsOrder,3,FALSE) ->  | E123: B | AE123: =IF(LEN(G123)=0,"",VLOOKUP($B122,IF($F122="F",TeamSheetFemale,TeamSheetMale),CC123,FALSE)) ->  | AM123: 0 | AN123: 0 | AO123: 0 | AP123: 0 | AQ123: 0 | AR123: 0 | AS123: 0 | AT123: 0 | AU123: 0 | AV123: 0 | AW123: 0 | AX123: 0 | AY123: 0 | AZ123: 0 | BA123: 0 | BB123: 0 | BC123: 0 | BD123: 0 | BE123: 0 | BF123: 0 | BG123: 0 | BH123: 0 | BI123: 0 | BJ123: 0 | BK123: 0 | BL123: 0 | BM123: 0 | BN123: 0 | BO123: 0 | BP123: 0 | BQ123: 0 | BR123: 0
A124: =B124&"A" -> 48A | B124: 48 | C124: =VLOOKUP(B124,EventsOrder,2,FALSE) ->  | D124: =VLOOKUP(B124,EventsOrder,4,FALSE) ->  | E124: A | F124: =IF(MID(D124,5,1)="F","F","M") ->  | AE124: =IF(LEN(G124)=0,"",VLOOKUP($B124,IF($F124="F",TeamSheetFemale,TeamSheetMale),CC124,FALSE)) ->  | AU124: 0 | AV124: 0 | AW124: 0 | AX124: 0 | AY124: 0 | AZ124: 0 | BA124: 0 | BB124: 0 | BC124: 0 | BD124: 0 | BE124: 0 | BF124: 0 | BG124: 0 | BH124: 0 | BI124: 0 | BJ124: 0 | BK124: =IF(LEN(G124)>0,VLOOKUP(LEFT(G124,1),Clubs,5,FALSE),0) -> 0 | BL124: =IF(LEN(H124)>0,VLOOKUP(LEFT(H124,1),Clubs,5,FALSE),0) -> 0 | BM124: =IF(LEN(I124)>0,VLOOKUP(LEFT(I124,1),Clubs,5,FALSE),0) -> 0 | BN124: =IF(LEN(J124)>0,VLOOKUP(LEFT(J124,1),Clubs,5,FALSE),0) -> 0 | BO124: =IF(LEN(K124)>0,VLOOKUP(LEFT(K124,1),Clubs,5,FALSE),0) -> 0 | BP124: =IF(LEN(L124)>0,VLOOKUP(LEFT(L124,1),Clubs,5,FALSE),0) -> 0 | BQ124: =IF(LEN(M124)>0,VLOOKUP(LEFT(M124,1),Clubs,5,FALSE),0) -> 0 | BR124: =IF(LEN(N124)>0,VLOOKUP(LEFT(N124,1),Clubs,5,FALSE),0) -> 0 | BS124: =LEFT(G124,1) -> 
A125: =B124&"B" -> 48B | D125: =VLOOKUP(B124,EventsOrder,3,FALSE) ->  | E125: B | AE125: =IF(LEN(G125)=0,"",VLOOKUP($B124,IF($F124="F",TeamSheetFemale,TeamSheetMale),CC125,FALSE)) ->  | AM125: 0 | AN125: 0 | AO125: 0 | AP125: 0 | AQ125: 0 | AR125: 0 | AS125: 0 | AT125: 0 | AU125: 0 | AV125: 0 | AW125: 0 | AX125: 0 | AY125: =OFFSET($N125,0,BG125) -> 0 | AZ125: =OFFSET($N125,0,BH125) -> 0 | BA125: =OFFSET($N125,0,BI125) -> 0 | BB125: =OFFSET($N125,0,BJ125) -> 0 | BC125: 0 | BD125: 0 | BE125: 0 | BF125: 0 | BG125: 0 | BH125: 0 | BI125: 0 | BJ125: 0 | BK125: 0 | BL125: 0 | BM125: 0 | BN125: 0 | BO125: 0 | BP125: 0 | BQ125: 0 | BR125: 0 | BT125: =LEFT(H125,1) ->  | BU125: =LEFT(I125,1) ->  | BV125: =LEFT(J125,1) ->  | BW125: =LEFT(K125,1) ->  | BX125: =LEFT(L125,1) ->  | BY125: =LEFT(M125,1) ->  | BZ125: =LEFT(N125,1) -> 
A126: =B126&"A" -> 49A | B126: 49 | C126: =VLOOKUP(B126,EventsOrder,2,FALSE) ->  | D126: =VLOOKUP(B126,EventsOrder,4,FALSE) ->  | E126: A | F126: =IF(MID(D126,5,1)="F","F","M") ->  | AE126: =IF(LEN(G126)=0,"",VLOOKUP($B126,IF($F126="F",TeamSheetFemale,TeamSheetMale),CC126,FALSE)) ->  | AM126: =IF(OR($F126="NS",AU126="DNF"),0,IF(BC126>0,$BK$29+1-BC126,0)) ->  | AN126: =IF(OR($F126="NS",AV126="DNF"),0,IF(BD126>0,$BK$29+1-BD126,0)) ->  | AO126: =IF(OR($F126="NS",AW126="DNF"),0,IF(BE126>0,$BK$29+1-BE126,0)) ->  | AP126: =IF(OR($F126="NS",AX126="DNF"),0,IF(BF126>0,$BK$29+1-BF126,0)) ->  | AQ126: =IF(OR($F126="NS",AY126="DNF"),0,IF(BG126>0,$BK$29+1-BG126,0)) ->  | AR126: =IF(OR($F126="NS",AZ126="DNF"),0,IF(BH126>0,$BK$29+1-BH126,0)) ->  | AS126: =IF(OR($F126="NS",BA126="DNF"),0,IF(BI126>0,$BK$29+1-BI126,0)) ->  | AT126: =IF(OR($F126="NS",BB126="DNF"),0,IF(BJ126>0,$BK$29+1-BJ126,0)) ->  | AU126: 0 | AV126: 0 | AW126: 0 | AX126: 0 | AY126: 0 | AZ126: 0 | BA126: 0 | BB126: 0 | BC126: 0 | BD126: 0 | BE126: 0 | BF126: 0 | BG126: 0 | BH126: 0 | BI126: 0 | BJ126: 0 | BK126: 0 | BL126: 0 | BM126: 0 | BN126: 0 | BO126: 0 | BP126: 0 | BQ126: 0 | BR126: 0
A127: =B126&"B" -> 49B | D127: =VLOOKUP(B126,EventsOrder,3,FALSE) ->  | E127: B | AE127: =IF(LEN(G127)=0,"",VLOOKUP($B126,IF($F126="F",TeamSheetFemale,TeamSheetMale),CC127,FALSE)) ->  | AM127: 0 | AN127: 0 | AO127: 0 | AP127: 0 | AQ127: 0 | AR127: 0 | AS127: 0 | AT127: 0 | AU127: 0 | AV127: 0 | AW127: 0 | AX127: 0 | AY127: 0 | AZ127: 0 | BA127: 0 | BB127: 0 | BC127: 0 | BD127: 0 | BE127: 0 | BF127: 0 | BG127: 0 | BH127: 0 | BI127: 0 | BJ127: 0 | BK127: 0 | BL127: 0 | BM127: 0 | BN127: 0 | BO127: 0 | BP127: 0 | BQ127: 0 | BR127: 0
A128: =B128&"A" -> 50A | B128: 50 | C128: =VLOOKUP(B128,EventsOrder,2,FALSE) -> 2.4 | D128: =VLOOKUP(B128,EventsOrder,4,FALSE) -> U15 Female | E128: A | F128: =IF(MID(D128,5,1)="F","F","M") -> F | G128: B | H128: X | I128: F | J128: U | K128: I | L128: C | M128: G | N128: O | O128: 44 | P128: 44.7 | Q128: 44.8 | R128: 46.2 | S128: 48.9 | T128: 49.3 | U128: 49.7 | V128: 52.8 | W128: B | X128: X | Y128: F | Z128: U | AA128: I | AB128: C | AC128: G | AD128: O | AE128: =IF(LEN(G128)=0,"",VLOOKUP($B128,IF($F128="F",TeamSheetFemale,TeamSheetMale),CC128,FALSE)) -> zara millward | AF128: Emily McTaggart | AG128: EMILY FINDLATER | AH128: Georgia Lees | AI128: Niamh Monaghan | AJ128: Orla Lewis | AK128: Mel Adkins | AL128: LAURA DEW | AM128: 3 | AN128: 1 | AO128: 4 | AP128: 5 | AQ128: 8 | AR128: 6 | AS128: 2 | AT128: 7 | AU128: 49.3 | AV128: 52.8 | AW128: 48.9 | AX128: 46.2 | AY128: 44 | AZ128: 44.8 | BA128: 49.7 | BB128: 44.7 | BC128: 6 | BD128: 8 | BE128: 5 | BF128: 4 | BG128: 1 | BH128: 3 | BI128: 7 | BJ128: 2 | BK128: DASH | BL128: Wreake | BM128: Tam | BN128: K&S | BO128: Kett | BP128: B&R | BQ128: Royal | BR128: Corby | BS128: B | BT128: X | BU128: F | BV128: U | BW128: I | BX128: C | BY128: G | BZ128: O | CC128: =IF(LEN(G128)=0,"",HLOOKUP(BS128,$CC$26:$CJ$28,2,FALSE)+IF(LEN(G128)=2,2,0)) -> 27 | CD128: 42 | CE128: 32 | CF128: 22 | CG128: 17 | CH128: 7 | CI128: 37 | CJ128: 12
A129: =B128&"B" -> 50B | D129: =VLOOKUP(B128,EventsOrder,3,FALSE) -> 300m | E129: B | G129: BB | H129: FF | I129: II | J129: UU | K129: OO | L129: CC | O129: 43.4 | P129: 46.8 | Q129: 48 | R129: 48.7 | S129: 50.6 | T129: 54.4 | W129: BB | X129: FF | Y129: II | Z129: UU | AA129: OO | AB129: CC | AE129: =IF(LEN(G129)=0,"",VLOOKUP($B128,IF($F128="F",TeamSheetFemale,TeamSheetMale),CC129,FALSE)) -> emma sherwood | AF129: RACHEL WEST | AG129: Jenifer Robinson | AH129: Jessica Surridge | AI129: LAUREN MCMULLEN | AJ129: Amy Tongue | AM129: 3 | AN129: 4 | AO129: 6 | AP129: 5 | AQ129: 8 | AR129: 7 | AS129: 0 | AT129: 0 | AU129: 54.4 | AV129: 50.6 | AW129: 48 | AX129: 48.7 | AY129: 43.4 | AZ129: 46.8 | BA129: 0 | BB129: 0 | BC129: 6 | BD129: 5 | BE129: 3 | BF129: 4 | BG129: 1 | BH129: 2 | BI129: 0 | BJ129: 0 | BK129: DASH | BL129: Tam | BM129: Kett | BN129: K&S | BO129: Corby | BP129: B&R | BQ129: 0 | BR129: 0 | BS129: B | BT129: F | BU129: I | BV129: U | BW129: O | BX129: C | CC129: 29 | CD129: 34 | CE129: 19 | CF129: 24 | CG129: 14 | CH129: 9
A130: =B130&"A" -> 51A | B130: 51 | C130: =VLOOKUP(B130,EventsOrder,2,FALSE) -> 2.45 | D130: =VLOOKUP(B130,EventsOrder,4,FALSE) -> U17 F/Women | E130: A | F130: =IF(MID(D130,5,1)="F","F","M") -> F | G130: F | H130: U | I130: O | J130: I | K130: X | L130: G | O130: 42.6 | P130: 46.3 | Q130: 47 | R130: 48.6 | S130: 49.8 | T130: 50.5 | W130: F | X130: U | Y130: O | Z130: I | AA130: 0 | AB130: G | AE130: =IF(LEN(G130)=0,"",VLOOKUP($B130,IF($F130="F",TeamSheetFemale,TeamSheetMale),CC130,FALSE)) -> ISABELLE NEVILLE U17 | AF130: Ella DiMambro U17 | AG130: ELLIE-MAY HATHAWAYU17 | AH130: Hannah Winstone | AI130: Michaela Knight U17 | AJ130: Becky Evans | AM130: 0 | AN130: 6 | AO130: 5 | AP130: 7 | AQ130: 0 | AR130: 8 | AS130: 3 | AT130: 4 | AU130: 0 | AV130: 47 | AW130: 48.6 | AX130: 46.3 | AY130: 0 | AZ130: 42.6 | BA130: 50.5 | BB130: 49.8 | BC130: =IF(ISNA(MATCH(BC$29,$BS130:$BZ130,0)),0,MATCH(BC$29,$BS130:$BZ130,0)) -> 0 | BD130: 3 | BE130: 4 | BF130: 2 | BG130: 0 | BH130: 1 | BI130: 6 | BJ130: 5 | BK130: Tam | BL130: K&S | BM130: Corby | BN130: Kett | BO130: Wreake | BP130: Royal | BQ130: 0 | BR130: 0 | BS130: F | BT130: U | BU130: O | BV130: I | BW130: X | BX130: G | CC130: 32 | CD130: 22 | CE130: 12 | CF130: 17 | CG130: 42 | CH130: 37
A131: =B130&"B" -> 51B | D131: =VLOOKUP(B130,EventsOrder,3,FALSE) -> 300m | E131: B | G131: II | H131: UU | I131: XX | O131: 47.9 | P131: 49.6 | Q131: 53 | W131: II | X131: UU | Y131: 0 | AE131: =IF(LEN(G131)=0,"",VLOOKUP($B130,IF($F130="F",TeamSheetFemale,TeamSheetMale),CC131,FALSE)) -> Sheena Britten (U20) | AF131: Hannah Johnson U17 | AG131: Rosie Weselby U17 | AM131: 0 | AN131: 0 | AO131: 8 | AP131: 7 | AQ131: 0 | AR131: 0 | AS131: 0 | AT131: 6 | AU131: =OFFSET($N131,0,BC131) -> 0 | AV131: =OFFSET($N131,0,BD131) -> 0 | AW131: =OFFSET($N131,0,BE131) -> 47.9 | AX131: =OFFSET($N131,0,BF131) -> 49.6 | AY131: 0 | AZ131: 0 | BA131: 0 | BB131: 53 | BC131: 0 | BD131: 0 | BE131: 1 | BF131: 2 | BG131: 0 | BH131: 0 | BI131: 0 | BJ131: 3 | BK131: Kett | BL131: K&S | BM131: Wreake | BN131: 0 | BO131: 0 | BP131: 0 | BQ131: 0 | BR131: 0 | BS131: I | BT131: U | BU131: X | CC131: 19 | CD131: 24 | CE131: 44
A132: =B132&"A" -> 52A | B132: 52 | C132: =VLOOKUP(B132,EventsOrder,2,FALSE) -> 2.4 | D132: =VLOOKUP(B132,EventsOrder,4,FALSE) -> U13 Male | E132: A | F132: =IF(MID(D132,5,1)="F","F","M") -> M | G132: X | H132: B | I132: I | J132: GG | K132: CC | L132: U | O132: 6.52 | P132: 6.47 | Q132: 5.47 | R132: 5.01 | S132: 4.95 | T132: 4.03 | W132: X | X132: B | Y132: I | Z132: GG | AA132: cc | AB132: U | AE132: =IF(LEN(G132)=0,"",VLOOKUP($B132,IF($F132="F",TeamSheetFemale,TeamSheetMale),CC132,FALSE)) -> Jacob Fairhurst | AF132: micheal taylor | AG132: Dylan Bowley | AH132: David Iliffe | AI132: James Pickup | AJ132: Ryan Bennett | AM132: 4 | AN132: 0 | AO132: 6 | AP132: 3 | AQ132: 7 | AR132: 0 | AS132: 5 | AT132: 8 | AU132: 4.95 | AV132: 0 | AW132: 5.47 | AX132: 4.03 | AY132: 6.47 | AZ132: 0 | BA132: 5.01 | BB132: 6.52 | BC132: 5 | BD132: 0 | BE132: 3 | BF132: 6 | BG132: 2 | BH132: 0 | BI132: 4 | BJ132: 1 | BK132: Wreake | BL132: DASH | BM132: Kett | BN132: Royal | BO132: B&R | BP132: K&S | BQ132: 0 | BR132: 0 | BS132: X | BT132: B | BU132: I | BV132: G | BW132: C | BX132: U | CC132: 42 | CD132: 27 | CE132: 17 | CF132: 39 | CG132: 9 | CH132: 22
A133: =B132&"B" -> 52B | D133: =VLOOKUP(B132,EventsOrder,3,FALSE) -> Shot | E133: B | G133: BB | H133: II | I133: XX | J133: G | K133: C | O133: 6.14 | P133: 5.47 | Q133: 4.32 | R133: 4.12 | S133: 3.41 | W133: BB | X133: II | Y133: XX | Z133: G | AA133: c | AE133: =IF(LEN(G133)=0,"",VLOOKUP($B132,IF($F132="F",TeamSheetFemale,TeamSheetMale),CC133,FALSE)) -> nathan crook | AF133: Ethan Nelis | AG133: David Saidu | AH133: Daniel Mills | AI133: Harrison Mayne | AM133: 4 | AN133: 0 | AO133: 7 | AP133: 0 | AQ133: 8 | AR133: 0 | AS133: 5 | AT133: 6 | AU133: 3.41 | AV133: 0 | AW133: 5.47 | AX133: 0 | AY133: 6.14 | AZ133: 0 | BA133: 4.12 | BB133: 4.32 | BC133: 5 | BD133: 0 | BE133: 2 | BF133: 0 | BG133: 1 | BH133: 0 | BI133: 4 | BJ133: 3 | BK133: DASH | BL133: Kett | BM133: Wreake | BN133: Royal | BO133: B&R | BP133: 0 | BQ133: 0 | BR133: 0 | BS133: B | BT133: I | BU133: X | BV133: G | BW133: C | CC133: 29 | CD133: 19 | CE133: 44 | CF133: 37 | CG133: 7
A134: =B134&"A" -> 53A | B134: 53 | C134: =VLOOKUP(B134,EventsOrder,2,FALSE) -> 2.4 | D134: =VLOOKUP(B134,EventsOrder,4,FALSE) -> U17 F/Women | E134: A | F134: =IF(MID(D134,5,1)="F","F","M") -> F | G134: G | H134: U | I134: B | J134: X | K134: C | L134: O | M134: F | O134: 31.88 | P134: 28.54 | Q134: 19.24 | R134: 16.84 | S134: 15.52 | T134: 12.55 | U134: 11.94 | W134: G | X134: U | Y134: B | Z134: 0 | AA134: C | AB134: O | AC134: F | AE134: =IF(LEN(G134)=0,"",VLOOKUP($B134,IF($F134="F",TeamSheetFemale,TeamSheetMale),CC134,FALSE)) -> Chrissie Prince | AF134: Lynette McKeown SEN | AG134: danielle kinsell U20 | AH134: Michaela Knight U17 | AI134: Claire Neylon (U20) | AJ134: EMMA MARTIN U17 | AK134: ALICE MELLOR U17 | AM134: 4 | AN134: 3 | AO134: 0 | AP134: 7 | AQ134: 6 | AR134: 2 | AS134: 8 | AT134: 5 | AU134: 15.52 | AV134: 12.55 | AW134: 0 | AX134: 28.54 | AY134: 19.24 | AZ134: 11.94 | BA134: 31.88 | BB134: 16.84 | BC134: 5 | BD134: 6 | BE134: 0 | BF134: 2 | BG134: 3 | BH134: 7 | BI134: 1 | BJ134: 4 | BK134: Royal | BL134: K&S | BM134: DASH | BN134: Wreake | BO134: B&R | BP134: Corby | BQ134: Tam | BR134: 0 | BS134: G | BT134: U | BU134: B | BV134: X | BW134: C | BX134: O | BY134: F | CC134: 37 | CD134: 22 | CE134: 27 | CF134: 42 | CG134: 7 | CH134: 12 | CI134: 32
A135: =B134&"B" -> 53B | D135: =VLOOKUP(B134,EventsOrder,3,FALSE) -> Discus | E135: B | G135: GG | H135: UU | I135: CC | J135: FF | O135: 19.13 | P135: 17.99 | Q135: 13.46 | R135: 11.83 | W135: GG | X135: UU | Y135: CC | Z135: 0 | AE135: =IF(LEN(G135)=0,"",VLOOKUP($B134,IF($F134="F",TeamSheetFemale,TeamSheetMale),CC135,FALSE)) -> Lucy Wood | AF135: Ella DiMambro U17 | AG135: Yasmine Scoltock (VW40) | AH135: 0 | AM135: 6 | AN135: 0 | AO135: 0 | AP135: 7 | AQ135: 0 | AR135: 5 | AS135: 8 | AT135: 0 | AU135: 13.46 | AV135: 0 | AW135: 0 | AX135: 17.99 | AY135: 0 | AZ135: 11.83 | BA135: 19.13 | BB135: 0 | BC135: 3 | BD135: 0 | BE135: 0 | BF135: 2 | BG135: 0 | BH135: 4 | BI135: 1 | BJ135: 0 | BK135: Royal | BL135: K&S | BM135: B&R | BN135: Tam | BO135: 0 | BP135: 0 | BQ135: 0 | BR135: 0 | BS135: G | BT135: U | BU135: C | BV135: F | CC135: 39 | CD135: 24 | CE135: 9 | CF135: 34
A136: =B136&"A" -> 54A | B136: 54 | C136: =VLOOKUP(B136,EventsOrder,2,FALSE) -> 2.4 | D136: =VLOOKUP(B136,EventsOrder,4,FALSE) -> U15 Female | E136: A | F136: =IF(MID(D136,5,1)="F","F","M") -> F | AE136: =IF(LEN(G136)=0,"",VLOOKUP($B136,IF($F136="F",TeamSheetFemale,TeamSheetMale),CC136,FALSE)) ->  | AM136: 0 | AN136: 0 | AO136: 0 | AP136: 0 | AQ136: 0 | AR136: 0 | AS136: 0 | AT136: 0 | AU136: 0 | AV136: 0 | AW136: 0 | AX136: 0 | AY136: 0 | AZ136: 0 | BA136: 0 | BB136: 0 | BC136: 0 | BD136: 0 | BE136: 0 | BF136: 0 | BG136: 0 | BH136: 0 | BI136: 0 | BJ136: 0 | BK136: 0 | BL136: 0 | BM136: 0 | BN136: 0 | BO136: 0 | BP136: 0 | BQ136: 0 | BR136: 0
A137: =B136&"B" -> 54B | D137: =VLOOKUP(B136,EventsOrder,3,FALSE) -> Javelin | E137: B | AE137: =IF(LEN(G137)=0,"",VLOOKUP($B136,IF($F136="F",TeamSheetFemale,TeamSheetMale),CC137,FALSE)) ->  | AM137: 0 | AN137: 0 | AO137: 0 | AP137: 0 | AQ137: 0 | AR137: 0 | AS137: 0 | AT137: 0 | AU137: 0 | AV137: 0 | AW137: 0 | AX137: 0 | AY137: 0 | AZ137: 0 | BA137: 0 | BB137: 0 | BC137: 0 | BD137: 0 | BE137: 0 | BF137: 0 | BG137: 0 | BH137: 0 | BI137: 0 | BJ137: 0 | BK137: 0 | BL137: 0 | BM137: 0 | BN137: 0 | BO137: 0 | BP137: 0 | BQ137: 0 | BR137: 0
A138: =B138&"A" -> 55A | B138: 55 | C138: =VLOOKUP(B138,EventsOrder,2,FALSE) -> 2.55 | D138: =VLOOKUP(B138,EventsOrder,4,FALSE) -> U15 Male | E138: A | F138: =IF(MID(D138,5,1)="F","F","M") -> M | G138: C | H138: G | I138: X | J138: F | K138: I | L138: O | M138: B | O138: 37.8 | P138: 42.7 | Q138: 43.2 | R138: 43.4 | S138: 45.1 | T138: 46.3 | U138: 50.6 | W138: C | X138: G | Y138: X | Z138: F | AA138: I | AB138: O | AC138: B | AE138: =IF(LEN(G138)=0,"",VLOOKUP($B138,IF($F138="F",TeamSheetFemale,TeamSheetMale),CC138,FALSE)) -> Josh Pearson | AF138: Ben White | AG138: Charlie McGlinchy | AH138: OWEN SHERRIFF | AI138: Dylan Mukhtar | AJ138: ADAM McCRONE | AK138: daniel mcgregor | AM138: 8 | AN138: 3 | AO138: 4 | AP138: 0 | AQ138: 2 | AR138: 5 | AS138: 7 | AT138: 6 | AU138: 37.8 | AV138: 46.3 | AW138: 45.1 | AX138: 0 | AY138: 50.6 | AZ138: 43.4 | BA138: 42.7 | BB138: 43.2 | BC138: 1 | BD138: 6 | BE138: 5 | BF138: 0 | BG138: 7 | BH138: 4 | BI138: 2 | BJ138: 3 | BK138: B&R | BL138: Royal | BM138: Wreake | BN138: Tam | BO138: Kett | BP138: Corby | BQ138: DASH | BR138: 0 | BS138: C | BT138: G | BU138: X | BV138: F | BW138: I | BX138: O | BY138: B | CC138: 7 | CD138: 37 | CE138: 42 | CF138: 32 | CG138: 17 | CH138: 12 | CI138: 27
A139: =B138&"B" -> 55B | D139: =VLOOKUP(B138,EventsOrder,3,FALSE) -> 300m | E139: B | AE139: =IF(LEN(G139)=0,"",VLOOKUP($B138,IF($F138="F",TeamSheetFemale,TeamSheetMale),CC139,FALSE)) ->  | AM139: 0 | AN139: 0 | AO139: 0 | AP139: 0 | AQ139: 0 | AR139: 0 | AS139: 0 | AT139: 0 | AU139: 0 | AV139: 0 | AW139: 0 | AX139: 0 | AY139: 0 | AZ139: 0 | BA139: 0 | BB139: 0 | BC139: 0 | BD139: 0 | BE139: 0 | BF139: 0 | BG139: 0 | BH139: 0 | BI139: 0 | BJ139: 0 | BK139: 0 | BL139: 0 | BM139: 0 | BN139: 0 | BO139: 0 | BP139: 0 | BQ139: 0 | BR139: 0
A140: =B140&"A" -> 56A | B140: 56 | C140: =VLOOKUP(B140,EventsOrder,2,FALSE) -> 2.5 | D140: =VLOOKUP(B140,EventsOrder,4,FALSE) -> U13 Female | E140: A | F140: =IF(MID(D140,5,1)="F","F","M") -> F | G140: O | H140: G | I140: BB | J140: C | K140: F | L140: II | M140: XX | N140: U | O140: 4.09 | P140: 4.06 | Q140: 3.76 | R140: 3.74 | S140: 3.68 | T140: 3.54 | U140: 3.49 | V140: 3.25 | W140: O | X140: G | Y140: BB | Z140: C | AA140: F | AB140: II | AC140: XX | AD140: U | AE140: =IF(LEN(G140)=0,"",VLOOKUP($B140,IF($F140="F",TeamSheetFemale,TeamSheetMale),CC140,FALSE)) -> MATILDA SOMMERVILLE COTTON | AF140: Elsa Buchanan | AG140: molly hall | AH140: Megan Friend | AI140: AMY COOK | AJ140: Harriet Drake-Lee | AK140: Flora Miskin-Young | AL140: Libby Evans | AM140: 5 | AN140: 8 | AO140: 3 | AP140: 1 | AQ140: 6 | AR140: 4 | AS140: 7 | AT140: 2 | AU140: 3.74 | AV140: 4.09 | AW140: 3.54 | AX140: 3.25 | AY140: 3.76 | AZ140: 3.68 | BA140: 4.06 | BB140: 3.49 | BC140: 4 | BD140: 1 | BE140: 6 | BF140: 8 | BG140: 3 | BH140: 5 | BI140: 2 | BJ140: 7 | BK140: Corby | BL140: Royal | BM140: DASH | BN140: B&R | BO140: Tam | BP140: Kett | BQ140: Wreake | BR140: K&S | BS140: O | BT140: G | BU140: B | BV140: C | BW140: F | BX140: I | BY140: X | BZ140: U | CC140: 12 | CD140: 37 | CE140: 29 | CF140: 7 | CG140: 32 | CH140: 19 | CI140: 44 | CJ140: 22
A141: =B140&"B" -> 56B | D141: =VLOOKUP(B140,EventsOrder,3,FALSE) -> Long Jump | E141: B | G141: GG | H141: X | I141: B | J141: FF | K141: CC | L141: X | M141: OO | O141: 3.43 | P141: 3.4 | Q141: 3.22 | R141: 3.22 | S141: 3 | T141: 2.95 | U141: 2.37 | W141: GG | X141: X | Y141: B | Z141: FF | AA141: CC | AB141: X | AC141: OO | AE141: =IF(LEN(G141)=0,"",VLOOKUP($B140,IF($F140="F",TeamSheetFemale,TeamSheetMale),CC141,FALSE)) -> Zoe Trevis | AF141: Katie Parker | AG141: jessica grainger | AH141: BETHANY WINSTONE | AI141: Chalotte Wilson | AJ141: Katie Parker | AK141: JAY-LEIGH McALLISTER | AM141: 4 | AN141: 2 | AO141: 0 | AP141: 0 | AQ141: 6 | AR141: 5 | AS141: 8 | AT141: 7 | AU141: 3 | AV141: 2.37 | AW141: 0 | AX141: 0 | AY141: 3.22 | AZ141: 3.22 | BA141: 3.43 | BB141: 3.4 | BC141: 5 | BD141: 7 | BE141: 0 | BF141: 0 | BG141: 3 | BH141: 4 | BI141: 1 | BJ141: 2 | BK141: Royal | BL141: Wreake | BM141: DASH | BN141: Tam | BO141: B&R | BP141: Wreake | BQ141: Corby | BR141: 0 | BS141: G | BT141: X | BU141: B | BV141: F | BW141: C | BX141: X | BY141: O | CC141: 39 | CD141: 42 | CE141: 27 | CF141: 34 | CG141: 9 | CH141: 42 | CI141: 14
A142: =B142&"A" -> 57A | B142: 57 | C142: =VLOOKUP(B142,EventsOrder,2,FALSE) -> 3 | D142: =VLOOKUP(B142,EventsOrder,4,FALSE) -> U17 Men | E142: A | F142: =IF(MID(D142,5,1)="F","F","M") -> M | G142: I | H142: O | I142: C | J142: F | K142: G | L142: U | M142: B | O142: 53.5 | P142: 54.2 | Q142: 56.3 | R142: 57.8 | S142: 58.9 | T142: 59.8 | U142: 65.4 | W142: I | X142: O | Y142: C | Z142: F | AA142: G | AB142: U | AC142: B | AE142: =IF(LEN(G142)=0,"",VLOOKUP($B142,IF($F142="F",TeamSheetFemale,TeamSheetMale),CC142,FALSE)) -> Jake Trent | AF142: HARRY MERRIMAN | AG142: James Noyce | AH142: OWEN KENT | AI142: Cameron Kirkbride | AJ142: Harvey Goulding | AK142: javana priantoro | AM142: 6 | AN142: 7 | AO142: 8 | AP142: 3 | AQ142: 2 | AR142: 5 | AS142: 4 | AT142: 0 | AU142: 56.3 | AV142: 54.2 | AW142: 53.5 | AX142: 59.8 | AY142: 65.4 | AZ142: 57.8 | BA142: 58.9 | BB142: 0 | BC142: 3 | BD142: 2 | BE142: 1 | BF142: 6 | BG142: 7 | BH142: 4 | BI142: 5 | BJ142: 0 | BK142: Kett | BL142: Corby | BM142: B&R | BN142: Tam | BO142: Royal | BP142: K&S | BQ142: DASH | BR142: 0 | BS142: I | BT142: O | BU142: C | BV142: F | BW142: G | BX142: U | BY142: B | CC142: 17 | CD142: =IF(LEN(H142)=0,"",HLOOKUP(BT142,$CC$26:$CJ$28,2,FALSE)+IF(LEN(H142)=2,2,0)) -> 12 | CE142: =IF(LEN(I142)=0,"",HLOOKUP(BU142,$CC$26:$CJ$28,2,FALSE)+IF(LEN(I142)=2,2,0)) -> 7 | CF142: =IF(LEN(J142)=0,"",HLOOKUP(BV142,$CC$26:$CJ$28,2,FALSE)+IF(LEN(J142)=2,2,0)) -> 32 | CG142: =IF(LEN(K142)=0,"",HLOOKUP(BW142,$CC$26:$CJ$28,2,FALSE)+IF(LEN(K142)=2,2,0)) -> 37 | CH142: =IF(LEN(L142)=0,"",HLOOKUP(BX142,$CC$26:$CJ$28,2,FALSE)+IF(LEN(L142)=2,2,0)) -> 22 | CI142: =IF(LEN(M142)=0,"",HLOOKUP(BY142,$CC$26:$CJ$28,2,FALSE)+IF(LEN(M142)=2,2,0)) -> 27 | CJ142: =IF(LEN(N142)=0,"",HLOOKUP(BZ142,$CC$26:$CJ$28,2,FALSE)+IF(LEN(N142)=2,2,0)) -> 
A143: =B142&"B" -> 57B | D143: =VLOOKUP(B142,EventsOrder,3,FALSE) -> 400m | E143: B | G143: GG | H143: UU | I143: OO | O143: 54.6 | P143: 59.1 | Q143: 69.3 | W143: GG | X143: UU | Y143: OO | AE143: =IF(LEN(G143)=0,"",VLOOKUP($B142,IF($F142="F",TeamSheetFemale,TeamSheetMale),CC143,FALSE)) -> Lee Hetherington | AF143: Eddie Roberts | AG143: robert strang | AM143: 0 | AN143: 6 | AO143: 0 | AP143: 7 | AQ143: 0 | AR143: 0 | AS143: 8 | AT143: 0 | AU143: 0 | AV143: 69.3 | AW143: 0 | AX143: 59.1 | AY143: 0 | AZ143: 0 | BA143: 54.6 | BB143: 0 | BC143: 0 | BD143: 3 | BE143: 0 | BF143: 2 | BG143: 0 | BH143: 0 | BI143: 1 | BJ143: 0 | BK143: Royal | BL143: K&S | BM143: Corby | BN143: 0 | BO143: 0 | BP143: 0 | BQ143: 0 | BR143: 0 | BS143: G | BT143: U | BU143: O | CC143: 39 | CD143: 24 | CE143: 14
A144: =B144&"A" -> 58A | B144: 58 | C144: =VLOOKUP(B144,EventsOrder,2,FALSE) -> 3.1 | D144: =VLOOKUP(B144,EventsOrder,4,FALSE) -> U11 Female | E144: A | F144: =IF(MID(D144,5,1)="F","F","M") -> F | G144: U | H144: X | I144: C | J144: I | K144: G | L144: B | M144: F | O144: 11.8 | P144: 11.9 | Q144: 11.9 | R144: 12.4 | S144: 12.9 | T144: 13.4 | U144: 13.9 | W144: U | X144: 0 | Y144: C | Z144: 0 | AA144: G | AB144: B | AC144: F | AE144: =IF(LEN(G144)=0,"",VLOOKUP($B144,IF($F144="F",TeamSheetFemale,TeamSheetMale),CC144,FALSE)) -> Libby Oliver | AF144: 0 | AG144: Jessica Causer | AH144: 0 | AI144: Charlotte Prince | AJ144: libby davies | AK144: ELLIE GAUNTLET | AM144: 6 | AN144: 0 | AO144: 5 | AP144: 8 | AQ144: 3 | AR144: 2 | AS144: 4 | AT144: 7 | AU144: 11.9 | AV144: 0 | AW144: 12.4 | AX144: 11.8 | AY144: 13.4 | AZ144: 13.9 | BA144: 12.9 | BB144: 11.9 | BC144: 3 | BD144: 0 | BE144: 4 | BF144: 1 | BG144: 6 | BH144: 7 | BI144: 5 | BJ144: 2 | BK144: K&S | BL144: Wreake | BM144: B&R | BN144: Kett | BO144: Royal | BP144: DASH | BQ144: Tam | BR144: 0 | BS144: U | BT144: X | BU144: C | BV144: I | BW144: G | BX144: B | BY144: F | CC144: 22 | CD144: 42 | CE144: 7 | CF144: 17 | CG144: 37 | CH144: 27 | CI144: 32
A145: =B144&"B" -> 58B | D145: =VLOOKUP(B144,EventsOrder,3,FALSE) -> 75m | E145: B | G145: GG | H145: CC | I145: XX | J145: BB | K145: FF | L145: II | M145: UU | O145: 12.2 | P145: 12.5 | Q145: 13.2 | R145: 13.3 | S145: 14.5 | T145: 15.1 | U145: 15.3 | W145: GG | X145: CC | Y145: 0 | Z145: BB | AA145: FF | AB145: 0 | AC145: 0 | AE145: =IF(LEN(G145)=0,"",VLOOKUP($B144,IF($F144="F",TeamSheetFemale,TeamSheetMale),CC145,FALSE)) -> Isobel Male | AF145: Cristina Ricci | AG145: 0 | AH145: vyvyenne crook | AI145: TEGAN VICKERY | AJ145: 0 | AK145: Hannah Telling | AM145: 7 | AN145: 0 | AO145: 3 | AP145: 2 | AQ145: 5 | AR145: 4 | AS145: 8 | AT145: 6 | AU145: 12.5 | AV145: 0 | AW145: 15.1 | AX145: 15.3 | AY145: 13.3 | AZ145: 14.5 | BA145: 12.2 | BB145: 13.2 | BC145: 2 | BD145: 0 | BE145: 6 | BF145: 7 | BG145: 4 | BH145: 5 | BI145: 1 | BJ145: 3 | BK145: Royal | BL145: B&R | BM145: Wreake | BN145: DASH | BO145: Tam | BP145: Kett | BQ145: K&S | BR145: 0 | BS145: G | BT145: C | BU145: X | BV145: B | BW145: F | BX145: I | BY145: U | CC145: 39 | CD145: 9 | CE145: 44 | CF145: 29 | CG145: 34 | CH145: 19 | CI145: 24
A146: =B146&"A" -> 59A | B146: 59 | C146: =VLOOKUP(B146,EventsOrder,2,FALSE) -> 3.15 | D146: =VLOOKUP(B146,EventsOrder,4,FALSE) -> U11 Female | E146: A | F146: =IF(MID(D146,5,1)="F","F","M") -> F | AE146: =IF(LEN(G146)=0,"",VLOOKUP($B146,IF($F146="F",TeamSheetFemale,TeamSheetMale),CC146,FALSE)) ->  | AM146: 0 | AN146: 0 | AO146: 0 | AP146: 0 | AQ146: 0 | AR146: 0 | AS146: 0 | AT146: 0 | AU146: 0 | AV146: 0 | AW146: 0 | AX146: 0 | AY146: 0 | AZ146: 0 | BA146: 0 | BB146: 0 | BC146: =IF(ISNA(MATCH(BC$29,$BS146:$BZ146,0)),0,MATCH(BC$29,$BS146:$BZ146,0)) -> 0 | BD146: 0 | BE146: 0 | BF146: 0 | BG146: 0 | BH146: 0 | BI146: 0 | BJ146: 0 | BK146: 0 | BL146: 0 | BM146: 0 | BN146: 0 | BO146: 0 | BP146: 0 | BQ146: 0 | BR146: 0
A147: =B146&"B" -> 59B | D147: =VLOOKUP(B146,EventsOrder,3,FALSE) -> 75m | E147: B | AE147: =IF(LEN(G147)=0,"",VLOOKUP($B146,IF($F146="F",TeamSheetFemale,TeamSheetMale),CC147,FALSE)) ->  | AM147: 0 | AN147: 0 | AO147: 0 | AP147: 0 | AQ147: 0 | AR147: 0 | AS147: 0 | AT147: 0 | AU147: 0 | AV147: 0 | AW147: 0 | AX147: 0 | AY147: 0 | AZ147: 0 | BA147: 0 | BB147: 0 | BC147: 0 | BD147: 0 | BE147: 0 | BF147: 0 | BG147: 0 | BH147: 0 | BI147: 0 | BJ147: 0 | BK147: 0 | BL147: 0 | BM147: 0 | BN147: 0 | BO147: 0 | BP147: 0 | BQ147: 0 | BR147: 0
A148: =B148&"A" -> 60A | B148: 60 | C148: =VLOOKUP(B148,EventsOrder,2,FALSE) -> 3.1 | D148: =VLOOKUP(B148,EventsOrder,4,FALSE) -> U17 F/Women | E148: A | F148: =IF(MID(D148,5,1)="F","F","M") -> F | G148: U | H148: G | I148: I | J148: F | O148: 1.4 | P148: 1.4 | Q148: 1.25 | R148: 1.25 | W148: U | X148: G | Y148: I | Z148: 0 | AE148: =IF(LEN(G148)=0,"",VLOOKUP($B148,IF($F148="F",TeamSheetFemale,TeamSheetMale),CC148,FALSE)) -> Olivia Jones U17 | AF148: Megan Evans | AG148: Chloe Hearne | AH148: BETHANY DEVONSHIRE U17 | AM148: 0 | AN148: 0 | AO148: 6 | AP148: 8 | AQ148: 0 | AR148: 5 | AS148: 7 | AT148: 0 | AU148: 0 | AV148: 0 | AW148: 1.25 | AX148: 1.4 | AY148: 0 | AZ148: 1.25 | BA148: 1.4 | BB148: 0 | BC148: 0 | BD148: 0 | BE148: 3 | BF148: 1 | BG148: 0 | BH148: 4 | BI148: 2 | BJ148: 0 | BK148: K&S | BL148: Royal | BM148: Kett | BN148: Tam | BO148: 0 | BP148: 0 | BQ148: 0 | BR148: 0 | BS148: U | BT148: G | BU148: I | BV148: F | CC148: 22 | CD148: 37 | CE148: 17 | CF148: 32
A149: =B148&"B" -> 60B | D149: =VLOOKUP(B148,EventsOrder,3,FALSE) -> High Jump | E149: B | AE149: =IF(LEN(G149)=0,"",VLOOKUP($B148,IF($F148="F",TeamSheetFemale,TeamSheetMale),CC149,FALSE)) ->  | AM149: 0 | AN149: 0 | AO149: 0 | AP149: 0 | AQ149: 0 | AR149: 0 | AS149: 0 | AT149: 0 | AU149: 0 | AV149: 0 | AW149: 0 | AX149: 0 | AY149: 0 | AZ149: 0 | BA149: 0 | BB149: 0 | BC149: 0 | BD149: 0 | BE149: 0 | BF149: 0 | BG149: 0 | BH149: 0 | BI149: 0 | BJ149: 0 | BK149: 0 | BL149: 0 | BM149: 0 | BN149: 0 | BO149: 0 | BP149: 0 | BQ149: 0 | BR149: 0
A150: =B150&"A" -> 61A | B150: 61 | C150: =VLOOKUP(B150,EventsOrder,2,FALSE) -> 3.2 | D150: =VLOOKUP(B150,EventsOrder,4,FALSE) -> U11 Male | E150: A | F150: =IF(MID(D150,5,1)="F","F","M") -> M | G150: C | H150: I | I150: G | J150: F | K150: U | L150: X | O150: 12.8 | P150: 12.8 | Q150: 12.9 | R150: 13.5 | S150: 13.6 | T150: 16.2 | W150: c | X150: I | Y150: G | Z150: F | AA150: U | AB150: 0 | AE150: =IF(LEN(G150)=0,"",VLOOKUP($B150,IF($F150="F",TeamSheetFemale,TeamSheetMale),CC150,FALSE)) -> Sebastian Purvis | AF150: Jamie Lake | AG150: Jack Turner-Knapp | AH150: JAMES STRETTON | AI150: Harry Lees | AJ150: 0 | AM150: 8 | AN150: 0 | AO150: 7 | AP150: 4 | AQ150: 0 | AR150: 5 | AS150: 6 | AT150: 3 | AU150: 12.8 | AV150: 0 | AW150: 12.8 | AX150: 13.6 | AY150: 0 | AZ150: 13.5 | BA150: 12.9 | BB150: 16.2 | BC150: 1 | BD150: 0 | BE150: 2 | BF150: 5 | BG150: 0 | BH150: 4 | BI150: 3 | BJ150: 6 | BK150: B&R | BL150: Kett | BM150: Royal | BN150: Tam | BO150: K&S | BP150: Wreake | BQ150: 0 | BR150: 0 | BS150: C | BT150: I | BU150: G | BV150: F | BW150: U | BX150: X | CC150: 7 | CD150: 17 | CE150: 37 | CF150: 32 | CG150: 22 | CH150: 42
A151: =B150&"B" -> 61B | D151: =VLOOKUP(B150,EventsOrder,3,FALSE) -> 75m | E151: B | G151: FF | H151: BB | I151: II | J151: GG | K151: CC | L151: OO | O151: 12.8 | P151: 12.9 | Q151: 13 | R151: 13.3 | S151: 13.4 | T151: 14.7 | W151: FF | X151: BB | Y151: II | Z151: GG | AA151: cc | AB151: 0 | AE151: =IF(LEN(G151)=0,"",VLOOKUP($B150,IF($F150="F",TeamSheetFemale,TeamSheetMale),CC151,FALSE)) -> ASHLEY JOHNSON | AF151: john sparry | AG151: Ben Brooker | AH151: Harry Darrock | AI151: Luke Darlington | AJ151: 0 | AM151: 4 | AN151: 3 | AO151: 6 | AP151: 0 | AQ151: 7 | AR151: 8 | AS151: 5 | AT151: 0 | AU151: 13.4 | AV151: 14.7 | AW151: 13 | AX151: 0 | AY151: 12.9 | AZ151: 12.8 | BA151: 13.3 | BB151: 0 | BC151: 5 | BD151: 6 | BE151: 3 | BF151: 0 | BG151: 2 | BH151: 1 | BI151: 4 | BJ151: 0 | BK151: Tam | BL151: DASH | BM151: Kett | BN151: Royal | BO151: B&R | BP151: Corby | BQ151: 0 | BR151: 0 | BS151: F | BT151: B | BU151: I | BV151: G | BW151: C | BX151: O | CC151: 34 | CD151: 29 | CE151: 19 | CF151: 39 | CG151: 9 | CH151: 14
A152: =B152&"A" -> 62A | B152: 62 | C152: =VLOOKUP(B152,EventsOrder,2,FALSE) -> 3.25 | D152: =VLOOKUP(B152,EventsOrder,4,FALSE) -> U11 Male | E152: A | F152: =IF(MID(D152,5,1)="F","F","M") -> M | AE152: =IF(LEN(G152)=0,"",VLOOKUP($B152,IF($F152="F",TeamSheetFemale,TeamSheetMale),CC152,FALSE)) ->  | AM152: 0 | AN152: 0 | AO152: 0 | AP152: 0 | AQ152: 0 | AR152: 0 | AS152: 0 | AT152: 0 | AU152: 0 | AV152: 0 | AW152: 0 | AX152: 0 | AY152: 0 | AZ152: 0 | BA152: 0 | BB152: 0 | BC152: 0 | BD152: 0 | BE152: 0 | BF152: 0 | BG152: 0 | BH152: 0 | BI152: 0 | BJ152: 0 | BK152: 0 | BL152: 0 | BM152: 0 | BN152: 0 | BO152: 0 | BP152: 0 | BQ152: 0 | BR152: 0
A153: =B152&"B" -> 62B | D153: =VLOOKUP(B152,EventsOrder,3,FALSE) -> 75m | E153: B | AE153: =IF(LEN(G153)=0,"",VLOOKUP($B152,IF($F152="F",TeamSheetFemale,TeamSheetMale),CC153,FALSE)) ->  | AM153: 0 | AN153: 0 | AO153: 0 | AP153: 0 | AQ153: 0 | AR153: 0 | AS153: 0 | AT153: 0 | AU153: 0 | AV153: 0 | AW153: 0 | AX153: 0 | AY153: 0 | AZ153: 0 | BA153: 0 | BB153: 0 | BC153: 0 | BD153: 0 | BE153: 0 | BF153: 0 | BG153: 0 | BH153: 0 | BI153: 0 | BJ153: 0 | BK153: 0 | BL153: 0 | BM153: 0 | BN153: 0 | BO153: 0 | BP153: 0 | BQ153: 0 | BR153: 0
A154: =B154&"A" -> 63A | B154: 63 | C154: =VLOOKUP(B154,EventsOrder,2,FALSE) -> 3.35 | D154: =VLOOKUP(B154,EventsOrder,4,FALSE) -> U13 Female | E154: A | F154: =IF(MID(D154,5,1)="F","F","M") -> F | G154: U | H154: B | I154: I | J154: O | K154: X | L154: C | M154: F | N154: G | O154: 29.9 | P154: 31.4 | Q154: 31.6 | R154: 32.3 | S154: 32.4 | T154: 32.5 | U154: 32.9 | V154: 36 | W154: U | X154: B | Y154: I | Z154: O | AA154: X | AB154: C | AC154: F | AD154: G | AE154: =IF(LEN(G154)=0,"",VLOOKUP($B154,IF($F154="F",TeamSheetFemale,TeamSheetMale),CC154,FALSE)) -> Izzy Mullet | AF154: niamh darby | AG154: Ellen Smith | AH154: MATILDA SOMMERVILLE COTTON | AI154: Grace Alvey | AJ154: Henna Khaliq | AK154: NIAMH KILGALLEN | AL154: Fae Reid | AM154: 3 | AN154: 5 | AO154: 6 | AP154: 8 | AQ154: 7 | AR154: 2 | AS154: 1 | AT154: 4 | AU154: 32.5 | AV154: 32.3 | AW154: 31.6 | AX154: 29.9 | AY154: 31.4 | AZ154: 32.9 | BA154: 36 | BB154: 32.4 | BC154: 6 | BD154: 4 | BE154: 3 | BF154: 1 | BG154: 2 | BH154: 7 | BI154: 8 | BJ154: 5 | BK154: K&S | BL154: DASH | BM154: Kett | BN154: Corby | BO154: Wreake | BP154: B&R | BQ154: Tam | BR154: Royal | BS154: U | BT154: B | BU154: I | BV154: O | BW154: X | BX154: C | BY154: F | BZ154: G | CC154: 22 | CD154: 27 | CE154: 17 | CF154: 12 | CG154: 42 | CH154: 7 | CI154: 32 | CJ154: 37
A155: =B154&"B" -> 63B | D155: =VLOOKUP(B154,EventsOrder,3,FALSE) -> 200m | E155: B | G155: OO | H155: II | I155: FF | J155: CC | K155: BB | L155: GG | M155: XX | O155: 30.6 | P155: 32.6 | Q155: 32.9 | R155: 34 | S155: 34 | T155: 34.2 | U155: 34.8 | W155: OO | X155: II | Y155: FF | Z155: CC | AA155: BB | AB155: GG | AC155: XX | AE155: =IF(LEN(G155)=0,"",VLOOKUP($B154,IF($F154="F",TeamSheetFemale,TeamSheetMale),CC155,FALSE)) -> SOPHIE FRY | AF155: Millie Webb | AG155: KATIE STRETTON | AH155: Jasmine Carter | AI155: molly hall | AJ155: Evelyne Maidment | AK155: Katie Parker | AM155: 5 | AN155: 8 | AO155: 7 | AP155: 0 | AQ155: 4 | AR155: 6 | AS155: 3 | AT155: 2 | AU155: 34 | AV155: 30.6 | AW155: 32.6 | AX155: 0 | AY155: 34 | AZ155: 32.9 | BA155: 34.2 | BB155: 34.8 | BC155: 4 | BD155: 1 | BE155: 2 | BF155: 0 | BG155: 5 | BH155: 3 | BI155: 6 | BJ155: 7 | BK155: Corby | BL155: Kett | BM155: Tam | BN155: B&R | BO155: DASH | BP155: Royal | BQ155: Wreake | BR155: 0 | BS155: O | BT155: I | BU155: F | BV155: C | BW155: B | BX155: G | BY155: X | CC155: 14 | CD155: 19 | CE155: 34 | CF155: 9 | CG155: 29 | CH155: 39 | CI155: 44
A156: =B156&"A" -> 64A | B156: 64 | C156: =VLOOKUP(B156,EventsOrder,2,FALSE) -> 3.2 | D156: =VLOOKUP(B156,EventsOrder,4,FALSE) -> U13 Male | E156: A | F156: =IF(MID(D156,5,1)="F","F","M") -> M | G156: F | H156: C | I156: II | J156: G | K156: B | L156: O | M156: XX | N156: U | O156: 4.22 | P156: 3.98 | Q156: 3.97 | R156: 3.91 | S156: 3.8 | T156: 3.69 | U156: 3.6 | V156: 3.5 | W156: F | X156: c | Y156: II | Z156: G | AA156: B | AB156: O | AC156: XX | AD156: U | AE156: =IF(LEN(G156)=0,"",VLOOKUP($B156,IF($F156="F",TeamSheetFemale,TeamSheetMale),CC156,FALSE)) -> JOEL BICKLEY | AF156: Joshua Keyte | AG156: Max Mowforth | AH156: David Iliffe | AI156: Nathan Crook | AJ156: ARCHIE PARKINSON | AK156: Euan Gibbs | AL156: Ryan Bennett | AM156: 7 | AN156: 3 | AO156: 6 | AP156: 1 | AQ156: 4 | AR156: 8 | AS156: 5 | AT156: 2 | AU156: 3.98 | AV156: 3.69 | AW156: 3.97 | AX156: 3.5 | AY156: 3.8 | AZ156: 4.22 | BA156: 3.91 | BB156: 3.6 | BC156: 2 | BD156: 6 | BE156: 3 | BF156: 8 | BG156: 5 | BH156: 1 | BI156: 4 | BJ156: 7 | BK156: Tam | BL156: B&R | BM156: Kett | BN156: Royal | BO156: DASH | BP156: Corby | BQ156: Wreake | BR156: K&S | BS156: F | BT156: C | BU156: I | BV156: G | BW156: B | BX156: O | BY156: X | BZ156: U | CC156: 32 | CD156: 7 | CE156: 19 | CF156: 37 | CG156: 27 | CH156: 12 | CI156: 44 | CJ156: 22
A157: =B156&"B" -> 64B | D157: =VLOOKUP(B156,EventsOrder,3,FALSE) -> Long Jump | E157: B | G157: CC | H157: BB | I157: X | J157: I | K157: GG | L157: FF | O157: 3.93 | P157: 3.65 | Q157: 3.5 | R157: 3.42 | S157: 3.19 | T157: 3.14 | W157: cc | X157: BB | Y157: X | Z157: I | AA157: GG | AB157: FF | AE157: =IF(LEN(G157)=0,"",VLOOKUP($B156,IF($F156="F",TeamSheetFemale,TeamSheetMale),CC157,FALSE)) -> Dominic James | AF157: jack compton | AG157: Charlie Rennie | AH157: Cole Sinnott | AI157: Elliot Smith | AJ157: JAMES SHERRIFF | AM157: 8 | AN157: 0 | AO157: 5 | AP157: 0 | AQ157: 7 | AR157: 3 | AS157: 4 | AT157: 6 | AU157: 3.93 | AV157: 0 | AW157: 3.42 | AX157: 0 | AY157: 3.65 | AZ157: 3.14 | BA157: 3.19 | BB157: 3.5 | BC157: 1 | BD157: 0 | BE157: 4 | BF157: 0 | BG157: 2 | BH157: 6 | BI157: 5 | BJ157: 3 | BK157: B&R | BL157: DASH | BM157: Wreake | BN157: Kett | BO157: Royal | BP157: Tam | BQ157: 0 | BR157: 0 | BS157: C | BT157: B | BU157: X | BV157: I | BW157: G | BX157: F | CC157: 9 | CD157: 29 | CE157: 42 | CF157: 17 | CG157: 39 | CH157: 34
A158: =B158&"A" -> 65A | B158: 65 | C158: =VLOOKUP(B158,EventsOrder,2,FALSE) -> 3.3 | D158: =VLOOKUP(B158,EventsOrder,4,FALSE) -> U13 Female | E158: A | F158: =IF(MID(D158,5,1)="F","F","M") -> F | G158: I | H158: GG | I158: B | J158: X | K158: CC | L158: F | M158: OO | O158: 6.55 | P158: 5.81 | Q158: 5.53 | R158: 5.05 | S158: 4.9 | T158: 4.85 | U158: 4.23 | W158: I | X158: GG | Y158: B | Z158: X | AA158: CC | AB158: F | AC158: OO | AE158: =IF(LEN(G158)=0,"",VLOOKUP($B158,IF($F158="F",TeamSheetFemale,TeamSheetMale),CC158,FALSE)) -> Harriet Drake-Lee | AF158: Freya Liddington | AG158: joszette taylor | AH158: Grace Alvey | AI158: Evie Smiley | AJ158: HANNAH EVANS | AK158: TRINITY COOMBS | AM158: =IF(OR($F158="NS",AU158="DNF"),0,IF(BC158>0,$BK$29+1-BC158,0)) -> 4 | AN158: =IF(OR($F158="NS",AV158="DNF"),0,IF(BD158>0,$BK$29+1-BD158,0)) -> 2 | AO158: =IF(OR($F158="NS",AW158="DNF"),0,IF(BE158>0,$BK$29+1-BE158,0)) -> 8 | AP158: =IF(OR($F158="NS",AX158="DNF"),0,IF(BF158>0,$BK$29+1-BF158,0)) -> 0 | AQ158: =IF(OR($F158="NS",AY158="DNF"),0,IF(BG158>0,$BK$29+1-BG158,0)) -> 6 | AR158: =IF(OR($F158="NS",AZ158="DNF"),0,IF(BH158>0,$BK$29+1-BH158,0)) -> 3 | AS158: =IF(OR($F158="NS",BA158="DNF"),0,IF(BI158>0,$BK$29+1-BI158,0)) -> 7 | AT158: =IF(OR($F158="NS",BB158="DNF"),0,IF(BJ158>0,$BK$29+1-BJ158,0)) -> 5 | AU158: 4.9 | AV158: 4.23 | AW158: 6.55 | AX158: 0 | AY158: 5.53 | AZ158: 4.85 | BA158: 5.81 | BB158: 5.05 | BC158: 5 | BD158: 7 | BE158: 1 | BF158: 0 | BG158: 3 | BH158: 6 | BI158: 2 | BJ158: 4 | BK158: Kett | BL158: Royal | BM158: DASH | BN158: Wreake | BO158: B&R | BP158: Tam | BQ158: Corby | BR158: 0 | BS158: I | BT158: G | BU158: B | BV158: X | BW158: C | BX158: F | BY158: O | CC158: 17 | CD158: 39 | CE158: 27 | CF158: 42 | CG158: 9 | CH158: 32 | CI158: 14
A159: =B158&"B" -> 65B | D159: =VLOOKUP(B158,EventsOrder,3,FALSE) -> Shot | E159: B | G159: G | H159: FF | I159: II | J159: XX | K159: C | L159: O | O159: 5.11 | P159: 4.47 | Q159: 3.65 | R159: 3.5 | S159: 3.36 | T159: 2.47 | W159: G | X159: FF | Y159: II | Z159: XX | AA159: C | AB159: O | AE159: =IF(LEN(G159)=0,"",VLOOKUP($B158,IF($F158="F",TeamSheetFemale,TeamSheetMale),CC159,FALSE)) -> Thea Criddle | AF159: KATIE STRETTON | AG159: Millie Webb | AH159: Ravenn Cook | AI159: Talitha Scoltock-Daftary | AJ159: SOPHIE FRY | AM159: 4 | AN159: 3 | AO159: 6 | AP159: 0 | AQ159: 0 | AR159: 7 | AS159: 8 | AT159: 5 | AU159: 3.36 | AV159: 2.47 | AW159: 3.65 | AX159: 0 | AY159: 0 | AZ159: 4.47 | BA159: 5.11 | BB159: 3.5 | BC159: 5 | BD159: 6 | BE159: 3 | BF159: 0 | BG159: 0 | BH159: 2 | BI159: 1 | BJ159: 4 | BK159: Royal | BL159: Tam | BM159: Kett | BN159: Wreake | BO159: B&R | BP159: Corby | BQ159: 0 | BR159: 0 | BS159: G | BT159: F | BU159: I | BV159: X | BW159: C | BX159: O | CC159: 37 | CD159: 34 | CE159: 19 | CF159: 44 | CG159: 7 | CH159: 12
A160: =B160&"A" -> 66A | B160: 66 | C160: =VLOOKUP(B160,EventsOrder,2,FALSE) -> 3.3 | D160: =VLOOKUP(B160,EventsOrder,4,FALSE) -> U15 Male | E160: A | F160: =IF(MID(D160,5,1)="F","F","M") -> M | G160: U | H160: CC | I160: I | J160: G | K160: OO | L160: BB | M160: FF | O160: 28.63 | P160: 20.6 | Q160: 20.25 | R160: 18.37 | S160: 16.85 | T160: 14.15 | U160: 13.14 | W160: U | X160: CC | Y160: I | Z160: G | AA160: OO | AB160: BB | AC160: FF | AE160: =IF(LEN(G160)=0,"",VLOOKUP($B160,IF($F160="F",TeamSheetFemale,TeamSheetMale),CC160,FALSE)) -> Jack Lambert | AF160: Todd Green | AG160: Tapuwa Chitiga | AH160: James Ward | AI160: FINLAY WILSON | AJ160: harry waters | AK160: ANDREW WOODS | AM160: 7 | AN160: 4 | AO160: 6 | AP160: 8 | AQ160: 3 | AR160: 2 | AS160: 5 | AT160: 0 | AU160: 20.6 | AV160: 16.85 | AW160: 20.25 | AX160: 28.63 | AY160: 14.15 | AZ160: 13.14 | BA160: 18.37 | BB160: 0 | BC160: 2 | BD160: 5 | BE160: 3 | BF160: 1 | BG160: 6 | BH160: 7 | BI160: 4 | BJ160: 0 | BK160: K&S | BL160: B&R | BM160: Kett | BN160: Royal | BO160: Corby | BP160: DASH | BQ160: Tam | BR160: 0 | BS160: U | BT160: C | BU160: I | BV160: G | BW160: O | BX160: B | BY160: F | CC160: =IF(LEN(G160)=0,"",HLOOKUP(BS160,$CC$26:$CJ$28,2,FALSE)+IF(LEN(G160)=2,2,0)) -> 22 | CD160: 9 | CE160: 17 | CF160: 37 | CG160: 14 | CH160: 29 | CI160: 34
A161: =B160&"B" -> 66B | D161: =VLOOKUP(B160,EventsOrder,3,FALSE) -> Discus | E161: B | G161: C | H161: O | I161: B | J161: II | O161: 20.34 | P161: 13.35 | Q161: 12.69 | R161: 12.15 | W161: C | X161: O | Y161: B | Z161: II | AE161: =IF(LEN(G161)=0,"",VLOOKUP($B160,IF($F160="F",TeamSheetFemale,TeamSheetMale),CC161,FALSE)) -> Lewis Byng | AF161: ADAM McCRONE | AG161: adam bodin | AH161: Josh Cannell | AM161: 8 | AN161: 7 | AO161: 5 | AP161: 0 | AQ161: 6 | AR161: 0 | AS161: 0 | AT161: 0 | AU161: 20.34 | AV161: 13.35 | AW161: 12.15 | AX161: 0 | AY161: 12.69 | AZ161: 0 | BA161: 0 | BB161: 0 | BC161: 1 | BD161: 2 | BE161: 4 | BF161: 0 | BG161: 3 | BH161: 0 | BI161: 0 | BJ161: 0 | BK161: B&R | BL161: Corby | BM161: DASH | BN161: Kett | BO161: 0 | BP161: 0 | BQ161: 0 | BR161: 0 | BS161: C | BT161: O | BU161: B | BV161: I | CC161: 7 | CD161: 12 | CE161: 27 | CF161: 19
A162: =B162&"A" -> 67A | B162: 67 | C162: =VLOOKUP(B162,EventsOrder,2,FALSE) -> 3.3 | D162: =VLOOKUP(B162,EventsOrder,4,FALSE) -> U17 Men | E162: A | F162: =IF(MID(D162,5,1)="F","F","M") -> M | AE162: =IF(LEN(G162)=0,"",VLOOKUP($B162,IF($F162="F",TeamSheetFemale,TeamSheetMale),CC162,FALSE)) ->  | AM162: 0 | AN162: 0 | AO162: 0 | AP162: 0 | AQ162: 0 | AR162: 0 | AS162: 0 | AT162: 0 | AU162: 0 | AV162: 0 | AW162: 0 | AX162: 0 | AY162: 0 | AZ162: 0 | BA162: 0 | BB162: 0 | BC162: =IF(ISNA(MATCH(BC$29,$BS162:$BZ162,0)),0,MATCH(BC$29,$BS162:$BZ162,0)) -> 0 | BD162: 0 | BE162: 0 | BF162: 0 | BG162: 0 | BH162: 0 | BI162: 0 | BJ162: 0 | BK162: 0 | BL162: 0 | BM162: 0 | BN162: 0 | BO162: 0 | BP162: 0 | BQ162: 0 | BR162: 0
A163: =B162&"B" -> 67B | D163: =VLOOKUP(B162,EventsOrder,3,FALSE) -> Javelin | E163: B | AE163: =IF(LEN(G163)=0,"",VLOOKUP($B162,IF($F162="F",TeamSheetFemale,TeamSheetMale),CC163,FALSE)) ->  | AM163: 0 | AN163: 0 | AO163: 0 | AP163: 0 | AQ163: 0 | AR163: 0 | AS163: 0 | AT163: 0 | AU163: =OFFSET($N163,0,BC163) -> 0 | AV163: =OFFSET($N163,0,BD163) -> 0 | AW163: =OFFSET($N163,0,BE163) -> 0 | AX163: =OFFSET($N163,0,BF163) -> 0 | AY163: 0 | AZ163: 0 | BA163: 0 | BB163: 0 | BC163: 0 | BD163: 0 | BE163: 0 | BF163: 0 | BG163: 0 | BH163: 0 | BI163: 0 | BJ163: 0 | BK163: 0 | BL163: 0 | BM163: 0 | BN163: 0 | BO163: 0 | BP163: 0 | BQ163: 0 | BR163: 0
A164: =B164&"A" -> 68A | B164: 68 | C164: =VLOOKUP(B164,EventsOrder,2,FALSE) -> 3.4 | D164: =VLOOKUP(B164,EventsOrder,4,FALSE) -> U15 Female | E164: A | F164: =IF(MID(D164,5,1)="F","F","M") -> F | G164: F | H164: B | I164: X | J164: U | K164: I | L164: O | M164: C | N164: G | O164: 27.6 | P164: 28.1 | Q164: 29 | R164: 29.6 | S164: 29.7 | T164: 30.5 | U164: 30.9 | V164: 35.7 | W164: F | X164: B | Y164: X | Z164: U | AA164: I | AB164: O | AC164: C | AD164: G | AE164: =IF(LEN(G164)=0,"",VLOOKUP($B164,IF($F164="F",TeamSheetFemale,TeamSheetMale),CC164,FALSE)) -> LUCY WHEELER | AF164: zara millward | AG164: Josie Orange | AH164: Monica Aresu | AI164: Alex Beale | AJ164: ALICE MERRIMAM | AK164: Eva James | AL164: Chelsea Parkes | AM164: 2 | AN164: 3 | AO164: 4 | AP164: 5 | AQ164: 7 | AR164: 8 | AS164: 1 | AT164: 6 | AU164: 30.9 | AV164: 30.5 | AW164: 29.7 | AX164: 29.6 | AY164: 28.1 | AZ164: 27.6 | BA164: 35.7 | BB164: 29 | BC164: 7 | BD164: 6 | BE164: 5 | BF164: 4 | BG164: 2 | BH164: 1 | BI164: 8 | BJ164: 3 | BK164: Tam | BL164: DASH | BM164: Wreake | BN164: K&S | BO164: Kett | BP164: Corby | BQ164: B&R | BR164: Royal | BS164: F | BT164: B | BU164: X | BV164: U | BW164: I | BX164: O | BY164: C | BZ164: G | CC164: 32 | CD164: 27 | CE164: 42 | CF164: 22 | CG164: 17 | CH164: 12 | CI164: 7 | CJ164: 37
A165: =B164&"B" -> 68B | D165: =VLOOKUP(B164,EventsOrder,3,FALSE) -> 200m | E165: B | G165: XX | H165: BB | I165: II | J165: FF | K165: OO | L165: UU | M165: CC | N165: GG | O165: 29.9 | P165: 29.9 | Q165: 30.3 | R165: 30.5 | S165: 31.1 | T165: 31.6 | U165: 31.9 | V165: 34.9 | W165: XX | X165: BB | Y165: II | Z165: FF | AA165: OO | AB165: UU | AC165: CC | AD165: GG | AE165: =IF(LEN(G165)=0,"",VLOOKUP($B164,IF($F164="F",TeamSheetFemale,TeamSheetMale),CC165,FALSE)) -> Megan Luxford | AF165: LAUREN MILLWARD | AG165: Rhianna Paris-Smith | AH165: RACHEL WEST | AI165: GEORGIA MILLS | AJ165: Rosie Meacham | AK165: Katie Holloway | AL165: Maddy Underwood | AM165: 2 | AN165: 4 | AO165: 6 | AP165: 3 | AQ165: 7 | AR165: 5 | AS165: 1 | AT165: 8 | AU165: 31.9 | AV165: 31.1 | AW165: 30.3 | AX165: 31.6 | AY165: 29.9 | AZ165: 30.5 | BA165: 34.9 | BB165: 29.9 | BC165: 7 | BD165: 5 | BE165: 3 | BF165: 6 | BG165: 2 | BH165: 4 | BI165: 8 | BJ165: 1 | BK165: Wreake | BL165: DASH | BM165: Kett | BN165: Tam | BO165: Corby | BP165: K&S | BQ165: B&R | BR165: Royal | BS165: X | BT165: B | BU165: I | BV165: F | BW165: O | BX165: U | BY165: C | BZ165: G | CC165: 44 | CD165: 29 | CE165: 19 | CF165: 34 | CG165: 14 | CH165: 24 | CI165: 9 | CJ165: 39
A166: =B166&"A" -> 69A | B166: 69 | C166: =VLOOKUP(B166,EventsOrder,2,FALSE) -> 3.45 | D166: =VLOOKUP(B166,EventsOrder,4,FALSE) -> U17 F/Women | E166: A | F166: =IF(MID(D166,5,1)="F","F","M") -> F | G166: f | H166: b | I166: i | J166: g | K166: u | L166: o | M166: c | O166: 26.9 | P166: 27.8 | Q166: 29.1 | R166: 29.5 | S166: 29.7 | T166: 30.3 | U166: 31 | W166: F | X166: B | Y166: I | Z166: G | AA166: U | AB166: O | AC166: C | AE166: =IF(LEN(G166)=0,"",VLOOKUP($B166,IF($F166="F",TeamSheetFemale,TeamSheetMale),CC166,FALSE)) -> ALICE MELLORU17 | AF166: racheal timothy SEN | AG166: Meghan Mills-Amissah | AH166: Rachel Iliffe | AI166: Sarah Stuart-Smith U23 | AJ166: TEMAYA MAYO | AK166: Victoria Bartlett U17 | AM166: 2 | AN166: 3 | AO166: 6 | AP166: 4 | AQ166: 7 | AR166: 8 | AS166: 5 | AT166: 0 | AU166: 31 | AV166: 30.3 | AW166: 29.1 | AX166: 29.7 | AY166: 27.8 | AZ166: 26.9 | BA166: 29.5 | BB166: 0 | BC166: 7 | BD166: 6 | BE166: 3 | BF166: 5 | BG166: 2 | BH166: 1 | BI166: 4 | BJ166: 0 | BK166: Tam | BL166: DASH | BM166: Kett | BN166: Royal | BO166: K&S | BP166: Corby | BQ166: B&R | BR166: 0 | BS166: f | BT166: b | BU166: i | BV166: g | BW166: u | BX166: o | BY166: c | CC166: 32 | CD166: 27 | CE166: 17 | CF166: 37 | CG166: 22 | CH166: 12 | CI166: 7
A167: =B166&"B" -> 69B | D167: =VLOOKUP(B166,EventsOrder,3,FALSE) -> 200m | E167: B | G167: ff | H167: gg | I167: uu | J167: bb | K167: cc | L167: ii | O167: 27.1 | P167: 28.3 | Q167: 29.4 | R167: 29.6 | S167: 30 | T167: 30.7 | W167: FF | X167: GG | Y167: UU | Z167: BB | AA167: CC | AB167: II | AE167: =IF(LEN(G167)=0,"",VLOOKUP($B166,IF($F166="F",TeamSheetFemale,TeamSheetMale),CC167,FALSE)) -> ISABELLE NEVILLE U17 | AF167: Jenny Hopkinson | AG167: Ella DiMambro U17 | AH167: lauren hemmings | AI167: Harriet Moseley U17 | AJ167: Niamh Ruffles | AM167: 4 | AN167: 0 | AO167: 3 | AP167: 6 | AQ167: 5 | AR167: 8 | AS167: 7 | AT167: 0 | AU167: 30 | AV167: 0 | AW167: 30.7 | AX167: 29.4 | AY167: 29.6 | AZ167: 27.1 | BA167: 28.3 | BB167: 0 | BC167: 5 | BD167: 0 | BE167: 6 | BF167: 3 | BG167: 4 | BH167: 1 | BI167: 2 | BJ167: 0 | BK167: Tam | BL167: Royal | BM167: K&S | BN167: DASH | BO167: B&R | BP167: Kett | BQ167: 0 | BR167: 0 | BS167: f | BT167: g | BU167: u | BV167: b | BW167: c | BX167: i | CC167: 34 | CD167: 39 | CE167: 24 | CF167: 29 | CG167: 9 | CH167: 19
A168: =B168&"A" -> 70A | B168: 70 | C168: =VLOOKUP(B168,EventsOrder,2,FALSE) -> 3.5 | D168: =VLOOKUP(B168,EventsOrder,4,FALSE) -> U13 Male | E168: A | F168: =IF(MID(D168,5,1)="F","F","M") -> M | G168: X | H168: O | I168: I | J168: B | K168: F | L168: C | M168: G | N168: U | O168: 29.1 | P168: 30.3 | Q168: 30.7 | R168: 30.8 | S168: 32 | T168: 32.1 | U168: 32.3 | V168: 40.1 | W168: X | X168: O | Y168: I | Z168: B | AA168: F | AB168: c | AC168: G | AD168: U | AE168: =IF(LEN(G168)=0,"",VLOOKUP($B168,IF($F168="F",TeamSheetFemale,TeamSheetMale),CC168,FALSE)) -> Jacob Fairhurst | AF168: LUCA MAYES | AG168: Cole Sinnott | AH168: tavindra kumar | AI168: JOEL BICKLEY | AJ168: Joshua Keyte | AK168: Joseph Creed | AL168: Finlay Hudson | AM168: 3 | AN168: 7 | AO168: 6 | AP168: 1 | AQ168: 5 | AR168: 4 | AS168: 2 | AT168: 8 | AU168: 32.1 | AV168: 30.3 | AW168: 30.7 | AX168: 40.1 | AY168: 30.8 | AZ168: 32 | BA168: 32.3 | BB168: 29.1 | BC168: 6 | BD168: 2 | BE168: 3 | BF168: 8 | BG168: 4 | BH168: 5 | BI168: 7 | BJ168: 1 | BK168: Wreake | BL168: Corby | BM168: Kett | BN168: DASH | BO168: Tam | BP168: B&R | BQ168: Royal | BR168: K&S | BS168: X | BT168: O | BU168: I | BV168: B | BW168: F | BX168: C | BY168: G | BZ168: U | CC168: 42 | CD168: 12 | CE168: 17 | CF168: 27 | CG168: 32 | CH168: 7 | CI168: 37 | CJ168: 22
A169: =B168&"B" -> 70B | D169: =VLOOKUP(B168,EventsOrder,3,FALSE) -> 200m | E169: B | G169: XX | H169: OO | I169: II | J169: CC | K169: BB | L169: GG | O169: 29.8 | P169: 30.6 | Q169: 30.7 | R169: 33.4 | S169: 34.5 | T169: 34.9 | W169: XX | X169: OO | Y169: II | Z169: cc | AA169: BB | AB169: GG | AE169: =IF(LEN(G169)=0,"",VLOOKUP($B168,IF($F168="F",TeamSheetFemale,TeamSheetMale),CC169,FALSE)) -> David Saidu | AF169: ARCHIE PARKINSON | AG169: Max Mowforth | AH169: Jake Swann | AI169: zak thurley | AJ169: David Iliffe | AM169: 5 | AN169: 7 | AO169: 6 | AP169: 0 | AQ169: 4 | AR169: 0 | AS169: 3 | AT169: 8 | AU169: 33.4 | AV169: 30.6 | AW169: 30.7 | AX169: 0 | AY169: 34.5 | AZ169: 0 | BA169: 34.9 | BB169: 29.8 | BC169: 4 | BD169: 2 | BE169: 3 | BF169: 0 | BG169: 5 | BH169: 0 | BI169: 6 | BJ169: 1 | BK169: Wreake | BL169: Corby | BM169: Kett | BN169: B&R | BO169: DASH | BP169: Royal | BQ169: 0 | BR169: 0 | BS169: X | BT169: O | BU169: I | BV169: C | BW169: B | BX169: G | CC169: 44 | CD169: 14 | CE169: 19 | CF169: 9 | CG169: 29 | CH169: 39
A170: =B170&"A" -> 71A | B170: 71 | C170: =VLOOKUP(B170,EventsOrder,2,FALSE) -> 3.55 | D170: =VLOOKUP(B170,EventsOrder,4,FALSE) -> U15 Male | E170: A | F170: =IF(MID(D170,5,1)="F","F","M") -> M | G170: C | H170: I | I170: F | J170: G | K170: B | L170: O | M170: X | O170: 24.5 | P170: 25.6 | Q170: 26.2 | R170: 26.3 | S170: 27 | T170: 27.5 | U170: 30.8 | W170: C | X170: I | Y170: F | Z170: G | AA170: B | AB170: O | AC170: X | AE170: =IF(LEN(G170)=0,"",VLOOKUP($B170,IF($F170="F",TeamSheetFemale,TeamSheetMale),CC170,FALSE)) -> Josh Pearson | AF170: Tapuwa Chitiga | AG170: CONNOR HEPPLE | AH170: George Creed | AI170: josh galloway | AJ170: SAM HAINES | AK170: Josh Rocks | AM170: 8 | AN170: 3 | AO170: 7 | AP170: 0 | AQ170: 4 | AR170: 6 | AS170: 5 | AT170: 2 | AU170: 24.5 | AV170: 27.5 | AW170: 25.6 | AX170: 0 | AY170: 27 | AZ170: 26.2 | BA170: 26.3 | BB170: 30.8 | BC170: 1 | BD170: 6 | BE170: 2 | BF170: 0 | BG170: 5 | BH170: 3 | BI170: 4 | BJ170: 7 | BK170: B&R | BL170: Kett | BM170: Tam | BN170: Royal | BO170: DASH | BP170: Corby | BQ170: Wreake | BR170: 0 | BS170: C | BT170: I | BU170: F | BV170: G | BW170: B | BX170: O | BY170: X | CC170: 7 | CD170: 17 | CE170: 32 | CF170: 37 | CG170: 27 | CH170: 12 | CI170: 42
A171: =B170&"B" -> 71B | D171: =VLOOKUP(B170,EventsOrder,3,FALSE) -> 200m | E171: B | G171: FF | H171: GG | I171: CC | J171: II | K171: OO | O171: 26.1 | P171: 26.5 | Q171: 28 | R171: 29.1 | S171: 30.7 | W171: FF | X171: GG | Y171: CC | Z171: II | AA171: OO | AE171: =IF(LEN(G171)=0,"",VLOOKUP($B170,IF($F170="F",TeamSheetFemale,TeamSheetMale),CC171,FALSE)) -> DAN CARTWRIGHT | AF171: Sam Grimshaw | AG171: George Clements | AH171: Dylan Mukhtar | AI171: JACOB MORRIS | AM171: 6 | AN171: 4 | AO171: 5 | AP171: 0 | AQ171: 0 | AR171: 8 | AS171: 7 | AT171: 0 | AU171: 28 | AV171: 30.7 | AW171: 29.1 | AX171: 0 | AY171: 0 | AZ171: 26.1 | BA171: 26.5 | BB171: 0 | BC171: 3 | BD171: 5 | BE171: 4 | BF171: 0 | BG171: 0 | BH171: 1 | BI171: 2 | BJ171: 0 | BK171: Tam | BL171: Royal | BM171: B&R | BN171: Kett | BO171: Corby | BP171: 0 | BQ171: 0 | BR171: 0 | BS171: F | BT171: G | BU171: C | BV171: I | BW171: O | CC171: 34 | CD171: 39 | CE171: 9 | CF171: 19 | CG171: 14
A172: =B172&"A" -> 72A | B172: 72 | C172: =VLOOKUP(B172,EventsOrder,2,FALSE) -> 4 | D172: =VLOOKUP(B172,EventsOrder,4,FALSE) -> U17 Men | E172: A | F172: =IF(MID(D172,5,1)="F","F","M") -> M | G172: B | H172: O | I172: G | J172: U | K172: C | L172: F | O172: 24.8 | P172: 25 | Q172: 25.1 | R172: 25.4 | S172: 26.8 | T172: 28.7 | W172: B | X172: O | Y172: G | Z172: U | AA172: C | AB172: F | AE172: =IF(LEN(G172)=0,"",VLOOKUP($B172,IF($F172="F",TeamSheetFemale,TeamSheetMale),CC172,FALSE)) -> ladi abudu | AF172: HARRY MERRIMAN | AG172: Ethan Brough | AH172: Greggory Forrester | AI172: Isaac Hill | AJ172: DANIEL JAMES | AM172: 4 | AN172: 7 | AO172: 0 | AP172: 5 | AQ172: 8 | AR172: 3 | AS172: 6 | AT172: 0 | AU172: 26.8 | AV172: 25 | AW172: 0 | AX172: 25.4 | AY172: 24.8 | AZ172: 28.7 | BA172: 25.1 | BB172: 0 | BC172: 5 | BD172: 2 | BE172: 0 | BF172: 4 | BG172: 1 | BH172: 6 | BI172: 3 | BJ172: 0 | BK172: DASH | BL172: Corby | BM172: Royal | BN172: K&S | BO172: B&R | BP172: Tam | BQ172: 0 | BR172: 0 | BS172: B | BT172: O | BU172: G | BV172: U | BW172: C | BX172: F | CC172: 27 | CD172: 12 | CE172: 37 | CF172: 22 | CG172: 7 | CH172: 32
A173: =B172&"B" -> 72B | D173: =VLOOKUP(B172,EventsOrder,3,FALSE) -> 200m | E173: B | G173: GG | H173: UU | I173: BB | J173: CC | O173: 24.9 | P173: 25.1 | Q173: 26.3 | R173: 26.9 | W173: GG | X173: UU | Y173: BB | Z173: CC | AE173: =IF(LEN(G173)=0,"",VLOOKUP($B172,IF($F172="F",TeamSheetFemale,TeamSheetMale),CC173,FALSE)) -> Cameron Kirkbride | AF173: Justin Lee | AG173: nathaniel green | AH173: Rory Dodson | AM173: 5 | AN173: 0 | AO173: 0 | AP173: 7 | AQ173: 6 | AR173: 0 | AS173: 8 | AT173: 0 | AU173: 26.9 | AV173: 0 | AW173: 0 | AX173: 25.1 | AY173: 26.3 | AZ173: 0 | BA173: 24.9 | BB173: 0 | BC173: 4 | BD173: 0 | BE173: 0 | BF173: 2 | BG173: 3 | BH173: 0 | BI173: 1 | BJ173: 0 | BK173: Royal | BL173: K&S | BM173: DASH | BN173: B&R | BO173: 0 | BP173: 0 | BQ173: 0 | BR173: 0 | BS173: G | BT173: U | BU173: B | BV173: C | CC173: 39 | CD173: 24 | CE173: 29 | CF173: 9
A174: =B174&"A" -> 73A | B174: 73 | C174: =VLOOKUP(B174,EventsOrder,2,FALSE) -> 4.2 | D174: =VLOOKUP(B174,EventsOrder,4,FALSE) -> U13 Male | E174: A | F174: =IF(MID(D174,5,1)="F","F","M") -> M | G174: C | H174: F | I174: I | J174: B | K174: O | L174: X | M174: G | O174: 5.12.2 | P174: 5.14.8 | Q174: 5.22.6 | R174: 5.28.7 | S174: 5.50.9 | T174: 5.56.7 | U174: 6.04.1 | W174: c | X174: F | Y174: I | Z174: B | AA174: 0 | AB174: X | AC174: G | AE174: =IF(LEN(G174)=0,"",VLOOKUP($B174,IF($F174="F",TeamSheetFemale,TeamSheetMale),CC174,FALSE)) -> Joshua Robbins | AF174: JAMES SHERRIFF | AG174: Ollie Reed | AH174: alex hurrell | AI174: 0 | AJ174: Charlie Rennie | AK174: Elliot Smith | AM174: 8 | AN174: 4 | AO174: 6 | AP174: 0 | AQ174: 5 | AR174: 7 | AS174: 2 | AT174: 3 | AU174: 5.12.2 | AV174: 5.50.9 | AW174: 5.22.6 | AX174: 0 | AY174: 5.28.7 | AZ174: 5.14.8 | BA174: 6.04.1 | BB174: 5.56.7 | BC174: 1 | BD174: 5 | BE174: 3 | BF174: 0 | BG174: 4 | BH174: 2 | BI174: 7 | BJ174: 6 | BK174: B&R | BL174: Tam | BM174: Kett | BN174: DASH | BO174: Corby | BP174: Wreake | BQ174: Royal | BR174: 0 | BS174: C | BT174: F | BU174: I | BV174: B | BW174: O | BX174: X | BY174: G | CC174: 7 | CD174: =IF(LEN(H174)=0,"",HLOOKUP(BT174,$CC$26:$CJ$28,2,FALSE)+IF(LEN(H174)=2,2,0)) -> 32 | CE174: =IF(LEN(I174)=0,"",HLOOKUP(BU174,$CC$26:$CJ$28,2,FALSE)+IF(LEN(I174)=2,2,0)) -> 17 | CF174: =IF(LEN(J174)=0,"",HLOOKUP(BV174,$CC$26:$CJ$28,2,FALSE)+IF(LEN(J174)=2,2,0)) -> 27 | CG174: =IF(LEN(K174)=0,"",HLOOKUP(BW174,$CC$26:$CJ$28,2,FALSE)+IF(LEN(K174)=2,2,0)) -> 12 | CH174: =IF(LEN(L174)=0,"",HLOOKUP(BX174,$CC$26:$CJ$28,2,FALSE)+IF(LEN(L174)=2,2,0)) -> 42 | CI174: =IF(LEN(M174)=0,"",HLOOKUP(BY174,$CC$26:$CJ$28,2,FALSE)+IF(LEN(M174)=2,2,0)) -> 37 | CJ174: =IF(LEN(N174)=0,"",HLOOKUP(BZ174,$CC$26:$CJ$28,2,FALSE)+IF(LEN(N174)=2,2,0)) -> 
A175: =B174&"B" -> 73B | D175: =VLOOKUP(B174,EventsOrder,3,FALSE) -> 1500m | E175: B | G175: XX | H175: CC | I175: II | O175: 5.26.4 | P175: 5.32.3 | Q175: 6.11.3 | W175: XX | X175: cc | Y175: II | AE175: =IF(LEN(G175)=0,"",VLOOKUP($B174,IF($F174="F",TeamSheetFemale,TeamSheetMale),CC175,FALSE)) -> Ethan Patel | AF175: Joe Cunliffe | AG175: Ryan Raulia | AM175: 7 | AN175: 0 | AO175: 6 | AP175: 0 | AQ175: 0 | AR175: 0 | AS175: 0 | AT175: 8 | AU175: 5.32.3 | AV175: 0 | AW175: 6.11.3 | AX175: 0 | AY175: 0 | AZ175: 0 | BA175: 0 | BB175: 5.26.4 | BC175: 2 | BD175: 0 | BE175: 3 | BF175: 0 | BG175: 0 | BH175: 0 | BI175: 0 | BJ175: 1 | BK175: Wreake | BL175: B&R | BM175: Kett | BN175: 0 | BO175: 0 | BP175: 0 | BQ175: 0 | BR175: 0 | BS175: X | BT175: C | BU175: I | CC175: 44 | CD175: 9 | CE175: 19
A176: =B176&"A" -> 74A | B176: 74 | C176: =VLOOKUP(B176,EventsOrder,2,FALSE) -> 4.1 | D176: =VLOOKUP(B176,EventsOrder,4,FALSE) -> U17 Men | E176: A | F176: =IF(MID(D176,5,1)="F","F","M") -> M | AE176: =IF(LEN(G176)=0,"",VLOOKUP($B176,IF($F176="F",TeamSheetFemale,TeamSheetMale),CC176,FALSE)) ->  | AM176: 0 | AN176: 0 | AO176: 0 | AP176: 0 | AQ176: 0 | AR176: 0 | AS176: 0 | AT176: 0 | AU176: =OFFSET($N176,0,BC176) -> 0 | AV176: 0 | AW176: 0 | AX176: 0 | AY176: 0 | AZ176: 0 | BA176: 0 | BB176: 0 | BC176: 0 | BD176: 0 | BE176: 0 | BF176: 0 | BG176: 0 | BH176: 0 | BI176: 0 | BJ176: 0 | BK176: 0 | BL176: 0 | BM176: 0 | BN176: 0 | BO176: 0 | BP176: 0 | BQ176: 0 | BR176: 0
A177: =B176&"B" -> 74B | D177: =VLOOKUP(B176,EventsOrder,3,FALSE) -> High Jump | E177: B | AE177: =IF(LEN(G177)=0,"",VLOOKUP($B176,IF($F176="F",TeamSheetFemale,TeamSheetMale),CC177,FALSE)) ->  | AM177: 0 | AN177: 0 | AO177: 0 | AP177: 0 | AQ177: 0 | AR177: 0 | AS177: 0 | AT177: 0 | AU177: 0 | AV177: 0 | AW177: 0 | AX177: 0 | AY177: 0 | AZ177: 0 | BA177: 0 | BB177: 0 | BC177: 0 | BD177: 0 | BE177: 0 | BF177: 0 | BG177: 0 | BH177: 0 | BI177: 0 | BJ177: 0 | BK177: 0 | BL177: 0 | BM177: 0 | BN177: 0 | BO177: 0 | BP177: 0 | BQ177: 0 | BR177: 0
A178: =B178&"A" -> 75A | B178: 75 | C178: =VLOOKUP(B178,EventsOrder,2,FALSE) -> 4 | D178: =VLOOKUP(B178,EventsOrder,4,FALSE) -> U17 F/Women | E178: A | F178: =IF(MID(D178,5,1)="F","F","M") -> F | G178: G | H178: U | I178: I | J178: O | K178: CC | L178: B | M178: F | O178: 4.67 | P178: 4.4 | Q178: 4 | R178: 3.98 | S178: 3.63 | T178: 3.22 | U178: 3.14 | W178: G | X178: U | Y178: I | Z178: O | AA178: CC | AB178: B | AC178: F | AE178: =IF(LEN(G178)=0,"",VLOOKUP($B178,IF($F178="F",TeamSheetFemale,TeamSheetMale),CC178,FALSE)) -> Megan Evans | AF178: Hannah Johnson | AG178: Meghan Mills-Amissah | AH178: TEMAYA MAYO | AI178: Harriet Moseley U17 | AJ178: annabel mullinder | AK178: BETHANY DEVONSHIRE U17 | AM178: 4 | AN178: 5 | AO178: 6 | AP178: 7 | AQ178: 3 | AR178: 2 | AS178: 8 | AT178: 0 | AU178: 3.63 | AV178: 3.98 | AW178: 4 | AX178: 4.4 | AY178: 3.22 | AZ178: 3.14 | BA178: 4.67 | BB178: 0 | BC178: =IF(ISNA(MATCH(BC$29,$BS178:$BZ178,0)),0,MATCH(BC$29,$BS178:$BZ178,0)) -> 5 | BD178: 4 | BE178: 3 | BF178: 2 | BG178: 6 | BH178: 7 | BI178: 1 | BJ178: 0 | BK178: Royal | BL178: K&S | BM178: Kett | BN178: Corby | BO178: B&R | BP178: DASH | BQ178: Tam | BR178: 0 | BS178: G | BT178: U | BU178: I | BV178: O | BW178: C | BX178: B | BY178: F | CC178: 37 | CD178: 22 | CE178: 17 | CF178: 12 | CG178: 9 | CH178: 27 | CI178: 32
A179: =B178&"B" -> 75B | D179: =VLOOKUP(B178,EventsOrder,3,FALSE) -> Long Jump | E179: B | G179: GG | H179: II | I179: C | O179: 4.18 | P179: 3.68 | Q179: 3.26 | W179: GG | X179: II | Y179: C | AE179: =IF(LEN(G179)=0,"",VLOOKUP($B178,IF($F178="F",TeamSheetFemale,TeamSheetMale),CC179,FALSE)) -> Rachel Iliffe | AF179: Chloe Hearne | AG179: Victoria Bartlett U17 | AM179: 6 | AN179: 0 | AO179: 7 | AP179: 0 | AQ179: 0 | AR179: 0 | AS179: 8 | AT179: 0 | AU179: 3.26 | AV179: 0 | AW179: 3.68 | AX179: 0 | AY179: 0 | AZ179: 0 | BA179: 4.18 | BB179: 0 | BC179: 3 | BD179: 0 | BE179: 2 | BF179: 0 | BG179: 0 | BH179: 0 | BI179: 1 | BJ179: 0 | BK179: Royal | BL179: Kett | BM179: B&R | BN179: 0 | BO179: 0 | BP179: 0 | BQ179: 0 | BR179: 0 | BS179: G | BT179: I | BU179: C | CC179: 39 | CD179: 19 | CE179: 7
A180: =B180&"A" -> 76A | B180: 76 | C180: =VLOOKUP(B180,EventsOrder,2,FALSE) -> 4.3 | D180: =VLOOKUP(B180,EventsOrder,4,FALSE) -> U15 Male | E180: A | F180: =IF(MID(D180,5,1)="F","F","M") -> M | G180: C | H180: B | I180: I | J180: U | K180: F | L180: G | M180: X | O180: 4.56.2 | P180: 5.00.1 | Q180: 5.09.3 | R180: 5.14.2 | S180: 5.18.5 | T180: 5.21.5 | U180: 6.11.6 | W180: C | X180: B | Y180: I | Z180: U | AA180: F | AB180: G | AC180: X | AE180: =IF(LEN(G180)=0,"",VLOOKUP($B180,IF($F180="F",TeamSheetFemale,TeamSheetMale),CC180,FALSE)) -> Tom Deykin | AF180: tom slater | AG180: Josh Cannell | AH180: Christopher Telling | AI180: ANDREW WOODS | AJ180: Ben White | AK180: Felix Miskin Young | AM180: 8 | AN180: 0 | AO180: 6 | AP180: 5 | AQ180: 7 | AR180: 4 | AS180: 3 | AT180: 2 | AU180: 4.56.2 | AV180: 0 | AW180: 5.09.3 | AX180: 5.14.2 | AY180: 5.00.1 | AZ180: 5.18.5 | BA180: 5.21.5 | BB180: 6.11.6 | BC180: 1 | BD180: 0 | BE180: 3 | BF180: 4 | BG180: 2 | BH180: 5 | BI180: 6 | BJ180: 7 | BK180: B&R | BL180: DASH | BM180: Kett | BN180: K&S | BO180: Tam | BP180: Royal | BQ180: Wreake | BR180: 0 | BS180: C | BT180: B | BU180: I | BV180: U | BW180: F | BX180: G | BY180: X | CC180: 7 | CD180: 27 | CE180: 17 | CF180: 22 | CG180: 32 | CH180: 37 | CI180: 42
A181: =B180&"B" -> 76B | D181: =VLOOKUP(B180,EventsOrder,3,FALSE) -> 1500m | E181: B | G181: FF | H181: CC | I181: BB | O181: 5.18.5 | P181: 5.41.5 | Q181: 5.44.5 | W181: FF | X181: CC | Y181: BB | AE181: =IF(LEN(G181)=0,"",VLOOKUP($B180,IF($F180="F",TeamSheetFemale,TeamSheetMale),CC181,FALSE)) -> MAX KENT | AF181: David Peaty | AG181: harry waters | AM181: 7 | AN181: 0 | AO181: 0 | AP181: 0 | AQ181: 6 | AR181: 8 | AS181: 0 | AT181: 0 | AU181: 5.41.5 | AV181: 0 | AW181: 0 | AX181: 0 | AY181: 5.44.5 | AZ181: 5.18.5 | BA181: 0 | BB181: 0 | BC181: 2 | BD181: 0 | BE181: 0 | BF181: 0 | BG181: 3 | BH181: 1 | BI181: 0 | BJ181: 0 | BK181: Tam | BL181: B&R | BM181: DASH | BN181: 0 | BO181: 0 | BP181: 0 | BQ181: 0 | BR181: 0 | BS181: F | BT181: C | BU181: B | CC181: 34 | CD181: 9 | CE181: 29
A182: =B182&"A" -> 77A | B182: 77 | C182: =VLOOKUP(B182,EventsOrder,2,FALSE) -> 4.2 | D182: =VLOOKUP(B182,EventsOrder,4,FALSE) -> U15 Female | E182: A | F182: =IF(MID(D182,5,1)="F","F","M") -> F | G182: U | H182: b | I182: o | J182: x | K182: I | L182: F | M182: CC | N182: G | O182: 9.43 | P182: 8.03 | Q182: 7.35 | R182: 6.58 | S182: 6.26 | T182: 5.69 | U182: 5.62 | V182: 5.16 | W182: U | X182: B | Y182: O | Z182: X | AA182: I | AB182: F | AC182: CC | AD182: G | AE182: =IF(LEN(G182)=0,"",VLOOKUP($B182,IF($F182="F",TeamSheetFemale,TeamSheetMale),CC182,FALSE)) -> Georgina knott | AF182: deborah sauni-noka | AG182: LAUREN McMULLEN | AH182: Megan Luxford | AI182: Rhianna Paris-Smith | AJ182: EMILY FINDLATER | AK182: Megan Pickup | AL182: Elley Criddle | AM182: 2 | AN182: 6 | AO182: 4 | AP182: 8 | AQ182: 7 | AR182: 3 | AS182: 1 | AT182: 5 | AU182: 5.62 | AV182: 7.35 | AW182: 6.26 | AX182: 9.43 | AY182: 8.03 | AZ182: 5.69 | BA182: 5.16 | BB182: 6.58 | BC182: 7 | BD182: 3 | BE182: 5 | BF182: 1 | BG182: 2 | BH182: 6 | BI182: 8 | BJ182: 4 | BK182: K&S | BL182: DASH | BM182: Corby | BN182: Wreake | BO182: Kett | BP182: Tam | BQ182: B&R | BR182: Royal | BS182: U | BT182: b | BU182: o | BV182: x | BW182: I | BX182: F | BY182: C | BZ182: G | CC182: 22 | CD182: 27 | CE182: 12 | CF182: 42 | CG182: 17 | CH182: 32 | CI182: 9 | CJ182: 37
A183: =B182&"B" -> 77B | D183: =VLOOKUP(B182,EventsOrder,3,FALSE) -> Shot | E183: B | G183: UU | H183: BB | I183: C | J183: FF | K183: XX | L183: GG | M183: OO | O183: 6.43 | P183: 5.02 | Q183: 4.88 | R183: 4.56 | S183: 4.37 | T183: 4.31 | U183: 3.88 | W183: UU | X183: 0 | Y183: C | Z183: FF | AA183: XX | AB183: GG | AC183: OO | AE183: =IF(LEN(G183)=0,"",VLOOKUP($B182,IF($F182="F",TeamSheetFemale,TeamSheetMale),CC183,FALSE)) -> jessica surridge | AF183: 0 | AG183: Amy Tongue | AH183: ERIN BUSH | AI183: Fern Harrison | AJ183: Beth Darrock | AK183: DONNA HERON | AM183: 6 | AN183: 2 | AO183: 0 | AP183: 8 | AQ183: 7 | AR183: 5 | AS183: 3 | AT183: 4 | AU183: 4.88 | AV183: 3.88 | AW183: 0 | AX183: 6.43 | AY183: 5.02 | AZ183: 4.56 | BA183: 4.31 | BB183: 4.37 | BC183: 3 | BD183: 7 | BE183: 0 | BF183: 1 | BG183: 2 | BH183: 4 | BI183: 6 | BJ183: 5 | BK183: K&S | BL183: DASH | BM183: B&R | BN183: Tam | BO183: Wreake | BP183: Royal | BQ183: Corby | BR183: 0 | BS183: U | BT183: B | BU183: C | BV183: F | BW183: X | BX183: G | BY183: O | CC183: 24 | CD183: 29 | CE183: 7 | CF183: 34 | CG183: 44 | CH183: 39 | CI183: 14
A184: =B184&"A" -> 78A | B184: 78 | C184: =VLOOKUP(B184,EventsOrder,2,FALSE) -> 4.2 | D184: =VLOOKUP(B184,EventsOrder,4,FALSE) -> U13 Male | E184: A | F184: =IF(MID(D184,5,1)="F","F","M") -> M | G184: B | H184: II | I184: C | J184: G | O184: 14.08 | P184: 13.36 | Q184: 11.78 | R184: 11.72 | W184: B | X184: II | Y184: c | Z184: G | AE184: =IF(LEN(G184)=0,"",VLOOKUP($B184,IF($F184="F",TeamSheetFemale,TeamSheetMale),CC184,FALSE)) -> micheal taylor | AF184: Ethan Nelis | AG184: James Pickup | AH184: Daniel Mills | AM184: 6 | AN184: 0 | AO184: 7 | AP184: 0 | AQ184: 8 | AR184: 0 | AS184: 5 | AT184: 0 | AU184: 11.78 | AV184: 0 | AW184: 13.36 | AX184: 0 | AY184: 14.08 | AZ184: 0 | BA184: 11.72 | BB184: 0 | BC184: 3 | BD184: 0 | BE184: 2 | BF184: 0 | BG184: 1 | BH184: 0 | BI184: 4 | BJ184: 0 | BK184: DASH | BL184: Kett | BM184: B&R | BN184: Royal | BO184: 0 | BP184: 0 | BQ184: 0 | BR184: 0 | BS184: B | BT184: I | BU184: C | BV184: G | CC184: 27 | CD184: 19 | CE184: 7 | CF184: 37
A185: =B184&"B" -> 78B | D185: =VLOOKUP(B184,EventsOrder,3,FALSE) -> Discus | E185: B | G185: I | H185: CC | I185: BB | O185: 13.3 | P185: 11.03 | Q185: 9.53 | W185: I | X185: cc | Y185: BB | AE185: =IF(LEN(G185)=0,"",VLOOKUP($B184,IF($F184="F",TeamSheetFemale,TeamSheetMale),CC185,FALSE)) -> Dylan Bowley | AF185: Dominic James | AG185: zak thurley | AM185: 7 | AN185: 0 | AO185: 8 | AP185: 0 | AQ185: 6 | AR185: 0 | AS185: 0 | AT185: 0 | AU185: 11.03 | AV185: 0 | AW185: 13.3 | AX185: 0 | AY185: 9.53 | AZ185: 0 | BA185: 0 | BB185: 0 | BC185: 2 | BD185: 0 | BE185: 1 | BF185: 0 | BG185: 3 | BH185: 0 | BI185: 0 | BJ185: 0 | BK185: Kett | BL185: B&R | BM185: DASH | BN185: 0 | BO185: 0 | BP185: 0 | BQ185: 0 | BR185: 0 | BS185: I | BT185: C | BU185: B | CC185: 17 | CD185: 9 | CE185: 29
A186: =B186&"A" -> 79A | B186: 79 | C186: =VLOOKUP(B186,EventsOrder,2,FALSE) -> 4.2 | D186: =VLOOKUP(B186,EventsOrder,4,FALSE) -> U13 Female | E186: A | F186: =IF(MID(D186,5,1)="F","F","M") -> F | AE186: =IF(LEN(G186)=0,"",VLOOKUP($B186,IF($F186="F",TeamSheetFemale,TeamSheetMale),CC186,FALSE)) ->  | AM186: 0 | AN186: 0 | AO186: 0 | AP186: 0 | AQ186: 0 | AR186: 0 | AS186: 0 | AT186: 0 | AU186: 0 | AV186: 0 | AW186: 0 | AX186: 0 | AY186: 0 | AZ186: 0 | BA186: 0 | BB186: 0 | BC186: 0 | BD186: 0 | BE186: 0 | BF186: 0 | BG186: 0 | BH186: 0 | BI186: 0 | BJ186: 0 | BK186: 0 | BL186: 0 | BM186: 0 | BN186: 0 | BO186: 0 | BP186: 0 | BQ186: 0 | BR186: 0
A187: =B186&"B" -> 79B | D187: =VLOOKUP(B186,EventsOrder,3,FALSE) -> Javelin | E187: B | AE187: =IF(LEN(G187)=0,"",VLOOKUP($B186,IF($F186="F",TeamSheetFemale,TeamSheetMale),CC187,FALSE)) ->  | AM187: 0 | AN187: 0 | AO187: 0 | AP187: 0 | AQ187: 0 | AR187: 0 | AS187: 0 | AT187: 0 | AU187: 0 | AV187: 0 | AW187: 0 | AX187: 0 | AY187: 0 | AZ187: 0 | BA187: 0 | BB187: 0 | BC187: 0 | BD187: 0 | BE187: 0 | BF187: 0 | BG187: 0 | BH187: 0 | BI187: 0 | BJ187: 0 | BK187: 0 | BL187: 0 | BM187: 0 | BN187: 0 | BO187: 0 | BP187: 0 | BQ187: 0 | BR187: 0
A188: =B188&"A" -> 80A | B188: 80 | C188: =VLOOKUP(B188,EventsOrder,2,FALSE) -> 4.4 | D188: =VLOOKUP(B188,EventsOrder,4,FALSE) -> U17 Men | E188: A | F188: =IF(MID(D188,5,1)="F","F","M") -> M | G188: C | H188: U | O188: 4.23.2 | P188: 4.54.0 | W188: C | X188: U | AE188: =IF(LEN(G188)=0,"",VLOOKUP($B188,IF($F188="F",TeamSheetFemale,TeamSheetMale),CC188,FALSE)) -> Conor Smith | AF188: Harry Higginson | AM188: 8 | AN188: 0 | AO188: 0 | AP188: 7 | AQ188: 0 | AR188: 0 | AS188: 0 | AT188: 0 | AU188: 4.23.2 | AV188: 0 | AW188: 0 | AX188: 4.54.0 | AY188: 0 | AZ188: 0 | BA188: 0 | BB188: 0 | BC188: 1 | BD188: 0 | BE188: 0 | BF188: 2 | BG188: 0 | BH188: 0 | BI188: 0 | BJ188: 0 | BK188: =IF(LEN(G188)>0,VLOOKUP(LEFT(G188,1),Clubs,5,FALSE),0) -> B&R | BL188: =IF(LEN(H188)>0,VLOOKUP(LEFT(H188,1),Clubs,5,FALSE),0) -> K&S | BM188: =IF(LEN(I188)>0,VLOOKUP(LEFT(I188,1),Clubs,5,FALSE),0) -> 0 | BN188: =IF(LEN(J188)>0,VLOOKUP(LEFT(J188,1),Clubs,5,FALSE),0) -> 0 | BO188: =IF(LEN(K188)>0,VLOOKUP(LEFT(K188,1),Clubs,5,FALSE),0) -> 0 | BP188: =IF(LEN(L188)>0,VLOOKUP(LEFT(L188,1),Clubs,5,FALSE),0) -> 0 | BQ188: =IF(LEN(M188)>0,VLOOKUP(LEFT(M188,1),Clubs,5,FALSE),0) -> 0 | BR188: =IF(LEN(N188)>0,VLOOKUP(LEFT(N188,1),Clubs,5,FALSE),0) -> 0 | BS188: =LEFT(G188,1) -> C | BT188: U | CC188: 7 | CD188: 22
A189: =B188&"B" -> 80B | D189: =VLOOKUP(B188,EventsOrder,3,FALSE) -> 1500m | E189: B | G189: CC | H189: UU | O189: 4.31.0 | P189: 5.25.6 | W189: CC | X189: UU | AE189: =IF(LEN(G189)=0,"",VLOOKUP($B188,IF($F188="F",TeamSheetFemale,TeamSheetMale),CC189,FALSE)) -> Gareth Richardson | AF189: Thomas Palmer | AM189: 8 | AN189: 0 | AO189: 0 | AP189: 7 | AQ189: 0 | AR189: 0 | AS189: 0 | AT189: 0 | AU189: 4.31.0 | AV189: 0 | AW189: 0 | AX189: 5.25.6 | AY189: =OFFSET($N189,0,BG189) -> 0 | AZ189: =OFFSET($N189,0,BH189) -> 0 | BA189: =OFFSET($N189,0,BI189) -> 0 | BB189: =OFFSET($N189,0,BJ189) -> 0 | BC189: 1 | BD189: 0 | BE189: 0 | BF189: 2 | BG189: 0 | BH189: 0 | BI189: 0 | BJ189: 0 | BK189: B&R | BL189: K&S | BM189: 0 | BN189: 0 | BO189: 0 | BP189: 0 | BQ189: 0 | BR189: 0 | BS189: C | BT189: =LEFT(H189,1) -> U | BU189: =LEFT(I189,1) ->  | BV189: =LEFT(J189,1) ->  | BW189: =LEFT(K189,1) ->  | BX189: =LEFT(L189,1) ->  | BY189: =LEFT(M189,1) ->  | BZ189: =LEFT(N189,1) ->  | CC189: 9 | CD189: 24
A190: =B190&"A" -> 81A | B190: 81 | C190: =VLOOKUP(B190,EventsOrder,2,FALSE) -> 4.5 | D190: =VLOOKUP(B190,EventsOrder,4,FALSE) -> U11 Fem/Male | E190: A | F190: =IF(MID(D190,5,1)="F","F","M") -> F | G190: G | H190: C | I190: I | J190: F | K190: B | L190: X | O190: 64.9 | P190: 67.2 | Q190: 67.6 | R190: 68.8 | S190: 69.2 | T190: 69.9 | W190: 0 | X190: 0 | Y190: 0 | Z190: 0 | AA190: 0 | AB190: 0 | AE190: =IF(LEN(G190)=0,"",VLOOKUP($B190,IF($F190="F",TeamSheetFemale,TeamSheetMale),CC190,FALSE)) -> Royal Sutton | AF190: Brom & Redditch | AG190: Kettering | AH190: Tamworth | AI190: Dudley & S'bridge | AJ190: Wreake Runners | AM190: =IF(OR($F190="NS",AU190="DNF"),0,IF(BC190>0,$BK$29+1-BC190,0)) -> 7 | AN190: =IF(OR($F190="NS",AV190="DNF"),0,IF(BD190>0,$BK$29+1-BD190,0)) -> 0 | AO190: =IF(OR($F190="NS",AW190="DNF"),0,IF(BE190>0,$BK$29+1-BE190,0)) -> 6 | AP190: =IF(OR($F190="NS",AX190="DNF"),0,IF(BF190>0,$BK$29+1-BF190,0)) -> 0 | AQ190: =IF(OR($F190="NS",AY190="DNF"),0,IF(BG190>0,$BK$29+1-BG190,0)) -> 4 | AR190: =IF(OR($F190="NS",AZ190="DNF"),0,IF(BH190>0,$BK$29+1-BH190,0)) -> 5 | AS190: =IF(OR($F190="NS",BA190="DNF"),0,IF(BI190>0,$BK$29+1-BI190,0)) -> 8 | AT190: =IF(OR($F190="NS",BB190="DNF"),0,IF(BJ190>0,$BK$29+1-BJ190,0)) -> 3 | AU190: 67.2 | AV190: 0 | AW190: 67.6 | AX190: 0 | AY190: 69.2 | AZ190: 68.8 | BA190: 64.9 | BB190: 69.9 | BC190: 2 | BD190: 0 | BE190: 3 | BF190: 0 | BG190: 5 | BH190: 4 | BI190: 1 | BJ190: 6 | BK190: Royal | BL190: B&R | BM190: Kett | BN190: Tam | BO190: DASH | BP190: Wreake | BQ190: 0 | BR190: 0 | BS190: G | BT190: C | BU190: I | BV190: F | BW190: B | BX190: X | CC190: 37 | CD190: 7 | CE190: 17 | CF190: 32 | CG190: 27 | CH190: 42
A191: =B190&"B" -> 81B | D191: =VLOOKUP(B190,EventsOrder,3,FALSE) -> 4 x 100m Mixed | E191: B | AE191: =IF(LEN(G191)=0,"",VLOOKUP($B190,IF($F190="F",TeamSheetFemale,TeamSheetMale),CC191,FALSE)) ->  | AM191: 0 | AN191: 0 | AO191: 0 | AP191: 0 | AQ191: 0 | AR191: 0 | AS191: 0 | AT191: 0 | AU191: 0 | AV191: 0 | AW191: 0 | AX191: 0 | AY191: 0 | AZ191: 0 | BA191: 0 | BB191: 0 | BC191: 0 | BD191: 0 | BE191: 0 | BF191: 0 | BG191: 0 | BH191: 0 | BI191: 0 | BJ191: 0 | BK191: 0 | BL191: 0 | BM191: 0 | BN191: 0 | BO191: 0 | BP191: 0 | BQ191: 0 | BR191: 0
A192: =B192&"A" -> 82A | B192: 82 | C192: =VLOOKUP(B192,EventsOrder,2,FALSE) -> 4.55 | D192: =VLOOKUP(B192,EventsOrder,4,FALSE) -> U13 Female | E192: A | F192: =IF(MID(D192,5,1)="F","F","M") -> F | G192: B | H192: I | I192: C | J192: G | K192: F | L192: X | O192: 59.2 | P192: 60.2 | Q192: 62.2 | R192: 62.8 | S192: 62.9 | T192: 64.5 | W192: 0 | X192: 0 | Y192: 0 | Z192: 0 | AA192: 0 | AB192: 0 | AE192: =IF(LEN(G192)=0,"",VLOOKUP($B192,IF($F192="F",TeamSheetFemale,TeamSheetMale),CC192,FALSE)) -> 0 | AF192: Kettering | AG192: Brom & Redditch | AH192: Royal Sutton | AI192: Tamworth | AJ192: Wreake Runners | AM192: 6 | AN192: 0 | AO192: 7 | AP192: 0 | AQ192: 8 | AR192: 4 | AS192: 5 | AT192: 3 | AU192: 62.2 | AV192: 0 | AW192: 60.2 | AX192: 0 | AY192: 59.2 | AZ192: 62.9 | BA192: 62.8 | BB192: 64.5 | BC192: 3 | BD192: 0 | BE192: 2 | BF192: 0 | BG192: 1 | BH192: 5 | BI192: 4 | BJ192: 6 | BK192: DASH | BL192: Kett | BM192: B&R | BN192: Royal | BO192: Tam | BP192: Wreake | BQ192: 0 | BR192: 0 | BS192: B | BT192: I | BU192: C | BV192: G | BW192: F | BX192: X | CC192: =IF(LEN(G192)=0,"",HLOOKUP(BS192,$CC$26:$CJ$28,2,FALSE)+IF(LEN(G192)=2,2,0)) -> 27 | CD192: 17 | CE192: 7 | CF192: 37 | CG192: 32 | CH192: 42
A193: =B192&"B" -> 82B | D193: =VLOOKUP(B192,EventsOrder,3,FALSE) -> 4 x 100m | E193: B | AE193: =IF(LEN(G193)=0,"",VLOOKUP($B192,IF($F192="F",TeamSheetFemale,TeamSheetMale),CC193,FALSE)) ->  | AM193: 0 | AN193: 0 | AO193: 0 | AP193: 0 | AQ193: 0 | AR193: 0 | AS193: 0 | AT193: 0 | AU193: 0 | AV193: 0 | AW193: 0 | AX193: 0 | AY193: 0 | AZ193: 0 | BA193: 0 | BB193: 0 | BC193: 0 | BD193: 0 | BE193: 0 | BF193: 0 | BG193: 0 | BH193: 0 | BI193: 0 | BJ193: 0 | BK193: 0 | BL193: 0 | BM193: 0 | BN193: 0 | BO193: 0 | BP193: 0 | BQ193: 0 | BR193: 0
A194: =B194&"A" -> 83A | B194: 83 | C194: =VLOOKUP(B194,EventsOrder,2,FALSE) -> 5 | D194: =VLOOKUP(B194,EventsOrder,4,FALSE) -> U15 Female | E194: A | F194: =IF(MID(D194,5,1)="F","F","M") -> F | G194: B | H194: F | I194: X | J194: U | K194: I | L194: C | M194: O | N194: G | O194: 54.4 | P194: 55.1 | Q194: 57 | R194: 57.2 | S194: 57.5 | T194: 58.4 | U194: 58.5 | V194: 63.9 | W194: 0 | X194: 0 | Y194: 0 | Z194: 0 | AA194: 0 | AB194: 0 | AC194: 0 | AD194: 0 | AE194: =IF(LEN(G194)=0,"",VLOOKUP($B194,IF($F194="F",TeamSheetFemale,TeamSheetMale),CC194,FALSE)) -> FALSE | AF194: Tamworth | AG194: Wreake Runners | AH194: Kidder & Stourport | AI194: Kettering | AJ194: Brom & Redditch | AK194: Corby | AL194: Royal Sutton | AM194: 3 | AN194: 2 | AO194: 4 | AP194: 5 | AQ194: 8 | AR194: 7 | AS194: 1 | AT194: 6 | AU194: 58.4 | AV194: 58.5 | AW194: 57.5 | AX194: 57.2 | AY194: 54.4 | AZ194: 55.1 | BA194: 63.9 | BB194: 57 | BC194: =IF(ISNA(MATCH(BC$29,$BS194:$BZ194,0)),0,MATCH(BC$29,$BS194:$BZ194,0)) -> 6 | BD194: 7 | BE194: 5 | BF194: 4 | BG194: 1 | BH194: 2 | BI194: 8 | BJ194: 3 | BK194: DASH | BL194: Tam | BM194: Wreake | BN194: K&S | BO194: Kett | BP194: B&R | BQ194: Corby | BR194: Royal | BS194: B | BT194: F | BU194: X | BV194: U | BW194: I | BX194: C | BY194: O | BZ194: G | CC194: 27 | CD194: 32 | CE194: 42 | CF194: 22 | CG194: 17 | CH194: 7 | CI194: 12 | CJ194: 37
A195: =B194&"B" -> 83B | D195: =VLOOKUP(B194,EventsOrder,3,FALSE) -> 4 x 100m | E195: B | AE195: =IF(LEN(G195)=0,"",VLOOKUP($B194,IF($F194="F",TeamSheetFemale,TeamSheetMale),CC195,FALSE)) ->  | AM195: 0 | AN195: 0 | AO195: 0 | AP195: 0 | AQ195: 0 | AR195: 0 | AS195: 0 | AT195: 0 | AU195: =OFFSET($N195,0,BC195) -> 0 | AV195: =OFFSET($N195,0,BD195) -> 0 | AW195: =OFFSET($N195,0,BE195) -> 0 | AX195: =OFFSET($N195,0,BF195) -> 0 | AY195: 0 | AZ195: 0 | BA195: 0 | BB195: 0 | BC195: 0 | BD195: 0 | BE195: 0 | BF195: 0 | BG195: 0 | BH195: 0 | BI195: 0 | BJ195: 0 | BK195: 0 | BL195: 0 | BM195: 0 | BN195: 0 | BO195: 0 | BP195: 0 | BQ195: 0 | BR195: 0
A196: =B196&"A" -> 84A | B196: 84 | C196: =VLOOKUP(B196,EventsOrder,2,FALSE) -> 5.05 | D196: =VLOOKUP(B196,EventsOrder,4,FALSE) -> U17 F/Women | E196: A | F196: =IF(MID(D196,5,1)="F","F","M") -> F | G196: F | H196: B | I196: I | J196: U | K196: G | L196: X | O196: 53.1 | P196: 55.7 | Q196: 55.7 | R196: 58.5 | S196: 59.2 | T196: 60 | W196: 0 | X196: 0 | Y196: 0 | Z196: 0 | AA196: 0 | AB196: 0 | AE196: =IF(LEN(G196)=0,"",VLOOKUP($B196,IF($F196="F",TeamSheetFemale,TeamSheetMale),CC196,FALSE)) -> Tamworth | AF196: libby davies | AG196: Kettering | AH196: Kidder & Stourport | AI196: Royal Sutton | AJ196: Wreake Runners | AM196: 0 | AN196: 0 | AO196: 6 | AP196: 5 | AQ196: 7 | AR196: 8 | AS196: 4 | AT196: 3 | AU196: 0 | AV196: 0 | AW196: 55.7 | AX196: 58.5 | AY196: 55.7 | AZ196: 53.1 | BA196: 59.2 | BB196: 60 | BC196: 0 | BD196: 0 | BE196: 3 | BF196: 4 | BG196: 2 | BH196: 1 | BI196: 5 | BJ196: 6 | BK196: Tam | BL196: DASH | BM196: Kett | BN196: K&S | BO196: Royal | BP196: Wreake | BQ196: 0 | BR196: 0 | BS196: F | BT196: B | BU196: I | BV196: U | BW196: G | BX196: X | CC196: 32 | CD196: 27 | CE196: 17 | CF196: 22 | CG196: 37 | CH196: 42
A197: =B196&"B" -> 84B | D197: =VLOOKUP(B196,EventsOrder,3,FALSE) -> 4 x 100m | E197: B | AE197: =IF(LEN(G197)=0,"",VLOOKUP($B196,IF($F196="F",TeamSheetFemale,TeamSheetMale),CC197,FALSE)) ->  | AM197: 0 | AN197: 0 | AO197: 0 | AP197: 0 | AQ197: 0 | AR197: 0 | AS197: 0 | AT197: 0 | AU197: 0 | AV197: 0 | AW197: 0 | AX197: 0 | AY197: 0 | AZ197: 0 | BA197: 0 | BB197: 0 | BC197: 0 | BD197: 0 | BE197: 0 | BF197: 0 | BG197: 0 | BH197: 0 | BI197: 0 | BJ197: 0 | BK197: 0 | BL197: 0 | BM197: 0 | BN197: 0 | BO197: 0 | BP197: 0 | BQ197: 0 | BR197: 0
A198: =B198&"A" -> 85A | B198: 85 | C198: =VLOOKUP(B198,EventsOrder,2,FALSE) -> 5.1 | D198: =VLOOKUP(B198,EventsOrder,4,FALSE) -> U13 Male | E198: A | F198: =IF(MID(D198,5,1)="F","F","M") -> M | G198: X | H198: C | I198: I | J198: B | K198: G | O198: 60.4 | P198: 60.8 | Q198: 60.9 | R198: 61.9 | S198: 62.9 | W198: 0 | X198: 0 | Y198: 0 | Z198: 0 | AA198: 0 | AE198: =IF(LEN(G198)=0,"",VLOOKUP($B198,IF($F198="F",TeamSheetFemale,TeamSheetMale),CC198,FALSE)) -> Wreake Runners | AF198: 0 | AG198: Kettering | AH198: 0 | AI198: Royal Sutton | AM198: 7 | AN198: 0 | AO198: 6 | AP198: 0 | AQ198: 5 | AR198: 0 | AS198: 4 | AT198: 8 | AU198: 60.8 | AV198: 0 | AW198: 60.9 | AX198: 0 | AY198: 61.9 | AZ198: 0 | BA198: 62.9 | BB198: 60.4 | BC198: 2 | BD198: 0 | BE198: 3 | BF198: 0 | BG198: 4 | BH198: 0 | BI198: 5 | BJ198: 1 | BK198: Wreake | BL198: B&R | BM198: Kett | BN198: DASH | BO198: Royal | BP198: 0 | BQ198: 0 | BR198: 0 | BS198: X | BT198: C | BU198: I | BV198: B | BW198: G | CC198: 42 | CD198: 7 | CE198: 17 | CF198: 27 | CG198: 37
A199: =B198&"B" -> 85B | D199: =VLOOKUP(B198,EventsOrder,3,FALSE) -> 4 x 100m | E199: B | AE199: =IF(LEN(G199)=0,"",VLOOKUP($B198,IF($F198="F",TeamSheetFemale,TeamSheetMale),CC199,FALSE)) ->  | AM199: 0 | AN199: 0 | AO199: 0 | AP199: 0 | AQ199: 0 | AR199: 0 | AS199: 0 | AT199: 0 | AU199: 0 | AV199: 0 | AW199: 0 | AX199: 0 | AY199: 0 | AZ199: 0 | BA199: 0 | BB199: 0 | BC199: 0 | BD199: 0 | BE199: 0 | BF199: 0 | BG199: 0 | BH199: 0 | BI199: 0 | BJ199: 0 | BK199: 0 | BL199: 0 | BM199: 0 | BN199: 0 | BO199: 0 | BP199: 0 | BQ199: 0 | BR199: 0
A200: =B200&"A" -> 86A | B200: 86 | C200: =VLOOKUP(B200,EventsOrder,2,FALSE) -> 5.15 | D200: =VLOOKUP(B200,EventsOrder,4,FALSE) -> U15 Male | E200: A | F200: =IF(MID(D200,5,1)="F","F","M") -> M | G200: C | H200: G | I200: F | J200: I | K200: B | L200: O | O200: 51.2 | P200: 51.9 | Q200: 52.4 | R200: 54.7 | S200: 57.9 | T200: 61.6 | W200: 0 | X200: 0 | Y200: 0 | Z200: 0 | AA200: 0 | AB200: 0 | AE200: =IF(LEN(G200)=0,"",VLOOKUP($B200,IF($F200="F",TeamSheetFemale,TeamSheetMale),CC200,FALSE)) -> Brom & Redditch | AF200: Royal Sutton | AG200: Tamworth | AH200: Kettering | AI200: 0 | AJ200: Corby | AM200: 8 | AN200: 3 | AO200: 5 | AP200: 0 | AQ200: 4 | AR200: 6 | AS200: 7 | AT200: 0 | AU200: 51.2 | AV200: 61.6 | AW200: 54.7 | AX200: 0 | AY200: 57.9 | AZ200: 52.4 | BA200: 51.9 | BB200: 0 | BC200: 1 | BD200: 6 | BE200: 4 | BF200: 0 | BG200: 5 | BH200: 3 | BI200: 2 | BJ200: 0 | BK200: B&R | BL200: Royal | BM200: Tam | BN200: Kett | BO200: DASH | BP200: Corby | BQ200: 0 | BR200: 0 | BS200: C | BT200: G | BU200: F | BV200: I | BW200: B | BX200: O | CC200: 7 | CD200: 37 | CE200: 32 | CF200: 17 | CG200: 27 | CH200: 12
A201: =B200&"B" -> 86B | D201: =VLOOKUP(B200,EventsOrder,3,FALSE) -> 4 x 100m | E201: B | AE201: =IF(LEN(G201)=0,"",VLOOKUP($B200,IF($F200="F",TeamSheetFemale,TeamSheetMale),CC201,FALSE)) ->  | AM201: 0 | AN201: 0 | AO201: 0 | AP201: 0 | AQ201: 0 | AR201: 0 | AS201: 0 | AT201: 0 | AU201: 0 | AV201: 0 | AW201: 0 | AX201: 0 | AY201: 0 | AZ201: 0 | BA201: 0 | BB201: 0 | BC201: 0 | BD201: 0 | BE201: 0 | BF201: 0 | BG201: 0 | BH201: 0 | BI201: 0 | BJ201: 0 | BK201: 0 | BL201: 0 | BM201: 0 | BN201: 0 | BO201: 0 | BP201: 0 | BQ201: 0 | BR201: 0
A202: =B202&"A" -> 87A | B202: 87 | C202: =VLOOKUP(B202,EventsOrder,2,FALSE) -> 5.2 | D202: =VLOOKUP(B202,EventsOrder,4,FALSE) -> U17 Men | E202: A | F202: =IF(MID(D202,5,1)="F","F","M") -> M | G202: G | H202: U | I202: C | J202: B | O202: 48.1 | P202: 49.1 | Q202: 49.3 | R202: 51.1 | W202: 0 | X202: 0 | Y202: 0 | Z202: 0 | AE202: =IF(LEN(G202)=0,"",VLOOKUP($B202,IF($F202="F",TeamSheetFemale,TeamSheetMale),CC202,FALSE)) -> Royal Sutton | AF202: Kidder & Stourport | AG202: Brom & Redditch | AH202: 0 | AM202: 6 | AN202: 0 | AO202: 0 | AP202: 7 | AQ202: 5 | AR202: 0 | AS202: 8 | AT202: 0 | AU202: 49.3 | AV202: 0 | AW202: 0 | AX202: 49.1 | AY202: 51.1 | AZ202: 0 | BA202: 48.1 | BB202: 0 | BC202: 3 | BD202: 0 | BE202: 0 | BF202: 2 | BG202: 4 | BH202: 0 | BI202: 1 | BJ202: 0 | BK202: Royal | BL202: K&S | BM202: B&R | BN202: DASH | BO202: 0 | BP202: 0 | BQ202: 0 | BR202: 0 | BS202: G | BT202: U | BU202: C | BV202: B | CC202: 37 | CD202: 22 | CE202: 7 | CF202: 27
A203: =B202&"B" -> 87B | D203: =VLOOKUP(B202,EventsOrder,3,FALSE) -> 4 x 100m | E203: B | AE203: =IF(LEN(G203)=0,"",VLOOKUP($B202,IF($F202="F",TeamSheetFemale,TeamSheetMale),CC203,FALSE)) ->  | AM203: 0 | AN203: 0 | AO203: 0 | AP203: 0 | AQ203: 0 | AR203: 0 | AS203: 0 | AT203: 0 | AU203: 0 | AV203: 0 | AW203: 0 | AX203: 0 | AY203: 0 | AZ203: 0 | BA203: 0 | BB203: 0 | BC203: 0 | BD203: 0 | BE203: 0 | BF203: 0 | BG203: 0 | BH203: 0 | BI203: 0 | BJ203: 0 | BK203: 0 | BL203: 0 | BM203: 0 | BN203: 0 | BO203: 0 | BP203: 0 | BQ203: 0 | BR203: 0
A204: =B204&"A" -> 88A | B204: 88 | C204: =VLOOKUP(B204,EventsOrder,2,FALSE) -> 11.45 | D204: =VLOOKUP(B204,EventsOrder,4,FALSE) -> U13 Female | E204: A | F204: =IF(MID(D204,5,1)="F","F","M") -> F | AE204: =IF(LEN(G204)=0,"",VLOOKUP($B204,IF($F204="F",TeamSheetFemale,TeamSheetMale),CC204,FALSE)) ->  | AF204: =IF(LEN(H204)=0,"",VLOOKUP($B204,IF($F204="F",TeamSheetFemale,TeamSheetMale),CD204,FALSE)) ->  | AG204: =IF(LEN(I204)=0,"",VLOOKUP($B204,IF($F204="F",TeamSheetFemale,TeamSheetMale),CE204,FALSE)) ->  | AH204: =IF(LEN(J204)=0,"",VLOOKUP($B204,IF($F204="F",TeamSheetFemale,TeamSheetMale),CF204,FALSE)) ->  | AI204: =IF(LEN(K204)=0,"",VLOOKUP($B204,IF($F204="F",TeamSheetFemale,TeamSheetMale),CG204,FALSE)) ->  | AJ204: =IF(LEN(L204)=0,"",VLOOKUP($B204,IF($F204="F",TeamSheetFemale,TeamSheetMale),CH204,FALSE)) ->  | AK204: =IF(LEN(M204)=0,"",VLOOKUP($B204,IF($F204="F",TeamSheetFemale,TeamSheetMale),CI204,FALSE)) ->  | AL204: =IF(LEN(N204)=0,"",VLOOKUP($B204,IF($F204="F",TeamSheetFemale,TeamSheetMale),CJ204,FALSE)) ->  | AM204: 0 | AN204: 0 | AO204: 0 | AP204: 0 | AQ204: 0 | AR204: 0 | AS204: 0 | AT204: 0 | AU204: 0 | AV204: 0 | AW204: 0 | AX204: 0 | AY204: 0 | AZ204: 0 | BA204: 0 | BB204: 0 | BC204: 0 | BD204: 0 | BE204: 0 | BF204: 0 | BG204: 0 | BH204: 0 | BI204: 0 | BJ204: 0 | BK204: 0 | BL204: 0 | BM204: 0 | BN204: 0 | BO204: 0 | BP204: 0 | BQ204: 0 | BR204: 0
A205: =B204&"B" -> 88B | D205: =VLOOKUP(B204,EventsOrder,3,FALSE) -> 1500m | E205: B | AE205: =IF(LEN(G205)=0,"",VLOOKUP($B204,IF($F204="F",TeamSheetFemale,TeamSheetMale),CC205,FALSE)) ->  | AF205: =IF(LEN(H205)=0,"",VLOOKUP($B204,IF($F204="F",TeamSheetFemale,TeamSheetMale),CD205,FALSE)) ->  | AG205: =IF(LEN(I205)=0,"",VLOOKUP($B204,IF($F204="F",TeamSheetFemale,TeamSheetMale),CE205,FALSE)) ->  | AH205: =IF(LEN(J205)=0,"",VLOOKUP($B204,IF($F204="F",TeamSheetFemale,TeamSheetMale),CF205,FALSE)) ->  | AI205: =IF(LEN(K205)=0,"",VLOOKUP($B204,IF($F204="F",TeamSheetFemale,TeamSheetMale),CG205,FALSE)) ->  | AJ205: =IF(LEN(L205)=0,"",VLOOKUP($B204,IF($F204="F",TeamSheetFemale,TeamSheetMale),CH205,FALSE)) ->  | AK205: =IF(LEN(M205)=0,"",VLOOKUP($B204,IF($F204="F",TeamSheetFemale,TeamSheetMale),CI205,FALSE)) ->  | AL205: =IF(LEN(N205)=0,"",VLOOKUP($B204,IF($F204="F",TeamSheetFemale,TeamSheetMale),CJ205,FALSE)) ->  | AM205: 0 | AN205: 0 | AO205: 0 | AP205: 0 | AQ205: 0 | AR205: 0 | AS205: 0 | AT205: 0 | AU205: 0 | AV205: 0 | AW205: 0 | AX205: 0 | AY205: 0 | AZ205: 0 | BA205: 0 | BB205: 0 | BC205: 0 | BD205: 0 | BE205: 0 | BF205: 0 | BG205: 0 | BH205: 0 | BI205: 0 | BJ205: 0 | BK205: 0 | BL205: 0 | BM205: 0 | BN205: 0 | BO205: 0 | BP205: 0 | BQ205: 0 | BR205: 0
A206: =B206&"A" -> 89A | B206: 89 | C206: =VLOOKUP(B206,EventsOrder,2,FALSE) -> 11.55 | D206: =VLOOKUP(B206,EventsOrder,4,FALSE) -> U15 Female | E206: A | F206: =IF(MID(D206,5,1)="F","F","M") -> F | AE206: =IF(LEN(G206)=0,"",VLOOKUP($B206,IF($F206="F",TeamSheetFemale,TeamSheetMale),CC206,FALSE)) ->  | AF206: =IF(LEN(H206)=0,"",VLOOKUP($B206,IF($F206="F",TeamSheetFemale,TeamSheetMale),CD206,FALSE)) ->  | AG206: =IF(LEN(I206)=0,"",VLOOKUP($B206,IF($F206="F",TeamSheetFemale,TeamSheetMale),CE206,FALSE)) ->  | AH206: =IF(LEN(J206)=0,"",VLOOKUP($B206,IF($F206="F",TeamSheetFemale,TeamSheetMale),CF206,FALSE)) ->  | AI206: =IF(LEN(K206)=0,"",VLOOKUP($B206,IF($F206="F",TeamSheetFemale,TeamSheetMale),CG206,FALSE)) ->  | AJ206: =IF(LEN(L206)=0,"",VLOOKUP($B206,IF($F206="F",TeamSheetFemale,TeamSheetMale),CH206,FALSE)) ->  | AK206: =IF(LEN(M206)=0,"",VLOOKUP($B206,IF($F206="F",TeamSheetFemale,TeamSheetMale),CI206,FALSE)) ->  | AL206: =IF(LEN(N206)=0,"",VLOOKUP($B206,IF($F206="F",TeamSheetFemale,TeamSheetMale),CJ206,FALSE)) ->  | AM206: 0 | AN206: 0 | AO206: 0 | AP206: 0 | AQ206: 0 | AR206: 0 | AS206: 0 | AT206: 0 | AU206: 0 | AV206: 0 | AW206: 0 | AX206: 0 | AY206: 0 | AZ206: 0 | BA206: 0 | BB206: 0 | BC206: 0 | BD206: 0 | BE206: 0 | BF206: 0 | BG206: 0 | BH206: 0 | BI206: 0 | BJ206: 0 | BK206: 0 | BL206: 0 | BM206: 0 | BN206: 0 | BO206: 0 | BP206: 0 | BQ206: 0 | BR206: 0 | CD206: =IF(LEN(H206)=0,"",HLOOKUP(BT206,$CC$26:$CJ$28,2,FALSE)+IF(LEN(H206)=2,2,0)) ->  | CE206: =IF(LEN(I206)=0,"",HLOOKUP(BU206,$CC$26:$CJ$28,2,FALSE)+IF(LEN(I206)=2,2,0)) ->  | CF206: =IF(LEN(J206)=0,"",HLOOKUP(BV206,$CC$26:$CJ$28,2,FALSE)+IF(LEN(J206)=2,2,0)) ->  | CG206: =IF(LEN(K206)=0,"",HLOOKUP(BW206,$CC$26:$CJ$28,2,FALSE)+IF(LEN(K206)=2,2,0)) ->  | CH206: =IF(LEN(L206)=0,"",HLOOKUP(BX206,$CC$26:$CJ$28,2,FALSE)+IF(LEN(L206)=2,2,0)) ->  | CI206: =IF(LEN(M206)=0,"",HLOOKUP(BY206,$CC$26:$CJ$28,2,FALSE)+IF(LEN(M206)=2,2,0)) ->  | CJ206: =IF(LEN(N206)=0,"",HLOOKUP(BZ206,$CC$26:$CJ$28,2,FALSE)+IF(LEN(N206)=2,2,0)) -> 
A207: =B206&"B" -> 89B | D207: =VLOOKUP(B206,EventsOrder,3,FALSE) -> 1500m | E207: B | AE207: =IF(LEN(G207)=0,"",VLOOKUP($B206,IF($F206="F",TeamSheetFemale,TeamSheetMale),CC207,FALSE)) ->  | AF207: =IF(LEN(H207)=0,"",VLOOKUP($B206,IF($F206="F",TeamSheetFemale,TeamSheetMale),CD207,FALSE)) ->  | AG207: =IF(LEN(I207)=0,"",VLOOKUP($B206,IF($F206="F",TeamSheetFemale,TeamSheetMale),CE207,FALSE)) ->  | AH207: =IF(LEN(J207)=0,"",VLOOKUP($B206,IF($F206="F",TeamSheetFemale,TeamSheetMale),CF207,FALSE)) ->  | AI207: =IF(LEN(K207)=0,"",VLOOKUP($B206,IF($F206="F",TeamSheetFemale,TeamSheetMale),CG207,FALSE)) ->  | AJ207: =IF(LEN(L207)=0,"",VLOOKUP($B206,IF($F206="F",TeamSheetFemale,TeamSheetMale),CH207,FALSE)) ->  | AK207: =IF(LEN(M207)=0,"",VLOOKUP($B206,IF($F206="F",TeamSheetFemale,TeamSheetMale),CI207,FALSE)) ->  | AL207: =IF(LEN(N207)=0,"",VLOOKUP($B206,IF($F206="F",TeamSheetFemale,TeamSheetMale),CJ207,FALSE)) ->  | AM207: 0 | AN207: 0 | AO207: 0 | AP207: 0 | AQ207: 0 | AR207: 0 | AS207: 0 | AT207: 0 | AU207: 0 | AV207: 0 | AW207: 0 | AX207: 0 | AY207: 0 | AZ207: 0 | BA207: 0 | BB207: 0 | BC207: 0 | BD207: 0 | BE207: 0 | BF207: 0 | BG207: 0 | BH207: 0 | BI207: 0 | BJ207: 0 | BK207: 0 | BL207: 0 | BM207: 0 | BN207: 0 | BO207: 0 | BP207: 0 | BQ207: 0 | BR207: 0
A208: =B208&"A" -> 90A | B208: 90 | C208: =VLOOKUP(B208,EventsOrder,2,FALSE) -> 12.05 | D208: =VLOOKUP(B208,EventsOrder,4,FALSE) -> U17 F/Women | E208: A | F208: =IF(MID(D208,5,1)="F","F","M") -> F | AE208: =IF(LEN(G208)=0,"",VLOOKUP($B208,IF($F208="F",TeamSheetFemale,TeamSheetMale),CC208,FALSE)) ->  | AF208: =IF(LEN(H208)=0,"",VLOOKUP($B208,IF($F208="F",TeamSheetFemale,TeamSheetMale),CD208,FALSE)) ->  | AG208: =IF(LEN(I208)=0,"",VLOOKUP($B208,IF($F208="F",TeamSheetFemale,TeamSheetMale),CE208,FALSE)) ->  | AH208: =IF(LEN(J208)=0,"",VLOOKUP($B208,IF($F208="F",TeamSheetFemale,TeamSheetMale),CF208,FALSE)) ->  | AI208: =IF(LEN(K208)=0,"",VLOOKUP($B208,IF($F208="F",TeamSheetFemale,TeamSheetMale),CG208,FALSE)) ->  | AJ208: =IF(LEN(L208)=0,"",VLOOKUP($B208,IF($F208="F",TeamSheetFemale,TeamSheetMale),CH208,FALSE)) ->  | AK208: =IF(LEN(M208)=0,"",VLOOKUP($B208,IF($F208="F",TeamSheetFemale,TeamSheetMale),CI208,FALSE)) ->  | AL208: =IF(LEN(N208)=0,"",VLOOKUP($B208,IF($F208="F",TeamSheetFemale,TeamSheetMale),CJ208,FALSE)) ->  | AM208: 0 | AN208: 0 | AO208: 0 | AP208: 0 | AQ208: 0 | AR208: 0 | AS208: 0 | AT208: 0 | AU208: 0 | AV208: 0 | AW208: 0 | AX208: 0 | AY208: 0 | AZ208: 0 | BA208: 0 | BB208: 0 | BC208: 0 | BD208: 0 | BE208: 0 | BF208: 0 | BG208: 0 | BH208: 0 | BI208: 0 | BJ208: 0 | BK208: =IF(LEN(G208)>0,VLOOKUP(LEFT(G208,1),Clubs,5,FALSE),0) -> 0 | BL208: =IF(LEN(H208)>0,VLOOKUP(LEFT(H208,1),Clubs,5,FALSE),0) -> 0 | BM208: =IF(LEN(I208)>0,VLOOKUP(LEFT(I208,1),Clubs,5,FALSE),0) -> 0 | BN208: =IF(LEN(J208)>0,VLOOKUP(LEFT(J208,1),Clubs,5,FALSE),0) -> 0 | BO208: =IF(LEN(K208)>0,VLOOKUP(LEFT(K208,1),Clubs,5,FALSE),0) -> 0 | BP208: =IF(LEN(L208)>0,VLOOKUP(LEFT(L208,1),Clubs,5,FALSE),0) -> 0 | BQ208: =IF(LEN(M208)>0,VLOOKUP(LEFT(M208,1),Clubs,5,FALSE),0) -> 0 | BR208: =IF(LEN(N208)>0,VLOOKUP(LEFT(N208,1),Clubs,5,FALSE),0) -> 0 | BS208: =LEFT(G208,1) -> 
... 36 more rows

Sheet Team Declaration Sheet
C3: ='Event Details'!D5&" "&"Declaration Sheets Male" -> Heart of England League Declaration Sheets Male | J3: ='Event Details'!D7 -> 2015 | M3: ='Event Details'!D$5&" "&"Declaration Sheets Female" -> Heart of England League Declaration Sheets Female | T3: ='Event Details'!D$7 -> 2015
C4: Club | H4: Only 2 non scorers allowed per race | M4: Club | N4: =D4 -> 0 | R4: Only 2 non scorers allowed per race
B6: Event | C6: Time | D6: Events | G6: No | H6: A String | I6: No | J6: B String | L6: Event | M6: Time | N6: Events | Q6: No | R6: A String | S6: No | T6: B String
D7: Under 11 Male | N7: Under 11 Female
B8: 2 | C8: =IF($B8>0,VLOOKUP($B8,EventsOrder,2,FALSE)," ") -> 11.45 | D8: =IF($B8>0,VLOOKUP($B8,EventsOrder,6,FALSE)," ") -> Howler | L8: 3 | M8: =IF($L8>0,VLOOKUP($L8,EventsOrder,2,FALSE)," ") -> 11.45 | N8: =IF($L8>0,VLOOKUP($L8,EventsOrder,6,FALSE)," ") -> Howler
B9: 33 | C9: =IF($B9>0,VLOOKUP($B9,EventsOrder,2,FALSE)," ") -> 2 | D9: =IF($B9>0,VLOOKUP($B9,EventsOrder,6,FALSE)," ") -> 600m | L9: 14 | M9: =IF($L9>0,VLOOKUP($L9,EventsOrder,2,FALSE)," ") -> 12.3 | N9: =IF($L9>0,VLOOKUP($L9,EventsOrder,6,FALSE)," ") -> Long Jump Pit1
B10: 44 | C10: =IF($B10>0,VLOOKUP($B10,EventsOrder,2,FALSE)," ") -> 2.1 | D10: =IF($B10>0,VLOOKUP($B10,EventsOrder,6,FALSE)," ") -> Long Jump Pit 2 | L10: 29 | M10: =IF($L10>0,VLOOKUP($L10,EventsOrder,2,FALSE)," ") -> 1.5 | N10: =IF($L10>0,VLOOKUP($L10,EventsOrder,6,FALSE)," ") -> 600m
B11: 61 | C11: =IF($B11>0,VLOOKUP($B11,EventsOrder,2,FALSE)," ") -> 3.2 | D11: =IF($B11>0,VLOOKUP($B11,EventsOrder,6,FALSE)," ") -> 75m | L11: 58 | M11: =IF($L11>0,VLOOKUP($L11,EventsOrder,2,FALSE)," ") -> 3.1 | N11: =IF($L11>0,VLOOKUP($L11,EventsOrder,6,FALSE)," ") -> 75m
B12: Non-Scoring | G12: No's | H12: (enter Competitor No) | I12: No's | J12: (enter Competitor No) | L12: Non-Scoring | Q12: No's | R12: (enter Competitor No) | S12: No's | T12: (enter Competitor No)
C13: =IF($B13>0,VLOOKUP($B13,EventsOrder,2,FALSE)," ") ->  | D13: =IF($B13>0,VLOOKUP($B13,EventsOrder,6,FALSE)," ") ->  | M13: =IF($L13>0,VLOOKUP($L13,EventsOrder,2,FALSE)," ") ->  | N13: =IF($L13>0,VLOOKUP($L13,EventsOrder,6,FALSE)," ") -> 
B14: 34 | C14: =IF($B14>0,VLOOKUP($B14,EventsOrder,2,FALSE)," ") -> 2.05 | D14: =IF($B14>0,VLOOKUP($B14,EventsOrder,6,FALSE)," ") -> 600m NS | L14: 30 | M14: =IF($L14>0,VLOOKUP($L14,EventsOrder,2,FALSE)," ") -> 1.55 | N14: =IF($L14>0,VLOOKUP($L14,EventsOrder,6,FALSE)," ") -> 600m NS
B15: 62 | C15: =IF($B15>0,VLOOKUP($B15,EventsOrder,2,FALSE)," ") -> 3.25 | D15: =IF($B15>0,VLOOKUP($B15,EventsOrder,6,FALSE)," ") -> 75m NS | L15: 59 | M15: =IF($L15>0,VLOOKUP($L15,EventsOrder,2,FALSE)," ") -> 3.15 | N15: =IF($L15>0,VLOOKUP($L15,EventsOrder,6,FALSE)," ") -> 75m NS
L16: 81 | M16: =IF($L16>0,VLOOKUP($L16,EventsOrder,2,FALSE)," ") -> 4.5 | N16: =IF($L16>0,VLOOKUP($L16,EventsOrder,6,FALSE)," ") -> 4 x 100m Mixed NS | R16: =N$4 -> 0
B17: Event | C17: Time | D17: Events | G17: No | H17: A String | I17: No | J17: B String | L17: =L16&"R" -> 81R | Q17: 1 | S17: 2
D18: Under 13 Male | L18: =L16&"S" -> 81S | Q18: 3 | S18: 4
B19: 5 | C19: =IF($B19>0,VLOOKUP($B19,EventsOrder,2,FALSE)," ") -> 12 | D19: =IF($B19>0,VLOOKUP($B19,EventsOrder,6,FALSE)," ") -> High Jump
B20: 12 | C20: 12.2 | D20: 800m | L20: Event | M20: Time | N20: Events | Q20: No | R20: A String | S20: No | T20: B String
B21: 15 | C21: 12.35 | D21: 75m hurdles | N21: Under 13 Female
B22: 24 | C22: 1 | D22: Javelin Match 2 | L22: 1 | M22: =IF($L22>0,VLOOKUP($L22,EventsOrder,2,FALSE)," ") -> 11.45 | N22: =IF($L22>0,VLOOKUP($L22,EventsOrder,6,FALSE)," ") -> 1500m
B23: 41 | C23: 2.25 | D23: 100m | L23: 11 | M23: 12.15 | N23: 70m hurdles
B24: 52 | C24: 2.4 | D24: Shot | L24: 25 | M24: 1.15 | N24: 800m
B25: 64 | C25: =IF($B25>0,VLOOKUP($B25,EventsOrder,2,FALSE)," ") -> 3.2 | D25: =IF($B25>0,VLOOKUP($B25,EventsOrder,6,FALSE)," ") -> Long Jump Pit 2 | L25: 31 | M25: 1.4 | N25: High Jump
B26: 70 | C26: 3.5 | D26: 200m | L26: 35 | M26: 2.1 | N26: 100m
B27: 73 | C27: 4.2 | D27: 1500m | L27: 38 | M27: 1.5 | N27: Discus Match 1 & 3
B28: 78 | C28: 4.2 | D28: Discus Match 1 & 3 | L28: 56 | M28: 2.5 | N28: Long Jump Pit 1
B29: 85 | C29: 5.1 | D29: 4 x 100m | H29: =D$4 -> 0 | L29: 63 | M29: 3.35 | N29: 200m
B30: =B29&"R" -> 85R | G30: 1 | I30: 2 | L30: 65 | M30: 3.3 | N30: Shot
B31: =B29&"S" -> 85S | G31: 3 | I31: 4 | L31: 79 | M31: 4.2 | N31: Javelin Match 2
L32: 82 | M32: 4.55 | N32: 4 x 100m | R32: =N$4 -> 0
L33: =L32&"R" -> 82R | Q33: 1 | S33: 2
B34: Event | C34: Time | D34: Events | G34: No | H34: A String | I34: No | J34: B String | L34: =L32&"S" -> 82S | Q34: 3 | S34: 4
D35: Under 15 Male | M35: =IF($B35>0,VLOOKUP($B35,EventsOrder,2,FALSE)," ") ->  | N35: =IF($B35>0,VLOOKUP($B35,EventsOrder,6,FALSE)," ") -> 
B36: 6 | C36: =IF($B36>0,VLOOKUP($B36,EventsOrder,2,FALSE)," ") -> 12 | D36: =IF($B36>0,VLOOKUP($B36,EventsOrder,6,FALSE)," ") -> Long Jump Pit 2
B37: 16 | C37: 12.4 | D37: 800m | L37: Event | M37: Time | N37: Events | Q37: No | R37: A String | S37: No | T37: B String
B38: 20 | C38: 1.05 | D38: 80m hurdles | N38: Under 15 Female
B39: 22 | C39: 1 | D39: Shot | L39: 4 | M39: =IF($L39>0,VLOOKUP($L39,EventsOrder,2,FALSE)," ") -> 11.55 | N39: =IF($L39>0,VLOOKUP($L39,EventsOrder,6,FALSE)," ") -> 1500m
B40: 39 | C40: 1.5 | D40: Javelin Match 2 | L40: 9 | M40: 12.15 | N40: Discus Match 1 & 3
B41: 42 | C41: 2.3 | D41: 100m | L41: 13 | M41: 12.3 | N41: 75m hurdles
B42: 45 | C42: 2.25 | D42: High Jump | L42: 17 | M42: 12.55 | N42: High Jump
B43: 55 | C43: =IF($B43>0,VLOOKUP($B43,EventsOrder,2,FALSE)," ") -> 2.55 | D43: =IF($B43>0,VLOOKUP($B43,EventsOrder,6,FALSE)," ") -> 300m | L43: 21 | M43: 1 | N43: Long Jump Pit 2
B44: 66 | C44: 3.3 | D44: Discus Match 1 & 3 | L44: 26 | M44: 1.25 | N44: 800m
B45: 71 | C45: 3.55 | D45: 200m | L45: 36 | M45: 2.15 | N45: 100m
B46: 76 | C46: 4.3 | D46: 1500m | L46: 50 | M46: 2.4 | N46: 300m
B47: 86 | C47: 5.15 | D47: 4 x 100m | H47: =D$4 -> 0 | L47: 54 | M47: 2.4 | N47: Javelin Match 2
B48: =B47&"R" -> 86R | G48: 1 | I48: 2 | L48: 68 | M48: 3.4 | N48: 200m
B49: =B47&"S" -> 86S | G49: 3 | I49: 4 | L49: 77 | M49: 4.2 | N49: Shot
L50: 83 | M50: 5 | N50: 4 x 100m | R50: =N$4 -> 0
L51: =L50&"R" -> 83R | Q51: 1 | S51: 2
B52: Event | C52: Time | D52: Events | G52: No | H52: A String | I52: No | J52: B String | L52: =L50&"S" -> 83S | Q52: 3 | S52: 4
D53: Under 17 Male | M53: =IF($B53>0,VLOOKUP($B53,EventsOrder,2,FALSE)," ") ->  | N53: =IF($B53>0,VLOOKUP($B53,EventsOrder,6,FALSE)," ") -> 
B54: 8 | C54: =IF($B54>0,VLOOKUP($B54,EventsOrder,2,FALSE)," ") -> 12.15 | D54: =IF($B54>0,VLOOKUP($B54,EventsOrder,6,FALSE)," ") -> Shot
B55: 18 | C55: 12.5 | D55: 800m | L55: Event | M55: Time | N55: Events | Q55: No | R55: A String | S55: No | T55: B String
B56: 23 | C56: 1 | D56: Discus Match 1 & 3 | N56: U17 Female / Women
B57: 27 | C57: 1.35 | D57: 100m hurdles | L57: 7 | M57: =IF($L57>0,VLOOKUP($L57,EventsOrder,2,FALSE)," ") -> 12.05 | N57: =IF($L57>0,VLOOKUP($L57,EventsOrder,6,FALSE)," ") -> 1500m
B58: 32 | C58: 1.3 | D58: Long Jump Pit1 | L58: 10 | M58: 12.15 | N58: Javelin Match 2
B59: 43 | C59: 2.35 | D59: 100m | L59: 19 | M59: 1 | N59: 80m hurdles (U17)
B60: 57 | C60: 3 | D60: 400m | L60: 28 | M60: 1.4 | N60: 800m
B61: 67 | C61: =IF($B61>0,VLOOKUP($B61,EventsOrder,2,FALSE)," ") -> 3.3 | D61: =IF($B61>0,VLOOKUP($B61,EventsOrder,6,FALSE)," ") -> Javelin Match 2 | L61: 37 | M61: 1.5 | N61: Shot
B62: 72 | C62: 4 | D62: 200m | L62: 40 | M62: 2.2 | N62: 100m
B63: 74 | C63: 4.1 | D63: High Jump | L63: 51 | M63: 2.45 | N63: 300m | R63: =R$3 -> 0
B64: 80 | C64: 4.4 | D64: 1500m | L64: 53 | M64: 2.4 | N64: Discus Match 1 & 3
B65: 87 | C65: 5.2 | D65: 4 x 100m | H65: =D$4 -> 0 | L65: 60 | M65: 3.1 | N65: High Jump
B66: =B65&"R" -> 87R | G66: 1 | I66: 2 | L66: 69 | M66: 3.45 | N66: 200m
B67: =B65&"S" -> 87S | G67: 3 | I67: 4 | L67: 75 | M67: 4 | N67: Long Jump Pit1
L68: 84 | M68: 5.05 | N68: 4 x 100m | R68: =N$4 -> 0
L69: =L68&"R" -> 84R | Q69: 1 | S69: 2
L70: =L68&"S" -> 84S | Q70: 3 | S70: 4
C71: ='Event Details'!D$5&" "&"Declaration Sheets - Guests" -> Heart of England League Declaration Sheets - Guests | J71: ='Event Details'!D$7 -> 2015
C72: Club | D72: =D4 -> 0 | H72: Only 1 non scorers allowed per race
M73: ='Event Details'!D$5&" "&"Declaration Sheets - Guests" -> Heart of England League Declaration Sheets - Guests | T73: ='Event Details'!N$7 -> 0
B74: Event | C74: Time | D74: Events | G74: No | H74: A String | M74: Club | N74: =D4 -> 0 | R74: Only 1 non scorers allowed per race
D76: Male | L76: Event | M76: Time | N76: Events | Q76: No | R76: A String
B77: 91 | C77: =IF($B77>0,VLOOKUP($B77,EventsOrder,2,FALSE)," ") -> 12.2 | D77: =IF($B77>0,VLOOKUP($B77,EventsOrder,6,FALSE)," ") -> 800m U13 Male | N77: Female
B78: 92 | C78: 12.4 | D78: 800m U15 Male | L78: 88 | M78: =IF($L78>0,VLOOKUP($L78,EventsOrder,2,FALSE)," ") -> 11.45 | N78: =IF($L78>0,VLOOKUP($L78,EventsOrder,6,FALSE)," ") -> 1500m U13 Female
B79: 93 | C79: 12.5 | D79: 800m U17 Men | L79: 89 | M79: 11.55 | N79: 1500m U15 Female
B80: 97 | C80: 4.2 | D80: 1500m U13 Male | L80: 90 | M80: 12.05 | N80: 1500m U17 F/Women
B81: 98 | C81: 4.3 | D81: 1500m U15 Male | L81: 94 | M81: 1.15 | N81: 800m U13 Female
B82: 99 | C82: 4.4 | D82: 1500m U17 Men | L82: 95 | M82: 1.25 | N82: 800m U15 Female
L83: 96 | M83: 1.4 | N83: 800m U17 F/Women

Sheet Teamsheet Male
BA1: For Test data
C2: Heart of England League | H2: Club | J2: Date | M2: Club | O2: Date | R2: Club | T2: Date | W2: Club | Y2: Date | AB2: Club | AD2: Date | AG2: Club | AI2: Date | AL2: Club | AN2: Date | AQ2: Club | AS2: Date
C3: Declaration Sheets | G3: ='Event Details'!$C$22 -> C | H3: ='Event Details'!$D$22 -> Brom & Redditch | J3: ='Event Details'!$B$17 -> 10th May 2015 | L3: ='Event Details'!$C$23 -> O | M3: ='Event Details'!$D$23 -> Corby | O3: ='Event Details'!$B$17 -> 10th May 2015 | Q3: ='Event Details'!$C$24 -> I | R3: ='Event Details'!$D$24 -> Kettering | T3: ='Event Details'!$B$17 -> 10th May 2015 | V3: ='Event Details'!$C$25 -> U | W3: ='Event Details'!$D$25 -> Kidder & Stourport | Y3: ='Event Details'!$B$17 -> 10th May 2015 | AA3: ='Event Details'!$C$26 -> B | AB3: ='Event Details'!$D$26 -> Dudley & S'bridge | AD3: ='Event Details'!$B$17 -> 10th May 2015 | AF3: ='Event Details'!$C$27 -> F | AG3: ='Event Details'!$D$27 -> Tamworth | AI3: ='Event Details'!$B$17 -> 10th May 2015 | AK3: ='Event Details'!$C$28 -> G | AL3: ='Event Details'!$D$28 -> Royal Sutton | AN3: ='Event Details'!$B$17 -> 10th May 2015 | AP3: ='Event Details'!$C$29 -> X | AQ3: ='Event Details'!$D$29 -> Wreake Runners | AS3: ='Event Details'!$B$17 -> 10th May 2015
C4: Only 2 non scorers allowed per race
B6: Event | C6: Time | D6: Events | G6: No | H6: A String | I6: No | J6: B String | L6: No | M6: A String | N6: No | O6: B String | Q6: No | R6: A String | S6: No | T6: B String | V6: No | W6: A String | X6: No | Y6: B String | AA6: No | AB6: A String | AC6: No | AD6: B String | AF6: No | AG6: A String | AH6: No | AI6: B String | AK6: No | AL6: A String | AM6: No | AN6: B String | AP6: No | AQ6: A String | AR6: No | AS6: B String | AU6: No | AV6: A String | AW6: No | AX6: B String | AZ6: No | BA6: A String | BB6: No | BC6: B String
D7: Under 11 Male
B8: 2 | C8: =IF($B8>0,VLOOKUP($B8,EventsOrder,2,FALSE)," ") -> 11.45 | D8: =IF($B8>0,VLOOKUP($B8,EventsOrder,6,FALSE)," ") -> Howler | L8: O | M8: JAKE WILSON | Q8: I | R8: Alfie Frayne | S8: II | T8: Jamie Lake | AA8: B | AB8: Alex Johnson | AC8: BB | AD8: John Sparry | AF8: F | AG8: ASHLEY JOHNSON | AH8: FF | AI8: KAI BUCKLEY | AK8: G | AL8: Jacob Stoney | AM8: GG | AN8: Jack Turner-Knapp | BA8: =CONCATENATE(LEFT(BA$3,3),$B8,LEFT(BA$6,1)) -> 2A | BC8: =CONCATENATE(LEFT(BA$3,3),$B8,LEFT(BC$6,1)) -> 2B
B9: 33 | C9: =IF($B9>0,VLOOKUP($B9,EventsOrder,2,FALSE)," ") -> 2 | D9: =IF($B9>0,VLOOKUP($B9,EventsOrder,6,FALSE)," ") -> 600m | G9: c | H9: Sebastian Purvis | I9: cc | J9: Luke Darlington | L9: O | M9: SEB BECKWITH | N9: OO | O9: ELLIOT DEE | Q9: I | R9: Jamie Lake | S9: II | T9: Alfie Frayne | V9: U | W9: Harry Lees | AA9: B | AB9: john sparry | AC9: BB | AD9: jaime crooke | AF9: F | AG9: JAMES STRETTON | AH9: FF | AI9: KAI BUCKLEY | AK9: G | AL9: Daniel Pitt | AM9: GG | AN9: Jacob Stoney | AP9: X | AQ9: Rohan Stokes | BA9: =CONCATENATE(LEFT(BA$3,3),$B9,LEFT(BA$6,1)) -> 33A | BC9: =CONCATENATE(LEFT(BA$3,3),$B9,LEFT(BC$6,1)) -> 33B
B10: 44 | C10: =IF($B10>0,VLOOKUP($B10,EventsOrder,2,FALSE)," ") -> 2.1 | D10: =IF($B10>0,VLOOKUP($B10,EventsOrder,6,FALSE)," ") -> Long Jump Pit 2 | G10: C | H10: Sebastian Purvis | L10: O | M10: ELLIOT DEE | N10: OO | O10: JAKE WILSON | Q10: I | R10: Ben Brooker | S10: II | T10: Alfie Frayne | V10: U | W10: Harry Lees | AA10: B | AB10: alex johnson | AF10: F | AG10: JAMES STRETTON | AH10: FF | AI10: CAYDON FAIRBURN | AK10: G | AL10: Harry Darrock | AM10: GG | AN10: Daniel Pitt | AP10: X | AQ10: Rohan Stokes | BA10: 44A | BC10: 44B
B11: 61 | C11: =IF($B11>0,VLOOKUP($B11,EventsOrder,2,FALSE)," ") -> 3.2 | D11: =IF($B11>0,VLOOKUP($B11,EventsOrder,6,FALSE)," ") -> 75m | G11: c | H11: Sebastian Purvis | I11: cc | J11: Luke Darlington | L11: O | M11: ELLIOT DEE | Q11: I | R11: Jamie Lake | S11: II | T11: Ben Brooker | V11: U | W11: Harry Lees | AA11: B | AB11: carter wood | AC11: BB | AD11: john sparry | AF11: F | AG11: JAMES STRETTON | AH11: FF | AI11: ASHLEY JOHNSON | AK11: G | AL11: Jack Turner-Knapp | AM11: GG | AN11: Harry Darrock
B12: Non-Scoring | G12: No's | H12: (enter Competitor No) | I12: No's | J12: (enter Competitor No) | L12: No's | M12: (enter Competitor No) | N12: No's | O12: (enter Competitor No) | Q12: No's | R12: (enter Competitor No) | S12: No's | T12: (enter Competitor No) | V12: No's | W12: (enter Competitor No) | X12: No's | Y12: (enter Competitor No) | AA12: No's | AB12: (enter Competitor No) | AC12: No's | AD12: (enter Competitor No) | AF12: No's | AG12: (enter Competitor No) | AH12: No's | AI12: (enter Competitor No) | AK12: No's | AL12: (enter Competitor No) | AM12: No's | AN12: (enter Competitor No) | AP12: No's | AQ12: (enter Competitor No) | AR12: No's | AS12: (enter Competitor No) | AU12: No's | AV12: (enter Competitor No) | AW12: No's | AX12: (enter Competitor No) | AZ12: No's | BA12: (enter Competitor No) | BB12: No's | BC12: (enter Competitor No)
C13: =IF($B13>0,VLOOKUP($B13,EventsOrder,2,FALSE)," ") ->  | D13: =IF($B13>0,VLOOKUP($B13,EventsOrder,6,FALSE)," ") ->  | AZ13: =$B13 -> 0 | BA13: =CONCATENATE(LEFT(BA$3,3),$B13,LEFT(BA$6,1)) -> A | BB13: =$B13 -> 0 | BC13: =CONCATENATE(LEFT(BA$3,3),$B13,LEFT(BC$6,1)) -> B
B14: 34 | C14: =IF($B14>0,VLOOKUP($B14,EventsOrder,2,FALSE)," ") -> 2.05 | D14: =IF($B14>0,VLOOKUP($B14,EventsOrder,6,FALSE)," ") -> 600m NS | Q14: 92 | R14: Ben Brooker | AA14: 200 | AB14: carter wood | AF14: 10 | AG14: CAYDON FAIRBURN | AK14: 313 | AL14: Jack Turner-Kanpp | AM14: 315 | AN14: Harry Darrock | AZ14: =$B14 -> 34 | BA14: 34A | BB14: =$B14 -> 34 | BC14: 34B
B15: 62 | C15: =IF($B15>0,VLOOKUP($B15,EventsOrder,2,FALSE)," ") -> 3.25 | D15: =IF($B15>0,VLOOKUP($B15,EventsOrder,6,FALSE)," ") -> 75m NS | L15: 400 | M15: SEB BECKWITH | N15: 401 | O15: JAKE WILSON | AA15: 201 | AB15: jaime crooke | AF15: 10 | AG15: CAYDON FAIRBURN | AH15: 11 | AI15: KAI BUCKLEY | AK15: 314 | AL15: Jacob Stoney | AM15: 316 | AN15: Daniel Pitt | AZ15: 62 | BA15: 62A | BB15: 62 | BC15: 62B
B17: Event | C17: Time | D17: Events | G17: No | H17: A String | I17: No | J17: B String | L17: No | M17: A String | N17: No | O17: B String | Q17: No | R17: A String | S17: No | T17: B String | V17: No | W17: A String | X17: No | Y17: B String | AA17: No | AB17: A String | AC17: No | AD17: B String | AF17: No | AG17: A String | AH17: No | AI17: B String | AK17: No | AL17: A String | AM17: No | AN17: B String | AP17: No | AQ17: A String | AR17: No | AS17: B String | AU17: No | AV17: A String | AW17: No | AX17: B String | AZ17: No | BA17: A String | BB17: No | BC17: B String
D18: Under 13 Male
B19: 5 | C19: =IF($B19>0,VLOOKUP($B19,EventsOrder,2,FALSE)," ") -> 12 | D19: =IF($B19>0,VLOOKUP($B19,EventsOrder,6,FALSE)," ") -> High Jump | G19: c | H19: James Pickup | J19: A String only | Q19: I | R19: Brandon Raulia | S19: II | T19: A String only | V19: U | W19: Finlay Hudson | AA19: B | AB19: tavindra kumar | AD19: A String only | BA19: =CONCATENATE(LEFT(BA$3,3),$B19,LEFT(BA$6,1)) -> 5A | BC19: A String only
B20: 12 | C20: 12.2 | D20: 800m | G20: c | H20: Harrison Mayne | I20: cc | J20: Tom Sanders | L20: O | M20: ARCHIE PARKINSON | N20: OO | O20: LUCA MAYES | Q20: I | R20: Dylan Bowley | S20: II | T20: Ethan Nelis | V20: U | W20: Finlay Hudson | AA20: B | AB20: toby davies | AF20: F | AG20: TIMOTHY LI | AH20: FF | AI20: FINLAY CROSS | AK20: G | AL20: Finley Barlow | AM20: GG | AN20: Will Cowley | AP20: X | AQ20: Euan Gibbs | BA20: =CONCATENATE(LEFT(BA$3,3),$B20,LEFT(BA$6,1)) -> 12A | BC20: =CONCATENATE(LEFT(BA$3,3),$B20,LEFT(BC$6,1)) -> 12B
B21: 15 | C21: 12.35 | D21: 75m hurdles | G21: c | H21: Dominic Cook | J21: Matthew Griffin | Q21: I | R21: Brandon Raulia | S21: II | T21: Ryan Raulia | AA21: B | AB21: nathan crook | AF21: F | AG21: JOEL BICKLEY | BA21: 15A | BC21: 15B
B22: 24 | C22: 1 | D22: Javelin Match 2 | BA22: 24A | BC22: 24B
B23: 41 | C23: 2.25 | D23: 100m | G23: c | H23: Matthew Griffin | I23: cc | J23: Jake Swann | L23: O | M23: LUCA MAYES | Q23: I | R23: Cole Sinnot | S23: II | T23: Max Mowforth | V23: U | W23: Ryan Bennett | AA23: B | AB23: joseph campbell | AC23: BB | AD23: zak thurley | AF23: F | AG23: JAMES SHERIFF | AH23: FF | AK23: G | AL23: Evan Pritchard | AM23: GG | AN23: Daniel Mills | AP23: X | AQ23: Jacob Fairhurst | AR23: XX | AS23: David Saidu | BA23: 41A | BC23: 41B
B24: 52 | C24: 2.4 | D24: Shot | G24: c | H24: Harrison Mayne | I24: cc | J24: James Pickup | Q24: I | R24: Dylan Bowley | S24: II | T24: Ethan Nelis | V24: U | W24: Ryan Bennett | AA24: B | AB24: micheal taylor | AC24: BB | AD24: nathan crook | AK24: G | AL24: Daniel Mills | AM24: GG | AN24: David Iliffe | AP24: X | AQ24: Jacob Fairhurst | AR24: XX | AS24: David Saidu | BA24: 52A | BC24: 52B
B25: 64 | C25: =IF($B25>0,VLOOKUP($B25,EventsOrder,2,FALSE)," ") -> 3.2 | D25: =IF($B25>0,VLOOKUP($B25,EventsOrder,6,FALSE)," ") -> Long Jump Pit 2 | G25: c | H25: Joshua Keyte | I25: cc | J25: Dominic James | L25: O | M25: ARCHIE PARKINSON | Q25: I | R25: Cole Sinnott | S25: II | T25: Max Mowforth | V25: U | W25: Ryan Bennett | AA25: B | AB25: Nathan Crook | AC25: BB | AD25: jack compton | AF25: F | AG25: JOEL BICKLEY | AH25: FF | AI25: JAMES SHERRIFF | AK25: G | AL25: David Iliffe | AM25: GG | AN25: Elliot Smith | AP25: X | AQ25: Charlie Rennie | AR25: XX | AS25: Euan Gibbs | BA25: 64A | BC25: 64B
B26: 70 | C26: 3.5 | D26: 200m | G26: c | H26: Joshua Keyte | I26: cc | J26: Jake Swann | L26: O | M26: LUCA MAYES | N26: OO | O26: ARCHIE PARKINSON | Q26: I | R26: Cole Sinnott | S26: II | T26: Max Mowforth | V26: U | W26: Finlay Hudson | AA26: B | AB26: tavindra kumar | AC26: BB | AD26: zak thurley | AF26: F | AG26: JOEL BICKLEY | AK26: G | AL26: Joseph Creed | AM26: GG | AN26: David Iliffe | AP26: X | AQ26: Jacob Fairhurst | AR26: XX | AS26: David Saidu | BA26: 70A | BC26: 70B
B27: 73 | C27: 4.2 | D27: 1500m | G27: c | H27: Joshua Robbins | I27: cc | J27: Joe Cunliffe | Q27: I | R27: Ollie Reed | S27: II | T27: Ryan Raulia | AA27: B | AB27: alex hurrell | AC27: BB | AD27: adam horton | AF27: F | AG27: JAMES SHERRIFF | AK27: G | AL27: Elliot Smith | AM27: GG | AN27: Tom Sherriff | AP27: X | AQ27: Charlie Rennie | AR27: XX | AS27: Ethan Patel | BA27: 73A | BC27: 73B
B28: 78 | C28: 4.2 | D28: Discus Match 1 & 3 | G28: c | H28: James Pickup | I28: cc | J28: Dominic James | Q28: I | R28: Dylan Bowley | S28: II | T28: Ethan Nelis | AA28: B | AB28: micheal taylor | AC28: BB | AD28: zak thurley | AK28: G | AL28: Daniel Mills | AM28: GG | BA28: 78A | BC28: 78B
B29: 85 | C29: 5.1 | D29: 4 x 100m | H29: 0 | M29: =M$3 -> Corby | R29: =R$3 -> Kettering | W29: =W$3 -> Kidder & Stourport | AB29: 0 | AG29: =AG$3 -> Tamworth | AL29: =AL$3 -> Royal Sutton | AQ29: =AQ$3 -> Wreake Runners | AV29: =AV$3 -> 0 | BA29: =BA$3 -> 0
B30: =B29&"R" -> 85R | G30: 1 | H30: Jake Swann | I30: 2 | J30: Dominic Cook | L30: 1 | N30: 2 | Q30: 1 | R30: Cole Sinnott | S30: 2 | T30: Ethan Nelis | V30: 1 | X30: 2 | AA30: 1 | AB30: tavindra kumar | AC30: 2 | AD30: nathan crook | AF30: 1 | AG30: TIMOTHY LI | AH30: 2 | AI30: JOEL BICKLEY | AK30: 1 | AL30: Evan Pritchard | AM30: 2 | AN30: David Iliffe | AP30: 1 | AQ30: jacob fairhurst | AR30: 2 | AS30: David saidu | AU30: 1 | AW30: 2 | AZ30: 1 | BA30: =CONCATENATE(LEFT(BA$3,3),$B30,LEFT(BA$6,1)) -> 85RA | BB30: 2 | BC30: =CONCATENATE(LEFT(BA$3,3),$B30,LEFT(BC$6,1)) -> 85RB
B31: =B29&"S" -> 85S | G31: 3 | H31: Dominic James | I31: 4 | J31: Matthew Giffin | L31: 3 | N31: 4 | Q31: 3 | R31: Max Mowforth | S31: 4 | T31: Dylan Bowley | V31: 3 | X31: 4 | AA31: 3 | AB31: zak thurley | AC31: 4 | AD31: joseph campbell | AF31: 3 | AG31: JAMES SHERRIFF | AH31: 4 | AI31: FINLAY CROSS | AK31: 3 | AL31: Daniel Mills | AM31: 4 | AN31: Joseph Creed | AP31: 3 | AQ31: Charlie Rennie | AR31: 4 | AS31: Euan Gibbs | AU31: 3 | AW31: 4 | AZ31: 3 | BA31: 85SA | BB31: 4 | BC31: 85SB
B34: Event | C34: Time | D34: Events | G34: No | H34: A String | I34: No | J34: B String | L34: No | M34: A String | N34: No | O34: B String | Q34: No | R34: A String | S34: No | T34: B String | V34: No | W34: A String | X34: No | Y34: B String | AA34: No | AB34: A String | AC34: No | AD34: B String | AF34: No | AG34: A String | AH34: No | AI34: B String | AK34: No | AL34: A String | AM34: No | AN34: B String | AP34: No | AQ34: A String | AR34: No | AS34: B String | AU34: No | AV34: A String | AW34: No | AX34: B String | AZ34: No | BA34: A String | BB34: No | BC34: B String
D35: Under 15 Male
B36: 6 | C36: =IF($B36>0,VLOOKUP($B36,EventsOrder,2,FALSE)," ") -> 12 | D36: =IF($B36>0,VLOOKUP($B36,EventsOrder,6,FALSE)," ") -> Long Jump Pit 2 | G36: C | H36: Will Thorley | I36: CC | J36: George Clements | L36: O | M36: FINLAY WILSON | N36: OO | O36: JAKE LAWSON | Q36: I | R36: Joshua Gray | T36: Dylan Mukhtar | V36: U | W36: Christopher Telling | AA36: B | AB36: brandon grainger | AF36: F | AG36: LEWIS JOHNSON | AH36: FF | AI36: OLIVER BARNARD | AK36: G | AL36: Luke O'Brien | AM36: GG | AN36: Ben Horton | AP36: X | AQ36: Felix Miskin Young | BA36: =CONCATENATE(LEFT(BA$3,3),$B36,LEFT(BA$6,1)) -> 6A | BC36: =CONCATENATE(LEFT(BA$3,3),$B36,LEFT(BC$6,1)) -> 6B
B37: 16 | C37: 12.4 | D37: 800m | G37: C | H37: Trenton Roberts | I37: CC | J37: Trenton Roberts | L37: O | M37: ADAM McCRONE | N37: OO | Q37: I | R37: Thomas Jawad | AA37: B | AB37: adam bodin | AC37: BB | AD37: daniel mcgregor | AK37: G | AL37: Luke Stoddart | AM37: GG | AN37: Ben Horton | AP37: X | AQ37: Charlie McGlinchy | BA37: 16A | BC37: 16B
B38: 20 | C38: 1.05 | D38: 80m hurdles | G38: C | H38: Josh Pearson | I38: CC | J38: Will Thorley | L38: O | M38: JACOB MORRIS | N38: OO | Q38: I | R38: Joshua Gray | AF38: F | AG38: OWEN SHERRIFF | AH38: FF | AI38: OLIVER BARNARD | AK38: G | AL38: Luke Stoddart | BA38: 20A | BC38: 20B
B39: 22 | C39: 1 | D39: Shot | G39: C | H39: Lewis Byng | I39: CC | J39: Todd Green | L39: O | M39: SAM HAINES | N39: OO | O39: JAKE LAWSON | Q39: I | R39: Tapuwa Chitiga | S39: II | T39: Thomas Jawad | V39: U | W39: Jack Lambert | X39: UU | Y39: Christopher Telling | AA39: B | AB39: brandon grainger | AF39: F | AG39: LEWIS JOHNSON | AH39: FF | AI39: MAX KENT | AK39: G | AL39: George Creed | AM39: GG | AN39: James Ward | BA39: 22A | BC39: 22B
B40: 39 | C40: 1.5 | D40: Javelin Match 2 | G40: C | H40: NA | I40: CC | J40: MA | BA40: 39A | BC40: 39B
B41: 42 | C41: 2.3 | D41: 100m | G41: C | H41: Jordan Hinds | I41: CC | J41: Will Thorley | L41: O | M41: SAM HAINES | N41: OO | O41: FINLAY WILSON | Q41: I | R41: Joshua Gray | S41: II | T41: Dylan Mukhtar | AA41: B | AB41: josh galloway | AF41: F | AG41: CONNOR HEPPLE | AH41: FF | AI41: DAN CARTWRIGHT | AK41: G | AL41: Aiden Bishop | AM41: GG | AN41: Sam Grimshaw | AP41: X | AQ41: Josh Rocks | BA41: 42A | BC41: 42B
B42: 45 | C42: 2.25 | D42: High Jump | G42: C | I42: CC | J42: A String only | L42: O | M42: JACOB MORRIS | N42: OO | O42: A String only | T42: A String only | AA42: B | AB42: tom slater | AD42: A String only | AF42: F | AG42: LEWIS JOHNSON | AI42: A String only | AK42: G | AL42: Luke O'Brien | BA42: =CONCATENATE(LEFT(BA$3,3),$B42,LEFT(BA$6,1)) -> 45A | BC42: A String only
B43: 55 | C43: =IF($B43>0,VLOOKUP($B43,EventsOrder,2,FALSE)," ") -> 2.55 | D43: =IF($B43>0,VLOOKUP($B43,EventsOrder,6,FALSE)," ") -> 300m | G43: C | H43: Josh Pearson | I43: CC | J43: Jordan Hinds | L43: O | M43: ADAM McCRONE | N43: OO | Q43: I | R43: Dylan Mukhtar | S43: II | T43: Thomas Jawad | AA43: B | AB43: daniel mcgregor | AF43: F | AG43: OWEN SHERRIFF | AH43: FF | AI43: ANDREW WOODS | AK43: G | AL43: Ben White | AM43: GG | AN43: Luke O'Brien | AP43: X | AQ43: Charlie McGlinchy | AS43: Felix Miskin Young | BA43: =CONCATENATE(LEFT(BA$3,3),$B43,LEFT(BA$6,1)) -> 55A | BC43: =CONCATENATE(LEFT(BA$3,3),$B43,LEFT(BC$6,1)) -> 55B
B44: 66 | C44: 3.3 | D44: Discus Match 1 & 3 | G44: C | H44: Lewis Byng | I44: CC | J44: Todd Green | L44: O | M44: ADAM McCRONE | N44: OO | O44: FINLAY WILSON | Q44: I | R44: Tapuwa Chitiga | S44: II | T44: Josh Cannell | V44: U | W44: Jack Lambert | AA44: B | AB44: adam bodin | AC44: BB | AD44: harry waters | AF44: F | AG44: CONNOR HEPPLE | AH44: FF | AI44: ANDREW WOODS | AK44: G | AL44: James Ward | AM44: GG | AN44: Sam Grimshaw | AP44: X | AQ44: Josh Rocks | BA44: 66A | BC44: 66B
B45: 71 | C45: 3.55 | D45: 200m | G45: C | H45: Josh Pearson | I45: CC | J45: George Clements | L45: O | M45: SAM HAINES | N45: OO | O45: JACOB MORRIS | Q45: I | R45: Tapuwa Chitiga | S45: II | T45: Dylan Mukhtar | AA45: B | AB45: josh galloway | AF45: F | AG45: CONNOR HEPPLE | AH45: FF | AI45: DAN CARTWRIGHT | AK45: G | AL45: George Creed | AM45: GG | AN45: Sam Grimshaw | AP45: X | AQ45: Josh Rocks | BA45: 71A | BC45: 71B
B46: 76 | C46: 4.3 | D46: 1500m | G46: C | H46: Tom Deykin | I46: CC | J46: David Peaty | L46: O | M46: JAKE LAWSON | Q46: I | R46: Josh Cannell | V46: U | W46: Christopher Telling | AA46: B | AB46: tom slater | AC46: BB | AD46: harry waters | AF46: F | AG46: ANDREW WOODS | AH46: FF | AI46: MAX KENT | AK46: G | AL46: Ben White | AM46: GG | AN46: Lewis Duvalle | AP46: X | AQ46: Felix Miskin Young | BA46: 76A | BC46: 76B
B47: 86 | C47: 5.15 | D47: 4 x 100m | H47: =H$3 -> Brom & Redditch | M47: =M$3 -> Corby | R47: =R$3 -> Kettering | W47: =W$3 -> Kidder & Stourport | AB47: 0 | AG47: =AG$3 -> Tamworth | AL47: =AL$3 -> Royal Sutton | AP47: X | AQ47: =AQ$3 -> Wreake Runners | AV47: =AV$3 -> 0 | BA47: =BA$3 -> 0
B48: =B47&"R" -> 86R | G48: 1 | H48: George Clements | I48: 2 | J48: Jordan Hinds | L48: 1 | M48: JACOB MORRIS | N48: 2 | O48: SAM HAINES | Q48: 1 | R48: Thomas Jawad | S48: 2 | T48: Joshua Gray | V48: 1 | X48: 2 | AA48: 1 | AB48: adam bodin | AC48: 2 | AD48: tom slater | AF48: 1 | AG48: OWEN SHERRIFF | AH48: 2 | AI48: CONNOR HEPPLE | AK48: 1 | AL48: Aiden Bishop | AM48: 2 | AN48: Sam Grimshaw | AP48: 1 | AQ48: Josh Rocks | AR48: 2 | AS48: Charlie McGlinchey | AU48: 1 | AW48: 2 | AZ48: 1 | BA48: =CONCATENATE(LEFT(BA$3,3),$B48,LEFT(BA$6,1)) -> 86RA | BB48: 2 | BC48: =CONCATENATE(LEFT(BA$3,3),$B48,LEFT(BC$6,1)) -> 86RB
B49: =B47&"S" -> 86S | G49: 3 | H49: Will Thorley | I49: 4 | J49: Josh Pearson | L49: 3 | M49: FINLAY WILSON | N49: 4 | O49: ADAM McCrone | Q49: 3 | R49: Dylan Mukhtar | S49: 4 | T49: Tapuwa Chitiga | V49: 3 | X49: 4 | AA49: 3 | AB49: brandon grainger | AC49: 4 | AD49: josh galloway | AF49: 3 | AG49: DAN CARTWRIGHT | AH49: 4 | AI49: OLIVER BARNARD | AK49: 3 | AL49: Jack Barnes | AM49: 4 | AN49: George Creed | AP49: 3 | AQ49: Morgan Enoux | AR49: 4 | AS49: Felix Miskin Young | AU49: 3 | AW49: 4 | AZ49: 3 | BA49: 86SA | BB49: 4 | BC49: 86SB
B52: Event | C52: Time | D52: Events | G52: No | H52: A String | I52: No | J52: B String | L52: No | M52: A String | N52: No | O52: B String | Q52: No | R52: A String | S52: No | T52: B String | V52: No | W52: A String | X52: No | Y52: B String | AA52: No | AB52: A String | AC52: No | AD52: B String | AF52: No | AG52: A String | AH52: No | AI52: B String | AK52: No | AL52: A String | AM52: No | AN52: B String | AP52: No | AQ52: A String | AR52: No | AS52: B String | AU52: No | AV52: A String | AW52: No | AX52: B String | AZ52: No | BA52: A String | BB52: No | BC52: B String
D53: Under 17 Male
B54: 8 | C54: =IF($B54>0,VLOOKUP($B54,EventsOrder,2,FALSE)," ") -> 12.15 | D54: =IF($B54>0,VLOOKUP($B54,EventsOrder,6,FALSE)," ") -> Shot | G54: C | H54: Louca Ellinis | I54: CC | J54: Isaac Hill | L54: O | M54: ROBERT STRANG | Q54: I | R54: Richard Burke | V54: U | W54: Ed Ingram | X54: UU | Y54: Thomas Palmer | AA54: B | AB54: james kelly | AK54: G | AL54: Liam Goodall | AM54: GG | AN54: Cameron Kirkbride | AP54: X | AQ54: George Alvey | BA54: =CONCATENATE(LEFT(BA$3,3),$B54,LEFT(BA$6,1)) -> 8A | BC54: =CONCATENATE(LEFT(BA$3,3),$B54,LEFT(BC$6,1)) -> 8B
B55: 18 | C55: 12.5 | D55: 800m | G55: C | H55: Ben O'Connor | I55: CC | J55: Robert Palmer | L55: O | M55: JACK BENSTEAD | Q55: I | R55: Jake Trent | S55: II | T55: Ethan Mehmet | V55: U | W55: Eddie Roberts | X55: UU | Y55: Harry Higginson | AA55: B | AB55: javana priantoro | AF55: F | AG55: OWEN KENT | AK55: G | AL55: Lee Hetherington | AP55: X | AQ55: Luke Berryman | AR55: XX | AS55: George Alvey | BA55: 18A | BC55: 18B
B56: 23 | C56: 1 | D56: Discus Match 1 & 3 | G56: C | H56: Louca Ellinis | I56: CC | J56: Rory Dodson | Q56: I | R56: Richard Burke | AA56: B | AB56: james kelly | AF56: F | AG56: LUKE JAMES | AK56: G | AL56: Liam Goodall | AP56: X | AQ56: Sam Alvey | BA56: 23A | BC56: 23B
B57: 27 | C57: 1.35 | D57: 100m hurdles | G57: C | I57: CC | V57: U | W57: Harvey Goulding | X57: UU | Y57: Christopher Lane | AF57: F | AG57: DANIEL JAMES | BA57: 27A | BC57: 27B
B58: 32 | C58: 1.3 | D58: Long Jump Pit1 | G58: C | H58: Issac Hill | I58: CC | J58: Rory Dodson | L58: O | M58: JACK BENSTEAD | Q58: I | R58: Jake Trent | S58: II | T58: Sam Bott | V58: U | W58: Greggory Forrester | X58: UU | Y58: Christopher Lane | AA58: B | AB58: ladi abudu | AC58: BB | AD58: javana priantoro | AK58: G | AL58: Cameron Kirkbride | AP58: X | AQ58: Jack Benstead | AR58: XX | AS58: George Alvey | BA58: 32A | BC58: 32B
B59: 43 | C59: 2.35 | D59: 100m | G59: C | H59: Andrew Johnson | I59: CC | J59: Louca Ellinis | L59: O | M59: HARRY MERRIMAN | N59: oo | O59: robert strang | Q59: I | R59: Sam Bott | S59: II | T59: Richard Burke | V59: U | W59: Justin Lee | X59: UU | Y59: Greggory Forrester | AA59: B | AB59: ladi abudu | AC59: BB | AD59: nathaniel green | AF59: F | AG59: DANIEL JAMES | AK59: G | AL59: Ethan Brough | AM59: GG | AN59: Harry Barnes | BA59: 43A | BC59: 43B
B60: 57 | C60: 3 | D60: 400m | G60: C | H60: James Noyce | I60: CC | L60: O | M60: HARRY MERRIMAN | N60: OO | O60: robert strang | Q60: I | R60: Jake Trent | V60: U | W60: Harvey Goulding | X60: UU | Y60: Eddie Roberts | AA60: B | AB60: javana priantoro | AF60: F | AG60: OWEN KENT | AK60: G | AL60: Cameron Kirkbride | AM60: GG | AN60: Lee Hetherington | AP60: X | AQ60: George Alvey | BA60: 57A | BC60: 57B
B61: 67 | C61: =IF($B61>0,VLOOKUP($B61,EventsOrder,2,FALSE)," ") -> 3.3 | D61: =IF($B61>0,VLOOKUP($B61,EventsOrder,6,FALSE)," ") -> Javelin Match 2 | G61: C | I61: CC | BA61: 67A | BC61: 67B
B62: 72 | C62: 4 | D62: 200m | G62: C | H62: Isaac Hill | I62: CC | J62: Rory Dodson | L62: O | M62: HARRY MERRIMAN | Q62: I | R62: Sam Bott | S62: II | T62: Ethan Mehmet | V62: U | W62: Greggory Forrester | X62: UU | Y62: Justin Lee | AA62: B | AB62: ladi abudu | AC62: BB | AD62: nathaniel green | AF62: F | AG62: DANIEL JAMES | AK62: G | AL62: Ethan Brough | AM62: GG | AN62: Cameron Kirkbride | BA62: 72A | BC62: 72B
B63: 74 | C63: 4.1 | D63: High Jump | G63: C | I63: CC | J63: A String only | Q63: I | R63: Ethan Mehmet | T63: A String only | Y63: A String only | AD63: A String only | AS63: A String only | BA63: =CONCATENATE(LEFT(BA$3,3),$B63,LEFT(BA$6,1)) -> 74A | BC63: A String only
B64: 80 | C64: 4.4 | D64: 1500m | G64: C | H64: Conor Smith | I64: CC | J64: Gareth Richardson | V64: U | W64: Harry Higginson | X64: UU | Y64: Thomas Palmer | AF64: F | AG64: JONOTHAN WEST | AP64: X | AQ64: Ashley Parker | BA64: =CONCATENATE(LEFT(BA$3,3),$B64,LEFT(BA$6,1)) -> 80A | BC64: =CONCATENATE(LEFT(BA$3,3),$B64,LEFT(BC$6,1)) -> 80B
B65: 87 | C65: 5.2 | D65: 4 x 100m | H65: =H$3 -> Brom & Redditch | M65: =M$3 -> Corby | R65: =R$3 -> Kettering | W65: =W$3 -> Kidder & Stourport | AB65: 0 | AG65: =AG$3 -> Tamworth | AL65: =AL$3 -> Royal Sutton | AQ65: =AQ$3 -> Wreake Runners | AV65: =AV$3 -> 0 | BA65: =BA$3 -> 0
B66: =B65&"R" -> 87R | G66: 1 | H66: Rory Dodson | I66: 2 | J66: Isaac Hill | L66: 1 | N66: 2 | Q66: 1 | R66: Sam Bott | S66: 2 | T66: Richard Graham | V66: 1 | W66: Christopher Lane | X66: 2 | Y66: Justin Lee | AA66: 1 | AB66: javana priantoro | AC66: 2 | AD66: james kelly | AF66: 1 | AH66: 2 | AK66: 1 | AL66: Cameron Kirkbride | AM66: 2 | AN66: Lee Hetherington | AP66: 1 | AQ66: Sam Alvey | AR66: 2 | AS66: Luke Berryman | AU66: 1 | AW66: 2 | AZ66: 1 | BA66: =CONCATENATE(LEFT(BA$3,3),$B66,LEFT(BA$6,1)) -> 87RA | BB66: 2 | BC66: =CONCATENATE(LEFT(BA$3,3),$B66,LEFT(BC$6,1)) -> 87RB
B67: =B65&"S" -> 87S | G67: 3 | H67: Louca Ellinis | I67: 4 | J67: Andrew Johnson | L67: 3 | N67: 4 | Q67: 3 | R67: Jake Trent | S67: 4 | T67: Ethan Mehmet | V67: 3 | W67: Eddie Roberts | X67: 4 | Y67: Greggory Forrester | AA67: 3 | AB67: nathaniel green | AC67: 4 | AD67: ladi abudu | AF67: 3 | AH67: 4 | AK67: 3 | AL67: Ethan Brough | AM67: 4 | AN67: Harry Barnes | AP67: 3 | AQ67: Ashley Parker | AR67: 4 | AU67: 3 | AW67: 4 | AZ67: 3 | BA67: 87SA | BB67: 4 | BC67: 87SB
C72: Guests - Non-Scoring
B74: Event | C74: Time | D74: Events | G74: No | H74: A String | L74: No | M74: A String | Q74: No | R74: A String | V74: No | W74: A String | AA74: No | AB74: A String | AF74: No | AG74: A String | AK74: No | AL74: A String | AP74: No | AQ74: A String | AU74: No | AV74: A String | AZ74: No | BA74: A String
D76: Male
B77: 91 | C77: =IF($B77>0,VLOOKUP($B77,EventsOrder,2,FALSE)," ") -> 12.2 | D77: =IF($B77>0,VLOOKUP($B77,EventsOrder,6,FALSE)," ") -> 800m U13 Male | AZ77: =$B77 -> 91 | BA77: =CONCATENATE(LEFT(BA$3,3),$B77,LEFT(BA$6,1)) -> 91A
B78: 92 | C78: 12.4 | D78: 800m U15 Male | AZ78: =$B78 -> 92 | BA78: 92A
B79: 93 | C79: 12.5 | D79: 800m U17 Men | G79: 662 | H79: Conor Smith | V79: 250 | W79: Thomas Palmer | AZ79: 93 | BA79: 93A
B80: 97 | C80: 4.2 | D80: 1500m U13 Male | AZ80: 97 | BA80: 97A
B81: 98 | C81: 4.3 | D81: 1500m U15 Male | L81: 402 | M81: JAKE LAWSON | AZ81: 98 | BA81: 98A
B82: 99 | C82: 4.4 | D82: 1500m U17 Men | G82: 663 | H82: Alex Johnson | AZ82: 99 | BA82: 99A
B89: =COLUMN(B1) -> 2 | C89: 3 | D89: 4 | E89: 5 | F89: 6 | G89: 7 | H89: 8 | I89: 9 | J89: 10 | K89: 11 | L89: 12 | M89: 13 | N89: 14 | O89: 15 | P89: 16 | Q89: 17 | R89: 18 | S89: 19 | T89: 20 | U89: 21 | V89: 22 | W89: 23 | X89: 24 | Y89: 25 | Z89: 26 | AA89: 27 | AB89: 28 | AC89: 29 | AD89: 30 | AE89: 31 | AF89: 32 | AG89: 33 | AH89: 34 | AI89: 35 | AJ89: 36 | AK89: 37 | AL89: 38 | AM89: 39 | AN89: 40 | AO89: 41 | AP89: 42 | AQ89: 43 | AR89: 44 | AS89: 45

Sheet Teamsheet Female
C2: Heart of England League | H2: Female | M2: Female | R2: Female | W2: Female | AB2: Female | AG2: Female | AL2: Female | AQ2: Female
C3: Declaration Sheets | G3: ='Event Details'!$C$22 -> C | H3: ='Event Details'!$D$22 -> Brom & Redditch | J3: ='Event Details'!$B$17 -> 10th May 2015 | L3: ='Event Details'!$C$23 -> O | M3: ='Event Details'!$D$23 -> Corby | O3: ='Event Details'!$B$17 -> 10th May 2015 | Q3: ='Event Details'!$C$24 -> I | R3: ='Event Details'!$D$24 -> Kettering | T3: ='Event Details'!$B$17 -> 10th May 2015 | V3: ='Event Details'!$C$25 -> U | W3: ='Event Details'!$D$25 -> Kidder & Stourport | Y3: ='Event Details'!$B$17 -> 10th May 2015 | AA3: ='Event Details'!$C$26 -> B | AB3: ='Event Details'!$D$26 -> Dudley & S'bridge | AD3: ='Event Details'!$B$17 -> 10th May 2015 | AF3: ='Event Details'!$C$27 -> F | AG3: ='Event Details'!$D$27 -> Tamworth | AI3: ='Event Details'!$B$17 -> 10th May 2015 | AK3: ='Event Details'!$C$28 -> G | AL3: ='Event Details'!$D$28 -> Royal Sutton | AN3: ='Event Details'!$B$17 -> 10th May 2015 | AP3: ='Event Details'!$C$29 -> X | AQ3: ='Event Details'!$D$29 -> Wreake Runners | AS3: ='Event Details'!$B$17 -> 10th May 2015
C4: Only 2 non scorers allowed per race
B6: Event | C6: Time | D6: Events | G6: No | H6: A String | I6: No | J6: B String | L6: No | M6: A String | N6: No | O6: B String | Q6: No | R6: A String | S6: No | T6: B String | V6: No | W6: A String | X6: No | Y6: B String | AA6: No | AB6: A String | AC6: No | AD6: B String | AF6: No | AG6: A String | AH6: No | AI6: B String | AK6: No | AL6: A String | AM6: No | AN6: B String | AP6: No | AQ6: A String | AR6: No | AS6: B String | AU6: No | AV6: A String | AW6: No | AX6: B String | AZ6: No | BA6: A String | BB6: No | BC6: B String
D7: Under 11 Female
B8: 3 | C8: =IF($B8>0,VLOOKUP($B8,EventsOrder,2,FALSE)," ") -> 11.45 | D8: =IF($B8>0,VLOOKUP($B8,EventsOrder,6,FALSE)," ") -> Howler | G8: C | H8: Maggie Parkinson | I8: CC | J8: Jessica Causer | L8: O | M8: MADELINE MAYES | N8: OO | O8: CASEY SEYMOUR | Q8: I | R8: Eve Ralph | S8: II | T8: Maddie Moxey | AA8: B | AB8: Kiki Thurley | AC8: BB | AD8: vyvyenne crook | AF8: F | AG8: ELLIE GAUNTLET | AH8: FF | AI8: TEGAN VICKERY | AK8: G | AL8: Charlotte Prince | AM8: GG | AN8: Isabella Marklew | AP8: X | AQ8: Mackenzie Smith | AR8: XX | AS8: Destiny Nicholson | BA8: =CONCATENATE(LEFT(BA$3,3),$B8,LEFT(BA$6,1)) -> 3A | BC8: =CONCATENATE(LEFT(BA$3,3),$B8,LEFT(BC$6,1)) -> 3B
B9: 14 | C9: =IF($B9>0,VLOOKUP($B9,EventsOrder,2,FALSE)," ") -> 12.3 | D9: =IF($B9>0,VLOOKUP($B9,EventsOrder,6,FALSE)," ") -> Long Jump Pit1 | G9: C | H9: Jessica Causer | I9: CC | J9: Georgia Duncombe | L9: O | M9: MADELINE MAYES | N9: OO | O9: CASEY SEYMOUR | Q9: I | R9: Kate Nelis | S9: II | T9: Maddie Moxey | V9: U | W9: Libby Oliver | X9: UU | Y9: Hannah Telling | AA9: B | AB9: libby davies | AC9: BB | AD9: vyvyenne crook | AF9: F | AG9: ELLIE GAUNTLET | AK9: G | AL9: Hope Stirland | AM9: GG | AN9: Isobel Male | AP9: X | AQ9: Isobel O | AR9: XX | AS9: Eliza Weselby | BA9: =CONCATENATE(LEFT(BA$3,3),$B9,LEFT(BA$6,1)) -> 14A | BC9: =CONCATENATE(LEFT(BA$3,3),$B9,LEFT(BC$6,1)) -> 14B
B10: 29 | C10: =IF($B10>0,VLOOKUP($B10,EventsOrder,2,FALSE)," ") -> 1.5 | D10: =IF($B10>0,VLOOKUP($B10,EventsOrder,6,FALSE)," ") -> 600m | G10: C | H10: Maggie Parkinson | I10: CC | J10: Cristina Ricci | L10: O | M10: MADELINE MAYES | N10: OO | O10: CASEY SEYMOUR | Q10: I | R10: Kate Nelis | S10: II | T10: Maddie Moxey | V10: U | W10: Hannah Telling | AA10: B | AB10: libby davies | AC10: BB | AD10: kiki thurley | AF10: F | AG10: TEGAN VICKERY | AK10: G | AL10: Hope Stirland | AM10: GG | AN10: Charlotte Prince | AP10: X | AQ10: Destiny Nicholson | AR10: XX | AS10: Eliza Weselby | BA10: =CONCATENATE(LEFT(BA$3,3),$B10,LEFT(BA$6,1)) -> 29A | BC10: =CONCATENATE(LEFT(BA$3,3),$B10,LEFT(BC$6,1)) -> 29B
B11: 58 | C11: =IF($B11>0,VLOOKUP($B11,EventsOrder,2,FALSE)," ") -> 3.1 | D11: =IF($B11>0,VLOOKUP($B11,EventsOrder,6,FALSE)," ") -> 75m | G11: C | H11: Jessica Causer | I11: CC | J11: Cristina Ricci | L11: O | M11: MADELINE MAYES | N11: OO | O11: CASEY SEYMOUR | V11: U | W11: Libby Oliver | Y11: Hannah Telling | AA11: B | AB11: libby davies | AC11: BB | AD11: vyvyenne crook | AF11: F | AG11: ELLIE GAUNTLET | AH11: FF | AI11: TEGAN VICKERY | AK11: G | AL11: Charlotte Prince | AM11: GG | AN11: Isobel Male
B12: Non-Scoring | G12: No's | H12: (enter Competitor No) | I12: No's | J12: (enter Competitor No) | L12: No's | M12: (enter Competitor No) | N12: No's | O12: (enter Competitor No) | Q12: No's | R12: (enter Competitor No) | S12: No's | T12: (enter Competitor No) | V12: No's | W12: (enter Competitor No) | X12: No's | Y12: (enter Competitor No) | AA12: No's | AB12: (enter Competitor No) | AC12: No's | AD12: (enter Competitor No) | AF12: No's | AG12: (enter Competitor No) | AH12: No's | AI12: (enter Competitor No) | AK12: No's | AL12: (enter Competitor No) | AM12: No's | AN12: (enter Competitor No) | AP12: No's | AQ12: (enter Competitor No) | AR12: No's | AS12: (enter Competitor No) | AU12: No's | AV12: (enter Competitor No) | AW12: No's | AX12: (enter Competitor No) | AZ12: No's | BA12: (enter Competitor No) | BB12: No's | BC12: (enter Competitor No)
C13: =IF($B13>0,VLOOKUP($B13,EventsOrder,2,FALSE)," ") ->  | D13: =IF($B13>0,VLOOKUP($B13,EventsOrder,6,FALSE)," ") ->  | AP13: 500 | AQ13: Maddy Torbitt | AR13: 501 | AS13: Mackenzie Smith | AZ13: =$B13 -> 0 | BA13: =CONCATENATE(LEFT(BA$3,3),$B13,LEFT(BA$6,1)) -> A | BB13: =$B13 -> 0 | BC13: =CONCATENATE(LEFT(BA$3,3),$B13,LEFT(BC$6,1)) -> B
B14: 30 | C14: =IF($B14>0,VLOOKUP($B14,EventsOrder,2,FALSE)," ") -> 1.55 | D14: =IF($B14>0,VLOOKUP($B14,EventsOrder,6,FALSE)," ") -> 600m NS | G14: 650 | H14: Georgia Duncombe | Q14: 93 | R14: Eve Ralph | AK14: 300 | AL14: Isobel Male | AM14: 301 | AN14: Isabella Marklew | AP14: 500 | AQ14: Maddy Torbitt | AR14: 502 | AS14: Destiny Nicholson | AZ14: =$B14 -> 30 | BA14: =CONCATENATE(LEFT(BA$3,3),$B14,LEFT(BA$6,1)) -> 30A | BB14: =$B14 -> 30 | BC14: =CONCATENATE(LEFT(BA$3,3),$B14,LEFT(BC$6,1)) -> 30B
B15: 59 | C15: =IF($B15>0,VLOOKUP($B15,EventsOrder,2,FALSE)," ") -> 3.15 | D15: =IF($B15>0,VLOOKUP($B15,EventsOrder,6,FALSE)," ") -> 75m NS | G15: 653 | H15: Maggie Parkinson | I15: 650 | J15: Georgia Duncombe | Q15: 93 | R15: Eve Ralph | AK15: 301 | AL15: Isabella Marklew | AM15: 302 | AN15: Hope Stirland | AZ15: =$B15 -> 59 | BA15: =CONCATENATE(LEFT(BA$3,3),$B15,LEFT(BA$6,1)) -> 59A | BB15: =$B15 -> 59 | BC15: =CONCATENATE(LEFT(BA$3,3),$B15,LEFT(BC$6,1)) -> 59B
B16: 81 | C16: =IF($B16>0,VLOOKUP($B16,EventsOrder,2,FALSE)," ") -> 4.5 | D16: =IF($B16>0,VLOOKUP($B16,EventsOrder,6,FALSE)," ") -> 4 x 100m Mixed NS | H16: =H$3 -> Brom & Redditch | M16: =M$3 -> Corby | R16: =R$3 -> Kettering | W16: =W$3 -> Kidder & Stourport | AB16: =AB$3 -> Dudley & S'bridge | AG16: =AG$3 -> Tamworth | AL16: =AL$3 -> Royal Sutton | AQ16: =AQ$3 -> Wreake Runners | AV16: =AV$3 -> 0 | BA16: =BA$3 -> 0
B17: =B16&"R" -> 81R | G17: 1 | H17: Jessica Causer | I17: 2 | J17: Georgia Duncombe | L17: 1 | M17: MADELINE MAYES | N17: 2 | O17: CASEY SEYMOUR | Q17: 1 | R17: Kate Nelis | T17: Maddie Moxey | V17: 1 | X17: 2 | AA17: 1 | AB17: carter wood | AC17: 2 | AD17: vyvyenne crook | AF17: 1 | AG17: ELLIE GAUNTLET | AH17: 2 | AI17: TEGAN VICKERY | AK17: 1 | AL17: Charlotte Prince | AM17: 2 | AN17: Jacob Stoney | AP17: 1 | AQ17: Mackenzie Smith | AR17: 2 | AS17: Eliza Weselby | AU17: 1 | AW17: 2 | AZ17: 1 | BA17: =CONCATENATE(LEFT(BA$3,3),$B17,LEFT(BA$6,1)) -> 81RA | BB17: 2 | BC17: =CONCATENATE(LEFT(BC$3,3),$B17,LEFT(BC$6,1)) -> 81RB
B18: =B16&"S" -> 81S | G18: 3 | H18: Cristina Ricci | I18: 4 | J18: Luke Darlington | L18: 3 | M18: ELLIOT DEE | N18: 4 | O18: MARVIN CAMERA | Q18: 3 | R18: Alfie Frayne | S18: 4 | T18: Jamie Lake | V18: 3 | X18: 4 | AA18: 3 | AB18: jamie crook | AC18: 4 | AD18: libby davies | AF18: 3 | AG18: JAMES STRETTON | AH18: 4 | AI18: ASHLEY JOHNSON | AK18: 3 | AL18: Isobel Marklew | AM18: 4 | AN18: Jack Turner-Knapp | AP18: 3 | AQ18: Rohan Stokes | AR18: 4 | AU18: 3 | AW18: 4 | AZ18: 3 | BA18: 81SA | BB18: 4 | BC18: 81SB
B20: Event | C20: Time | D20: Events | G20: No | H20: A String | I20: No | J20: B String | L20: No | M20: A String | N20: No | O20: B String | Q20: No | R20: A String | S20: No | T20: B String | V20: No | W20: A String | X20: No | Y20: B String | AA20: No | AB20: A String | AC20: No | AD20: B String | AF20: No | AG20: A String | AH20: No | AI20: B String | AK20: No | AL20: A String | AM20: No | AN20: B String | AP20: No | AQ20: A String | AR20: No | AS20: B String | AU20: No | AV20: A String | AW20: No | AX20: B String | AZ20: No | BA20: A String | BB20: No | BC20: B String
D21: Under 13 Female
B22: 1 | C22: =IF($B22>0,VLOOKUP($B22,EventsOrder,2,FALSE)," ") -> 11.45 | D22: =IF($B22>0,VLOOKUP($B22,EventsOrder,6,FALSE)," ") -> 1500m | G22: C | H22: Natalie Hatfield | I22: CC | J22: Sophie Groom | L22: O | M22: ANNIE BECKWITH | N22: OO | O22: OLIVIA MARSDEN | Q22: I | R22: Mia Bockway | S22: II | T22: Isabella Moxey | V22: U | W22: Libby Hawkswell | AA22: B | AB22: Cloe Everton | AC22: BB | AD22: Eve Oakley | AF22: F | AG22: ABI HAMER | AH22: FF | AI22: CHARLOTTE PERRY | AK22: G | AL22: Elsa Buchanan | AM22: GG | AN22: Milly Fidkin | AP22: X | AQ22: Katie Parker | AR22: XX | AS22: Flora Miskin-Young | BA22: =CONCATENATE(LEFT(BA$3,3),$B22,LEFT(BA$6,1)) -> 1A | BC22: =CONCATENATE(LEFT(BA$3,3),$B22,LEFT(BC$6,1)) -> 1B
B23: 11 | C23: 12.15 | D23: 70m hurdles | Q23: I | R23: Matilda Braithwaite | W23: Libby Hawkswell | AA23: B | AB23: niamh darby | AF23: F | AG23: NIAMH KILGALLEN | AP23: X | AQ23: Flora Miskin Young | AR23: XX | AS23: Ravenn Cook | BA23: 11A | BC23: =CONCATENATE(LEFT(BA$3,3),$B23,LEFT(BC$6,1)) -> 11B
B24: 25 | C24: 1.15 | D24: 800m | G24: C | H24: Shanais Johnson | I24: CC | J24: Charlotte Jones | L24: O | M24: TRINITY COOMBS | N24: OO | O24: JAY-LEIGH McALLISTER | Q24: I | R24: Sky-Lily Kay | S24: II | T24: Isabella Moxey | AA24: B | AB24: jasmine priantoro | AC24: BB | AD24: zara gibbs | AF24: F | AG24: SIAN LEWIS | AH24: FF | AI24: AMY COOK | AK24: G | AL24: Lucia Cantone | AM24: GG | AN24: Zoe Trevis | AP24: X | AQ24: Maya Stokes | AR24: XX | AS24: Indie King | BA24: 25A | BC24: =CONCATENATE(LEFT(BA$3,3),$B24,LEFT(BC$6,1)) -> 25B
B25: 31 | C25: 1.4 | D25: High Jump | G25: C | H25: Charotte Jones | I25: CC | J25: A String only | O25: A String only | Q25: I | R25: Harriet Drake-Lee | S25: II | T25: A String only | Y25: A String only | AA25: B | AB25: joszette taylor | AC25: BB | AD25: A String only | AF25: F | AG25: AMY COOK | AI25: A String only | AK25: G | AL25: Elsa Buchanan | AS25: A String only | BA25: 31A | BC25: A String only
B26: 35 | C26: 2.1 | D26: 100m | G26: C | H26: Henna Khaliq | I26: CC | J26: Megan Friend | L26: O | M26: SOPHIE FRY | N26: OO | O26: MATILDA SOMMERVILLE COTTON | Q26: I | R26: Ellen Smith | S26: II | T26: Matilda Braithwaite | V26: U | W26: Libby Hawkswell | X26: UU | Y26: IZZY MULLET | AA26: B | AB26: niamh darby | AC26: BB | AD26: joszette taylor | AF26: F | AG26: NIAMH KILGALLEN | AH26: FF | AI26: SIAN LEWIS | AK26: G | AL26: Evelyne Maidment | AM26: GG | AN26: Zoe Trevis | AP26: X | AQ26: Poppy Tott - Buswell | AR26: XX | AS26: Indie King | BA26: 35A | BC26: =CONCATENATE(LEFT(BA$3,3),$B26,LEFT(BC$6,1)) -> 35B
B27: 38 | C27: 1.5 | D27: Discus Match 1 & 3 | G27: C | H27: Talitha Scoltock-Daftary | I27: CC | J27: Evie Smiley | L27: O | M27: JAYLEIGHMcCLLISTER | Q27: I | R27: Matilda Braithwaite | T27: Isabella Moxey | AA27: B | AB27: zara gibbs | AC27: BB | AD27: jessica grainger | AF27: F | AG27: HANNAH EVANS | AH27: FF | AI27: ABI HAMER | AK27: G | AL27: Thea Criddle | AM27: GG | AN27: Fae Reid | AP27: X | AQ27: Maya Stokes | AR27: XX | AS27: Grace Alvey | BA27: 38A | BC27: 38B
B28: 56 | C28: =IF($B28>0,VLOOKUP($B28,EventsOrder,2,FALSE)," ") -> 2.5 | D28: =IF($B28>0,VLOOKUP($B28,EventsOrder,6,FALSE)," ") -> Long Jump Pit 1 | G28: C | H28: Megan Friend | I28: CC | J28: Chalotte Wilson | L28: O | M28: MATILDA SOMMERVILLE COTTON | N28: OO | O28: JAY-LEIGH McALLISTER | Q28: I | R28: Millie Webb | S28: II | T28: Harriet Drake-Lee | V28: U | W28: Libby Evans | AA28: B | AB28: jessica grainger | AC28: BB | AD28: molly hall | AF28: F | AG28: AMY COOK | AH28: FF | AI28: BETHANY WINSTONE | AK28: G | AL28: Elsa Buchanan | AM28: GG | AN28: Zoe Trevis | AP28: X | AQ28: Katie Parker | AR28: XX | AS28: Flora Miskin-Young | BA28: 56A | BC28: 56B
B29: 63 | C29: 3.35 | D29: 200m | G29: C | H29: Henna Khaliq | I29: CC | J29: Jasmine Carter | L29: O | M29: MATILDA SOMMERVILLE COTTON | N29: OO | O29: SOPHIE FRY | Q29: I | R29: Ellen Smith | S29: II | T29: Millie Webb | V29: U | W29: Izzy Mullet | AA29: B | AB29: niamh darby | AC29: BB | AD29: molly hall | AF29: F | AG29: NIAMH KILGALLEN | AH29: FF | AI29: KATIE STRETTON | AK29: G | AL29: Fae Reid | AM29: GG | AN29: Evelyne Maidment | AP29: X | AQ29: Grace Alvey | AR29: XX | AS29: Katie Parker | BA29: 63A | BC29: 63B
B30: 65 | C30: 3.3 | D30: Shot | G30: C | H30: Talitha Scoltock-Daftary | I30: CC | J30: Evie Smiley | L30: O | M30: SOPHIE FRY | N30: OO | O30: TRINITY COOMBS | Q30: I | R30: Harriet Drake-Lee | S30: II | T30: Millie Webb | V30: U | W30: Hayley Smith | X30: UU | Y30: Libby Evans | AA30: B | AB30: joszette taylor | AC30: BB | AD30: jessica grainger | AF30: F | AG30: HANNAH EVANS | AH30: FF | AI30: KATIE STRETTON | AK30: G | AL30: Thea Criddle | AM30: GG | AN30: Freya Liddington | AP30: X | AQ30: Grace Alvey | AR30: XX | AS30: Ravenn Cook | BA30: 65A | BC30: 65B
B31: 79 | C31: 4.2 | D31: Javelin Match 2 | BA31: 79A | BC31: 79B
B32: 82 | C32: 4.55 | D32: 4 x 100m | H32: =H$3 -> Brom & Redditch | M32: =M$3 -> Corby | R32: =R$3 -> Kettering | W32: =W$3 -> Kidder & Stourport | AG32: =AG$3 -> Tamworth | AL32: =AL$3 -> Royal Sutton | AQ32: =AQ$3 -> Wreake Runners | AV32: =AV$3 -> 0 | BA32: =BA$3 -> 0
B33: =B32&"R" -> 82R | G33: 1 | H33: Jasmine Carter | I33: 2 | J33: Megan Friend | L33: 1 | N33: 2 | Q33: 1 | R33: Millie Webb | T33: Ellen Smith | V33: 1 | X33: 2 | AA33: 1 | AB33: jasmine priantoro | AC33: 2 | AD33: joszette taylor | AF33: 1 | AG33: SOPHIE PERRY | AH33: 2 | AI33: ABI HAMER | AK33: 1 | AL33: Evelyne Maidment | AM33: 2 | AN33: Elsa Buchanan | AP33: 1 | AQ33: Poppy Tott - Buswell | AR33: 2 | AS33: Jade Hudspith | AU33: 1 | AW33: 2 | AZ33: 1 | BA33: =CONCATENATE(LEFT(BA$3,3),$B33,LEFT(BA$6,1)) -> 82RA | BB33: 2 | BC33: =CONCATENATE(LEFT(BC$3,3),$B33,LEFT(BC$6,1)) -> 82RB
B34: =B32&"S" -> 82S | G34: 3 | H34: Vicky Johnson | I34: 4 | J34: Henna Khaliq | L34: 3 | N34: 4 | Q34: 3 | R34: Matilda Braithwaite | S34: 4 | T34: Harriet Drake-Lee | V34: 3 | X34: 4 | AA34: 3 | AB34: jessica grainger | AC34: 4 | AD34: niamh darby | AF34: 3 | AG34: BETHANY WINSTONE | AH34: 4 | AI34: NIAMH KILGALLEN | AK34: 3 | AL34: Zoe Trevis | AM34: 4 | AN34: Fae Reid | AP34: 3 | AQ34: Flora Miskin Young | AR34: 4 | AS34: Sophie Thorpe | AU34: 3 | AW34: 4 | AZ34: 3 | BA34: 82SA | BB34: 4 | BC34: 82SB
B37: Event | C37: Time | D37: Events | G37: No | H37: A String | I37: No | J37: B String | L37: No | M37: A String | N37: No | O37: B String | Q37: No | R37: A String | S37: No | T37: B String | V37: No | W37: A String | X37: No | Y37: B String | AA37: No | AB37: A String | AC37: No | AD37: B String | AF37: No | AG37: A String | AH37: No | AI37: B String | AK37: No | AL37: A String | AM37: No | AN37: B String | AP37: No | AQ37: A String | AR37: No | AS37: B String | AU37: No | AV37: A String | AW37: No | AX37: B String | AZ37: No | BA37: A String | BB37: No | BC37: B String
D38: Under 15 Female
B39: 4 | C39: =IF($B39>0,VLOOKUP($B39,EventsOrder,2,FALSE)," ") -> 11.55 | D39: =IF($B39>0,VLOOKUP($B39,EventsOrder,6,FALSE)," ") -> 1500m | G39: C | H39: Ellen Bowen | I39: CC | J39: Amy Mijovic-Cauldwell | L39: O | M39: LAURA DEW | N39: OO | O39: ABBEY BARNES | Q39: I | R39: Danielle McGann-Gaskill | S39: II | T39: Jenifer Robinson | AA39: B | AB39: chloe priest | AF39: F | AG39: EVE CLAWLEY | AK39: G | AL39: Caitlin White | AM39: GG | AN39: Rachel White | AP39: X | AQ39: Fern Harrison | AR39: XX | AS39: Hollie Gamble | BA39: =CONCATENATE(LEFT(BA$3,3),$B39,LEFT(BA$6,1)) -> 4A | BC39: =CONCATENATE(LEFT(BA$3,3),$B39,LEFT(BC$6,1)) -> 4B
B40: 9 | C40: 12.15 | D40: Discus Match 1 & 3 | G40: C | H40: Robyn Yeomans | I40: CC | J40: Orla Lewis | L40: O | M40: LAUREN McMULLEN | N40: OO | O40: DONNA HERON | Q40: I | R40: Niamh Monaghan | S40: II | T40: Jenifer Robinson | V40: U | W40: Jessica Surridge | X40: UU | Y40: Yasmin Berrow | AA40: B | AF40: F | AG40: LUCY WHEELER | AH40: FF | AI40: RACHEL WEST | AK40: G | AL40: Elley Criddle | AM40: GG | AN40: Maddy Underwood | AP40: X | AQ40: Megan Luxford | AR40: XX | AS40: Fern Harrison | BA40: 9A | BC40: =CONCATENATE(LEFT(BA$3,3),$B40,LEFT(BC$6,1)) -> 9B
B41: 13 | C41: 12.3 | D41: 75m hurdles | G41: C | H41: Robyn Yeomans | I41: CC | Q41: I | R41: Maurella Forbes | V41: U | W41: Monica Aresu | X41: UU | Y41: Yasmin Berrow | AA41: B | AB41: jessica crook | AD41: Orla Lewis | AF41: F | AG41: EMILY FINDLATER | AP41: X | AQ41: Josie Orange | AR41: XX | AS41: Jenni Sheppard | BA41: 13A | BC41: =CONCATENATE(LEFT(BA$3,3),$B41,LEFT(BC$6,1)) -> 13B
B42: 17 | C42: 12.55 | D42: High Jump | G42: C | H42: Eva James | I42: CC | J42: A String only | O42: A String only | Q42: I | R42: Niamh Monaghan | T42: A String only | V42: U | W42: Rosie Meacham | Y42: A String only | AA42: B | AB42: kate bishop | AD42: A String only | AI42: A String only | AK42: G | AL42: Evie Gough | AP42: X | AQ42: Scarlett Pagett-Wright | AS42: A String only | BA42: 17A | BC42: A String only
B43: 21 | C43: 1 | D43: Long Jump Pit 2 | G43: C | H43: Lauren Vale | I43: CC | J43: Katie Holloway | L43: O | M43: DONNA HERON | N43: OO | O43: GEORGIA MILLS | Q43: I | R43: Alex Beale | S43: II | T43: Danielle McGann-Gaskill | AA43: B | AB43: emma sherwood | AC43: BB | AD43: jessica crook | AF43: F | AG43: CHARLOTTE BUSH | AH43: FF | AI43: EVE CLAWLEY | AK43: G | AL43: Maddy Underwood | AM43: GG | AN43: Beth Darrock | AP43: X | AQ43: Scarlett Pagett-Wright | AR43: XX | AS43: Mollie Crowson | BA43: 21A | BC43: =CONCATENATE(LEFT(BA$3,3),$B43,LEFT(BC$6,1)) -> 21B
B44: 26 | C44: 1.25 | D44: 800m | G44: C | H44: Alice Battey | I44: CC | J44: Ellie Sanders | L44: O | M44: SELINA SCOTT | N44: OO | O44: DONNA HERON | Q44: I | R44: Harriett Jolley | V44: U | W44: Georgia Lees | AA44: B | AB44: Cloe Priest | AC44: BB | AD44: abigail allardice | AF44: F | AG44: CHARLOTTE BUSH | AH44: FF | AI44: ERIN BUSH | AK44: G | AL44: Mel Adkins | AP44: X | AQ44: Emiliy McTaggart | AR44: XX | AS44: Scarlet Paget Wright | BA44: 26A | BC44: 26B
B45: 36 | C45: 2.15 | D45: 100m | G45: C | H45: Eva James | I45: CC | J45: Esme Lloyd Pugh | L45: O | M45: ALICE MERRIMAN | N45: OO | O45: GEORGIA MILLS | Q45: I | R45: Alex Beale | S45: II | T45: Rhianna Paris-Smith | V45: U | W45: Monica Aresu | X45: UU | Y45: Yasmin Berrow | AA45: B | AB45: lauren millward | AC45: BB | AD45: kate bishop | AF45: F | AG45: LUCY WHEELER | AH45: FF | AI45: RACHEL WEST | AK45: G | AL45: Elley Criddle | AM45: GG | AN45: Beth Darrock | AP45: X | AQ45: Megan Luxford | AR45: XX | AS45: Josie Orange | BA45: 36A | BC45: 36B
B46: 50 | C46: =IF($B46>0,VLOOKUP($B46,EventsOrder,2,FALSE)," ") -> 2.4 | D46: =IF($B46>0,VLOOKUP($B46,EventsOrder,6,FALSE)," ") -> 300m | G46: C | H46: Orla Lewis | I46: CC | J46: Amy Tongue | L46: O | M46: LAURA DEW | N46: OO | O46: LAUREN MCMULLEN | Q46: I | R46: Niamh Monaghan | S46: II | T46: Jenifer Robinson | V46: U | W46: Georgia Lees | X46: UU | Y46: Jessica Surridge | AA46: B | AB46: zara millward | AC46: BB | AD46: emma sherwood | AF46: F | AG46: EMILY FINDLATER | AH46: FF | AI46: RACHEL WEST | AK46: G | AL46: Mel Adkins | AM46: GG | AN46: Evie Gough | AP46: X | AQ46: Emily McTaggart | BA46: 50A | BC46: 50B
B47: 54 | C47: 2.4 | D47: Javelin Match 2 | G47: C | H47: NA | I47: CC | J47: NA | AQ47: Rosie Weselby | BA47: 54A | BC47: 54B
B48: 68 | C48: 3.4 | D48: 200m | G48: C | H48: Eva James | I48: CC | J48: Katie Holloway | L48: O | M48: ALICE MERRIMAM | N48: OO | O48: GEORGIA MILLS | Q48: I | R48: Alex Beale | S48: II | T48: Rhianna Paris-Smith | V48: U | W48: Monica Aresu | X48: UU | Y48: Rosie Meacham | AA48: B | AB48: zara millward | AC48: BB | AD48: LAUREN MILLWARD | AF48: F | AG48: LUCY WHEELER | AH48: FF | AI48: RACHEL WEST | AK48: G | AL48: Chelsea Parkes | AM48: GG | AN48: Maddy Underwood | AP48: X | AQ48: Josie Orange | AR48: XX | AS48: Megan Luxford | BA48: 68A | BC48: 68B
B49: 77 | C49: 4.2 | D49: Shot | G49: C | H49: Amy Tongue | I49: CC | J49: Megan Pickup | L49: O | M49: LAUREN McMULLEN | N49: OO | O49: DONNA HERON | Q49: I | R49: Rhianna Paris-Smith | S49: II | T49: Niamh Monaghan | V49: U | W49: Georgina knott | X49: UU | Y49: jessica surridge | AA49: B | AB49: deborah sauni-noka | AF49: F | AG49: EMILY FINDLATER | AH49: FF | AI49: ERIN BUSH | AK49: G | AL49: Elley Criddle | AM49: GG | AN49: Beth Darrock | AP49: X | AQ49: Megan Luxford | AR49: XX | AS49: Fern Harrison | BA49: 77A | BC49: 77B
B50: 83 | C50: 5 | D50: 4 x 100m | H50: =H$3 -> Brom & Redditch | M50: =M$3 -> Corby | R50: =R$3 -> Kettering | W50: =W$3 -> Kidder & Stourport | AB50: =AB32=AB$3 -> FALSE | AG50: =AG$3 -> Tamworth | AL50: =AL$3 -> Royal Sutton | AQ50: =AQ$3 -> Wreake Runners | AV50: =AV$3 -> 0 | BA50: =BA$3 -> 0
B51: =B50&"R" -> 83R | G51: 1 | H51: Eva James | I51: 2 | J51: Orla Lewis | L51: 1 | M51: ALICE MERRIMAM | N51: 2 | O51: GEORGIA MILLS | Q51: 1 | R51: Niamh Monaghan | S51: 2 | T51: Jenifer Robinson | V51: 1 | W51: Jessica Surridge | X51: 2 | Y51: Yasmin Berrow | AA51: 1 | AB51: emma sherwood | AC51: 2 | AD51: jessica crook | AF51: 1 | AG51: RACHEL WEST | AH51: 2 | AI51: EMILY FINDLATER | AK51: 1 | AL51: Maddy Underwood | AM51: 2 | AN51: Evie Gough | AP51: 1 | AQ51: Megan Luxford | AR51: 2 | AS51: Jenni Sheppard | AU51: 1 | AW51: 2 | AZ51: 1 | BA51: =CONCATENATE(LEFT(BA$3,3),$B51,LEFT(BA$6,1)) -> 83RA | BB51: 2 | BC51: =CONCATENATE(LEFT(BC$3,3),$B51,LEFT(BC$6,1)) -> 83RB
B52: =B50&"S" -> 83S | G52: 3 | H52: Esme Lloyd Pugh | I52: 4 | J52: Katie Holloway | L52: 3 | M52: DONNA HERON | N52: 4 | O52: SELINA SCOTT | Q52: 3 | R52: Maurella Forbes | S52: 4 | T52: Rhianna Paris-Smith | V52: 3 | W52: Rosie Meacham | X52: 4 | Y52: Monica Aresu | AA52: 3 | AB52: lauren millward | AC52: 4 | AD52: zara millward | AF52: 3 | AG52: CHARLOTTE BUSH | AH52: 4 | AI52: LUCY WHEELER | AK52: 3 | AL52: Elley Criddle | AM52: 4 | AN52: Chelsea Parkes | AP52: 3 | AQ52: Josie Orange | AR52: 4 | AS52: Emiliy McTaggart | AU52: 3 | AW52: 4 | AZ52: 3 | BA52: 83SA | BB52: 4 | BC52: 83SB
B55: Event | C55: Time | D55: Events | G55: No | H55: A String | I55: No | J55: B String | L55: No | M55: A String | N55: No | O55: B String | Q55: No | R55: A String | S55: No | T55: B String | V55: No | W55: A String | X55: No | Y55: B String | AA55: No | AB55: A String | AC55: No | AD55: B String | AF55: No | AG55: A String | AH55: No | AI55: B String | AK55: No | AL55: A String | AM55: No | AN55: B String | AP55: No | AQ55: A String | AR55: No | AS55: B String | AU55: No | AV55: A String | AW55: No | AX55: B String | AZ55: No | BA55: A String | BB55: No | BC55: B String
D56: U17 Female / Women
B57: 7 | C57: =IF($B57>0,VLOOKUP($B57,EventsOrder,2,FALSE)," ") -> 12.05 | D57: =IF($B57>0,VLOOKUP($B57,EventsOrder,6,FALSE)," ") -> 1500m | L57: O | M57: ELLIE-MAY HATHAWAY U17 | Q57: I | R57: Chloe Hearne | S57: II | T57: Rebecca Hughes | V57: U | W57: Aimee Rice U20 | X57: UU | Y57: Selena Topham SEN | AQ57: Rosie Weselby U17 | BA57: =CONCATENATE(LEFT(BA$3,3),$B57,LEFT(BA$6,1)) -> 7A | BC57: =CONCATENATE(LEFT(BA$3,3),$B57,LEFT(BC$6,1)) -> 7B
B58: 10 | C58: 12.15 | D58: Javelin Match 2 | BA58: 10A | BC58: 10B
B59: 19 | C59: 1 | D59: 80m hurdles (U17) | V59: U | W59: Hannah Johnson U17 | X59: UU | Y59: Olivia Jones U17 | AF59: F | AG59: BETHANY DEVONSHIRE U17 | BA59: 19A | BC59: 19B
B60: 28 | C60: 1.4 | D60: 800m | G60: C | H60: SAMANTHA SMITH | Q60: I | R60: Hannah Winstone | S60: II | T60: Sophie Moss | V60: U | W60: Selena Topham SEN | AK60: G | AL60: Verity O'Shea | AM60: GG | AN60: Lucy Wood | AQ60: Jess Hazel U17 | AS60: Michaela Knight U17 | BA60: 28A | BC60: 28B
B61: 37 | C61: 1.5 | D61: Shot | G61: C | H61: Claire Neylon (U20) | I61: CC | J61: Yasmine Scoltock (VW40) | L61: O | M61: EMMA MARTIN U17 | Q61: I | R61: Rebecca Hughes | S61: II | T61: Sophie Moss | V61: U | W61: Lynette McKeown SEN | X61: UU | Y61: Sarah Stuart-Smith U23 | AA61: B | AB61: danielle kinsell u20 | AC61: BB | AD61: racheal timothy SEN | AF61: F | AG61: ISABELLE NEVILLE U17 | AK61: G | AL61: Chrissie Prince | AM61: GG | AN61: Hannah Smith | AQ61: Rosie Weselby U17 | BA61: 37A | BC61: 37B
B62: 40 | C62: 2.2 | D62: 100m | G62: C | H62: Victoria Bartlett U17 | I62: CC | J62: Harriet Moseley U17 | L62: O | M62: TEMAYA MAYO U17 | Q62: I | R62: Meghan Mills-Amissah | S62: II | T62: Laura Lowery | AA62: B | AB62: racheal timothy sen | AC62: BB | AD62: annabel mullinder | AF62: F | AG62: ALICE MELLOR U17 | AK62: G | AL62: Rachel Iliffe | AM62: GG | AN62: Jenny Hopkinson | AQ62: Holly Carter U17 | BA62: 40A | BC62: 40B
B63: 51 | C63: 2.45 | D63: 300m | G63: C | H63: Megan Nicod U17 | L63: O | M63: ELLIE-MAY HATHAWAYU17 | Q63: I | R63: Hannah Winstone | S63: II | T63: Sheena Britten (U20) | V63: U | W63: Ella DiMambro U17 | X63: UU | Y63: Hannah Johnson U17 | AB63: 0 | AF63: F | AG63: ISABELLE NEVILLE U17 | AK63: G | AL63: Becky Evans | AM63: GG | AN63: Hannah Smith | AQ63: Michaela Knight U17 | AS63: Rosie Weselby U17 | BA63: 51A | BC63: 51B
B64: 53 | C64: =IF($B64>0,VLOOKUP($B64,EventsOrder,2,FALSE)," ") -> 2.4 | D64: =IF($B64>0,VLOOKUP($B64,EventsOrder,6,FALSE)," ") -> Discus Match 1 & 3 | G64: C | H64: Claire Neylon (U20) | I64: CC | J64: Yasmine Scoltock (VW40) | L64: O | M64: EMMA MARTIN U17 | Q64: I | R64: Amanda Marlow VET | S64: II | T64: Hannah Winstone | V64: U | W64: Lynette McKeown SEN | X64: UU | Y64: Ella DiMambro U17 | AA64: B | AB64: danielle kinsell U20 | AF64: F | AG64: ALICE MELLOR U17 | AK64: G | AL64: Chrissie Prince | AM64: GG | AN64: Lucy Wood | AQ64: Michaela Knight U17 | BA64: 53A | BC64: 53B
B65: 60 | C65: 3.1 | D65: High Jump | G65: C | I65: CC | J65: A String only | Q65: I | R65: Chloe Hearne | T65: A String only | V65: U | W65: Olivia Jones U17 | Y65: A String only | AD65: A String only | AG65: BETHANY DEVONSHIRE U17 | AI65: A String only | AK65: G | AL65: Megan Evans | BA65: 60A | BC65: A String only
B66: 69 | C66: 3.45 | D66: 200m | G66: C | H66: Victoria Bartlett U17 | I66: CC | J66: Harriet Moseley U17 | L66: O | M66: TEMAYA MAYO | Q66: I | R66: Meghan Mills-Amissah | S66: II | T66: Niamh Ruffles | V66: U | W66: Sarah Stuart-Smith U23 | X66: UU | Y66: Ella DiMambro U17 | AA66: B | AB66: racheal timothy SEN | AC66: BB | AD66: lauren hemmings | AF66: F | AG66: ALICE MELLORU17 | AH66: FF | AI66: ISABELLE NEVILLE U17 | AK66: G | AL66: Rachel Iliffe | AM66: GG | AN66: Jenny Hopkinson | BA66: 69A | BC66: =CONCATENATE(LEFT(BA$3,3),$B66,LEFT(BC$6,1)) -> 69B
B67: 75 | C67: 4 | D67: Long Jump Pit1 | G67: C | H67: Victoria Bartlett U17 | I67: CC | J67: Harriet Moseley U17 | L67: O | M67: TEMAYA MAYO | N67: OO | O67: ELLIE-MAY HATHAWAY | Q67: I | R67: Meghan Mills-Amissah | S67: II | T67: Chloe Hearne | V67: U | W67: Hannah Johnson | AA67: B | AB67: annabel mullinder | AF67: F | AG67: BETHANY DEVONSHIRE U17 | AK67: G | AL67: Megan Evans | AM67: GG | AN67: Rachel Iliffe | BA67: 75A | BC67: =CONCATENATE(LEFT(BA$3,3),$B67,LEFT(BC$6,1)) -> 75B
B68: 84 | C68: 5.05 | D68: 4 x 100m | H68: =H$3 -> Brom & Redditch | M68: =M$3 -> Corby | R68: =R$3 -> Kettering | W68: =W$3 -> Kidder & Stourport | AB68: =AB9 -> libby davies | AG68: =AG$3 -> Tamworth | AL68: =AL$3 -> Royal Sutton | AQ68: =AQ$3 -> Wreake Runners | AV68: =AV$3 -> 0 | BA68: =BA$3 -> 0
B69: =B68&"R" -> 84R | G69: 1 | H69: Harriet Moseley | I69: 2 | J69: Claire Neylon (U20) | L69: 1 | N69: 2 | Q69: 1 | R69: Meghan Mills-Amissah | S69: 2 | T69: Sheena Britten | V69: 1 | W69: Olivia Jones | X69: 2 | Y69: Sarah Stuart-Smith | AA69: 1 | AB69: annabel mullinder | AC69: 2 | AD69: lauren hemmings | AF69: 1 | AG69: CHARLOTTE BARNARD | AH69: 2 | AI69: BETHANY DEVONSHIRE | AK69: 1 | AL69: Lucy Wood | AM69: 2 | AN69: Becky Evans | AP69: 1 | AQ69: Jess Hazel | AR69: 2 | AS69: Rosie Weselby | AU69: 1 | AW69: 2 | AZ69: 1 | BA69: =CONCATENATE(LEFT(BA$3,3),$B69,LEFT(BA$6,1)) -> 84RA | BB69: 2 | BC69: =CONCATENATE(LEFT(BC$3,3),$B69,LEFT(BC$6,1)) -> 84RB
B70: =B68&"S" -> 84S | G70: 3 | H70: Yasmine Scoltock (VW40) | I70: 4 | J70: Victoria Bartlett | L70: 3 | N70: 4 | Q70: 3 | R70: Niamh Ruffles | S70: 4 | T70: Laura Lowery | V70: 3 | W70: Hannah Johnson | X70: 4 | Y70: Ella DiMambro | AA70: 3 | AB70: danielle kinsell | AC70: 4 | AD70: racheal timothy | AF70: 3 | AG70: ISABELLE NEVILLE | AH70: 4 | AI70: ALICE MELLOR | AK70: 3 | AL70: Hannah Smith | AM70: 4 | AN70: Rachel Iliffe | AP70: 3 | AQ70: Holly Carter | AR70: 4 | AS70: Michaela Knight | AU70: 3 | AW70: 4 | AZ70: 3 | BA70: 84SA | BB70: 4 | BC70: 84SB
C75: Guests - Non-Scoring
B77: Event | C77: Time | D77: Events | G77: No | H77: A String | L77: No | M77: A String | Q77: No | R77: A String | V77: No | W77: A String | AA77: No | AB77: A String | AF77: No | AG77: A String | AK77: No | AL77: A String | AP77: No | AQ77: A String | AU77: No | AV77: A String | AZ77: No | BA77: A String
D79: Female
B80: 88 | C80: =IF($B80>0,VLOOKUP($B80,EventsOrder,2,FALSE)," ") -> 11.45 | D80: =IF($B80>0,VLOOKUP($B80,EventsOrder,6,FALSE)," ") -> 1500m U13 Female | AF80: 8 | AG80: KATIE STRETTON | AP80: 503 | AQ80: Grace Alvey | AZ80: =$B80 -> 88 | BA80: =CONCATENATE(LEFT(BA$3,3),$B80,LEFT(BA$6,1)) -> 88A
B81: 89 | C81: 11.55 | D81: 1500m U15 Female | G81: 664 | H81: Anna Nicod | AL81: Felicity McCool | AZ81: 89 | BA81: 89A
B82: 90 | C82: 12.05 | D82: 1500m U17 F/Women | AZ82: 90 | BA82: 90A
B83: 94 | C83: 1.15 | D83: 800m U13 Female | AF83: 9 | AG83: SOPHIE PERRY | AL83: millie Fidkin | AP83: 504 | AQ83: Flora Miskin Young | AZ83: 94 | BA83: =CONCATENATE(LEFT(BA$3,3),$B83,LEFT(BA$6,1)) -> 94A
B84: 95 | C84: 1.25 | D84: 800m U15 Female | G84: 665 | H84: Amy Tongue | AZ84: 95 | BA84: 95A
B85: 96 | C85: 1.4 | D85: 800m U17 F/Women | AL85: Becky Evans | AZ85: 96 | BA85: 96A
B88: =COLUMN(B1) -> 2 | C88: 3 | D88: 4 | E88: 5 | F88: 6 | G88: 7 | H88: 8 | I88: 9 | J88: 10 | K88: 11 | L88: 12 | M88: 13 | N88: 14 | O88: 15 | P88: 16 | Q88: 17 | R88: 18 | S88: 19 | T88: 20 | U88: 21 | V88: 22 | W88: 23 | X88: 24 | Y88: 25 | Z88: 26 | AA88: 27 | AB88: 28 | AC88: 29 | AD88: 30 | AE88: 31 | AF88: 32 | AG88: 33 | AH88: 34 | AI88: 35 | AJ88: 36 | AK88: 37 | AL88: 38 | AM88: 39 | AN88: 40 | AO88: 41 | AP88: 42 | AQ88: 43 | AR88: 44 | AS88: 45

Sheet Results in Event Order
D1: Non-Scoring | G1: 31 | H1: 63 | I1: =G1+1 -> 32 | J1: =H1+1 -> 64 | K1: =I1+1 -> 33 | L1: 65 | M1: 34 | N1: 66 | O1: 35 | P1: 67 | Q1: 36 | R1: 68 | S1: 37 | T1: 69 | U1: 38 | V1: 70 | W1: ='Event Details'!C30 -> 0 | X1: =W1-1 -> -1 | Y1: -2 | Z1: -3 | AA1: -4 | AB1: -5 | AC1: -6 | AD1: -7
G2: 3 | H2: 15 | I2: =G2+2 -> 5 | J2: =H2+1 -> 16 | K2: =I2+2 -> 7 | L2: 17 | M2: =K2+2 -> 9 | N2: 18 | O2: =M2+2 -> 11 | P2: 19 | Q2: =O2+2 -> 13 | R2: 20 | S2: =Q2+2 -> 15 | T2: 21 | U2: =S2+2 -> 17 | V2: 22 | W2: 39 | X2: 40 | Y2: 41 | Z2: 42 | AA2: 43 | AB2: 44 | AC2: 45 | AD2: 46
D3: Scoring | G3: 31 | H3: 15 | I3: 32 | J3: 16 | K3: 33 | L3: 17 | M3: 34 | N3: 18 | O3: 35 | P3: 19 | Q3: 36 | R3: 20 | S3: 37 | T3: 21 | U3: 38 | V3: 22 | W3: ='Event Details'!C32 -> 8 | X3: =W3-1 -> 7 | Y3: 6 | Z3: 5 | AA3: 4 | AB3: 3 | AC3: 2 | AD3: 1
G4: 63 | H4: 31 | I4: 64 | J4: 32 | K4: 65 | L4: 33 | M4: 66 | N4: 34 | O4: 67 | P4: 35 | Q4: 68 | R4: 36 | S4: 69 | T4: 37 | U4: 70 | V4: 38 | W4: 39 | X4: 40 | Y4: 41 | Z4: 42 | AA4: 43 | AB4: 44 | AC4: 45 | AD4: 46
B5: Event No | K5: =CONCATENATE('Event Details'!D$5," ","Results in Events Order") -> Heart of England League Results in Events Order | W5: =W8 -> Brom & Redditch | X5: =X8 -> Corby | Y5: Kettering | Z5: Kidder & Stourport | AA5: Dudley & S'bridge | AB5: Tamworth | AC5: Royal Sutton | AD5: Wreake Runners
D6: Division | E6: ='Event Details'!D$9 -> 2 | K6: Venue | L6: ='Event Details'!F$17 -> Kidd & Stourport | Q6: Date | R6: ='Event Details'!B$17 -> 10th May 2015
C7: Time | D7: Event | F7: NS | G7: First | I7: Second | K7: Third | M7: Fourth | O7: Fifth | Q7: Sixth | S7: Seventh | U7: Eighth | W7: =W10 -> C | X7: =X10 -> O | Y7: I | Z7: U | AA7: B | AB7: F | AC7: G | AD7: X
B8: Event No | K8: =CONCATENATE('Event Details'!D$5," ","Results in Event Order") -> Heart of England League Results in Event Order | W8: ='Event Details'!$D22 -> Brom & Redditch | X8: ='Event Details'!D23 -> Corby | Y8: ='Event Details'!D24 -> Kettering | Z8: ='Event Details'!D25 -> Kidder & Stourport | AA8: ='Event Details'!D26 -> Dudley & S'bridge | AB8: ='Event Details'!D27 -> Tamworth | AC8: ='Event Details'!D28 -> Royal Sutton | AD8: ='Event Details'!D29 -> Wreake Runners
D9: Division | E9: ='Event Details'!D$9 -> 2 | K9: Venue | L9: ='Event Details'!F$17 -> Kidd & Stourport | Q9: Date | R9: ='Event Details'!B$17 -> 10th May 2015
C10: Time | D10: Event | F10: NS | G10: First | I10: Second | K10: Third | M10: Fourth | O10: Fifth | Q10: Sixth | S10: Seventh | U10: Eighth | W10: ='Event Details'!C22 -> C | X10: ='Event Details'!C23 -> O | Y10: ='Event Details'!C24 -> I | Z10: ='Event Details'!C25 -> U | AA10: ='Event Details'!C26 -> B | AB10: ='Event Details'!C27 -> F | AC10: ='Event Details'!C28 -> G | AD10: ='Event Details'!C29 -> X
A11: =B12&"A" -> 1A | D11: =VLOOKUP(B12,EventsOrder,4,FALSE) -> U13 Female | E11: A | G11: =VLOOKUP($A11,Results3,G$3,FALSE) -> Elsa Buchanan | I11: =VLOOKUP($A11,Results3,I$3,FALSE) -> Katie Parker | K11: =VLOOKUP($A11,Results3,K$3,FALSE) -> ABI HAMER | M11: =VLOOKUP($A11,Results3,M$3,FALSE) -> Natalie Hatfield | O11: =VLOOKUP($A11,Results3,O$3,FALSE) -> Mia Bockway | Q11: =VLOOKUP($A11,Results3,Q$3,FALSE) -> Libby Hawkswell | S11: =VLOOKUP($A11,Results3,S$3,FALSE) -> Cloe Everton | U11: =VLOOKUP($A11,Results3,U$3,FALSE) ->  | AE11: =IF(LEN(G11)>1,1,0) -> 1
A12: =B12&"A" -> 1A | B12: 1 | C12: =VLOOKUP(B12,EventsOrder,2,FALSE) -> 11.45 | G12: =VLOOKUP($A12,Results3,G$4,FALSE) -> Royal | H12: =VLOOKUP($A12,Results3,H$3,FALSE) -> 5.21.4 | I12: =VLOOKUP($A12,Results3,I$4,FALSE) -> Wreake | J12: =VLOOKUP($A12,Results3,J$3,FALSE) -> 5.23.3 | K12: =VLOOKUP($A12,Results3,K$4,FALSE) -> Tam | L12: =VLOOKUP($A12,Results3,L$3,FALSE) -> 5.30.3 | M12: =VLOOKUP($A12,Results3,M$4,FALSE) -> B&R | N12: =VLOOKUP($A12,Results3,N$3,FALSE) -> 5.35.4 | O12: =VLOOKUP($A12,Results3,O$4,FALSE) -> Kett | P12: =VLOOKUP($A12,Results3,P$3,FALSE) -> 5.48.2 | Q12: =VLOOKUP($A12,Results3,Q$4,FALSE) -> K&S | R12: =VLOOKUP($A12,Results3,R$3,FALSE) -> 5.51.7 | S12: =VLOOKUP($A12,Results3,S$4,FALSE) -> DASH | T12: =VLOOKUP($A12,Results3,T$3,FALSE) -> 5.57.3 | U12: =VLOOKUP($A12,Results3,U$4,FALSE) -> 0 | V12: =VLOOKUP($A12,Results3,V$3,FALSE) -> 0 | W12: =VLOOKUP($A12,Results3,W$4,FALSE) -> 5 | X12: =VLOOKUP($A12,Results3,X$4,FALSE) -> 0 | Y12: 4 | Z12: 3 | AA12: 2 | AB12: 6 | AC12: 8 | AD12: 7
A13: =B12&"B" -> 1B | D13: =VLOOKUP(B12,EventsOrder,3,FALSE) -> 1500m | E13: B | G13: =VLOOKUP($A13,Results3,G$3,FALSE) -> Flora Miskin-Young | I13: =VLOOKUP($A13,Results3,I$3,FALSE) -> Sophie Groom | K13: =VLOOKUP($A13,Results3,K$3,FALSE) -> Milly Fidkin | M13: =VLOOKUP($A13,Results3,M$3,FALSE) -> CHARLOTTE PERRY | O13: =VLOOKUP($A13,Results3,O$3,FALSE) ->  | Q13: =VLOOKUP($A13,Results3,Q$3,FALSE) ->  | S13: =VLOOKUP($A13,Results3,S$3,FALSE) ->  | U13: =VLOOKUP($A13,Results3,U$3,FALSE) -> 
A14: =B12&"B" -> 1B | G14: =VLOOKUP($A14,Results3,G$4,FALSE) -> Wreake | H14: =VLOOKUP($A14,Results3,H$3,FALSE) -> 5.26.9 | I14: =VLOOKUP($A14,Results3,I$4,FALSE) -> B&R | J14: =VLOOKUP($A14,Results3,J$3,FALSE) -> 5.45.6 | K14: =VLOOKUP($A14,Results3,K$4,FALSE) -> Royal | L14: =VLOOKUP($A14,Results3,L$3,FALSE) -> 5.54.6 | M14: =VLOOKUP($A14,Results3,M$4,FALSE) -> Tam | N14: =VLOOKUP($A14,Results3,N$3,FALSE) -> 5.59.6 | O14: =VLOOKUP($A14,Results3,O$4,FALSE) -> 0 | P14: =VLOOKUP($A14,Results3,P$3,FALSE) -> 0 | Q14: =VLOOKUP($A14,Results3,Q$4,FALSE) -> 0 | R14: =VLOOKUP($A14,Results3,R$3,FALSE) -> 0 | S14: =VLOOKUP($A14,Results3,S$4,FALSE) -> 0 | T14: =VLOOKUP($A14,Results3,T$3,FALSE) -> 0 | U14: =VLOOKUP($A14,Results3,U$4,FALSE) -> 0 | V14: =VLOOKUP($A14,Results3,V$3,FALSE) -> 0 | W14: =VLOOKUP($A14,Results3,W$4,FALSE) -> 7 | X14: 0 | Y14: 0 | Z14: 0 | AA14: 0 | AB14: 5 | AC14: 6 | AD14: 8
A15: =B16&"A" -> 4A | D15: =VLOOKUP(B16,EventsOrder,4,FALSE) -> U15 Female | E15: A | G15: =VLOOKUP($A15,Results3,G$3,FALSE) -> Fern Harrison | I15: =VLOOKUP($A15,Results3,I$3,FALSE) -> Ellen Bowen | K15: =VLOOKUP($A15,Results3,K$3,FALSE) -> EVE CLAWLEY | M15: =VLOOKUP($A15,Results3,M$3,FALSE) -> Danielle McGann-Gaskill | O15: =VLOOKUP($A15,Results3,O$3,FALSE) -> Caitlin White | Q15: =VLOOKUP($A15,Results3,Q$3,FALSE) -> LAURA DEW | S15: =VLOOKUP($A15,Results3,S$3,FALSE) ->  | U15: =VLOOKUP($A15,Results3,U$3,FALSE) ->  | AE15: =IF(LEN(G15)>1,1,0) -> 1
A16: =B16&"A" -> 4A | B16: 4 | C16: =VLOOKUP(B16,EventsOrder,2,FALSE) -> 11.55 | G16: =VLOOKUP($A16,Results3,G$4,FALSE) -> Wreake | H16: =VLOOKUP($A16,Results3,H$3,FALSE) -> 4.58.0 | I16: =VLOOKUP($A16,Results3,I$4,FALSE) -> B&R | J16: =VLOOKUP($A16,Results3,J$3,FALSE) -> 5.05.5 | K16: =VLOOKUP($A16,Results3,K$4,FALSE) -> Tam | L16: =VLOOKUP($A16,Results3,L$3,FALSE) -> 5.07.1 | M16: =VLOOKUP($A16,Results3,M$4,FALSE) -> Kett | N16: =VLOOKUP($A16,Results3,N$3,FALSE) -> 5.24.3 | O16: =VLOOKUP($A16,Results3,O$4,FALSE) -> Royal | P16: =VLOOKUP($A16,Results3,P$3,FALSE) -> 5.35.7 | Q16: =VLOOKUP($A16,Results3,Q$4,FALSE) -> Corby | R16: =VLOOKUP($A16,Results3,R$3,FALSE) -> 6.01.8 | S16: =VLOOKUP($A16,Results3,S$4,FALSE) -> 0 | T16: =VLOOKUP($A16,Results3,T$3,FALSE) -> 0 | U16: =VLOOKUP($A16,Results3,U$4,FALSE) -> 0 | V16: =VLOOKUP($A16,Results3,V$3,FALSE) -> 0 | W16: =VLOOKUP($A16,Results3,W$4,FALSE) -> 7 | X16: =VLOOKUP($A16,Results3,X$4,FALSE) -> 3 | Y16: 5 | Z16: 0 | AA16: 0 | AB16: 6 | AC16: 4 | AD16: 8
A17: =B16&"B" -> 4B | D17: =VLOOKUP(B16,EventsOrder,3,FALSE) -> 1500m | E17: B | G17: =VLOOKUP($A17,Results3,G$3,FALSE) -> Hollie Gamble | I17: =VLOOKUP($A17,Results3,I$3,FALSE) -> Amy Mijovic-Cauldwell | K17: =VLOOKUP($A17,Results3,K$3,FALSE) -> Jenifer Robinson | M17: =VLOOKUP($A17,Results3,M$3,FALSE) -> Rachel White | O17: =VLOOKUP($A17,Results3,O$3,FALSE) ->  | Q17: =VLOOKUP($A17,Results3,Q$3,FALSE) ->  | S17: =VLOOKUP($A17,Results3,S$3,FALSE) ->  | U17: =VLOOKUP($A17,Results3,U$3,FALSE) -> 
A18: =B16&"B" -> 4B | G18: =VLOOKUP($A18,Results3,G$4,FALSE) -> Wreake | H18: =VLOOKUP($A18,Results3,H$3,FALSE) -> 5.12.9 | I18: =VLOOKUP($A18,Results3,I$4,FALSE) -> B&R | J18: =VLOOKUP($A18,Results3,J$3,FALSE) -> 5.21.9 | K18: =VLOOKUP($A18,Results3,K$4,FALSE) -> Kett | L18: =VLOOKUP($A18,Results3,L$3,FALSE) -> 5.32.8 | M18: =VLOOKUP($A18,Results3,M$4,FALSE) -> Royal | N18: =VLOOKUP($A18,Results3,N$3,FALSE) -> DNF | O18: =VLOOKUP($A18,Results3,O$4,FALSE) -> 0 | P18: =VLOOKUP($A18,Results3,P$3,FALSE) -> 0 | Q18: =VLOOKUP($A18,Results3,Q$4,FALSE) -> 0 | R18: =VLOOKUP($A18,Results3,R$3,FALSE) -> 0 | S18: =VLOOKUP($A18,Results3,S$4,FALSE) -> 0 | T18: =VLOOKUP($A18,Results3,T$3,FALSE) -> 0 | U18: =VLOOKUP($A18,Results3,U$4,FALSE) -> 0 | V18: =VLOOKUP($A18,Results3,V$3,FALSE) -> 0 | W18: =VLOOKUP($A18,Results3,W$4,FALSE) -> 7 | X18: 0 | Y18: 6 | Z18: 0 | AA18: 0 | AB18: 0 | AC18: 0 | AD18: 8
A19: =B20&"A" -> 5A | D19: =VLOOKUP(B20,EventsOrder,4,FALSE) -> U13 Male | E19: A | G19: =VLOOKUP($A19,Results3,G$3,FALSE) -> Brandon Raulia | I19: =VLOOKUP($A19,Results3,I$3,FALSE) -> tavindra kumar | K19: =VLOOKUP($A19,Results3,K$3,FALSE) ->  | M19: =VLOOKUP($A19,Results3,M$3,FALSE) ->  | O19: =VLOOKUP($A19,Results3,O$3,FALSE) ->  | Q19: =VLOOKUP($A19,Results3,Q$3,FALSE) ->  | S19: =VLOOKUP($A19,Results3,S$3,FALSE) ->  | U19: =VLOOKUP($A19,Results3,U$3,FALSE) ->  | AE19: =IF(LEN(G19)>1,1,0) -> 1
A20: =B20&"A" -> 5A | B20: 5 | C20: =VLOOKUP(B20,EventsOrder,2,FALSE) -> 12 | G20: =VLOOKUP($A20,Results3,G$4,FALSE) -> Kett | H20: =VLOOKUP($A20,Results3,H$3,FALSE) -> 1.25 | I20: =VLOOKUP($A20,Results3,I$4,FALSE) -> DASH | J20: =VLOOKUP($A20,Results3,J$3,FALSE) -> 1.13 | K20: =VLOOKUP($A20,Results3,K$4,FALSE) -> 0 | L20: =VLOOKUP($A20,Results3,L$3,FALSE) -> 0 | M20: =VLOOKUP($A20,Results3,M$4,FALSE) -> 0 | N20: =VLOOKUP($A20,Results3,N$3,FALSE) -> 0 | O20: =VLOOKUP($A20,Results3,O$4,FALSE) -> 0 | P20: =VLOOKUP($A20,Results3,P$3,FALSE) -> 0 | Q20: =VLOOKUP($A20,Results3,Q$4,FALSE) -> 0 | R20: =VLOOKUP($A20,Results3,R$3,FALSE) -> 0 | S20: =VLOOKUP($A20,Results3,S$4,FALSE) -> 0 | T20: =VLOOKUP($A20,Results3,T$3,FALSE) -> 0 | U20: =VLOOKUP($A20,Results3,U$4,FALSE) -> 0 | V20: =VLOOKUP($A20,Results3,V$3,FALSE) -> 0 | W20: =VLOOKUP($A20,Results3,W$4,FALSE) -> 0 | X20: =VLOOKUP($A20,Results3,X$4,FALSE) -> 0 | Y20: 8 | Z20: 0 | AA20: 7 | AB20: 0 | AC20: 0 | AD20: 0
A21: =B20&"B" -> 5B | D21: =VLOOKUP(B20,EventsOrder,3,FALSE) -> High Jump | E21: B | G21: =VLOOKUP($A21,Results3,G$3,FALSE) ->  | I21: =VLOOKUP($A21,Results3,I$3,FALSE) ->  | K21: =VLOOKUP($A21,Results3,K$3,FALSE) ->  | M21: =VLOOKUP($A21,Results3,M$3,FALSE) ->  | O21: =VLOOKUP($A21,Results3,O$3,FALSE) ->  | Q21: =VLOOKUP($A21,Results3,Q$3,FALSE) ->  | S21: =VLOOKUP($A21,Results3,S$3,FALSE) ->  | U21: =VLOOKUP($A21,Results3,U$3,FALSE) -> 
A22: =B20&"B" -> 5B | G22: =VLOOKUP($A22,Results3,G$4,FALSE) -> 0 | H22: =VLOOKUP($A22,Results3,H$3,FALSE) -> 0 | I22: =VLOOKUP($A22,Results3,I$4,FALSE) -> 0 | J22: =VLOOKUP($A22,Results3,J$3,FALSE) -> 0 | K22: =VLOOKUP($A22,Results3,K$4,FALSE) -> 0 | L22: =VLOOKUP($A22,Results3,L$3,FALSE) -> 0 | M22: =VLOOKUP($A22,Results3,M$4,FALSE) -> 0 | N22: =VLOOKUP($A22,Results3,N$3,FALSE) -> 0 | O22: =VLOOKUP($A22,Results3,O$4,FALSE) -> 0 | P22: =VLOOKUP($A22,Results3,P$3,FALSE) -> 0 | Q22: =VLOOKUP($A22,Results3,Q$4,FALSE) -> 0 | R22: =VLOOKUP($A22,Results3,R$3,FALSE) -> 0 | S22: =VLOOKUP($A22,Results3,S$4,FALSE) -> 0 | T22: =VLOOKUP($A22,Results3,T$3,FALSE) -> 0 | U22: =VLOOKUP($A22,Results3,U$4,FALSE) -> 0 | V22: =VLOOKUP($A22,Results3,V$3,FALSE) -> 0 | W22: =VLOOKUP($A22,Results3,W$4,FALSE) -> 0 | X22: 0 | Y22: 0 | Z22: 0 | AA22: 0 | AB22: 0 | AC22: 0 | AD22: 0
A23: =B24&"A" -> 6A | D23: =VLOOKUP(B24,EventsOrder,4,FALSE) -> U15 Male | E23: A | G23: =VLOOKUP($A23,Results3,G$3,FALSE) -> OLIVER BARNARD | I23: =VLOOKUP($A23,Results3,I$3,FALSE) -> Ben Horton | K23: =VLOOKUP($A23,Results3,K$3,FALSE) -> brandon grainger | M23: =VLOOKUP($A23,Results3,M$3,FALSE) -> Will Thorley | O23: =VLOOKUP($A23,Results3,O$3,FALSE) -> Joshua Gray | Q23: =VLOOKUP($A23,Results3,Q$3,FALSE) -> Felix Miskin Young | S23: =VLOOKUP($A23,Results3,S$3,FALSE) -> FINLAY WILSON | U23: =VLOOKUP($A23,Results3,U$3,FALSE) -> Christopher Telling | AE23: =IF(LEN(G23)>1,1,0) -> 1
A24: =B24&"A" -> 6A | B24: 6 | C24: =VLOOKUP(B24,EventsOrder,2,FALSE) -> 12 | G24: =VLOOKUP($A24,Results3,G$4,FALSE) -> Tam | H24: =VLOOKUP($A24,Results3,H$3,FALSE) -> 4.55 | I24: =VLOOKUP($A24,Results3,I$4,FALSE) -> Royal | J24: =VLOOKUP($A24,Results3,J$3,FALSE) -> 4.52 | K24: =VLOOKUP($A24,Results3,K$4,FALSE) -> DASH | L24: =VLOOKUP($A24,Results3,L$3,FALSE) -> 4.5 | M24: =VLOOKUP($A24,Results3,M$4,FALSE) -> B&R | N24: =VLOOKUP($A24,Results3,N$3,FALSE) -> 4.19 | O24: =VLOOKUP($A24,Results3,O$4,FALSE) -> Kett | P24: =VLOOKUP($A24,Results3,P$3,FALSE) -> 4.18 | Q24: =VLOOKUP($A24,Results3,Q$4,FALSE) -> Wreake | R24: =VLOOKUP($A24,Results3,R$3,FALSE) -> 4.17 | S24: =VLOOKUP($A24,Results3,S$4,FALSE) -> Corby | T24: =VLOOKUP($A24,Results3,T$3,FALSE) -> 4.07 | U24: =VLOOKUP($A24,Results3,U$4,FALSE) -> K&S | V24: =VLOOKUP($A24,Results3,V$3,FALSE) -> 3.97 | W24: =VLOOKUP($A24,Results3,W$4,FALSE) -> 5 | X24: =VLOOKUP($A24,Results3,X$4,FALSE) -> 2 | Y24: 4 | Z24: 1 | AA24: 6 | AB24: 8 | AC24: 7 | AD24: 3
A25: =B24&"B" -> 6B | D25: =VLOOKUP(B24,EventsOrder,3,FALSE) -> Long Jump | E25: B | G25: =VLOOKUP($A25,Results3,G$3,FALSE) -> Luke O'Brien | I25: =VLOOKUP($A25,Results3,I$3,FALSE) -> LEWIS JOHNSON | K25: =VLOOKUP($A25,Results3,K$3,FALSE) -> Dylan Mukhtar | M25: =VLOOKUP($A25,Results3,M$3,FALSE) -> George Clements | O25: =VLOOKUP($A25,Results3,O$3,FALSE) -> JAKE LAWSON | Q25: =VLOOKUP($A25,Results3,Q$3,FALSE) ->  | S25: =VLOOKUP($A25,Results3,S$3,FALSE) ->  | U25: =VLOOKUP($A25,Results3,U$3,FALSE) ->  | AE25: =IF(LEN(G25)>1,1,0) -> 1
A26: =B24&"B" -> 6B | G26: =VLOOKUP($A26,Results3,G$4,FALSE) -> Royal | H26: =VLOOKUP($A26,Results3,H$3,FALSE) -> 4.45 | I26: =VLOOKUP($A26,Results3,I$4,FALSE) -> Tam | J26: =VLOOKUP($A26,Results3,J$3,FALSE) -> 4.17 | K26: =VLOOKUP($A26,Results3,K$4,FALSE) -> Kett | L26: =VLOOKUP($A26,Results3,L$3,FALSE) -> 3.98 | M26: =VLOOKUP($A26,Results3,M$4,FALSE) -> B&R | N26: =VLOOKUP($A26,Results3,N$3,FALSE) -> 3.89 | O26: =VLOOKUP($A26,Results3,O$4,FALSE) -> Corby | P26: =VLOOKUP($A26,Results3,P$3,FALSE) -> 3.29 | Q26: =VLOOKUP($A26,Results3,Q$4,FALSE) -> 0 | R26: =VLOOKUP($A26,Results3,R$3,FALSE) -> 0 | S26: =VLOOKUP($A26,Results3,S$4,FALSE) -> 0 | T26: =VLOOKUP($A26,Results3,T$3,FALSE) -> 0 | U26: =VLOOKUP($A26,Results3,U$4,FALSE) -> 0 | V26: =VLOOKUP($A26,Results3,V$3,FALSE) -> 0 | W26: =VLOOKUP($A26,Results3,W$4,FALSE) -> 5 | X26: 4 | Y26: 6 | Z26: 0 | AA26: 0 | AB26: 7 | AC26: 8 | AD26: 0
A27: =B28&"A" -> 7A | D27: =VLOOKUP(B28,EventsOrder,4,FALSE) -> U17 F/Women | E27: A | G27: =VLOOKUP($A27,Results3,G$3,FALSE) -> ELLIE-MAY HATHAWAY U17 | I27: =VLOOKUP($A27,Results3,I$3,FALSE) -> 0 | K27: =VLOOKUP($A27,Results3,K$3,FALSE) -> Rosie Weselby U17 | M27: =VLOOKUP($A27,Results3,M$3,FALSE) -> Chloe Hearne | O27: =VLOOKUP($A27,Results3,O$3,FALSE) ->  | Q27: =VLOOKUP($A27,Results3,Q$3,FALSE) ->  | S27: =VLOOKUP($A27,Results3,S$3,FALSE) ->  | U27: =VLOOKUP($A27,Results3,U$3,FALSE) -> 
